Workbook

Sheet Dev Flag (hidden)
A1: Developer Flag
A2: FALSE

Sheet Introduction
A1: DRVE (Dashboard for Rapid Vehicle Electrification)
A2: The tool will launch automatically. If the tool does not appear, please enable editing above, and launch the tool by clicking the button below.

Sheet Parameters (hidden)
A1: Filename | B1: File Type | C1: Sheet Name | D1: VIN Column | E1: Rep Year Column | F1: VMT Column | G1: Use Default VMT | H1: Use Default YOU | I1: Default VMT | J1: Default YOU | K1: State | L1: Incentive Selection | M1: Use Default Location | N1: Location Column | O1: Sample Fleet | Q1: Title | R1: Law ID | S1: Description | T1: Link | U1: State Abbreviation

Sheet Fleet Vehicles (hidden)
A1: VIN | B1: Base_V1_Years_Usage | C1: Base_V1_VMT | D1: Vehicle Location | E1: Vehicle ID | F1: VIN Key
A2: 15GGD3013C1181123 | B2: 7 | C2: 15000 | D2: Location 1 | E2: 1 | F2: 15GGD301*C
A3: 15GGD3015C1181155 | B3: 7 | C3: 15000 | D3: Location 1 | E3: 2 | F3: 15GGD301*C
A4: 5YFEPRAE2LP021100 | B4: 7 | C4: 15000 | D4: Location 1 | E4: 3 | F4: 5YFEPRAE*L
A5: 5YFEPRAE2LP023101 | B5: 7 | C5: 15000 | D5: Location 1 | E5: 4 | F5: 5YFEPRAE*L
A6: 5YFEPRAE2LP025102 | B6: 7 | C6: 15000 | D6: Location 1 | E6: 5 | F6: 5YFEPRAE*L
A7: 5YFEPRAE4LP022103 | B7: 7 | C7: 15000 | D7: Location 1 | E7: 6 | F7: 5YFEPRAE*L
A8: 5YFEPRAE6LP021104 | B8: 7 | C8: 15000 | D8: Location 1 | E8: 7 | F8: 5YFEPRAE*L
A9: 1FTYR14V43TA39100 | B9: 7 | C9: 15000 | D9: Location 1 | E9: 8 | F9: 1FTYR14V*3
A10: 1GCCS145728164101 | B10: 7 | C10: 15000 | D10: Location 1 | E10: 9 | F10: 1GCCS145*2
A11: 1GCGTBEN1L1185102 | B11: 7 | C11: 15000 | D11: Location 1 | E11: 10 | F11: 1GCGTBEN*L
A12: 1FTYR10V5XTA93103 | B12: 7 | C12: 15000 | D12: Location 1 | E12: 11 | F12: 1FTYR10V*X
A13: 1FDNF6AY5HDB03100 | B13: 7 | C13: 15000 | D13: Location 1 | E13: 12 | F13: 1FDNF6AY*H
A14: 1FDXE4FS0DDA07101 | B14: 7 | C14: 15000 | D14: Location 1 | E14: 13 | F14: 1FDXE4FS*D
A15: 1FDXE4FS2DDA07102 | B15: 7 | C15: 15000 | D15: Location 1 | E15: 14 | F15: 1FDXE4FS*D
A16: 1FAFP53U05A267100 | B16: 8 | C16: 12000 | D16: Location 1 | E16: 15 | F16: 1FAFP53U*5
A17: 1FAFP53U05A267101 | B17: 8 | C17: 12000 | D17: Location 1 | E17: 16 | F17: 1FAFP53U*5
A18: 1FAFP53U05A267102 | B18: 8 | C18: 12000 | D18: Location 1 | E18: 17 | F18: 1FAFP53U*5
A19: 1FAFP53U05A267103 | B19: 8 | C19: 12000 | D19: Location 1 | E19: 18 | F19: 1FAFP53U*5
A20: 1FAFP53U05A267104 | B20: 8 | C20: 12000 | D20: Location 1 | E20: 19 | F20: 1FAFP53U*5
A21: 1FAFP53U05A267105 | B21: 8 | C21: 12000 | D21: Location 1 | E21: 20 | F21: 1FAFP53U*5
A22: 1FAFP53U05A267106 | B22: 8 | C22: 12000 | D22: Location 2 | E22: 21 | F22: 1FAFP53U*5
A23: 1FAFP53U05A267107 | B23: 8 | C23: 12000 | D23: Location 2 | E23: 22 | F23: 1FAFP53U*5
A24: 1FAFP53U05A267108 | B24: 8 | C24: 12000 | D24: Location 2 | E24: 23 | F24: 1FAFP53U*5
A25: 1FAFP53U05A267109 | B25: 8 | C25: 12000 | D25: Location 2 | E25: 24 | F25: 1FAFP53U*5
A26: 1FAFP53U05A267110 | B26: 8 | C26: 12000 | D26: Location 2 | E26: 25 | F26: 1FAFP53U*5
A27: 1GCNKNEHXHZ250100 | B27: 10 | C27: 15000 | D27: Location 2 | E27: 26 | F27: 1GCNKNEH*H
A28: 1GCNKNEHXHZ250101 | B28: 10 | C28: 15000 | D28: Location 2 | E28: 27 | F28: 1GCNKNEH*H
A29: 1GCNKNEHXHZ250102 | B29: 10 | C29: 15000 | D29: Location 2 | E29: 28 | F29: 1GCNKNEH*H
A30: 1GCNKNEHXHZ250103 | B30: 10 | C30: 15000 | D30: Location 2 | E30: 29 | F30: 1GCNKNEH*H
A31: 1GCNKNEHXHZ250104 | B31: 10 | C31: 15000 | D31: Location 2 | E31: 30 | F31: 1GCNKNEH*H
A32: 1GCNKNEHXHZ250105 | B32: 10 | C32: 15000 | D32: Location 2 | E32: 31 | F32: 1GCNKNEH*H
A33: 1GCNKNEHXHZ250106 | B33: 10 | C33: 15000 | D33: Location 2 | E33: 32 | F33: 1GCNKNEH*H
A34: 1GCNKNEHXHZ250107 | B34: 7 | C34: 12000 | D34: Location 2 | E34: 33 | F34: 1GCNKNEH*H
A35: 1GCNKNEHXHZ250108 | B35: 7 | C35: 12000 | D35: Location 2 | E35: 34 | F35: 1GCNKNEH*H
A36: 1GCNKNEHXHZ250109 | B36: 7 | C36: 12000 | D36: Location 2 | E36: 35 | F36: 1GCNKNEH*H
A37: 1GCNKNEHXHZ250110 | B37: 7 | C37: 12000 | D37: Location 2 | E37: 36 | F37: 1GCNKNEH*H
A38: 1GCNKNEHXHZ250111 | B38: 7 | C38: 12000 | D38: Location 2 | E38: 37 | F38: 1GCNKNEH*H
A39: 1GCNKNEHXHZ250112 | B39: 7 | C39: 12000 | D39: Location 2 | E39: 38 | F39: 1GCNKNEH*H
A40: 1GCNKNEHXHZ250113 | B40: 7 | C40: 12000 | D40: Location 2 | E40: 39 | F40: 1GCNKNEH*H
A41: 1GCNKNEHXHZ250114 | B41: 7 | C41: 12000 | D41: Location 3 | E41: 40 | F41: 1GCNKNEH*H
A42: 1FM5K8FW5LGB60000 | B42: 8 | C42: 15000 | D42: Location 3 | E42: 41 | F42: 1FM5K8FW*L
A43: 1FM5K8FW5LGB60001 | B43: 8 | C43: 15000 | D43: Location 3 | E43: 42 | F43: 1FM5K8FW*L
A44: 1FM5K8FW5LGB60002 | B44: 8 | C44: 15000 | D44: Location 3 | E44: 43 | F44: 1FM5K8FW*L
A45: 1FM5K8FW5LGB60003 | B45: 8 | C45: 15000 | D45: Location 3 | E45: 44 | F45: 1FM5K8FW*L
A46: 1FM5K8FW5LGB60004 | B46: 8 | C46: 15000 | D46: Location 3 | E46: 45 | F46: 1FM5K8FW*L
A47: 1FM5K8FW5LGB60005 | B47: 8 | C47: 15000 | D47: Location 3 | E47: 46 | F47: 1FM5K8FW*L
A48: 1FM5K8FW5LGB60006 | B48: 8 | C48: 15000 | D48: Location 3 | E48: 47 | F48: 1FM5K8FW*L
A49: 1FM5K8FW5LGB60007 | B49: 8 | C49: 15000 | D49: Location 3 | E49: 48 | F49: 1FM5K8FW*L
A50: 1FM5K8FW5LGB60008 | B50: 8 | C50: 15000 | D50: Location 3 | E50: 49 | F50: 1FM5K8FW*L
A51: 1FM5K8FW5LGB60009 | B51: 8 | C51: 15000 | D51: Location 3 | E51: 50 | F51: 1FM5K8FW*L
A52: 1FM5K8FW5LGB60010 | B52: 8 | C52: 15000 | D52: Location 3 | E52: 51 | F52: 1FM5K8FW*L
A53: 1FM5K8FW5LGB60011 | B53: 8 | C53: 15000 | D53: Location 3 | E53: 52 | F53: 1FM5K8FW*L
A54: 1FM5K8FW5LGB60012 | B54: 8 | C54: 15000 | D54: Location 3 | E54: 53 | F54: 1FM5K8FW*L
A55: 1FM5K8FW5LGB60013 | B55: 8 | C55: 15000 | D55: Location 3 | E55: 54 | F55: 1FM5K8FW*L
A56: 1FM5K8FW5LGB60014 | B56: 8 | C56: 15000 | D56: Location 3 | E56: 55 | F56: 1FM5K8FW*L
A57: 1FM5K8FW5LGB60015 | B57: 8 | C57: 15000 | D57: Location 3 | E57: 56 | F57: 1FM5K8FW*L
A58: 1FM5K8FW5LGB60016 | B58: 8 | C58: 15000 | D58: Location 3 | E58: 57 | F58: 1FM5K8FW*L
A59: 1FM5K8FW5LGB60017 | B59: 8 | C59: 15000 | D59: Location 3 | E59: 58 | F59: 1FM5K8FW*L
A60: 1FM5K8FW5LGB60018 | B60: 8 | C60: 15000 | D60: Location 3 | E60: 59 | F60: 1FM5K8FW*L
A61: 1FM5K8FW5LGB60019 | B61: 8 | C61: 15000 | D61: Location 3 | E61: 60 | F61: 1FM5K8FW*L
A62: 1FM5K8FW5LGB60020 | B62: 8 | C62: 15000 | D62: Location 3 | E62: 61 | F62: 1FM5K8FW*L
A63: 1HTSCAAM9WH538100 | B63: 8 | C63: 15000 | D63: Location 3 | E63: 62 | F63: 1HTSCAAM*W
A64: 1HTSCAAM9WH538101 | B64: 8 | C64: 15000 | D64: Location 3 | E64: 63 | F64: 1HTSCAAM*W
A65: 1HTSCAAM9WH538102 | B65: 8 | C65: 15000 | D65: Location 3 | E65: 64 | F65: 1HTSCAAM*W
A66: 1HTSCAAM9WH538103 | B66: 8 | C66: 15000 | D66: Location 3 | E66: 65 | F66: 1HTSCAAM*W
A67: 1HTSCAAM9WH538104 | B67: 8 | C67: 15000 | D67: Location 3 | E67: 66 | F67: 1HTSCAAM*W
A68: 1HTSCAAM9WH538105 | B68: 8 | C68: 15000 | D68: Location 3 | E68: 67 | F68: 1HTSCAAM*W
A69: 1HTSCAAM9WH538106 | B69: 8 | C69: 15000 | D69: Location 3 | E69: 68 | F69: 1HTSCAAM*W
A70: 1HTSCAAM9WH538107 | B70: 8 | C70: 15000 | D70: Location 3 | E70: 69 | F70: 1HTSCAAM*W
A71: 1HTSCAAM9WH538108 | B71: 8 | C71: 15000 | D71: Location 3 | E71: 70 | F71: 1HTSCAAM*W
A72: 1HTSCAAM9WH538109 | B72: 8 | C72: 15000 | D72: Location 3 | E72: 71 | F72: 1HTSCAAM*W
A73: 1FTNX21L94EC69100 | B73: 7 | C73: 12000 | D73: Location 3 | E73: 72 | F73: 1FTNX21L*4
A74: 1FTNX21L94EC69101 | B74: 7 | C74: 12000 | D74: Location 3 | E74: 73 | F74: 1FTNX21L*4
A75: 1FTNX21L94EC69102 | B75: 7 | C75: 12000 | D75: Location 3 | E75: 74 | F75: 1FTNX21L*4
A76: 1FTNX21L94EC69103 | B76: 7 | C76: 12000 | D76: Location 3 | E76: 75 | F76: 1FTNX21L*4
A77: 1FTNX21L94EC69104 | B77: 7 | C77: 12000 | D77: Location 3 | E77: 76 | F77: 1FTNX21L*4
A78: 1FTNX21L94EC69105 | B78: 7 | C78: 12000 | D78: Location 3 | E78: 77 | F78: 1FTNX21L*4
A79: 1FTNX21L94EC69106 | B79: 7 | C79: 12000 | D79: Location 3 | E79: 78 | F79: 1FTNX21L*4
A80: 1FTNX21L94EC69107 | B80: 7 | C80: 12000 | D80: Location 3 | E80: 79 | F80: 1FTNX21L*4
A81: 1FTNX21L94EC69108 | B81: 7 | C81: 12000 | D81: Location 3 | E81: 80 | F81: 1FTNX21L*4
A82: 1FTNX21L94EC69109 | B82: 7 | C82: 12000 | D82: Location 3 | E82: 81 | F82: 1FTNX21L*4
A83: 1FTNX21L94EC69110 | B83: 7 | C83: 12000 | D83: Location 3 | E83: 82 | F83: 1FTNX21L*4
A84: 1FTNX21L94EC69111 | B84: 7 | C84: 12000 | D84: Location 3 | E84: 83 | F84: 1FTNX21L*4
A85: 1FTNX21L94EC69112 | B85: 7 | C85: 12000 | D85: Location 3 | E85: 84 | F85: 1FTNX21L*4
A86: 1FTNX21L94EC69113 | B86: 7 | C86: 12000 | D86: Location 3 | E86: 85 | F86: 1FTNX21L*4
A87: 1FTNX21L94EC69114 | B87: 7 | C87: 12000 | D87: Location 3 | E87: 86 | F87: 1FTNX21L*4
A88: 1FTNX21L94EC69115 | B88: 7 | C88: 12000 | D88: Location 3 | E88: 87 | F88: 1FTNX21L*4
A89: 2C4RDGBG9KR701000 | B89: 7 | C89: 12000 | D89: Location 3 | E89: 88 | F89: 2C4RDGBG*K
A90: 2C4RDGBG9KR701001 | B90: 7 | C90: 12000 | D90: Location 4 | E90: 89 | F90: 2C4RDGBG*K
A91: 2C4RDGBG9KR701002 | B91: 7 | C91: 12000 | D91: Location 4 | E91: 90 | F91: 2C4RDGBG*K
A92: 2C4RDGBG9KR701003 | B92: 7 | C92: 12000 | D92: Location 4 | E92: 91 | F92: 2C4RDGBG*K
A93: 2C4RDGBG9KR701004 | B93: 7 | C93: 12000 | D93: Location 4 | E93: 92 | F93: 2C4RDGBG*K
A94: 2C4RDGBG9KR701005 | B94: 7 | C94: 12000 | D94: Location 4 | E94: 93 | F94: 2C4RDGBG*K
A95: 2C4RDGBG9KR701006 | B95: 7 | C95: 12000 | D95: Location 4 | E95: 94 | F95: 2C4RDGBG*K
A96: 2C4RDGBG9KR701007 | B96: 7 | C96: 12000 | D96: Location 4 | E96: 95 | F96: 2C4RDGBG*K
A97: 2C4RDGBG9KR701008 | B97: 7 | C97: 12000 | D97: Location 4 | E97: 96 | F97: 2C4RDGBG*K
A98: 2C4RDGBG9KR701009 | B98: 7 | C98: 12000 | D98: Location 4 | E98: 97 | F98: 2C4RDGBG*K
A99: 2C4RDGBG9KR701010 | B99: 7 | C99: 12000 | D99: Location 4 | E99: 98 | F99: 2C4RDGBG*K
A100: 2C4RDGBG9KR701011 | B100: 7 | C100: 12000 | D100: Location 4 | E100: 99 | F100: 2C4RDGBG*K
A101: 2C4RDGBG9KR701012 | B101: 7 | C101: 12000 | D101: Location 4 | E101: 100 | F101: 2C4RDGBG*K

Sheet Vin Strings (hidden)
A1: vin
A2: 15GGD301*C
A3: 5YFEPRAE*L
A4: 1FTYR14V*3
A5: 1GCCS145*2
A6: 1GCGTBEN*L
A7: 1FTYR10V*X
A8: 1FDNF6AY*H
A9: 1FDXE4FS*D
A10: 1FAFP53U*5
A11: 1GCNKNEH*H
A12: 1FM5K8FW*L
A13: 1HTSCAAM*W
A14: 1FTNX21L*4
A15: 2C4RDGBG*K

Sheet Decoded Vins (hidden)
A1: Full Vehicle Name | B1: vin | C1: Vehicle ID | D1: Use Case
A2: GILLIG LOW FLOOR BUS | B2: 15GGD3013C1181123 | C2: 1 | D2: Transit Bus
A3: GILLIG LOW FLOOR BUS | B3: 15GGD3015C1181155 | C3: 2 | D3: Transit Bus
A4: TOYOTA COROLLA | B4: 5YFEPRAE2LP021100 | C4: 3 | D4: Car
A5: TOYOTA COROLLA | B5: 5YFEPRAE2LP023101 | C5: 4 | D5: Car
A6: TOYOTA COROLLA | B6: 5YFEPRAE2LP025102 | C6: 5 | D6: Car
A7: TOYOTA COROLLA | B7: 5YFEPRAE4LP022103 | C7: 6 | D7: Car
A8: TOYOTA COROLLA | B8: 5YFEPRAE6LP021104 | C8: 7 | D8: Car
A9: FORD TAURUS | B9: 1FAFP53U05A267100 | C9: 15 | D9: Car
A10: FORD TAURUS | B10: 1FAFP53U05A267101 | C10: 16 | D10: Car
A11: FORD TAURUS | B11: 1FAFP53U05A267102 | C11: 17 | D11: Car
A12: FORD TAURUS | B12: 1FAFP53U05A267103 | C12: 18 | D12: Car
A13: FORD TAURUS | B13: 1FAFP53U05A267104 | C13: 19 | D13: Car
A14: FORD TAURUS | B14: 1FAFP53U05A267105 | C14: 20 | D14: Car
A15: FORD TAURUS | B15: 1FAFP53U05A267106 | C15: 21 | D15: Car
A16: FORD TAURUS | B16: 1FAFP53U05A267107 | C16: 22 | D16: Car
A17: FORD TAURUS | B17: 1FAFP53U05A267108 | C17: 23 | D17: Car
A18: FORD TAURUS | B18: 1FAFP53U05A267109 | C18: 24 | D18: Car
A19: FORD TAURUS | B19: 1FAFP53U05A267110 | C19: 25 | D19: Car
A20: FORD RANGER | B20: 1FTYR14V43TA39100 | C20: 8 | D20: Light Pickup
A21: CHEVROLET S-10 PICKUP | B21: 1GCCS145728164101 | C21: 9 | D21: Light Pickup
A22: CHEVROLET COLORADO | B22: 1GCGTBEN1L1185102 | C22: 10 | D22: Light Pickup
A23: FORD RANGER | B23: 1FTYR10V5XTA93103 | C23: 11 | D23: Light Pickup
A24: CHEVROLET SILVERADO | B24: 1GCNKNEHXHZ250100 | C24: 26 | D24: Light Pickup
A25: CHEVROLET SILVERADO | B25: 1GCNKNEHXHZ250101 | C25: 27 | D25: Light Pickup
A26: CHEVROLET SILVERADO | B26: 1GCNKNEHXHZ250102 | C26: 28 | D26: Light Pickup
A27: CHEVROLET SILVERADO | B27: 1GCNKNEHXHZ250103 | C27: 29 | D27: Light Pickup
A28: CHEVROLET SILVERADO | B28: 1GCNKNEHXHZ250104 | C28: 30 | D28: Light Pickup
A29: CHEVROLET SILVERADO | B29: 1GCNKNEHXHZ250105 | C29: 31 | D29: Light Pickup
A30: CHEVROLET SILVERADO | B30: 1GCNKNEHXHZ250106 | C30: 32 | D30: Light Pickup
A31: CHEVROLET SILVERADO | B31: 1GCNKNEHXHZ250107 | C31: 33 | D31: Light Pickup
A32: CHEVROLET SILVERADO | B32: 1GCNKNEHXHZ250108 | C32: 34 | D32: Light Pickup
A33: CHEVROLET SILVERADO | B33: 1GCNKNEHXHZ250109 | C33: 35 | D33: Light Pickup
A34: CHEVROLET SILVERADO | B34: 1GCNKNEHXHZ250110 | C34: 36 | D34: Light Pickup
A35: CHEVROLET SILVERADO | B35: 1GCNKNEHXHZ250111 | C35: 37 | D35: Light Pickup
A36: CHEVROLET SILVERADO | B36: 1GCNKNEHXHZ250112 | C36: 38 | D36: Light Pickup
A37: CHEVROLET SILVERADO | B37: 1GCNKNEHXHZ250113 | C37: 39 | D37: Light Pickup
A38: CHEVROLET SILVERADO | B38: 1GCNKNEHXHZ250114 | C38: 40 | D38: Light Pickup
A39: FORD F-250 | B39: 1FTNX21L94EC69100 | C39: 72 | D39: Medium-Duty Pickup
A40: FORD F-250 | B40: 1FTNX21L94EC69101 | C40: 73 | D40: Medium-Duty Pickup
A41: FORD F-650 | B41: 1FDNF6AY5HDB03100 | C41: 12 | D41: Medium-Duty Straight Truck
A42: INTERNATIONAL 4700 | B42: 1HTSCAAM9WH538100 | C42: 62 | D42: Medium-Duty Straight Truck
A43: INTERNATIONAL 4700 | B43: 1HTSCAAM9WH538101 | C43: 63 | D43: Medium-Duty Straight Truck
A44: INTERNATIONAL 4700 | B44: 1HTSCAAM9WH538102 | C44: 64 | D44: Medium-Duty Straight Truck
A45: INTERNATIONAL 4700 | B45: 1HTSCAAM9WH538103 | C45: 65 | D45: Medium-Duty Straight Truck
A46: INTERNATIONAL 4700 | B46: 1HTSCAAM9WH538104 | C46: 66 | D46: Medium-Duty Straight Truck
A47: INTERNATIONAL 4700 | B47: 1HTSCAAM9WH538105 | C47: 67 | D47: Medium-Duty Straight Truck
A48: INTERNATIONAL 4700 | B48: 1HTSCAAM9WH538106 | C48: 68 | D48: Medium-Duty Straight Truck
A49: INTERNATIONAL 4700 | B49: 1HTSCAAM9WH538107 | C49: 69 | D49: Medium-Duty Straight Truck
A50: INTERNATIONAL 4700 | B50: 1HTSCAAM9WH538108 | C50: 70 | D50: Medium-Duty Straight Truck
A51: INTERNATIONAL 4700 | B51: 1HTSCAAM9WH538109 | C51: 71 | D51: Medium-Duty Straight Truck
A52: FORD E-450 | B52: 1FDXE4FS0DDA07101 | C52: 13 | D52: Medium-Duty Straight Truck
A53: FORD E-450 | B53: 1FDXE4FS2DDA07102 | C53: 14 | D53: Medium-Duty Straight Truck
A54: FORD EXPLORER | B54: 1FM5K8FW5LGB60000 | C54: 41 | D54: SUV/MPV
A55: FORD EXPLORER | B55: 1FM5K8FW5LGB60001 | C55: 42 | D55: SUV/MPV
A56: FORD EXPLORER | B56: 1FM5K8FW5LGB60002 | C56: 43 | D56: SUV/MPV
A57: FORD EXPLORER | B57: 1FM5K8FW5LGB60003 | C57: 44 | D57: SUV/MPV
A58: FORD EXPLORER | B58: 1FM5K8FW5LGB60004 | C58: 45 | D58: SUV/MPV
A59: FORD EXPLORER | B59: 1FM5K8FW5LGB60005 | C59: 46 | D59: SUV/MPV
A60: FORD EXPLORER | B60: 1FM5K8FW5LGB60006 | C60: 47 | D60: SUV/MPV
A61: FORD EXPLORER | B61: 1FM5K8FW5LGB60007 | C61: 48 | D61: SUV/MPV
A62: FORD EXPLORER | B62: 1FM5K8FW5LGB60008 | C62: 49 | D62: SUV/MPV
A63: FORD EXPLORER | B63: 1FM5K8FW5LGB60009 | C63: 50 | D63: SUV/MPV
A64: FORD EXPLORER | B64: 1FM5K8FW5LGB60010 | C64: 51 | D64: SUV/MPV
A65: FORD EXPLORER | B65: 1FM5K8FW5LGB60011 | C65: 52 | D65: SUV/MPV
A66: FORD EXPLORER | B66: 1FM5K8FW5LGB60012 | C66: 53 | D66: SUV/MPV
A67: FORD EXPLORER | B67: 1FM5K8FW5LGB60013 | C67: 54 | D67: SUV/MPV
A68: FORD EXPLORER | B68: 1FM5K8FW5LGB60014 | C68: 55 | D68: SUV/MPV
A69: FORD EXPLORER | B69: 1FM5K8FW5LGB60015 | C69: 56 | D69: SUV/MPV
A70: FORD EXPLORER | B70: 1FM5K8FW5LGB60016 | C70: 57 | D70: SUV/MPV
A71: FORD EXPLORER | B71: 1FM5K8FW5LGB60017 | C71: 58 | D71: SUV/MPV
A72: FORD EXPLORER | B72: 1FM5K8FW5LGB60018 | C72: 59 | D72: SUV/MPV
A73: FORD EXPLORER | B73: 1FM5K8FW5LGB60019 | C73: 60 | D73: SUV/MPV
A74: FORD EXPLORER | B74: 1FM5K8FW5LGB60020 | C74: 61 | D74: SUV/MPV
A75: FORD F-250 | B75: 1FTNX21L94EC69102 | C75: 74 | D75: Medium-Duty Pickup
A76: FORD F-250 | B76: 1FTNX21L94EC69103 | C76: 75 | D76: Medium-Duty Pickup
A77: FORD F-250 | B77: 1FTNX21L94EC69104 | C77: 76 | D77: Medium-Duty Pickup
A78: FORD F-250 | B78: 1FTNX21L94EC69105 | C78: 77 | D78: Medium-Duty Pickup
A79: FORD F-250 | B79: 1FTNX21L94EC69106 | C79: 78 | D79: Medium-Duty Pickup
A80: FORD F-250 | B80: 1FTNX21L94EC69107 | C80: 79 | D80: Medium-Duty Pickup
A81: FORD F-250 | B81: 1FTNX21L94EC69108 | C81: 80 | D81: Medium-Duty Pickup
A82: FORD F-250 | B82: 1FTNX21L94EC69109 | C82: 81 | D82: Medium-Duty Pickup
A83: FORD F-250 | B83: 1FTNX21L94EC69110 | C83: 82 | D83: Medium-Duty Pickup
A84: FORD F-250 | B84: 1FTNX21L94EC69111 | C84: 83 | D84: Medium-Duty Pickup
A85: FORD F-250 | B85: 1FTNX21L94EC69112 | C85: 84 | D85: Medium-Duty Pickup
A86: FORD F-250 | B86: 1FTNX21L94EC69113 | C86: 85 | D86: Medium-Duty Pickup
A87: FORD F-250 | B87: 1FTNX21L94EC69114 | C87: 86 | D87: Medium-Duty Pickup
A88: FORD F-250 | B88: 1FTNX21L94EC69115 | C88: 87 | D88: Medium-Duty Pickup
A89: DODGE GRAND CARAVAN | B89: 2C4RDGBG9KR701000 | C89: 88 | D89: Minivan
A90: DODGE GRAND CARAVAN | B90: 2C4RDGBG9KR701001 | C90: 89 | D90: Minivan
A91: DODGE GRAND CARAVAN | B91: 2C4RDGBG9KR701002 | C91: 90 | D91: Minivan
A92: DODGE GRAND CARAVAN | B92: 2C4RDGBG9KR701003 | C92: 91 | D92: Minivan
A93: DODGE GRAND CARAVAN | B93: 2C4RDGBG9KR701004 | C93: 92 | D93: Minivan
A94: DODGE GRAND CARAVAN | B94: 2C4RDGBG9KR701005 | C94: 93 | D94: Minivan
A95: DODGE GRAND CARAVAN | B95: 2C4RDGBG9KR701006 | C95: 94 | D95: Minivan
A96: DODGE GRAND CARAVAN | B96: 2C4RDGBG9KR701007 | C96: 95 | D96: Minivan
A97: DODGE GRAND CARAVAN | B97: 2C4RDGBG9KR701008 | C97: 96 | D97: Minivan
A98: DODGE GRAND CARAVAN | B98: 2C4RDGBG9KR701009 | C98: 97 | D98: Minivan
A99: DODGE GRAND CARAVAN | B99: 2C4RDGBG9KR701010 | C99: 98 | D99: Minivan
A100: DODGE GRAND CARAVAN | B100: 2C4RDGBG9KR701011 | C100: 99 | D100: Minivan
A101: DODGE GRAND CARAVAN | B101: 2C4RDGBG9KR701012 | C101: 100 | D101: Minivan

Sheet Decode Contents (hidden)
A1: DecodeContents
A2: makeid,modelid,manufacturerid,vin,batteryinfo,batterytype,bedtype,bodycabtype,bodyclass,enginecylinders,destinationmarket,displacementcc,displacementci,displacementl,doors,drivetype,driverassist,enginecycles,enginemodel,enginekw,entertainmentsystem,fueltypeprimary,gvwr,make,manufacturer,model,modelyear,plantcity,seats,series,steeringlocation,transmissionstyle,trim,vehicletype,windows,axles,brakesystemtype,batterycells,bedlengthin,brakesystemdesc,curbweightlb,airbagloccurtain,airbaglocseatcushion,batterya,batteryv,batterykwh,wheelbasetype,seatrows,valvetraindesign,transmissionspeeds,engineconfiguration,airbaglocfront,fueltypesecondary,fuelinjectiontype,airbaglocknee,enginehp,evdriveunit,plantcountry,plantcompanyname,plantstate,pretensioner,seatbeltsall,adaptivecruisecontrol,adaptiveheadlights,abs,cib,blindspotmon,ncsabodytype,ncsamake,ncsamodel,esc,tractioncontrol,forwardcollisionwarning,lanedeparturewarning,lanekeepsystem,rearvisibilitysystem,parkassist,airbaglocside,trim2,series2,wheelbaseshort,wheelbaselong,note,wheels,trailertype,trailerbodytype,trailerlength,wheelsizefront,wheelsizerear,otherrestraintsysteminfo,coolingtype,enginehp_to,electrificationlevel,chargerlevel,chargerpowerkw,otherengineinfo,batterya_to,batteryv_to,batterykwh_to,turbo,baseprice,batterymodules,batterypacks,topspeedmph,suggestedvin,errorcode,possiblevalues,axleconfiguration,enginemanufacturer,buslength,busfloorconfigtype,bustype,otherbusinfo,custommotorcycletype,motorcyclesuspensiontype,motorcyclechassistype,othermotorcycleinfo,othertrailerinfo,additionalerrortext,cashforclunkers,trackwidth,tpms,activesafetysysnote,dynamicbrakesupport,pedestrianautomaticemergencybraking,autoreversesystem,automaticpedestrianalertingsound,can_aacn,edr,keylessignition,daytimerunninglight,lowerbeamheadlamplightsource,semiautomaticheadlampbeamswitching,adaptivedrivingbeam,saeautomationlevel,saeautomationlevel_to,rearcrosstrafficalert,gcwr,gcwr_to,ncsanote,ncsamappingexception,ncsamapexcapprovedon,ncsamapexcapprovedby,gvwr_to,errortext,rearautomaticemergencybraking,blindspotintervention,lanecenteringassistance,nonlanduse,vehicledescriptor 554,2867,1118,15GGD301*C,,,Not Applicable,Not Applicable,Bus,,,6700.0,409,6.7,,,,,Diesel ISB,,,Diesel,"Class 7: 26,001 - 33,000 lb (11,794 - 14,969 kg)",GILLIG,GILLIG LLC,Low Floor Bus,2012,,,,,,,BUS,,,Air,,,,,,,,,,,,,,,,,,,,,,,,,,,,,,,Transit Bus (City Bus),Gillig,Other (bus),,,,,,,,,,,,,"GVWR: 26,000 lb and above",,Not Applicable,Not Applicable,,,,,,,,,,,,,,,,,,,,6,,,Cummins,40,,,,Not Applicable,Not Applicable,Not Applicable,,,,,,,,,,,,,,,,,,,,,,,,,,,,"Class 8: 33,001 lb and above (14,969 kg and above)",6 - Incomplete VIN,,,,,15GGD301*C*
A3: makeid,modelid,manufacturerid,vin,batteryinfo,batterytype,bedtype,bodycabtype,bodyclass,enginecylinders,destinationmarket,displacementcc,displacementci,displacementl,doors,drivetype,driverassist,enginecycles,enginemodel,enginekw,entertainmentsystem,fueltypeprimary,gvwr,make,manufacturer,model,modelyear,plantcity,seats,series,steeringlocation,transmissionstyle,trim,vehicletype,windows,axles,brakesystemtype,batterycells,bedlengthin,brakesystemdesc,curbweightlb,airbagloccurtain,airbaglocseatcushion,batterya,batteryv,batterykwh,wheelbasetype,seatrows,valvetraindesign,transmissionspeeds,engineconfiguration,airbaglocfront,fueltypesecondary,fuelinjectiontype,airbaglocknee,enginehp,evdriveunit,plantcountry,plantcompanyname,plantstate,pretensioner,seatbeltsall,adaptivecruisecontrol,adaptiveheadlights,abs,cib,blindspotmon,ncsabodytype,ncsamake,ncsamodel,esc,tractioncontrol,forwardcollisionwarning,lanedeparturewarning,lanekeepsystem,rearvisibilitysystem,parkassist,airbaglocside,trim2,series2,wheelbaseshort,wheelbaselong,note,wheels,trailertype,trailerbodytype,trailerlength,wheelsizefront,wheelsizerear,otherrestraintsysteminfo,coolingtype,enginehp_to,electrificationlevel,chargerlevel,chargerpowerkw,otherengineinfo,batterya_to,batteryv_to,batterykwh_to,turbo,baseprice,batterymodules,batterypacks,topspeedmph,suggestedvin,errorcode,possiblevalues,axleconfiguration,enginemanufacturer,buslength,busfloorconfigtype,bustype,otherbusinfo,custommotorcycletype,motorcyclesuspensiontype,motorcyclechassistype,othermotorcycleinfo,othertrailerinfo,additionalerrortext,cashforclunkers,trackwidth,tpms,activesafetysysnote,dynamicbrakesupport,pedestrianautomaticemergencybraking,autoreversesystem,automaticpedestrianalertingsound,can_aacn,edr,keylessignition,daytimerunninglight,lowerbeamheadlamplightsource,semiautomaticheadlampbeamswitching,adaptivedrivingbeam,saeautomationlevel,saeautomationlevel_to,rearcrosstrafficalert,gcwr,gcwr_to,ncsanote,ncsamappingexception,ncsamapexcapprovedon,ncsamapexcapprovedby,gvwr_to,errortext,rearautomaticemergencybraking,blindspotintervention,lanecenteringassistance,nonlanduse,vehicledescriptor 448,2208,1145,5YFEPRAE*L,,,Not Applicable,Not Applicable,Sedan/Saloon,4,,1798,109.84273937051,1.8,4,4x2,,4,2ZR-FAE,,,Gasoline,"Class 1: 6,000 lb or less (2,722 kg or less)",TOYOTA,"TOYOTA MOTOR MANUFACTURING, MISSISSIPPI, INC.",Corolla,2020,,5,ZRE212L-DEXLPA,Left-Hand Drive (LHD),,LE,PASSENGER CAR,,2,,,,,,All Rows,Passenger Seat Only,,,,,2,Dual Overhead Cam (DOHC),,In-Line,1st Row (Driver and Passenger),,Sequential Fuel Injection (SFI),Driver Seat Only,139,,,,,,Manual,Standard,,Standard,Standard,,"4-door sedan, hardtop",Toyota,Corolla,Standard,Standard,Standard,Standard,Standard,Standard,,1st Row (Driver and Passenger),,,,,,4,Not Applicable,Not Applicable,,,,,,148,,,,PORT,,,,,,,,,,6,,,Toyota,,Not Applicable,Not Applicable,,Not Applicable,Not Applicable,Not Applicable,,,,,,Direct,,Standard,Standard,Standard,,,,,Standard,,Standard,Standard,,,,,,,,,,"Class 1: 6,000 lb or less (2,722 kg or less)",6 - Incomplete VIN,,,,,5YFEPRAE*L*
A4: makeid,modelid,manufacturerid,vin,batteryinfo,batterytype,bedtype,bodycabtype,bodyclass,enginecylinders,destinationmarket,displacementcc,displacementci,displacementl,doors,drivetype,driverassist,enginecycles,enginemodel,enginekw,entertainmentsystem,fueltypeprimary,gvwr,make,manufacturer,model,modelyear,plantcity,seats,series,steeringlocation,transmissionstyle,trim,vehicletype,windows,axles,brakesystemtype,batterycells,bedlengthin,brakesystemdesc,curbweightlb,airbagloccurtain,airbaglocseatcushion,batterya,batteryv,batterykwh,wheelbasetype,seatrows,valvetraindesign,transmissionspeeds,engineconfiguration,airbaglocfront,fueltypesecondary,fuelinjectiontype,airbaglocknee,enginehp,evdriveunit,plantcountry,plantcompanyname,plantstate,pretensioner,seatbeltsall,adaptivecruisecontrol,adaptiveheadlights,abs,cib,blindspotmon,ncsabodytype,ncsamake,ncsamodel,esc,tractioncontrol,forwardcollisionwarning,lanedeparturewarning,lanekeepsystem,rearvisibilitysystem,parkassist,airbaglocside,trim2,series2,wheelbaseshort,wheelbaselong,note,wheels,trailertype,trailerbodytype,trailerlength,wheelsizefront,wheelsizerear,otherrestraintsysteminfo,coolingtype,enginehp_to,electrificationlevel,chargerlevel,chargerpowerkw,otherengineinfo,batterya_to,batteryv_to,batterykwh_to,turbo,baseprice,batterymodules,batterypacks,topspeedmph,suggestedvin,errorcode,possiblevalues,axleconfiguration,enginemanufacturer,buslength,busfloorconfigtype,bustype,otherbusinfo,custommotorcycletype,motorcyclesuspensiontype,motorcyclechassistype,othermotorcycleinfo,othertrailerinfo,additionalerrortext,cashforclunkers,trackwidth,tpms,activesafetysysnote,dynamicbrakesupport,pedestrianautomaticemergencybraking,autoreversesystem,automaticpedestrianalertingsound,can_aacn,edr,keylessignition,daytimerunninglight,lowerbeamheadlamplightsource,semiautomaticheadlampbeamswitching,adaptivedrivingbeam,saeautomationlevel,saeautomationlevel_to,rearcrosstrafficalert,gcwr,gcwr_to,ncsanote,ncsamappingexception,ncsamapexcapprovedon,ncsamapexcapprovedby,gvwr_to,errortext,rearautomaticemergencybraking,blindspotintervention,lanecenteringassistance,nonlanduse,vehicledescriptor 460,1803,976,1FTYR14V*3,,,,Extra/Super/Quad/Double/King/Extended,Pickup,6,,3000.0,183.07123228419,3.0,2,4x2,,,,,,Gasoline,"Class 1C: 4,001 - 5,000 lb (1,814 - 2,268 kg)",FORD,FORD MOTOR COMPANY,Ranger,2003,,,,,,,TRUCK,,,Hydraulic,,,,,,,,,,,,,,V-Shaped,1st Row (Driver and Passenger),Ethanol (E85),,,154,,,,,,Manual,,,,,,Light Pickup,Ford,Ranger,,,,,,,,,,,,,,,Not Applicable,Not Applicable,,,,,,,,,,EFI-FFV,,,,,,,,,,6,,,Ford,,Not Applicable,Not Applicable,,Not Applicable,Not Applicable,Not Applicable,,,,,,,,,,,,,,,,,,,,,,,,,,,,,6 - Incomplete VIN,,,,,1FTYR14V*3*
A5: makeid,modelid,manufacturerid,vin,batteryinfo,batterytype,bedtype,bodycabtype,bodyclass,enginecylinders,destinationmarket,displacementcc,displacementci,displacementl,doors,drivetype,driverassist,enginecycles,enginemodel,enginekw,entertainmentsystem,fueltypeprimary,gvwr,make,manufacturer,model,modelyear,plantcity,seats,series,steeringlocation,transmissionstyle,trim,vehicletype,windows,axles,brakesystemtype,batterycells,bedlengthin,brakesystemdesc,curbweightlb,airbagloccurtain,airbaglocseatcushion,batterya,batteryv,batterykwh,wheelbasetype,seatrows,valvetraindesign,transmissionspeeds,engineconfiguration,airbaglocfront,fueltypesecondary,fuelinjectiontype,airbaglocknee,enginehp,evdriveunit,plantcountry,plantcompanyname,plantstate,pretensioner,seatbeltsall,adaptivecruisecontrol,adaptiveheadlights,abs,cib,blindspotmon,ncsabodytype,ncsamake,ncsamodel,esc,tractioncontrol,forwardcollisionwarning,lanedeparturewarning,lanekeepsystem,rearvisibilitysystem,parkassist,airbaglocside,trim2,series2,wheelbaseshort,wheelbaselong,note,wheels,trailertype,trailerbodytype,trailerlength,wheelsizefront,wheelsizerear,otherrestraintsysteminfo,coolingtype,enginehp_to,electrificationlevel,chargerlevel,chargerpowerkw,otherengineinfo,batterya_to,batteryv_to,batterykwh_to,turbo,baseprice,batterymodules,batterypacks,topspeedmph,suggestedvin,errorcode,possiblevalues,axleconfiguration,enginemanufacturer,buslength,busfloorconfigtype,bustype,otherbusinfo,custommotorcycletype,motorcyclesuspensiontype,motorcyclechassistype,othermotorcycleinfo,othertrailerinfo,additionalerrortext,cashforclunkers,trackwidth,tpms,activesafetysysnote,dynamicbrakesupport,pedestrianautomaticemergencybraking,autoreversesystem,automaticpedestrianalertingsound,can_aacn,edr,keylessignition,daytimerunninglight,lowerbeamheadlamplightsource,semiautomaticheadlampbeamswitching,adaptivedrivingbeam,saeautomationlevel,saeautomationlevel_to,rearcrosstrafficalert,gcwr,gcwr_to,ncsanote,ncsamappingexception,ncsamapexcapprovedon,ncsamapexcapprovedby,gvwr_to,errortext,rearautomaticemergencybraking,blindspotintervention,lanecenteringassistance,nonlanduse,vehicledescriptor 467,11483,984,1GCCS145*2,,,,,Pickup,,,2200.0,134.25223700841,2.2,2,4x2,,,L43,,,Ethanol (E85),"Class 1C: 4,001 - 5,000 lb (1,814 - 2,268 kg)",CHEVROLET,GENERAL MOTORS LLC,S-10 Pickup,2002,,,1/2 Ton,,,XL,TRUCK,,,Hydraulic,,,,,,,,,,,,,,,,Flexible Fuel Vehicle (FFV),,,,,,,,,,,,,,,Light Pickup,Chevrolet,S-10/T-10 Pickup,,,,,,,,,,,,,,,Not Applicable,Not Applicable,,,,,,,,,,,,,,,,,,,,6,,,,,Not Applicable,Not Applicable,,Not Applicable,Not Applicable,Not Applicable,,,,,,,,,,,,,,,,,,,,,,,,,,,,,6 - Incomplete VIN,,,,,1GCCS145*2*
A6: makeid,modelid,manufacturerid,vin,batteryinfo,batterytype,bedtype,bodycabtype,bodyclass,enginecylinders,destinationmarket,displacementcc,displacementci,displacementl,doors,drivetype,driverassist,enginecycles,enginemodel,enginekw,entertainmentsystem,fueltypeprimary,gvwr,make,manufacturer,model,modelyear,plantcity,seats,series,steeringlocation,transmissionstyle,trim,vehicletype,windows,axles,brakesystemtype,batterycells,bedlengthin,brakesystemdesc,curbweightlb,airbagloccurtain,airbaglocseatcushion,batterya,batteryv,batterykwh,wheelbasetype,seatrows,valvetraindesign,transmissionspeeds,engineconfiguration,airbaglocfront,fueltypesecondary,fuelinjectiontype,airbaglocknee,enginehp,evdriveunit,plantcountry,plantcompanyname,plantstate,pretensioner,seatbeltsall,adaptivecruisecontrol,adaptiveheadlights,abs,cib,blindspotmon,ncsabodytype,ncsamake,ncsamodel,esc,tractioncontrol,forwardcollisionwarning,lanedeparturewarning,lanekeepsystem,rearvisibilitysystem,parkassist,airbaglocside,trim2,series2,wheelbaseshort,wheelbaselong,note,wheels,trailertype,trailerbodytype,trailerlength,wheelsizefront,wheelsizerear,otherrestraintsysteminfo,coolingtype,enginehp_to,electrificationlevel,chargerlevel,chargerpowerkw,otherengineinfo,batterya_to,batteryv_to,batterykwh_to,turbo,baseprice,batterymodules,batterypacks,topspeedmph,suggestedvin,errorcode,possiblevalues,axleconfiguration,enginemanufacturer,buslength,busfloorconfigtype,bustype,otherbusinfo,custommotorcycletype,motorcyclesuspensiontype,motorcyclechassistype,othermotorcycleinfo,othertrailerinfo,additionalerrortext,cashforclunkers,trackwidth,tpms,activesafetysysnote,dynamicbrakesupport,pedestrianautomaticemergencybraking,autoreversesystem,automaticpedestrianalertingsound,can_aacn,edr,keylessignition,daytimerunninglight,lowerbeamheadlamplightsource,semiautomaticheadlampbeamswitching,adaptivedrivingbeam,saeautomationlevel,saeautomationlevel_to,rearcrosstrafficalert,gcwr,gcwr_to,ncsanote,ncsamappingexception,ncsamapexcapprovedon,ncsamapexcapprovedby,gvwr_to,errortext,rearautomaticemergencybraking,blindspotintervention,lanecenteringassistance,nonlanduse,vehicledescriptor 467,4086,984,1GCGTBEN*L,,,,Crew/Super Crew/Crew Max,Pickup,6,,3600.0,219.68547874103,3.6,4,4WD/4-Wheel Drive/4x4,,,"LG2 - DI: Direct Injection, VVT: Variable Valve Timing, ALUM, VAR2, GEN2",,,Gasoline,"Class 1D: 5,001 - 6,000 lb (2,268 - 2,722 kg)",CHEVROLET,GENERAL MOTORS LLC,Colorado,2020,,2,,Left-Hand Drive (LHD),Automatic,Work Truck,TRUCK,,2,,,,,,All Rows,,,,,,1,Dual Overhead Cam (DOHC),,V-Shaped,1st Row (Driver and Passenger),,,,,,,,,,Manual,,,Standard,,,Light Pickup,Chevrolet,Colorado,Standard,Standard,,,,Standard,,1st Row (Driver and Passenger),,,,,,4,Not Applicable,Not Applicable,,16,16,,,,,,,,,,,,,,,,,6,,,,,Not Applicable,Not Applicable,,Not Applicable,Not Applicable,Not Applicable,,,,,,Direct,,Standard,,Standard,,,,,Standard,Halogen,Standard,,,,,,,,,,,,6 - Incomplete VIN,,,,,1GCGTBEN*L*
A7: makeid,modelid,manufacturerid,vin,batteryinfo,batterytype,bedtype,bodycabtype,bodyclass,enginecylinders,destinationmarket,displacementcc,displacementci,displacementl,doors,drivetype,driverassist,enginecycles,enginemodel,enginekw,entertainmentsystem,fueltypeprimary,gvwr,make,manufacturer,model,modelyear,plantcity,seats,series,steeringlocation,transmissionstyle,trim,vehicletype,windows,axles,brakesystemtype,batterycells,bedlengthin,brakesystemdesc,curbweightlb,airbagloccurtain,airbaglocseatcushion,batterya,batteryv,batterykwh,wheelbasetype,seatrows,valvetraindesign,transmissionspeeds,engineconfiguration,airbaglocfront,fueltypesecondary,fuelinjectiontype,airbaglocknee,enginehp,evdriveunit,plantcountry,plantcompanyname,plantstate,pretensioner,seatbeltsall,adaptivecruisecontrol,adaptiveheadlights,abs,cib,blindspotmon,ncsabodytype,ncsamake,ncsamodel,esc,tractioncontrol,forwardcollisionwarning,lanedeparturewarning,lanekeepsystem,rearvisibilitysystem,parkassist,airbaglocside,trim2,series2,wheelbaseshort,wheelbaselong,note,wheels,trailertype,trailerbodytype,trailerlength,wheelsizefront,wheelsizerear,otherrestraintsysteminfo,coolingtype,enginehp_to,electrificationlevel,chargerlevel,chargerpowerkw,otherengineinfo,batterya_to,batteryv_to,batterykwh_to,turbo,baseprice,batterymodules,batterypacks,topspeedmph,suggestedvin,errorcode,possiblevalues,axleconfiguration,enginemanufacturer,buslength,busfloorconfigtype,bustype,otherbusinfo,custommotorcycletype,motorcyclesuspensiontype,motorcyclechassistype,othermotorcycleinfo,othertrailerinfo,additionalerrortext,cashforclunkers,trackwidth,tpms,activesafetysysnote,dynamicbrakesupport,pedestrianautomaticemergencybraking,autoreversesystem,automaticpedestrianalertingsound,can_aacn,edr,keylessignition,daytimerunninglight,lowerbeamheadlamplightsource,semiautomaticheadlampbeamswitching,adaptivedrivingbeam,saeautomationlevel,saeautomationlevel_to,rearcrosstrafficalert,gcwr,gcwr_to,ncsanote,ncsamappingexception,ncsamapexcapprovedon,ncsamapexcapprovedby,gvwr_to,errortext,rearautomaticemergencybraking,blindspotintervention,lanecenteringassistance,nonlanduse,vehicledescriptor 460,1803,976,1FTYR10V*X,,,,Regular,Pickup,6,,3000.0,183.07123228419,3.0,,4x2,,,,,,Gasoline,"Class 1C: 4,001 - 5,000 lb (1,814 - 2,268 kg)",FORD,FORD MOTOR COMPANY,Ranger,1999,,,,,,,TRUCK,,,Hydraulic,,,,,,,,,,,,,,V-Shaped,1st Row (Driver and Passenger),Ethanol (E85),Sequential Fuel Injection (SFI),,152,,,,,,Manual,,,,,,Light Pickup,Ford,Ranger,,,,,,,,,,,,,,,Not Applicable,Not Applicable,,,,2nd gen front airbag,,,,,,SEFI: Sequential Electronic Fuel Injection - FFV: Flexible Fuel Vehicle,,,,,,,,,,6,,,Ford,,Not Applicable,Not Applicable,,Not Applicable,Not Applicable,Not Applicable,,,,,,,,,,,,,,,,,,,,,,,,,,,,,6 - Incomplete VIN,,,,,1FTYR10V*X*
A8: makeid,modelid,manufacturerid,vin,batteryinfo,batterytype,bedtype,bodycabtype,bodyclass,enginecylinders,destinationmarket,displacementcc,displacementci,displacementl,doors,drivetype,driverassist,enginecycles,enginemodel,enginekw,entertainmentsystem,fueltypeprimary,gvwr,make,manufacturer,model,modelyear,plantcity,seats,series,steeringlocation,transmissionstyle,trim,vehicletype,windows,axles,brakesystemtype,batterycells,bedlengthin,brakesystemdesc,curbweightlb,airbagloccurtain,airbaglocseatcushion,batterya,batteryv,batterykwh,wheelbasetype,seatrows,valvetraindesign,transmissionspeeds,engineconfiguration,airbaglocfront,fueltypesecondary,fuelinjectiontype,airbaglocknee,enginehp,evdriveunit,plantcountry,plantcompanyname,plantstate,pretensioner,seatbeltsall,adaptivecruisecontrol,adaptiveheadlights,abs,cib,blindspotmon,ncsabodytype,ncsamake,ncsamodel,esc,tractioncontrol,forwardcollisionwarning,lanedeparturewarning,lanekeepsystem,rearvisibilitysystem,parkassist,airbaglocside,trim2,series2,wheelbaseshort,wheelbaselong,note,wheels,trailertype,trailerbodytype,trailerlength,wheelsizefront,wheelsizerear,otherrestraintsysteminfo,coolingtype,enginehp_to,electrificationlevel,chargerlevel,chargerpowerkw,otherengineinfo,batterya_to,batteryv_to,batterykwh_to,turbo,baseprice,batterymodules,batterypacks,topspeedmph,suggestedvin,errorcode,possiblevalues,axleconfiguration,enginemanufacturer,buslength,busfloorconfigtype,bustype,otherbusinfo,custommotorcycletype,motorcyclesuspensiontype,motorcyclechassistype,othermotorcycleinfo,othertrailerinfo,additionalerrortext,cashforclunkers,trackwidth,tpms,activesafetysysnote,dynamicbrakesupport,pedestrianautomaticemergencybraking,autoreversesystem,automaticpedestrianalertingsound,can_aacn,edr,keylessignition,daytimerunninglight,lowerbeamheadlamplightsource,semiautomaticheadlampbeamswitching,adaptivedrivingbeam,saeautomationlevel,saeautomationlevel_to,rearcrosstrafficalert,gcwr,gcwr_to,ncsanote,ncsamappingexception,ncsamapexcapprovedon,ncsamapexcapprovedby,gvwr_to,errortext,rearautomaticemergencybraking,blindspotintervention,lanecenteringassistance,nonlanduse,vehicledescriptor 460,1809,976,1FDNF6AY*H,,,,Regular,Truck,10,,6800.0,414.96145984417,6.8,,4x2,,,,,,Gasoline,"Class 6: 19,501 - 26,000 lb (8,845 - 11,794 kg)",FORD,FORD MOTOR COMPANY,F-650,2017,,,Super Duty - Dual Rear Wheel,,,Gas,INCOMPLETE VEHICLE,,,Hydraulic,,,,,,,,,,,,,,V-Shaped,,,,,330,,,,,,Manual,,,,,,"Single-unit straight truck or Cab-Chassis (GVWR range 19,501 to 26,000 lbs.)",Ford,Medium/Heavy – CBE,,,,,,,,,,,,,Body Type: Straight Frame,,Not Applicable,Not Applicable,,,,,,,,,,Fuel: Gas/ Gaseous Prep. Torque: 440,,,,,,,,,,6,,,Ford,,,,,Not Applicable,Not Applicable,Not Applicable,,,,,,,,,,,,,,,,,,,,,,,,,,,,,6 - Incomplete VIN,,,,,1FDNF6AY*H*
A9: makeid,modelid,manufacturerid,vin,batteryinfo,batterytype,bedtype,bodycabtype,bodyclass,enginecylinders,destinationmarket,displacementcc,displacementci,displacementl,doors,drivetype,driverassist,enginecycles,enginemodel,enginekw,entertainmentsystem,fueltypeprimary,gvwr,make,manufacturer,model,modelyear,plantcity,seats,series,steeringlocation,transmissionstyle,trim,vehicletype,windows,axles,brakesystemtype,batterycells,bedlengthin,brakesystemdesc,curbweightlb,airbagloccurtain,airbaglocseatcushion,batterya,batteryv,batterykwh,wheelbasetype,seatrows,valvetraindesign,transmissionspeeds,engineconfiguration,airbaglocfront,fueltypesecondary,fuelinjectiontype,airbaglocknee,enginehp,evdriveunit,plantcountry,plantcompanyname,plantstate,pretensioner,seatbeltsall,adaptivecruisecontrol,adaptiveheadlights,abs,cib,blindspotmon,ncsabodytype,ncsamake,ncsamodel,esc,tractioncontrol,forwardcollisionwarning,lanedeparturewarning,lanekeepsystem,rearvisibilitysystem,parkassist,airbaglocside,trim2,series2,wheelbaseshort,wheelbaselong,note,wheels,trailertype,trailerbodytype,trailerlength,wheelsizefront,wheelsizerear,otherrestraintsysteminfo,coolingtype,enginehp_to,electrificationlevel,chargerlevel,chargerpowerkw,otherengineinfo,batterya_to,batteryv_to,batterykwh_to,turbo,baseprice,batterymodules,batterypacks,topspeedmph,suggestedvin,errorcode,possiblevalues,axleconfiguration,enginemanufacturer,buslength,busfloorconfigtype,bustype,otherbusinfo,custommotorcycletype,motorcyclesuspensiontype,motorcyclechassistype,othermotorcycleinfo,othertrailerinfo,additionalerrortext,cashforclunkers,trackwidth,tpms,activesafetysysnote,dynamicbrakesupport,pedestrianautomaticemergencybraking,autoreversesystem,automaticpedestrianalertingsound,can_aacn,edr,keylessignition,daytimerunninglight,lowerbeamheadlamplightsource,semiautomaticheadlampbeamswitching,adaptivedrivingbeam,saeautomationlevel,saeautomationlevel_to,rearcrosstrafficalert,gcwr,gcwr_to,ncsanote,ncsamappingexception,ncsamapexcapprovedon,ncsamapexcapprovedby,gvwr_to,errortext,rearautomaticemergencybraking,blindspotintervention,lanecenteringassistance,nonlanduse,vehicledescriptor 460,1819,976,1FDXE4FS*D,,,,,Incomplete - Cutaway,10,,6800.0,414.96145984417,6.8,,RWD/Rear-Wheel Drive,,,Ford,,,Gasoline,"Class 4: 14,001 - 16,000 lb (6,350 - 7,258 kg)",FORD,FORD MOTOR COMPANY,E-450,2013,,,Econoline,,,,INCOMPLETE VEHICLE,,,Hydraulic,,,,,,,,,,,,,,V-Shaped,1st Row (Driver and Passenger),,,,305,,,,,,Manual,,,,,,"Single-unit straight truck or Cab-Chassis (GVWR range 10,001 to 19,500 lbs.)",Ford,Medium/Heavy Van-Based Vehicle,,,,,,,,,,,,,Single Rear Wheel/Dual Rear Wheel,,Not Applicable,Not Applicable,,,,,,,,,,Displacement is 6.8L 2V,,,,,,,,,,6,,,,,,,,Not Applicable,Not Applicable,Not Applicable,,,,,,,,,,,,,,,,,,,,,,,,,,,,,6 - Incomplete VIN,,,,,1FDXE4FS*D*
A10: makeid,modelid,manufacturerid,vin,batteryinfo,batterytype,bedtype,bodycabtype,bodyclass,enginecylinders,destinationmarket,displacementcc,displacementci,displacementl,doors,drivetype,driverassist,enginecycles,enginemodel,enginekw,entertainmentsystem,fueltypeprimary,gvwr,make,manufacturer,model,modelyear,plantcity,seats,series,steeringlocation,transmissionstyle,trim,vehicletype,windows,axles,brakesystemtype,batterycells,bedlengthin,brakesystemdesc,curbweightlb,airbagloccurtain,airbaglocseatcushion,batterya,batteryv,batterykwh,wheelbasetype,seatrows,valvetraindesign,transmissionspeeds,engineconfiguration,airbaglocfront,fueltypesecondary,fuelinjectiontype,airbaglocknee,enginehp,evdriveunit,plantcountry,plantcompanyname,plantstate,pretensioner,seatbeltsall,adaptivecruisecontrol,adaptiveheadlights,abs,cib,blindspotmon,ncsabodytype,ncsamake,ncsamodel,esc,tractioncontrol,forwardcollisionwarning,lanedeparturewarning,lanekeepsystem,rearvisibilitysystem,parkassist,airbaglocside,trim2,series2,wheelbaseshort,wheelbaselong,note,wheels,trailertype,trailerbodytype,trailerlength,wheelsizefront,wheelsizerear,otherrestraintsysteminfo,coolingtype,enginehp_to,electrificationlevel,chargerlevel,chargerpowerkw,otherengineinfo,batterya_to,batteryv_to,batterykwh_to,turbo,baseprice,batterymodules,batterypacks,topspeedmph,suggestedvin,errorcode,possiblevalues,axleconfiguration,enginemanufacturer,buslength,busfloorconfigtype,bustype,otherbusinfo,custommotorcycletype,motorcyclesuspensiontype,motorcyclechassistype,othermotorcycleinfo,othertrailerinfo,additionalerrortext,cashforclunkers,trackwidth,tpms,activesafetysysnote,dynamicbrakesupport,pedestrianautomaticemergencybraking,autoreversesystem,automaticpedestrianalertingsound,can_aacn,edr,keylessignition,daytimerunninglight,lowerbeamheadlamplightsource,semiautomaticheadlampbeamswitching,adaptivedrivingbeam,saeautomationlevel,saeautomationlevel_to,rearcrosstrafficalert,gcwr,gcwr_to,ncsanote,ncsamappingexception,ncsamapexcapprovedon,ncsamapexcapprovedby,gvwr_to,errortext,rearautomaticemergencybraking,blindspotintervention,lanecenteringassistance,nonlanduse,vehicledescriptor 460,1782,976,1FAFP53U*5,,,Not Applicable,Not Applicable,Sedan/Saloon,6,,3000.0,183.07123228419,3.0,4,,,,,,,,"Class 1: 6,000 lb or less (2,722 kg or less)",FORD,FORD MOTOR COMPANY,Taurus,2005,,,,,,SE,PASSENGER CAR,,,,,,,,,,,,,,,,,V-Shaped,1st Row (Driver and Passenger),,,,155,,,,,,Manual,,,,,,"4-door sedan, hardtop",Ford,Taurus/Taurus X,,,,,,,,,,,,,,,Not Applicable,Not Applicable,,,,,,,,,,ELECTRONIC FUEL INJECTION,,,,,,,,,,6,,,,,Not Applicable,Not Applicable,,Not Applicable,Not Applicable,Not Applicable,,,,,,,,,,,,,,,,,,,,,,,,,,,,"Class 1: 6,000 lb or less (2,722 kg or less)",6 - Incomplete VIN,,,,,1FAFP53U*5*
A11: makeid,modelid,manufacturerid,vin,batteryinfo,batterytype,bedtype,bodycabtype,bodyclass,enginecylinders,destinationmarket,displacementcc,displacementci,displacementl,doors,drivetype,driverassist,enginecycles,enginemodel,enginekw,entertainmentsystem,fueltypeprimary,gvwr,make,manufacturer,model,modelyear,plantcity,seats,series,steeringlocation,transmissionstyle,trim,vehicletype,windows,axles,brakesystemtype,batterycells,bedlengthin,brakesystemdesc,curbweightlb,airbagloccurtain,airbaglocseatcushion,batterya,batteryv,batterykwh,wheelbasetype,seatrows,valvetraindesign,transmissionspeeds,engineconfiguration,airbaglocfront,fueltypesecondary,fuelinjectiontype,airbaglocknee,enginehp,evdriveunit,plantcountry,plantcompanyname,plantstate,pretensioner,seatbeltsall,adaptivecruisecontrol,adaptiveheadlights,abs,cib,blindspotmon,ncsabodytype,ncsamake,ncsamodel,esc,tractioncontrol,forwardcollisionwarning,lanedeparturewarning,lanekeepsystem,rearvisibilitysystem,parkassist,airbaglocside,trim2,series2,wheelbaseshort,wheelbaselong,note,wheels,trailertype,trailerbodytype,trailerlength,wheelsizefront,wheelsizerear,otherrestraintsysteminfo,coolingtype,enginehp_to,electrificationlevel,chargerlevel,chargerpowerkw,otherengineinfo,batterya_to,batteryv_to,batterykwh_to,turbo,baseprice,batterymodules,batterypacks,topspeedmph,suggestedvin,errorcode,possiblevalues,axleconfiguration,enginemanufacturer,buslength,busfloorconfigtype,bustype,otherbusinfo,custommotorcycletype,motorcyclesuspensiontype,motorcyclechassistype,othermotorcycleinfo,othertrailerinfo,additionalerrortext,cashforclunkers,trackwidth,tpms,activesafetysysnote,dynamicbrakesupport,pedestrianautomaticemergencybraking,autoreversesystem,automaticpedestrianalertingsound,can_aacn,edr,keylessignition,daytimerunninglight,lowerbeamheadlamplightsource,semiautomaticheadlampbeamswitching,adaptivedrivingbeam,saeautomationlevel,saeautomationlevel_to,rearcrosstrafficalert,gcwr,gcwr_to,ncsanote,ncsamappingexception,ncsamapexcapprovedon,ncsamapexcapprovedby,gvwr_to,errortext,rearautomaticemergencybraking,blindspotintervention,lanecenteringassistance,nonlanduse,vehicledescriptor 467,1850,984,1GCNKNEH*H,,,,Regular,Pickup,6,,4300.0,262.40209960734,4.3,2,4WD/4-Wheel Drive/4x4,,,"LV3 - GEN 5, SIDI, VVT: Variable Valve Timing, E85 MAX, ALUM",,,Gasoline,"Class 2E: 6,001 - 7,000 lb (2,722 - 3,175 kg)",CHEVROLET,GENERAL MOTORS LLC,Silverado,2017,,3,1500,Left-Hand Drive (LHD),,Work Truck/LS/Fleet/Base,TRUCK,,2,Hydraulic,,,,,All Rows,,,,,,1,Overhead Valve (OHV),,V-Shaped,1st Row (Driver and Passenger),Ethanol (E85),,,,,,,,,Manual,,,Standard,,,Light Pickup,Chevrolet,"C, K, R, V-series pickup/Silverado",Standard,Standard,,,,Optional,,1st Row (Driver and Passenger),,,119.00,,,4,Not Applicable,Not Applicable,,17,17,,,,,,,,,,,,27785.00,,,99,,6,,,,,Not Applicable,Not Applicable,,Not Applicable,Not Applicable,Not Applicable,,,,,,Direct,"Automatic Crash Notification: Optional for Work Truck, Standard for LS",Standard,,Standard,,,,,Standard,,Standard,,,,,,,,,,,,6 - Incomplete VIN,,,,,1GCNKNEH*H*
A12: makeid,modelid,manufacturerid,vin,batteryinfo,batterytype,bedtype,bodycabtype,bodyclass,enginecylinders,destinationmarket,displacementcc,displacementci,displacementl,doors,drivetype,driverassist,enginecycles,enginemodel,enginekw,entertainmentsystem,fueltypeprimary,gvwr,make,manufacturer,model,modelyear,plantcity,seats,series,steeringlocation,transmissionstyle,trim,vehicletype,windows,axles,brakesystemtype,batterycells,bedlengthin,brakesystemdesc,curbweightlb,airbagloccurtain,airbaglocseatcushion,batterya,batteryv,batterykwh,wheelbasetype,seatrows,valvetraindesign,transmissionspeeds,engineconfiguration,airbaglocfront,fueltypesecondary,fuelinjectiontype,airbaglocknee,enginehp,evdriveunit,plantcountry,plantcompanyname,plantstate,pretensioner,seatbeltsall,adaptivecruisecontrol,adaptiveheadlights,abs,cib,blindspotmon,ncsabodytype,ncsamake,ncsamodel,esc,tractioncontrol,forwardcollisionwarning,lanedeparturewarning,lanekeepsystem,rearvisibilitysystem,parkassist,airbaglocside,trim2,series2,wheelbaseshort,wheelbaselong,note,wheels,trailertype,trailerbodytype,trailerlength,wheelsizefront,wheelsizerear,otherrestraintsysteminfo,coolingtype,enginehp_to,electrificationlevel,chargerlevel,chargerpowerkw,otherengineinfo,batterya_to,batteryv_to,batterykwh_to,turbo,baseprice,batterymodules,batterypacks,topspeedmph,suggestedvin,errorcode,possiblevalues,axleconfiguration,enginemanufacturer,buslength,busfloorconfigtype,bustype,otherbusinfo,custommotorcycletype,motorcyclesuspensiontype,motorcyclechassistype,othermotorcycleinfo,othertrailerinfo,additionalerrortext,cashforclunkers,trackwidth,tpms,activesafetysysnote,dynamicbrakesupport,pedestrianautomaticemergencybraking,autoreversesystem,automaticpedestrianalertingsound,can_aacn,edr,keylessignition,daytimerunninglight,lowerbeamheadlamplightsource,semiautomaticheadlampbeamswitching,adaptivedrivingbeam,saeautomationlevel,saeautomationlevel_to,rearcrosstrafficalert,gcwr,gcwr_to,ncsanote,ncsamappingexception,ncsamapexcapprovedon,ncsamapexcapprovedby,gvwr_to,errortext,rearautomaticemergencybraking,blindspotintervention,lanecenteringassistance,nonlanduse,vehicledescriptor 460,1800,976,1FM5K8FW*L,,,,,Sport Utility Vehicle (SUV)/Multi-Purpose Vehicle (MPV),4,,3300.0,201.37835551261,3.3,4,4WD/4-Wheel Drive/4x4,,,,,,Gasoline,"Class 2E: 6,001 - 7,000 lb (2,722 - 3,175 kg)",FORD,FORD MOTOR COMPANY,Explorer,2020,,7,,Left-Hand Drive (LHD),Automatic,Limited,MULTIPURPOSE PASSENGER VEHICLE (MPV),,2,Hydraulic,,,,,,,,,,,3,,10,,1st Row (Driver and Passenger),Electric,,1st Row (Driver and Passenger),,,,,,,Manual,Standard,,Standard,Standard,Standard,"Large utility (ANSI D16.1 Utility Vehicle Categories and ""Full Size"" and ""Large"")",Ford,Explorer (For 2019 on. For model years 1990-2018 see 12-401.),Standard,Standard,Standard,Standard,Standard,Standard,,1st and 2nd and 3rd Rows,,,119.10,,,4,Not Applicable,Not Applicable,,20,20,,,,HEV (Hybrid Electric Vehicle) - Level Unknown,,,Ti-VCT,,,,,,,,,,6,,,Ford,,Not Applicable,Not Applicable,,Not Applicable,Not Applicable,Not Applicable,,,,,,Direct,,Standard,Standard,Standard,,Standard,,Standard,Standard,LED,Standard,,,,Standard,,,,,,,,6 - Incomplete VIN,,,,,1FM5K8FW*L*
A13: makeid,modelid,manufacturerid,vin,batteryinfo,batterytype,bedtype,bodycabtype,bodyclass,enginecylinders,destinationmarket,displacementcc,displacementci,displacementl,doors,drivetype,driverassist,enginecycles,enginemodel,enginekw,entertainmentsystem,fueltypeprimary,gvwr,make,manufacturer,model,modelyear,plantcity,seats,series,steeringlocation,transmissionstyle,trim,vehicletype,windows,axles,brakesystemtype,batterycells,bedlengthin,brakesystemdesc,curbweightlb,airbagloccurtain,airbaglocseatcushion,batterya,batteryv,batterykwh,wheelbasetype,seatrows,valvetraindesign,transmissionspeeds,engineconfiguration,airbaglocfront,fueltypesecondary,fuelinjectiontype,airbaglocknee,enginehp,evdriveunit,plantcountry,plantcompanyname,plantstate,pretensioner,seatbeltsall,adaptivecruisecontrol,adaptiveheadlights,abs,cib,blindspotmon,ncsabodytype,ncsamake,ncsamodel,esc,tractioncontrol,forwardcollisionwarning,lanedeparturewarning,lanekeepsystem,rearvisibilitysystem,parkassist,airbaglocside,trim2,series2,wheelbaseshort,wheelbaselong,note,wheels,trailertype,trailerbodytype,trailerlength,wheelsizefront,wheelsizerear,otherrestraintsysteminfo,coolingtype,enginehp_to,electrificationlevel,chargerlevel,chargerpowerkw,otherengineinfo,batterya_to,batteryv_to,batterykwh_to,turbo,baseprice,batterymodules,batterypacks,topspeedmph,suggestedvin,errorcode,possiblevalues,axleconfiguration,enginemanufacturer,buslength,busfloorconfigtype,bustype,otherbusinfo,custommotorcycletype,motorcyclesuspensiontype,motorcyclechassistype,othermotorcycleinfo,othertrailerinfo,additionalerrortext,cashforclunkers,trackwidth,tpms,activesafetysysnote,dynamicbrakesupport,pedestrianautomaticemergencybraking,autoreversesystem,automaticpedestrianalertingsound,can_aacn,edr,keylessignition,daytimerunninglight,lowerbeamheadlamplightsource,semiautomaticheadlampbeamswitching,adaptivedrivingbeam,saeautomationlevel,saeautomationlevel_to,rearcrosstrafficalert,gcwr,gcwr_to,ncsanote,ncsamappingexception,ncsamapexcapprovedon,ncsamapexcapprovedby,gvwr_to,errortext,rearautomaticemergencybraking,blindspotintervention,lanecenteringassistance,nonlanduse,vehicledescriptor 526,9526,1028,1HTSCAAM*W,,,,,Truck,6,,7636.371824,466,7.636371824,,4x2,,,International DT466 / Maxxforce DT,,,Diesel,"Class 6: 19,501 - 26,000 lb (8,845 - 11,794 kg)",INTERNATIONAL,"NAVISTAR, INC.",4700,1998,,,,,,,INCOMPLETE VEHICLE,,,Hydraulic,,,,,,,,,,,,,,,,,,,,,,,,,,,,,,,"Single-unit straight truck or Cab-Chassis (GVWR range 19,501 to 26,000 lbs.)",International Harvester/Navistar,Medium/Heavy - CBE,,,,,,,,,,,,,Chassis: 80 Inch Wide Steel Cab 68 ABC,,Not Applicable,Not Applicable,,,,,,,,,,,,,,,,,,,,6,,,International,,,,,Not Applicable,Not Applicable,Not Applicable,,,,,,,,,,,,,,,,,,,,,,,,,,,,,6 - Incomplete VIN,,,,,1HTSCAAM*W*
A14: makeid,modelid,manufacturerid,vin,batteryinfo,batterytype,bedtype,bodycabtype,bodyclass,enginecylinders,destinationmarket,displacementcc,displacementci,displacementl,doors,drivetype,driverassist,enginecycles,enginemodel,enginekw,entertainmentsystem,fueltypeprimary,gvwr,make,manufacturer,model,modelyear,plantcity,seats,series,steeringlocation,transmissionstyle,trim,vehicletype,windows,axles,brakesystemtype,batterycells,bedlengthin,brakesystemdesc,curbweightlb,airbagloccurtain,airbaglocseatcushion,batterya,batteryv,batterykwh,wheelbasetype,seatrows,valvetraindesign,transmissionspeeds,engineconfiguration,airbaglocfront,fueltypesecondary,fuelinjectiontype,airbaglocknee,enginehp,evdriveunit,plantcountry,plantcompanyname,plantstate,pretensioner,seatbeltsall,adaptivecruisecontrol,adaptiveheadlights,abs,cib,blindspotmon,ncsabodytype,ncsamake,ncsamodel,esc,tractioncontrol,forwardcollisionwarning,lanedeparturewarning,lanekeepsystem,rearvisibilitysystem,parkassist,airbaglocside,trim2,series2,wheelbaseshort,wheelbaselong,note,wheels,trailertype,trailerbodytype,trailerlength,wheelsizefront,wheelsizerear,otherrestraintsysteminfo,coolingtype,enginehp_to,electrificationlevel,chargerlevel,chargerpowerkw,otherengineinfo,batterya_to,batteryv_to,batterykwh_to,turbo,baseprice,batterymodules,batterypacks,topspeedmph,suggestedvin,errorcode,possiblevalues,axleconfiguration,enginemanufacturer,buslength,busfloorconfigtype,bustype,otherbusinfo,custommotorcycletype,motorcyclesuspensiontype,motorcyclechassistype,othermotorcycleinfo,othertrailerinfo,additionalerrortext,cashforclunkers,trackwidth,tpms,activesafetysysnote,dynamicbrakesupport,pedestrianautomaticemergencybraking,autoreversesystem,automaticpedestrianalertingsound,can_aacn,edr,keylessignition,daytimerunninglight,lowerbeamheadlamplightsource,semiautomaticheadlampbeamswitching,adaptivedrivingbeam,saeautomationlevel,saeautomationlevel_to,rearcrosstrafficalert,gcwr,gcwr_to,ncsanote,ncsamappingexception,ncsamapexcapprovedon,ncsamapexcapprovedby,gvwr_to,errortext,rearautomaticemergencybraking,blindspotintervention,lanecenteringassistance,nonlanduse,vehicledescriptor 460,1805,976,1FTNX21L*4,,,,Extra/Super/Quad/Double/King/Extended,Pickup,8,,5400.0,329.52821811155,5.4,,4WD/4-Wheel Drive/4x4,,,,,,Gasoline,"Class 2G: 8,001 - 9,000 lb (3,629 - 4,082 kg)",FORD,FORD MOTOR COMPANY,F-250,2004,,,,,,F-Series,TRUCK,,,Hydraulic,,,,,,,,,,,,,,V-Shaped,1st Row (Driver and Passenger),,,,250,,,,,,Manual,,,,,,Light Pickup,Ford,F-Series pickup,,,,,,,,,,,,,Single Rear Wheel,,Not Applicable,Not Applicable,,,,,,,,,,EFI,,,,,,,,,,6,,,Ford,,Not Applicable,Not Applicable,,Not Applicable,Not Applicable,Not Applicable,,,,,,,,,,,,,,,,,,,,,,,,,,,,,6 - Incomplete VIN,,,,,1FTNX21L*4*
A15: makeid,modelid,manufacturerid,vin,batteryinfo,batterytype,bedtype,bodycabtype,bodyclass,enginecylinders,destinationmarket,displacementcc,displacementci,displacementl,doors,drivetype,driverassist,enginecycles,enginemodel,enginekw,entertainmentsystem,fueltypeprimary,gvwr,make,manufacturer,model,modelyear,plantcity,seats,series,steeringlocation,transmissionstyle,trim,vehicletype,windows,axles,brakesystemtype,batterycells,bedlengthin,brakesystemdesc,curbweightlb,airbagloccurtain,airbaglocseatcushion,batterya,batteryv,batterykwh,wheelbasetype,seatrows,valvetraindesign,transmissionspeeds,engineconfiguration,airbaglocfront,fueltypesecondary,fuelinjectiontype,airbaglocknee,enginehp,evdriveunit,plantcountry,plantcompanyname,plantstate,pretensioner,seatbeltsall,adaptivecruisecontrol,adaptiveheadlights,abs,cib,blindspotmon,ncsabodytype,ncsamake,ncsamodel,esc,tractioncontrol,forwardcollisionwarning,lanedeparturewarning,lanekeepsystem,rearvisibilitysystem,parkassist,airbaglocside,trim2,series2,wheelbaseshort,wheelbaselong,note,wheels,trailertype,trailerbodytype,trailerlength,wheelsizefront,wheelsizerear,otherrestraintsysteminfo,coolingtype,enginehp_to,electrificationlevel,chargerlevel,chargerpowerkw,otherengineinfo,batterya_to,batteryv_to,batterykwh_to,turbo,baseprice,batterymodules,batterypacks,topspeedmph,suggestedvin,errorcode,possiblevalues,axleconfiguration,enginemanufacturer,buslength,busfloorconfigtype,bustype,otherbusinfo,custommotorcycletype,motorcyclesuspensiontype,motorcyclechassistype,othermotorcycleinfo,othertrailerinfo,additionalerrortext,cashforclunkers,trackwidth,tpms,activesafetysysnote,dynamicbrakesupport,pedestrianautomaticemergencybraking,autoreversesystem,automaticpedestrianalertingsound,can_aacn,edr,keylessignition,daytimerunninglight,lowerbeamheadlamplightsource,semiautomaticheadlampbeamswitching,adaptivedrivingbeam,saeautomationlevel,saeautomationlevel_to,rearcrosstrafficalert,gcwr,gcwr_to,ncsanote,ncsamappingexception,ncsamapexcapprovedon,ncsamapexcapprovedby,gvwr_to,errortext,rearautomaticemergencybraking,blindspotintervention,lanecenteringassistance,nonlanduse,vehicledescriptor 476,14832,995,2C4RDGBG*K,,,,,Minivan,6,,3600.0,219.68547874103,3.6,4,FWD/Front-Wheel Drive,,,,,,Gasoline,"Class 2E: 6,001 - 7,000 lb (2,722 - 3,175 kg)",DODGE,FCA CANADA INC.,Grand Caravan,2019,,,SE,Left-Hand Drive (LHD),,,MULTIPURPOSE PASSENGER VEHICLE (MPV),,,Hydraulic,,,,,,,,,,,,,,V-Shaped,1st Row (Driver and Passenger),,,,283,,,,,,Manual,,,,,,"Minivan (Chrysler Town and Country, Caravan, Grand Caravan, Voyager, Voyager, Honda-Odyssey, ...)",Dodge,Caravan/Grand Caravan,,,,,,,,All Rows,,,,,,,Not Applicable,Not Applicable,,,,,,,,,,,,,,,,,,,,6,,,FCA,,Not Applicable,Not Applicable,,Not Applicable,Not Applicable,Not Applicable,,,,,,,,,,,,,,,,,,,,,,,,,,,,,6 - Incomplete VIN,,,,,2C4RDGBG*K*

Sheet Test Map (hidden)
A1: Full Vehicle Name | B1: Index | C1: Vehicle Scenario | D1: Use Case | E1: FPAT Vehicle Name | F1: Technology | G1: Vehicle GVWR Category | H1: Model Year | I1: Make | J1: Model | K1: Fuel Economy Electric City (MPGe) | L1: Fuel Economy Electric Hwy (MPGe) | M1: Fuel Economy Gas/Diesel City (MPG) | N1: Fuel Economy Gas/Diesel Hwy (MPG) | O1: Estimated Price | P1: Electric Range | Q1: Count | R1: Image | S1: Base_V1_Maint_Repair_Cost_Year_1 | T1: Base_V1_Maint_Repair_Cost_Year_5
A2: TOYOTA COROLLA | B2: 1 | C2: Conventional | D2: Car | E2: 2024 TOYOTA COROLLA GAS | F2: ICE | G2: Passenger Vehicles (Light-Duty) | H2: 2024 | I2: TOYOTA | J2: COROLLA | M2: 32 | N2: 41 | O2: 21900 | P2: 0 | Q2: 5 | R2: https://fueleconomy.gov/feg/photos/2023_Toyota_Corolla.jpg | S2: 0.08 | T2: 0.104
A3: TOYOTA COROLLA | B3: 1 | C3: EV Alternative | D3: Car | E3: 2023 TESLA MODEL 3 RWD BEV | F3: BEV | G3: Passenger Vehicles (Light-Duty) | H3: 2023 | I3: TESLA | J3: MODEL 3 RWD | K3: 138 | L3: 126 | O3: 42990 | P3: 272 | Q3: 5 | R3: https://fueleconomy.gov/feg/photos/2023_Tesla_Model_3.jpg | S3: 0.04 | T3: 0.052
A4: FORD TAURUS | B4: 2 | C4: Conventional | D4: Car | E4: 2024 TOYOTA CAMRY LE/SE GAS | F4: ICE | G4: Passenger Vehicles (Light-Duty) | H4: 2024 | I4: TOYOTA | J4: CAMRY LE/SE | M4: 28 | N4: 39 | O4: 26420 | P4: 0 | Q4: 11 | R4: https://fueleconomy.gov/feg/photos/2023_Toyota_Camry.jpg | S4: 0.08 | T4: 0.104
A5: FORD TAURUS | B5: 2 | C5: EV Alternative | D5: Car | E5: 2023 TESLA MODEL 3 RWD BEV | F5: BEV | G5: Passenger Vehicles (Light-Duty) | H5: 2023 | I5: TESLA | J5: MODEL 3 RWD | K5: 138 | L5: 126 | O5: 42990 | P5: 272 | Q5: 11 | R5: https://fueleconomy.gov/feg/photos/2023_Tesla_Model_3.jpg | S5: 0.04 | T5: 0.052
A6: GILLIG LOW FLOOR BUS | B6: 3 | C6: Conventional | D6: Transit Bus | E6: 2025 FREIGHTLINER B2 BUS CHASSIS DIESEL | F6: ICE | G6: Heavy-Duty Vehicles (Class 7-8) | H6: 2025 | I6: FREIGHTLINER | J6: B2 BUS CHASSIS | M6: 5.21 | N6: 5.21 | O6: 132000 | Q6: 2 | R6: https://thomasbuiltbuses.com/content/uploads/2017/02/C2_Frontish_RGB.jpg | S6: 0.199 | T6: 0.2587
A7: GILLIG LOW FLOOR BUS | B7: 3 | C7: EV Alternative | D7: Transit Bus | E7: 2024 FREIGHTLINER EB2 CHASSIS BEV | F7: BEV | G7: Heavy-Duty Vehicles (Class 7-8) | H7: 2024 | I7: FREIGHTLINER | J7: EB2 CHASSIS | K7: 20.72 | L7: 20.72 | O7: 415000 | P7: 150 | Q7: 2 | R7: https://thomasbuiltbuses.com/content/uploads/2023/11/TBB-JouleyBus-BlueBumper-2X_ret_NoLights_1000x1000.png | S7: 0.168 | T7: 0.2184
A8: FORD EXPLORER | B8: 4 | C8: Conventional | D8: SUV/MPV | E8: 2024 CHEVROLET EQUINOX FWD GAS | F8: ICE | G8: Passenger Vehicles (Light-Duty) | H8: 2024 | I8: CHEVROLET | J8: EQUINOX FWD | M8: 26 | N8: 31 | O8: 26600 | P8: 0 | Q8: 21 | R8: https://fueleconomy.gov/feg/photos/2023_Chevy_Equinox.jpg | S8: 0.08 | T8: 0.104
A9: FORD EXPLORER | B9: 4 | C9: EV Alternative | D9: SUV/MPV | E9: 2023 TESLA MODEL Y AWD BEV | F9: BEV | G9: Passenger Vehicles (Light-Duty) | H9: 2023 | I9: TESLA | J9: MODEL Y AWD | K9: 129 | L9: 116 | O9: 49990 | P9: 279 | Q9: 21 | R9: https://fueleconomy.gov/feg/photos/2023_Tesla_Model_Y.jpg | S9: 0.04 | T9: 0.052
A10: FORD RANGER | B10: 5 | C10: Conventional | D10: Light Pickup | E10: 2023 FORD F150 PICKUP 2WD GAS | F10: ICE | G10: Passenger Vehicles (Light-Duty) | H10: 2023 | I10: FORD | J10: F150 PICKUP 2WD | M10: 18 | N10: 25 | O10: 34585 | P10: 0 | Q10: 2 | R10: https://fueleconomy.gov/feg/photos/2023_Ford_F150_2WD.jpg | S10: 0.08 | T10: 0.104
A11: FORD RANGER | B11: 5 | C11: EV Alternative | D11: Light Pickup | E11: 2023 FORD F-150 LIGHTNING PLATINUM 4WD BEV | F11: BEV | G11: Passenger Vehicles (Light-Duty) | H11: 2023 | I11: FORD | J11: F-150 LIGHTNING PLATINUM 4WD | K11: 73 | L11: 60 | O11: 96874 | P11: 300 | Q11: 2 | R11: https://fueleconomy.gov/feg/photos/2022_Ford_F150_Lightning.jpg | S11: 0.04 | T11: 0.052
A12: CHEVROLET S-10 PICKUP | B12: 6 | C12: Conventional | D12: Light Pickup | E12: 2023 FORD F150 PICKUP 2WD GAS | F12: ICE | G12: Passenger Vehicles (Light-Duty) | H12: 2023 | I12: FORD | J12: F150 PICKUP 2WD | M12: 18 | N12: 25 | O12: 34585 | P12: 0 | Q12: 1 | R12: https://fueleconomy.gov/feg/photos/2023_Ford_F150_2WD.jpg | S12: 0.08 | T12: 0.104
A13: CHEVROLET S-10 PICKUP | B13: 6 | C13: EV Alternative | D13: Light Pickup | E13: 2023 FORD F-150 LIGHTNING PLATINUM 4WD BEV | F13: BEV | G13: Passenger Vehicles (Light-Duty) | H13: 2023 | I13: FORD | J13: F-150 LIGHTNING PLATINUM 4WD | K13: 73 | L13: 60 | O13: 96874 | P13: 300 | Q13: 1 | R13: https://fueleconomy.gov/feg/photos/2022_Ford_F150_Lightning.jpg | S13: 0.04 | T13: 0.052
A14: CHEVROLET COLORADO | B14: 7 | C14: Conventional | D14: Light Pickup | E14: 2023 FORD F150 PICKUP 2WD GAS | F14: ICE | G14: Passenger Vehicles (Light-Duty) | H14: 2023 | I14: FORD | J14: F150 PICKUP 2WD | M14: 18 | N14: 25 | O14: 34585 | P14: 0 | Q14: 1 | R14: https://fueleconomy.gov/feg/photos/2023_Ford_F150_2WD.jpg | S14: 0.08 | T14: 0.104
A15: CHEVROLET COLORADO | B15: 7 | C15: EV Alternative | D15: Light Pickup | E15: 2023 FORD F-150 LIGHTNING PLATINUM 4WD BEV | F15: BEV | G15: Passenger Vehicles (Light-Duty) | H15: 2023 | I15: FORD | J15: F-150 LIGHTNING PLATINUM 4WD | K15: 73 | L15: 60 | O15: 96874 | P15: 300 | Q15: 1 | R15: https://fueleconomy.gov/feg/photos/2022_Ford_F150_Lightning.jpg | S15: 0.04 | T15: 0.052
A16: CHEVROLET SILVERADO | B16: 8 | C16: Conventional | D16: Light Pickup | E16: 2023 FORD F150 PICKUP 2WD GAS | F16: ICE | G16: Passenger Vehicles (Light-Duty) | H16: 2023 | I16: FORD | J16: F150 PICKUP 2WD | M16: 18 | N16: 25 | O16: 34585 | P16: 0 | Q16: 15 | R16: https://fueleconomy.gov/feg/photos/2023_Ford_F150_2WD.jpg | S16: 0.08 | T16: 0.104
A17: CHEVROLET SILVERADO | B17: 8 | C17: EV Alternative | D17: Light Pickup | E17: 2023 FORD F-150 LIGHTNING PLATINUM 4WD BEV | F17: BEV | G17: Passenger Vehicles (Light-Duty) | H17: 2023 | I17: FORD | J17: F-150 LIGHTNING PLATINUM 4WD | K17: 73 | L17: 60 | O17: 96874 | P17: 300 | Q17: 15 | R17: https://fueleconomy.gov/feg/photos/2022_Ford_F150_Lightning.jpg | S17: 0.04 | T17: 0.052
A18: DODGE GRAND CARAVAN | B18: 9 | C18: Conventional | D18: Minivan | E18: 2024 CHRYSLER PACIFICA GAS | F18: ICE | G18: Passenger Vehicles (Light-Duty) | H18: 2024 | I18: CHRYSLER | J18: PACIFICA | M18: 19 | N18: 28 | O18: 38425 | P18: 0 | Q18: 13 | R18: https://fueleconomy.gov/feg/photos/2023_Chrysler_Pacifica.jpg | S18: 0.08 | T18: 0.104
A19: DODGE GRAND CARAVAN | B19: 9 | C19: EV Alternative | D19: Minivan | E19: 2024 CHRYSLER PACIFICA HYBRID PHEV | F19: PHEV | G19: Passenger Vehicles (Light-Duty) | H19: 2024 | I19: CHRYSLER | J19: PACIFICA HYBRID | K19: 87 | L19: 77 | M19: 29 | N19: 30 | O19: 52495 | P19: 32 | Q19: 13 | R19: https://fueleconomy.gov/feg/photos/2023_Chrysler_Pacifica_Hybrid.jpg | S19: 0.07 | T19: 0.091
A20: FORD F-250 | B20: 10 | C20: Conventional | D20: Medium-Duty Pickup | E20: 2024 FORD F250 XL DIESEL | F20: ICE | G20: Medium-Duty Vehicles (Class 3-6) | H20: 2024 | I20: FORD | J20: F250 | M20: 13.51 | N20: 13.51 | O20: 55000 | Q20: 16 | R20: https://build.ford.com/dig/Ford/SuperDuty/2024/HD-TILE%5BEXTBCK1%5D/Image%5B%7CFord%7CSuperDuty%7C2024%7C1%7C1.%7C..142.PUM..88A.89S.XLL.166.REC.SRW.64A.4X2.99A.585.250.%5D/EXT/4/vehicle.png
A21: FORD F-250 | B21: 10 | C21: EV Alternative | D21: Medium-Duty Pickup | E21: 2023 FORD F-150 LIGHTNING PLATINUM 4WD BEV | F21: BEV | G21: Passenger Vehicles (Light-Duty) | H21: 2023 | I21: FORD | J21: F-150 LIGHTNING PLATINUM 4WD | K21: 73 | L21: 60 | O21: 96874 | P21: 300 | Q21: 16 | R21: https://fueleconomy.gov/feg/photos/2022_Ford_F150_Lightning.jpg | S21: 0.04 | T21: 0.052
A22: FORD F-650 | B22: 11 | C22: Conventional | D22: Medium-Duty Straight Truck | E22: 2024 FORD F550 DIESEL | F22: ICE | G22: Medium-Duty Vehicles (Class 3-6) | H22: 2024 | I22: FORD | J22: F550 | M22: 4.31 | N22: 4.31 | O22: 62000 | Q22: 1 | R22: https://vpic.nhtsa.dot.gov/decoder/Images/5/11.png
A23: FORD F-650 | B23: 11 | C23: EV Alternative | D23: Medium-Duty Straight Truck | E23: 2024 PETERBILT 220 209 KWH BEV | F23: BEV | G23: Heavy-Duty Vehicles (Class 7-8) | H23: 2024 | I23: PETERBILT | J23: 220 | K23: 24.19 | L23: 24.19 | O23: 387000 | P23: 150 | Q23: 1 | R23: https://vpic.nhtsa.dot.gov/decoder/Images/5/11.png | S23: 0.168 | T23: 0.2184
A24: INTERNATIONAL 4700 | B24: 12 | C24: Conventional | D24: Medium-Duty Straight Truck | E24: 2024 FORD F550 DIESEL | F24: ICE | G24: Medium-Duty Vehicles (Class 3-6) | H24: 2024 | I24: FORD | J24: F550 | M24: 4.31 | N24: 4.31 | O24: 62000 | Q24: 10 | R24: https://vpic.nhtsa.dot.gov/decoder/Images/5/11.png
A25: INTERNATIONAL 4700 | B25: 12 | C25: EV Alternative | D25: Medium-Duty Straight Truck | E25: 2024 PETERBILT 220 209 KWH BEV | F25: BEV | G25: Heavy-Duty Vehicles (Class 7-8) | H25: 2024 | I25: PETERBILT | J25: 220 | K25: 24.19 | L25: 24.19 | O25: 387000 | P25: 150 | Q25: 10 | R25: https://vpic.nhtsa.dot.gov/decoder/Images/5/11.png | S25: 0.168 | T25: 0.2184
A26: FORD E-450 | B26: 13 | C26: Conventional | D26: Medium-Duty Straight Truck | E26: 2024 FORD F550 DIESEL | F26: ICE | G26: Medium-Duty Vehicles (Class 3-6) | H26: 2024 | I26: FORD | J26: F550 | M26: 4.31 | N26: 4.31 | O26: 62000 | Q26: 2 | R26: https://vpic.nhtsa.dot.gov/decoder/Images/5/11.png
A27: FORD E-450 | B27: 13 | C27: EV Alternative | D27: Medium-Duty Straight Truck | E27: 2024 PETERBILT 220 209 KWH BEV | F27: BEV | G27: Heavy-Duty Vehicles (Class 7-8) | H27: 2024 | I27: PETERBILT | J27: 220 | K27: 24.19 | L27: 24.19 | O27: 387000 | P27: 150 | Q27: 2 | R27: https://vpic.nhtsa.dot.gov/decoder/Images/5/11.png | S27: 0.168 | T27: 0.2184

Sheet Initial Mapping Table (hidden)
A1: Full Vehicle Name | B1: Index | C1: Vehicle Scenario | D1: Use Case | E1: FPAT Vehicle Name | F1: Technology | G1: Vehicle GVWR Category | H1: Model Year | I1: Make | J1: Model | K1: Fuel Economy Electric City (MPGe) | L1: Fuel Economy Electric Hwy (MPGe) | M1: Fuel Economy Gas/Diesel City (MPG) | N1: Fuel Economy Gas/Diesel Hwy (MPG) | O1: Estimated Price | P1: Electric Range | Q1: Base_V1_Maint_Repair_Cost_Year_1 | R1: Base_V1_Maint_Repair_Cost_Year_5 | S1: Base_V1_Insurance_Cost | T1: Max 45W Credit Value | U1: Base_V1_State_Tax_Incentives | V1: Count
A2: TOYOTA COROLLA | B2: 1 | C2: Conventional | D2: Car | E2: 2024 TOYOTA COROLLA GAS | F2: ICE | G2: Passenger Vehicles (Light-Duty) | H2: 2024 | I2: TOYOTA | J2: COROLLA | M2: 32 | N2: 41 | O2: 21900 | P2: 0 | Q2: 0.101 | R2: 0.1313 | S2: 600 | T2: 0 | U2: 0 | V2: 5
A3: TOYOTA COROLLA | B3: 1 | C3: EV Alternative | D3: Car | E3: 2023 TESLA MODEL 3 RWD BEV | F3: BEV | G3: Passenger Vehicles (Light-Duty) | H3: 2023 | I3: TESLA | J3: MODEL 3 RWD | K3: 138 | L3: 126 | O3: 42990 | P3: 272 | Q3: 0.061 | R3: 0.0793 | S3: 600 | T3: 7500 | U3: 0 | V3: 5
A4: FORD TAURUS | B4: 2 | C4: Conventional | D4: Car | E4: 2023 CHEVROLET MALIBU GAS | F4: ICE | G4: Passenger Vehicles (Light-Duty) | H4: 2023 | I4: CHEVROLET | J4: MALIBU | M4: 27 | N4: 35 | O4: 24700 | P4: 0 | Q4: 0.101 | R4: 0.1313 | S4: 600 | T4: 0 | U4: 0 | V4: 11
A5: FORD TAURUS | B5: 2 | C5: EV Alternative | D5: Car | E5: 2023 FORD MUSTANG MACH-E RWD LFP BEV | F5: BEV | G5: Passenger Vehicles (Light-Duty) | H5: 2023 | I5: FORD | J5: MUSTANG MACH-E RWD LFP | K5: 107 | L5: 95 | O5: 39895 | P5: 250 | Q5: 0.061 | R5: 0.0793 | S5: 600 | T5: 7500 | U5: 0 | V5: 11
A6: CHEVROLET SILVERADO | B6: 3 | C6: Conventional | D6: Light Pickup | E6: 2023 CHEVROLET SILVERADO 2WD GAS | F6: ICE | G6: Passenger Vehicles (Light-Duty) | H6: 2023 | I6: CHEVROLET | J6: SILVERADO 2WD | M6: 17 | N6: 21 | O6: 36300 | P6: 0 | Q6: 0.101 | R6: 0.1313 | S6: 600 | T6: 0 | U6: 0 | V6: 15
A7: CHEVROLET SILVERADO | B7: 3 | C7: EV Alternative | D7: Light Pickup | E7: 2023 FORD F-150 LIGHTNING 4WD BEV | F7: BEV | G7: Passenger Vehicles (Light-Duty) | H7: 2023 | I7: FORD | J7: F-150 LIGHTNING 4WD | K7: 76 | L7: 61 | O7: 49995 | P7: 240 | Q7: 0.061 | R7: 0.0793 | S7: 600 | T7: 7500 | U7: 0 | V7: 15
A8: CHEVROLET COLORADO | B8: 4 | C8: Conventional | D8: Light Pickup | E8: 2023 CHEVROLET SILVERADO 2WD GAS | F8: ICE | G8: Passenger Vehicles (Light-Duty) | H8: 2023 | I8: CHEVROLET | J8: SILVERADO 2WD | M8: 17 | N8: 21 | O8: 36300 | P8: 0 | Q8: 0.101 | R8: 0.1313 | S8: 600 | T8: 0 | U8: 0 | V8: 1
A9: CHEVROLET COLORADO | B9: 4 | C9: EV Alternative | D9: Light Pickup | E9: 2023 FORD F-150 LIGHTNING 4WD BEV | F9: BEV | G9: Passenger Vehicles (Light-Duty) | H9: 2023 | I9: FORD | J9: F-150 LIGHTNING 4WD | K9: 76 | L9: 61 | O9: 49995 | P9: 240 | Q9: 0.061 | R9: 0.0793 | S9: 600 | T9: 7500 | U9: 0 | V9: 1
A10: FORD RANGER | B10: 5 | C10: Conventional | D10: Light Pickup | E10: 2024 FORD RANGER 2WD GAS | F10: ICE | G10: Passenger Vehicles (Light-Duty) | H10: 2024 | I10: FORD | J10: RANGER 2WD | M10: 21 | N10: 25 | O10: 32565 | P10: 0 | Q10: 0.101 | R10: 0.1313 | S10: 600 | T10: 0 | U10: 0 | V10: 2
A11: FORD RANGER | B11: 5 | C11: EV Alternative | D11: Light Pickup | E11: 2023 FORD F-150 LIGHTNING 4WD BEV | F11: BEV | G11: Passenger Vehicles (Light-Duty) | H11: 2023 | I11: FORD | J11: F-150 LIGHTNING 4WD | K11: 76 | L11: 61 | O11: 49995 | P11: 240 | Q11: 0.061 | R11: 0.0793 | S11: 600 | T11: 7500 | U11: 0 | V11: 2
A12: CHEVROLET S-10 PICKUP | B12: 6 | C12: Conventional | D12: Light Pickup | E12: 2023 CHEVROLET SILVERADO 2WD GAS | F12: ICE | G12: Passenger Vehicles (Light-Duty) | H12: 2023 | I12: CHEVROLET | J12: SILVERADO 2WD | M12: 17 | N12: 21 | O12: 36300 | P12: 0 | Q12: 0.101 | R12: 0.1313 | S12: 600 | T12: 0 | U12: 0 | V12: 1
A13: CHEVROLET S-10 PICKUP | B13: 6 | C13: EV Alternative | D13: Light Pickup | E13: 2023 FORD F-150 LIGHTNING 4WD BEV | F13: BEV | G13: Passenger Vehicles (Light-Duty) | H13: 2023 | I13: FORD | J13: F-150 LIGHTNING 4WD | K13: 76 | L13: 61 | O13: 49995 | P13: 240 | Q13: 0.061 | R13: 0.0793 | S13: 600 | T13: 7500 | U13: 0 | V13: 1
A14: FORD EXPLORER | B14: 7 | C14: Conventional | D14: SUV/MPV | E14: 2023 FORD EXPLORER RWD GAS | F14: ICE | G14: Passenger Vehicles (Light-Duty) | H14: 2023 | I14: FORD | J14: EXPLORER RWD | M14: 21 | N14: 28 | O14: 36760 | P14: 0 | Q14: 0.101 | R14: 0.1313 | S14: 600 | T14: 0 | U14: 0 | V14: 21
A15: FORD EXPLORER | B15: 7 | C15: EV Alternative | D15: SUV/MPV | E15: 2024 KIA EV9 STANDARD RANGE RWD BEV | F15: BEV | G15: Passenger Vehicles (Light-Duty) | H15: 2024 | I15: KIA | J15: EV9 STANDARD RANGE RWD | K15: 99 | L15: 77 | O15: 54900 | P15: 230 | Q15: 0.061 | R15: 0.0793 | S15: 600 | T15: 7500 | U15: 0 | V15: 21
A16: FORD F-250 | B16: 8 | C16: Conventional | D16: Medium-Duty Pickup | E16: 2024 FORD F250 XL GAS | F16: ICE | G16: Medium Duty Vehicles (Class 3-6) | H16: 2024 | I16: FORD | J16: F250 XL | M16: 13 | N16: 13 | O16: 45000 | Q16: 0.11 | R16: 0.24 | S16: 4000 | T16: 0 | U16: 0 | V16: 16
A17: FORD F-250 | B17: 8 | C17: EV Alternative | D17: Medium-Duty Pickup | E17: 2023 LIGHTNING SYSTEMS ZEV4 BEV | F17: BEV | G17: Medium Duty Vehicles (Class 3-6) | H17: 2023 | I17: LIGHTNING SYSTEMS | J17: ZEV4 | K17: 36.51 | L17: 36.51 | O17: 153000 | P17: 130 | Q17: 0.066 | R17: 0.144 | S17: 4000 | T17: 34500 | U17: 0 | V17: 16
A18: DODGE GRAND CARAVAN | B18: 9 | C18: Conventional | D18: Minivan | E18: 2024 CHRYSLER PACIFICA GAS | F18: ICE | G18: Passenger Vehicles (Light-Duty) | H18: 2024 | I18: CHRYSLER | J18: PACIFICA | M18: 19 | N18: 28 | O18: 38425 | P18: 0 | Q18: 0.101 | R18: 0.1313 | S18: 600 | T18: 0 | U18: 0 | V18: 13
A19: DODGE GRAND CARAVAN | B19: 9 | C19: EV Alternative | D19: Minivan | E19: 2024 CHRYSLER PACIFICA HYBRID PHEV | F19: PHEV | G19: Passenger Vehicles (Light-Duty) | H19: 2024 | I19: CHRYSLER | J19: PACIFICA HYBRID | K19: 87 | L19: 77 | M19: 29 | N19: 30 | O19: 52495 | P19: 32 | Q19: 0.09 | R19: 0.117 | S19: 600 | T19: 7500 | U19: 0 | V19: 13
A20: FORD E-450 | B20: 10 | C20: Conventional | D20: Medium-Duty Straight Truck | E20: 2025 FORD E450 GAS | F20: ICE | G20: Medium Duty Vehicles (Class 3-6) | H20: 2025 | I20: FORD | J20: E450 | M20: 4.14 | N20: 4.14 | O20: 40000 | Q20: 0.11 | R20: 0.24 | S20: 4000 | T20: 0 | U20: 0 | V20: 2
A21: FORD E-450 | B21: 10 | C21: EV Alternative | D21: Medium-Duty Straight Truck | E21: 2023 PHOENIX MOTORCARS FORD E-450 BEV | F21: BEV | G21: Medium Duty Vehicles (Class 3-6) | H21: 2023 | I21: PHOENIX MOTORCARS | J21: FORD E-450 | K21: 35.05 | L21: 35.05 | O21: 190000 | P21: 130 | Q21: 0.066 | R21: 0.144 | S21: 4000 | T21: 34500 | U21: 0 | V21: 2
A22: FORD F-650 | B22: 11 | C22: Conventional | D22: Medium-Duty Straight Truck | E22: 2025 FORD F650 DIESEL | F22: ICE | G22: Medium Duty Vehicles (Class 3-6) | H22: 2025 | I22: FORD | J22: F650 | M22: 4.31 | N22: 4.31 | O22: 79000 | Q22: 0.11 | R22: 0.24 | S22: 4000 | T22: 0 | U22: 0 | V22: 1
A23: FORD F-650 | B23: 11 | C23: EV Alternative | D23: Medium-Duty Straight Truck | E23: 2023 ROUSH FORD F-650 BEV | F23: BEV | G23: Medium Duty Vehicles (Class 3-6) | H23: 2023 | I23: ROUSH | J23: FORD F-650 | K23: 24.42 | L23: 24.42 | O23: 266000 | P23: 100 | Q23: 0.066 | R23: 0.144 | S23: 4000 | T23: 34500 | U23: 0 | V23: 1
A24: INTERNATIONAL 4700 | B24: 12 | C24: Conventional | D24: Medium-Duty Straight Truck | E24: 2025 FORD E450 GAS | F24: ICE | G24: Medium Duty Vehicles (Class 3-6) | H24: 2025 | I24: FORD | J24: E450 | M24: 4.14 | N24: 4.14 | O24: 40000 | Q24: 0.11 | R24: 0.24 | S24: 4000 | T24: 0 | U24: 0 | V24: 10
A25: INTERNATIONAL 4700 | B25: 12 | C25: EV Alternative | D25: Medium-Duty Straight Truck | E25: 2023 PHOENIX MOTORCARS FORD E-450 BEV | F25: BEV | G25: Medium Duty Vehicles (Class 3-6) | H25: 2023 | I25: PHOENIX MOTORCARS | J25: FORD E-450 | K25: 35.05 | L25: 35.05 | O25: 190000 | P25: 130 | Q25: 0.066 | R25: 0.144 | S25: 4000 | T25: 34500 | U25: 0 | V25: 10
A26: GILLIG LOW FLOOR BUS | B26: 13 | C26: Conventional | D26: Transit Bus | E26: 2024 NEW FLYER XCELSIOR 40' DIESEL | F26: ICE | G26: Heavy-Duty Vehicles (Class 7-8) | H26: 2024 | I26: NEW FLYER | J26: XCELSIOR 40' | M26: 3.3 | N26: 3.3 | O26: 507000 | Q26: 0.425 | R26: 0.8 | S26: 6000 | T26: 0 | U26: 0 | V26: 2
A27: GILLIG LOW FLOOR BUS | B27: 13 | C27: EV Alternative | D27: Transit Bus | E27: 2023 NEW FLYER XCELSIOR 40' BEV | F27: BEV | G27: Heavy-Duty Vehicles (Class 7-8) | H27: 2023 | I27: NEW FLYER | J27: XCELSIOR 40' | K27: 17.39 | L27: 17.39 | O27: 1028000 | P27: 178 | Q27: 0.255 | R27: 0.48 | S27: 6000 | T27: 40000 | U27: 0 | V27: 2

Sheet Version
A1: Version History - DRVE
B2: Developed By
B5: Version | C5: Date | D5: Author | E5: Organization | F5: Revisions
B6: 0.1 | C6: 44105 | D6: Josh Rosenberg | E6: Atlas Public Policy | F6: Initial Pre-Release of Tool
B7: 0.2 | C7: 44123 | D7: Josh Rosenberg | E7: Atlas Public Policy | F7: Minor bug fixes: Fixed bug where adding a first setting causes application to crash. Improvement: Allows users to cancel fleet processing and monitor progress.
B8: 0.3 | C8: 44131 | D8: Josh Rosenberg | E8: Atlas Public Policy | F8: Minor bug fixes: Fixed issue regarding VIN decoding timeout. Improvement: Added insurance and maintenece costs as custom fields. Allow users to select life cycle in years instead of retirement year. Added Dashboard.
B9: 0.4 | C9: 44138 | D9: Josh Rosenberg | E9: Atlas Public Policy | F9: Addressed cosmetic issues around procurement settings page.
B10: 0.5 | C10: 44138 | D10: Josh Rosenberg | E10: Atlas Public Policy | F10: Fixed refresh issue causing unexpected error when viewing results. Fixed memory allocation issue which caused program to run out of memory too early.
B11: 0.6 | C11: 44139 | D11: Josh Rosenberg | E11: Atlas Public Policy | F11: Fixed bug which didn't allow users to save the results from the dashboard.
B12: 0.7 | C12: 44166 | D12: Josh Rosenberg | E12: Atlas Public Policy | F12: Improved performance and memory usage. Added ability to set custom insurance, maintenece, and fed tax credit settings on mapping page. Added scaling feature to insurance and fed tax credit. Minor bug fixes.
B13: 1 | C13: 44237 | D13: Josh Rosenberg | E13: Atlas Public Policy | F13: Official Launch. Minor bug fixes: resolved fields that allowed for bad input. Added report feature which summarizes analysis and provides ability to export report as a PDF.
B14: 1.1 | C14: 44256 | D14: Josh Rosenberg | E14: Atlas Public Policy | F14: Bug fixes: Resolved issue causing users to be unable to import a fleet file. Added support for tranist, school, and coach buses. Next release will include optimization to VIN decoding process.
B15: 1.2 | C15: 44260 | D15: Josh Rosenberg | E15: Atlas Public Policy | F15: Bug fixes: Resolved other issue causing users to be unable to import a fleet file. Fixed bug causing application to crash upon invenotry sheet selection. Optimization to VIN decoding process where processing time will be a function of unique models. Added License
B16: 1.3 | C16: 44286 | D16: Josh Rosenberg | E16: Atlas Public Policy | F16: Increased error reporting when fleet has no valid VINs. Updated data on vehicle availability, fuel prices, energy inflation, emissions and insurance.
B17: 1.4 | C17: 44378 | D17: Josh Rosenberg | E17: Atlas Public Policy | F17: Bug fixes: Resolved issue causing buses to not be mapped. Feature updates: Added ability to set custom defaults for VMT and Years of Use. Added forecasting feature in the market settings. Added additional guidance on procurement settings. Added values for default charging procurements. Allowed users to start with all defaults pre-loaded into the tool.
B18: 1.5 | C18: 44476 | D18: Josh Rosenberg | E18: Atlas Public Policy | F18: Added functionality to overwrite dropped VINs. Added ability to add custom vehicles to use in analysis that are not present in default vehicles. Updated vehicles and incentives. Minor bug fixes and performance improvements.
B19: 1.6 | C19: 44505 | D19: Josh Rosenberg | E19: Atlas Public Policy | F19: Fixed bug which caused visuals on dashboard to not refresh. Updating Dashboard and Report page visuals. Included Sandbox page to allow users to create their own tables and visuals.
B20: 1.7 | C20: 44834 | D20: Spencer Burget, Josh Rosenberg | E20: Atlas Public Policy | F20: Updated fuel prices and available vehicles. Added ability to apply specific state incentives and rebates for a number of programs. Fixed minor bugs.
B21: 1.8 | C21: 44855 | D21: Spencer Burget | E21: Atlas Public Policy | F21: Updated available vehicles and default vehicle mappings. Fixed formula for loan calculation. Previous calculation was attempting to do monthly accrual of principal and interest payments. This was inaccurate since the model is annual. This change affected loan calculations for vehicles and infrastructure.
B22: 1.81 | C22: 44987 | D22: Spencer Burget | E22: Atlas Public Policy | F22: Fixed issue with tool dropping fixed invalid VINs. Invalid VINs now require user to input NHTSA bodyclass.
B23: 1.82 | C23: 45005 | D23: Spencer Burget | E23: Atlas Public Policy | F23: Fixed bug caused by VIN decoder returning vehicle bodyclass but no make and model.
B24: 1.83 | C24: 45100 | D24: Spencer Burget | E24: Atlas Public Policy | F24: Updated fuel prices with 2022 data. Added Kia EV9, Chevrolet Silverado EV, and multiple SEA Electric and Lightning eMotors work trucks. Updated default vehicle mappings to use these new vehicles.
B25: 2 | C25: 45406 | D25: Spencer Burget, Josh Rosenberg | E25: Atlas Public Policy | F25: DRVE 2.0 completely reworked the tool's user interface adding a modern look and feel designed to maximize an intuitive and transparent user experience. New substantive additions to DRVE 2.0 included the addition of a charging infrastructure planning model and a GHG and criteria air pollutant emissions model. Lastly, DRVE 2.0 included a comprehensive update to underlying data including vehicles, fuel prices, charging infrastructure costs, forecasted vehicle prices, and the EV depreciation model.
B26: 2.01 | C26: 45530 | D26: Spencer Burget | E26: Atlas Public Policy | F26: Updated data model to improve performance when opening the results.

Sheet License
A1: Copyright (c) 2021 Atlas Public Policy L.L.C. Permission is hereby granted, free of charge, to any person obtaining a copy of this software and associated documentation files (the "Software"), to deal in the Software without restriction, including without limitation the rights to use, copy, modify, merge, publish, distribute, sublicense, and/or sell copies of the Software, and to permit persons to whom the Software is furnished to do so, subject to the following conditions: The above copyright notice and this permission notice shall be included in all copies or substantial portions of the Software. THE SOFTWARE IS PROVIDED "AS IS", WITHOUT WARRANTY OF ANY KIND, EXPRESS OR IMPLIED, INCLUDING BUT NOT LIMITED TO THE WARRANTIES OF MERCHANTABILITY, FITNESS FOR A PARTICULAR PURPOSE AND NONINFRINGEMENT. IN NO EVENT SHALL THE AUTHORS OR COPYRIGHT HOLDERS BE LIABLE FOR ANY CLAIM, DAMAGES OR OTHER LIABILITY, WHETHER IN AN ACTION OF CONTRACT, TORT OR OTHERWISE, ARISING FROM, OUT OF OR IN CONNECTION WITH THE SOFTWARE OR THE USE OR OTHER DEALINGS IN THE SOFTWARE.

Sheet Dashboard (hidden)

Sheet Dashboard Pivots (hidden)
A1: Vehicles with EV Savings | B1: Vehicles with Cost Parity | C1: Vehicles with EV Costs | D1: Vehicles with Savings or Parity | E1: Percent of Vehicles with EV Savings or Cost Parity | F1: Total EV Savings
A2: 41 | B2: 40 | C2: 19 | D2: 81 | E2: 0.81 | F2: 316194.0885
A7: Savings by Class
A8: Row Labels | B8: Vehicles with EV Savings | C8: Vehicles with Cost Parity | D8: Vehicles with EV Costs | E8: Percent of Vehicles with EV Savings or Cost Parity | F8: Total Vehicles | H8: Vehicle Class Chart Values | I8: Vehicles with EV Savings | J8: Vehicles with Cost Parity | K8: Vehicles with EV Costs | L8: Percent of Vehicles with EV Savings or Cost Parity | M8: Total Vehicles
A9: Heavy-Duty Vehicles (Class 7-8) | B9: 0 | C9: 0 | D9: 2 | E9: 0 | F9: 2 | H9: Passenger Vehicles (Light-Duty) | I9: =IFERROR(GETPIVOTDATA("[Measures].[Vehicles with EV Savings]",$A$8,"[Original Fleet Vehicles].[Fleet Vehicle GVWR Category]","[Original Fleet Vehicles].[Fleet Vehicle GVWR Category].&[Passenger Vehicles (Light-Duty)]"),0) -> 41 | J9: =IFERROR(GETPIVOTDATA("[Measures].[Vehicles with Cost Parity]",$A$8,"[Original Fleet Vehicles].[Fleet Vehicle GVWR Category]","[Original Fleet Vehicles].[Fleet Vehicle GVWR Category].&[Passenger Vehicles (Light-Duty)]"),0) -> 28 | K9: =IFERROR(GETPIVOTDATA("[Measures].[Vehicles with EV Costs]",$A$8,"[Original Fleet Vehicles].[Fleet Vehicle GVWR Category]","[Original Fleet Vehicles].[Fleet Vehicle GVWR Category].&[Passenger Vehicles (Light-Duty)]"),0) -> 0 | L9: =IFERROR(GETPIVOTDATA("[Measures].[Percent of Vehicles with EV Savings or Cost Parity]",$A$8,"[Original Fleet Vehicles].[Fleet Vehicle GVWR Category]","[Original Fleet Vehicles].[Fleet Vehicle GVWR Category].&[Passenger Vehicles (Light-Duty)]"),0) -> 1 | M9: =IFERROR(GETPIVOTDATA("[Measures].[Total Vehicles]",$A$8,"[Original Fleet Vehicles].[Fleet Vehicle GVWR Category]","[Original Fleet Vehicles].[Fleet Vehicle GVWR Category].&[Passenger Vehicles (Light-Duty)]"),0) -> 69
A10: Medium Duty Vehicles (Class 3-6) | B10: 0 | C10: 12 | D10: 17 | E10: 0.4137931034 | F10: 29 | H10: Medium Duty Vehicles (Class 3-6) | I10: =IFERROR(GETPIVOTDATA("[Measures].[Vehicles with EV Savings]",$A$8,"[Original Fleet Vehicles].[Fleet Vehicle GVWR Category]","[Original Fleet Vehicles].[Fleet Vehicle GVWR Category].&[Medium Duty Vehicles (Class 3-6)]"),0) -> 0 | J10: =IFERROR(GETPIVOTDATA("[Measures].[Vehicles with Cost Parity]",$A$8,"[Original Fleet Vehicles].[Fleet Vehicle GVWR Category]","[Original Fleet Vehicles].[Fleet Vehicle GVWR Category].&[Medium Duty Vehicles (Class 3-6)]"),0) -> 12 | K10: =IFERROR(GETPIVOTDATA("[Measures].[Vehicles with EV Costs]",$A$8,"[Original Fleet Vehicles].[Fleet Vehicle GVWR Category]","[Original Fleet Vehicles].[Fleet Vehicle GVWR Category].&[Medium Duty Vehicles (Class 3-6)]"),0) -> 17 | L10: =IFERROR(GETPIVOTDATA("[Measures].[Percent of Vehicles with EV Savings or Cost Parity]",$A$8,"[Original Fleet Vehicles].[Fleet Vehicle GVWR Category]","[Original Fleet Vehicles].[Fleet Vehicle GVWR Category].&[Medium Duty Vehicles (Class 3-6)]"),0) -> 0.4137931034 | M10: =IFERROR(GETPIVOTDATA("[Measures].[Total Vehicles]",$A$8,"[Original Fleet Vehicles].[Fleet Vehicle GVWR Category]","[Original Fleet Vehicles].[Fleet Vehicle GVWR Category].&[Medium Duty Vehicles (Class 3-6)]"),0) -> 29
A11: Passenger Vehicles (Light-Duty) | B11: 41 | C11: 28 | D11: 0 | E11: 1 | F11: 69 | H11: Heavy-Duty Vehicles (Class 7-8) | I11: =IFERROR(GETPIVOTDATA("[Measures].[Vehicles with EV Savings]",$A$8,"[Original Fleet Vehicles].[Fleet Vehicle GVWR Category]","[Original Fleet Vehicles].[Fleet Vehicle GVWR Category].&[Heavy-Duty Vehicles (Class 7-8)]"),0) -> 0 | J11: =IFERROR(GETPIVOTDATA("[Measures].[Vehicles with Cost Parity]",$A$8,"[Original Fleet Vehicles].[Fleet Vehicle GVWR Category]","[Original Fleet Vehicles].[Fleet Vehicle GVWR Category].&[Heavy-Duty Vehicles (Class 7-8)]"),0) -> 0 | K11: =IFERROR(GETPIVOTDATA("[Measures].[Vehicles with EV Costs]",$A$8,"[Original Fleet Vehicles].[Fleet Vehicle GVWR Category]","[Original Fleet Vehicles].[Fleet Vehicle GVWR Category].&[Heavy-Duty Vehicles (Class 7-8)]"),0) -> 2 | L11: =IFERROR(GETPIVOTDATA("[Measures].[Percent of Vehicles with EV Savings or Cost Parity]",$A$8,"[Original Fleet Vehicles].[Fleet Vehicle GVWR Category]","[Original Fleet Vehicles].[Fleet Vehicle GVWR Category].&[Heavy-Duty Vehicles (Class 7-8)]"),0) -> 0 | M11: =IFERROR(GETPIVOTDATA("[Measures].[Total Vehicles]",$A$8,"[Original Fleet Vehicles].[Fleet Vehicle GVWR Category]","[Original Fleet Vehicles].[Fleet Vehicle GVWR Category].&[Heavy-Duty Vehicles (Class 7-8)]"),0) -> 2
A18: Top 5 Models
A19: Row Labels | B19: Electric Vehicle | C19: Vehicles with Savings or Parity | E19: Dashboard Model Chart Label Text
A20: FORD EXPLORER | B20: 2024 KIA EV9 STANDARD RANGE RWD BEV | C20: 21 | E20: =IF(C20>0,_xlfn.CONCAT(A20," to ",B20),"") -> FORD EXPLORER to 2024 KIA EV9 STANDARD RANGE RWD BEV
A21: CHEVROLET SILVERADO | B21: 2023 FORD F-150 LIGHTNING 4WD BEV | C21: 15 | E21: =IF(C21>0,_xlfn.CONCAT(A21," to ",B21),"") -> CHEVROLET SILVERADO to 2023 FORD F-150 LIGHTNING 4WD BEV
A22: DODGE GRAND CARAVAN | B22: 2024 CHRYSLER PACIFICA HYBRID PHEV | C22: 13 | E22: DODGE GRAND CARAVAN to 2024 CHRYSLER PACIFICA HYBRID PHEV
A23: FORD TAURUS | B23: 2023 FORD MUSTANG MACH-E RWD LFP BEV | C23: 11 | E23: FORD TAURUS to 2023 FORD MUSTANG MACH-E RWD LFP BEV
A24: INTERNATIONAL 4700 | B24: 2023 PHOENIX MOTORCARS FORD E-450 BEV | C24: 10 | E24: INTERNATIONAL 4700 to 2023 PHOENIX MOTORCARS FORD E-450 BEV
A30: Inputs
A31: Average of Gasoline Price ($/Gallon) | B31: Average of Diesel Price ($/Gallon) | C31: Average of Electricity Cost ($/kWh) | D31: Average of % Depot/Home Charging | E31: Average of En Route Charging Price ($/kWh) | F31: Average of % En Route Charging | G31: Average of Public Charging Price ($/kWh) | H31: Average of % Public Charging
A32: 3.6667 | B32: 4.54 | C32: 0.196 | D32: 1 | E32: 0.25 | F32: 0 | G32: 0.5 | H32: 0

Sheet Vehicle Summary (hidden)
A6: Original Fleet Vehicle | B6: Conventional Replacement | C6: Electric Replacement | D6: Count | E6: Conventional Average NPV | F6: Electric Average NPV | G6: Average EV NPV Savings | H6: Average Percent Savings from EVs | I6: Conventional Average Cost per Mile | J6: Electric Average Cost per Mile | K6: Average EV Savings per Mile
A7: Heavy-Duty Vehicles (Class 7-8)
A8: Transit Bus
A9: GILLIG LOW FLOOR BUS
A10: 15GGD3013C1181123 | B10: 2024 NEW FLYER XCELSIOR 40' DIESEL | C10: 2023 NEW FLYER XCELSIOR 40' BEV | D10: 1 | E10: 600260.6559 | F10: 882421.7368 | G10: -282161.0809 | H10: -0.4700642598 | I10: 5.7168 | J10: 8.404 | K10: -2.6872
A11: 15GGD3015C1181155 | B11: 2024 NEW FLYER XCELSIOR 40' DIESEL | C11: 2023 NEW FLYER XCELSIOR 40' BEV | D11: 1 | E11: 600260.6559 | F11: 882421.7368 | G11: -282161.0809 | H11: -0.4700642598 | I11: 5.7168 | J11: 8.404 | K11: -2.6872
A12: Medium Duty Vehicles (Class 3-6)
A13: Medium-Duty Pickup
A14: FORD F-250
A15: 1FTNX21L94EC69100 | B15: 2024 FORD F250 XL GAS | C15: 2023 LIGHTNING SYSTEMS ZEV4 BEV | D15: 1 | E15: 103880.8364 | F15: 138540.4675 | G15: -34659.6311 | H15: -0.3336479788 | I15: 1.2367 | J15: 1.6493 | K15: -0.4126
A16: 1FTNX21L94EC69101 | B16: 2024 FORD F250 XL GAS | C16: 2023 LIGHTNING SYSTEMS ZEV4 BEV | D16: 1 | E16: 103880.8364 | F16: 138540.4675 | G16: -34659.6311 | H16: -0.3336479788 | I16: 1.2367 | J16: 1.6493 | K16: -0.4126
A17: 1FTNX21L94EC69102 | B17: 2024 FORD F250 XL GAS | C17: 2023 LIGHTNING SYSTEMS ZEV4 BEV | D17: 1 | E17: 103880.8364 | F17: 138540.4675 | G17: -34659.6311 | H17: -0.3336479788 | I17: 1.2367 | J17: 1.6493 | K17: -0.4126
A18: 1FTNX21L94EC69103 | B18: 2024 FORD F250 XL GAS | C18: 2023 LIGHTNING SYSTEMS ZEV4 BEV | D18: 1 | E18: 103880.8364 | F18: 138540.4675 | G18: -34659.6311 | H18: -0.3336479788 | I18: 1.2367 | J18: 1.6493 | K18: -0.4126
A19: 1FTNX21L94EC69104 | B19: 2024 FORD F250 XL GAS | C19: 2023 LIGHTNING SYSTEMS ZEV4 BEV | D19: 1 | E19: 103880.8364 | F19: 138540.4675 | G19: -34659.6311 | H19: -0.3336479788 | I19: 1.2367 | J19: 1.6493 | K19: -0.4126
A20: 1FTNX21L94EC69105 | B20: 2024 FORD F250 XL GAS | C20: 2023 LIGHTNING SYSTEMS ZEV4 BEV | D20: 1 | E20: 103880.8364 | F20: 138540.4675 | G20: -34659.6311 | H20: -0.3336479788 | I20: 1.2367 | J20: 1.6493 | K20: -0.4126
A21: 1FTNX21L94EC69106 | B21: 2024 FORD F250 XL GAS | C21: 2023 LIGHTNING SYSTEMS ZEV4 BEV | D21: 1 | E21: 103880.8364 | F21: 138540.4675 | G21: -34659.6311 | H21: -0.3336479788 | I21: 1.2367 | J21: 1.6493 | K21: -0.4126
A22: 1FTNX21L94EC69107 | B22: 2024 FORD F250 XL GAS | C22: 2023 LIGHTNING SYSTEMS ZEV4 BEV | D22: 1 | E22: 103880.8364 | F22: 138540.4675 | G22: -34659.6311 | H22: -0.3336479788 | I22: 1.2367 | J22: 1.6493 | K22: -0.4126
A23: 1FTNX21L94EC69108 | B23: 2024 FORD F250 XL GAS | C23: 2023 LIGHTNING SYSTEMS ZEV4 BEV | D23: 1 | E23: 103880.8364 | F23: 138540.4675 | G23: -34659.6311 | H23: -0.3336479788 | I23: 1.2367 | J23: 1.6493 | K23: -0.4126
A24: 1FTNX21L94EC69109 | B24: 2024 FORD F250 XL GAS | C24: 2023 LIGHTNING SYSTEMS ZEV4 BEV | D24: 1 | E24: 103880.8364 | F24: 138540.4675 | G24: -34659.6311 | H24: -0.3336479788 | I24: 1.2367 | J24: 1.6493 | K24: -0.4126
A25: 1FTNX21L94EC69110 | B25: 2024 FORD F250 XL GAS | C25: 2023 LIGHTNING SYSTEMS ZEV4 BEV | D25: 1 | E25: 103880.8364 | F25: 138540.4675 | G25: -34659.6311 | H25: -0.3336479788 | I25: 1.2367 | J25: 1.6493 | K25: -0.4126
A26: 1FTNX21L94EC69111 | B26: 2024 FORD F250 XL GAS | C26: 2023 LIGHTNING SYSTEMS ZEV4 BEV | D26: 1 | E26: 103880.8364 | F26: 138540.4675 | G26: -34659.6311 | H26: -0.3336479788 | I26: 1.2367 | J26: 1.6493 | K26: -0.4126
A27: 1FTNX21L94EC69112 | B27: 2024 FORD F250 XL GAS | C27: 2023 LIGHTNING SYSTEMS ZEV4 BEV | D27: 1 | E27: 103880.8364 | F27: 138540.4675 | G27: -34659.6311 | H27: -0.3336479788 | I27: 1.2367 | J27: 1.6493 | K27: -0.4126
A28: 1FTNX21L94EC69113 | B28: 2024 FORD F250 XL GAS | C28: 2023 LIGHTNING SYSTEMS ZEV4 BEV | D28: 1 | E28: 103880.8364 | F28: 138540.4675 | G28: -34659.6311 | H28: -0.3336479788 | I28: 1.2367 | J28: 1.6493 | K28: -0.4126
A29: 1FTNX21L94EC69114 | B29: 2024 FORD F250 XL GAS | C29: 2023 LIGHTNING SYSTEMS ZEV4 BEV | D29: 1 | E29: 103880.8364 | F29: 138540.4675 | G29: -34659.6311 | H29: -0.3336479788 | I29: 1.2367 | J29: 1.6493 | K29: -0.4126
A30: 1FTNX21L94EC69115 | B30: 2024 FORD F250 XL GAS | C30: 2023 LIGHTNING SYSTEMS ZEV4 BEV | D30: 1 | E30: 103880.8364 | F30: 138540.4675 | G30: -34659.6311 | H30: -0.3336479788 | I30: 1.2367 | J30: 1.6493 | K30: -0.4126
A31: Medium-Duty Straight Truck
A32: FORD E-450
A33: 1FDXE4FS0DDA07101 | B33: 2025 FORD E450 GAS | C33: 2023 PHOENIX MOTORCARS FORD E-450 BEV | D33: 1 | E33: 173320.2796 | F33: 174703.6863 | G33: -1383.4067 | H33: -0.007981793609 | I33: 1.6507 | J33: 1.6638 | K33: -0.0131
A34: 1FDXE4FS2DDA07102 | B34: 2025 FORD E450 GAS | C34: 2023 PHOENIX MOTORCARS FORD E-450 BEV | D34: 1 | E34: 173320.2796 | F34: 174703.6863 | G34: -1383.4067 | H34: -0.007981793609 | I34: 1.6507 | J34: 1.6638 | K34: -0.0131
A35: FORD F-650
A36: 1FDNF6AY5HDB03100 | B36: 2025 FORD F650 DIESEL | C36: 2023 ROUSH FORD F-650 BEV | D36: 1 | E36: 199948.6298 | F36: 241706.2807 | G36: -41757.6509 | H36: -0.2088418957 | I36: 1.9043 | J36: 2.302 | K36: -0.3977
A37: INTERNATIONAL 4700
A38: 1HTSCAAM9WH538100 | B38: 2025 FORD E450 GAS | C38: 2023 PHOENIX MOTORCARS FORD E-450 BEV | D38: 1 | E38: 195648.6775 | F38: 191750.5266 | G38: 3898.1509 | H38: 0.01992423843 | I38: 1.6304 | J38: 1.5979 | K38: 0.0325
A39: 1HTSCAAM9WH538101 | B39: 2025 FORD E450 GAS | C39: 2023 PHOENIX MOTORCARS FORD E-450 BEV | D39: 1 | E39: 195648.6775 | F39: 191750.5266 | G39: 3898.1509 | H39: 0.01992423843 | I39: 1.6304 | J39: 1.5979 | K39: 0.0325
A40: 1HTSCAAM9WH538102 | B40: 2025 FORD E450 GAS | C40: 2023 PHOENIX MOTORCARS FORD E-450 BEV | D40: 1 | E40: 195648.6775 | F40: 191750.5266 | G40: 3898.1509 | H40: 0.01992423843 | I40: 1.6304 | J40: 1.5979 | K40: 0.0325
A41: 1HTSCAAM9WH538103 | B41: 2025 FORD E450 GAS | C41: 2023 PHOENIX MOTORCARS FORD E-450 BEV | D41: 1 | E41: 195648.6775 | F41: 191750.5266 | G41: 3898.1509 | H41: 0.01992423843 | I41: 1.6304 | J41: 1.5979 | K41: 0.0325
A42: 1HTSCAAM9WH538104 | B42: 2025 FORD E450 GAS | C42: 2023 PHOENIX MOTORCARS FORD E-450 BEV | D42: 1 | E42: 195648.6775 | F42: 191750.5266 | G42: 3898.1509 | H42: 0.01992423843 | I42: 1.6304 | J42: 1.5979 | K42: 0.0325
A43: 1HTSCAAM9WH538105 | B43: 2025 FORD E450 GAS | C43: 2023 PHOENIX MOTORCARS FORD E-450 BEV | D43: 1 | E43: 195648.6775 | F43: 191750.5266 | G43: 3898.1509 | H43: 0.01992423843 | I43: 1.6304 | J43: 1.5979 | K43: 0.0325
A44: 1HTSCAAM9WH538106 | B44: 2025 FORD E450 GAS | C44: 2023 PHOENIX MOTORCARS FORD E-450 BEV | D44: 1 | E44: 195648.6775 | F44: 191750.5266 | G44: 3898.1509 | H44: 0.01992423843 | I44: 1.6304 | J44: 1.5979 | K44: 0.0325
A45: 1HTSCAAM9WH538107 | B45: 2025 FORD E450 GAS | C45: 2023 PHOENIX MOTORCARS FORD E-450 BEV | D45: 1 | E45: 195648.6775 | F45: 191750.5266 | G45: 3898.1509 | H45: 0.01992423843 | I45: 1.6304 | J45: 1.5979 | K45: 0.0325
A46: 1HTSCAAM9WH538108 | B46: 2025 FORD E450 GAS | C46: 2023 PHOENIX MOTORCARS FORD E-450 BEV | D46: 1 | E46: 195648.6775 | F46: 191750.5266 | G46: 3898.1509 | H46: 0.01992423843 | I46: 1.6304 | J46: 1.5979 | K46: 0.0325
A47: 1HTSCAAM9WH538109 | B47: 2025 FORD E450 GAS | C47: 2023 PHOENIX MOTORCARS FORD E-450 BEV | D47: 1 | E47: 195648.6775 | F47: 191750.5266 | G47: 3898.1509 | H47: 0.01992423843 | I47: 1.6304 | J47: 1.5979 | K47: 0.0325
A48: Passenger Vehicles (Light-Duty)
A49: Car
A50: FORD TAURUS
A51: 1FAFP53U05A267100 | B51: 2023 CHEVROLET MALIBU GAS | C51: 2023 FORD MUSTANG MACH-E RWD LFP BEV | D51: 1 | E51: 48427.7432 | F51: 43255.7296 | G51: 5172.0136 | H51: 0.1067985675 | I51: 0.5045 | J51: 0.4506 | K51: 0.0539
A52: 1FAFP53U05A267101 | B52: 2023 CHEVROLET MALIBU GAS | C52: 2023 FORD MUSTANG MACH-E RWD LFP BEV | D52: 1 | E52: 48427.7432 | F52: 43255.7296 | G52: 5172.0136 | H52: 0.1067985675 | I52: 0.5045 | J52: 0.4506 | K52: 0.0539
A53: 1FAFP53U05A267102 | B53: 2023 CHEVROLET MALIBU GAS | C53: 2023 FORD MUSTANG MACH-E RWD LFP BEV | D53: 1 | E53: 48427.7432 | F53: 43255.7296 | G53: 5172.0136 | H53: 0.1067985675 | I53: 0.5045 | J53: 0.4506 | K53: 0.0539
A54: 1FAFP53U05A267103 | B54: 2023 CHEVROLET MALIBU GAS | C54: 2023 FORD MUSTANG MACH-E RWD LFP BEV | D54: 1 | E54: 48427.7432 | F54: 43255.7296 | G54: 5172.0136 | H54: 0.1067985675 | I54: 0.5045 | J54: 0.4506 | K54: 0.0539
A55: 1FAFP53U05A267104 | B55: 2023 CHEVROLET MALIBU GAS | C55: 2023 FORD MUSTANG MACH-E RWD LFP BEV | D55: 1 | E55: 48427.7432 | F55: 43255.7296 | G55: 5172.0136 | H55: 0.1067985675 | I55: 0.5045 | J55: 0.4506 | K55: 0.0539
A56: 1FAFP53U05A267105 | B56: 2023 CHEVROLET MALIBU GAS | C56: 2023 FORD MUSTANG MACH-E RWD LFP BEV | D56: 1 | E56: 48427.7432 | F56: 43255.7296 | G56: 5172.0136 | H56: 0.1067985675 | I56: 0.5045 | J56: 0.4506 | K56: 0.0539
A57: 1FAFP53U05A267106 | B57: 2023 CHEVROLET MALIBU GAS | C57: 2023 FORD MUSTANG MACH-E RWD LFP BEV | D57: 1 | E57: 48427.7432 | F57: 43255.7296 | G57: 5172.0136 | H57: 0.1067985675 | I57: 0.5045 | J57: 0.4506 | K57: 0.0539
A58: 1FAFP53U05A267107 | B58: 2023 CHEVROLET MALIBU GAS | C58: 2023 FORD MUSTANG MACH-E RWD LFP BEV | D58: 1 | E58: 48427.7432 | F58: 43255.7296 | G58: 5172.0136 | H58: 0.1067985675 | I58: 0.5045 | J58: 0.4506 | K58: 0.0539
A59: 1FAFP53U05A267108 | B59: 2023 CHEVROLET MALIBU GAS | C59: 2023 FORD MUSTANG MACH-E RWD LFP BEV | D59: 1 | E59: 48427.7432 | F59: 43255.7296 | G59: 5172.0136 | H59: 0.1067985675 | I59: 0.5045 | J59: 0.4506 | K59: 0.0539
A60: 1FAFP53U05A267109 | B60: 2023 CHEVROLET MALIBU GAS | C60: 2023 FORD MUSTANG MACH-E RWD LFP BEV | D60: 1 | E60: 48427.7432 | F60: 43255.7296 | G60: 5172.0136 | H60: 0.1067985675 | I60: 0.5045 | J60: 0.4506 | K60: 0.0539
A61: 1FAFP53U05A267110 | B61: 2023 CHEVROLET MALIBU GAS | C61: 2023 FORD MUSTANG MACH-E RWD LFP BEV | D61: 1 | E61: 48427.7432 | F61: 43255.7296 | G61: 5172.0136 | H61: 0.1067985675 | I61: 0.5045 | J61: 0.4506 | K61: 0.0539
A62: TOYOTA COROLLA
A63: 5YFEPRAE2LP021100 | B63: 2024 TOYOTA COROLLA GAS | C63: 2023 TESLA MODEL 3 RWD BEV | D63: 1 | E63: 44862.2463 | F63: 43121.791 | G63: 1740.4553 | H63: 0.03879554511 | I63: 0.4273 | J63: 0.4107 | K63: 0.0166
A64: 5YFEPRAE2LP023101 | B64: 2024 TOYOTA COROLLA GAS | C64: 2023 TESLA MODEL 3 RWD BEV | D64: 1 | E64: 44862.2463 | F64: 43121.791 | G64: 1740.4553 | H64: 0.03879554511 | I64: 0.4273 | J64: 0.4107 | K64: 0.0166
A65: 5YFEPRAE2LP025102 | B65: 2024 TOYOTA COROLLA GAS | C65: 2023 TESLA MODEL 3 RWD BEV | D65: 1 | E65: 44862.2463 | F65: 43121.791 | G65: 1740.4553 | H65: 0.03879554511 | I65: 0.4273 | J65: 0.4107 | K65: 0.0166
A66: 5YFEPRAE4LP022103 | B66: 2024 TOYOTA COROLLA GAS | C66: 2023 TESLA MODEL 3 RWD BEV | D66: 1 | E66: 44862.2463 | F66: 43121.791 | G66: 1740.4553 | H66: 0.03879554511 | I66: 0.4273 | J66: 0.4107 | K66: 0.0166
A67: 5YFEPRAE6LP021104 | B67: 2024 TOYOTA COROLLA GAS | C67: 2023 TESLA MODEL 3 RWD BEV | D67: 1 | E67: 44862.2463 | F67: 43121.791 | G67: 1740.4553 | H67: 0.03879554511 | I67: 0.4273 | J67: 0.4107 | K67: 0.0166
A68: Light Pickup
A69: CHEVROLET COLORADO
A70: 1GCGTBEN1L1185102 | B70: 2023 CHEVROLET SILVERADO 2WD GAS | C70: 2023 FORD F-150 LIGHTNING 4WD BEV | D70: 1 | E70: 58746.3296 | F70: 53457.7382 | G70: 5288.5914 | H70: 0.09002420127 | I70: 0.5595 | J70: 0.5091 | K70: 0.0504
A71: CHEVROLET S-10 PICKUP
A72: 1GCCS145728164101 | B72: 2023 CHEVROLET SILVERADO 2WD GAS | C72: 2023 FORD F-150 LIGHTNING 4WD BEV | D72: 1 | E72: 58746.3296 | F72: 53457.7382 | G72: 5288.5914 | H72: 0.09002420127 | I72: 0.5595 | J72: 0.5091 | K72: 0.0504
A73: CHEVROLET SILVERADO
A74: 1GCNKNEHXHZ250100 | B74: 2023 CHEVROLET SILVERADO 2WD GAS | C74: 2023 FORD F-150 LIGHTNING 4WD BEV | D74: 1 | E74: 80587.9328 | F74: 68225.2942 | G74: 12362.6386 | H74: 0.1534055803 | I74: 0.5373 | J74: 0.4548 | K74: 0.0825
A75: 1GCNKNEHXHZ250101 | B75: 2023 CHEVROLET SILVERADO 2WD GAS | C75: 2023 FORD F-150 LIGHTNING 4WD BEV | D75: 1 | E75: 80587.9328 | F75: 68225.2942 | G75: 12362.6386 | H75: 0.1534055803 | I75: 0.5373 | J75: 0.4548 | K75: 0.0825
A76: 1GCNKNEHXHZ250102 | B76: 2023 CHEVROLET SILVERADO 2WD GAS | C76: 2023 FORD F-150 LIGHTNING 4WD BEV | D76: 1 | E76: 80587.9328 | F76: 68225.2942 | G76: 12362.6386 | H76: 0.1534055803 | I76: 0.5373 | J76: 0.4548 | K76: 0.0825
A77: 1GCNKNEHXHZ250103 | B77: 2023 CHEVROLET SILVERADO 2WD GAS | C77: 2023 FORD F-150 LIGHTNING 4WD BEV | D77: 1 | E77: 80587.9328 | F77: 68225.2942 | G77: 12362.6386 | H77: 0.1534055803 | I77: 0.5373 | J77: 0.4548 | K77: 0.0825
A78: 1GCNKNEHXHZ250104 | B78: 2023 CHEVROLET SILVERADO 2WD GAS | C78: 2023 FORD F-150 LIGHTNING 4WD BEV | D78: 1 | E78: 80587.9328 | F78: 68225.2942 | G78: 12362.6386 | H78: 0.1534055803 | I78: 0.5373 | J78: 0.4548 | K78: 0.0825
A79: 1GCNKNEHXHZ250105 | B79: 2023 CHEVROLET SILVERADO 2WD GAS | C79: 2023 FORD F-150 LIGHTNING 4WD BEV | D79: 1 | E79: 80587.9328 | F79: 68225.2942 | G79: 12362.6386 | H79: 0.1534055803 | I79: 0.5373 | J79: 0.4548 | K79: 0.0825
A80: 1GCNKNEHXHZ250106 | B80: 2023 CHEVROLET SILVERADO 2WD GAS | C80: 2023 FORD F-150 LIGHTNING 4WD BEV | D80: 1 | E80: 80587.9328 | F80: 68225.2942 | G80: 12362.6386 | H80: 0.1534055803 | I80: 0.5373 | J80: 0.4548 | K80: 0.0825
A81: 1GCNKNEHXHZ250107 | B81: 2023 CHEVROLET SILVERADO 2WD GAS | C81: 2023 FORD F-150 LIGHTNING 4WD BEV | D81: 1 | E81: 52691.804 | F81: 49222.478 | G81: 3469.326 | H81: 0.06584185275 | I81: 0.6273 | J81: 0.586 | K81: 0.0413
A82: 1GCNKNEHXHZ250108 | B82: 2023 CHEVROLET SILVERADO 2WD GAS | C82: 2023 FORD F-150 LIGHTNING 4WD BEV | D82: 1 | E82: 52691.804 | F82: 49222.478 | G82: 3469.326 | H82: 0.06584185275 | I82: 0.6273 | J82: 0.586 | K82: 0.0413
A83: 1GCNKNEHXHZ250109 | B83: 2023 CHEVROLET SILVERADO 2WD GAS | C83: 2023 FORD F-150 LIGHTNING 4WD BEV | D83: 1 | E83: 52691.804 | F83: 49222.478 | G83: 3469.326 | H83: 0.06584185275 | I83: 0.6273 | J83: 0.586 | K83: 0.0413
A84: 1GCNKNEHXHZ250110 | B84: 2023 CHEVROLET SILVERADO 2WD GAS | C84: 2023 FORD F-150 LIGHTNING 4WD BEV | D84: 1 | E84: 52691.804 | F84: 49222.478 | G84: 3469.326 | H84: 0.06584185275 | I84: 0.6273 | J84: 0.586 | K84: 0.0413
A85: 1GCNKNEHXHZ250111 | B85: 2023 CHEVROLET SILVERADO 2WD GAS | C85: 2023 FORD F-150 LIGHTNING 4WD BEV | D85: 1 | E85: 52691.804 | F85: 49222.478 | G85: 3469.326 | H85: 0.06584185275 | I85: 0.6273 | J85: 0.586 | K85: 0.0413
A86: 1GCNKNEHXHZ250112 | B86: 2023 CHEVROLET SILVERADO 2WD GAS | C86: 2023 FORD F-150 LIGHTNING 4WD BEV | D86: 1 | E86: 52691.804 | F86: 49222.478 | G86: 3469.326 | H86: 0.06584185275 | I86: 0.6273 | J86: 0.586 | K86: 0.0413
A87: 1GCNKNEHXHZ250113 | B87: 2023 CHEVROLET SILVERADO 2WD GAS | C87: 2023 FORD F-150 LIGHTNING 4WD BEV | D87: 1 | E87: 52691.804 | F87: 49222.478 | G87: 3469.326 | H87: 0.06584185275 | I87: 0.6273 | J87: 0.586 | K87: 0.0413
A88: 1GCNKNEHXHZ250114 | B88: 2023 CHEVROLET SILVERADO 2WD GAS | C88: 2023 FORD F-150 LIGHTNING 4WD BEV | D88: 1 | E88: 52691.804 | F88: 49222.478 | G88: 3469.326 | H88: 0.06584185275 | I88: 0.6273 | J88: 0.586 | K88: 0.0413
A89: FORD RANGER
A90: 1FTYR10V5XTA93103 | B90: 2024 FORD RANGER 2WD GAS | C90: 2023 FORD F-150 LIGHTNING 4WD BEV | D90: 1 | E90: 54085.7813 | F90: 53457.7382 | G90: 628.0431 | H90: 0.01161198165 | I90: 0.5151 | J90: 0.5091 | K90: 0.006
A91: 1FTYR14V43TA39100 | B91: 2024 FORD RANGER 2WD GAS | C91: 2023 FORD F-150 LIGHTNING 4WD BEV | D91: 1 | E91: 54085.7813 | F91: 53457.7382 | G91: 628.0431 | H91: 0.01161198165 | I91: 0.5151 | J91: 0.5091 | K91: 0.006
A92: Minivan
A93: DODGE GRAND CARAVAN
A94: 2C4RDGBG9KR701000 | B94: 2024 CHRYSLER PACIFICA GAS | C94: 2024 CHRYSLER PACIFICA HYBRID PHEV | D94: 1 | E94: 50565.2464 | F94: 45313.4472 | G94: 5251.7992 | H94: 0.1038618335 | I94: 0.602 | J94: 0.5394 | K94: 0.0626
A95: 2C4RDGBG9KR701001 | B95: 2024 CHRYSLER PACIFICA GAS | C95: 2024 CHRYSLER PACIFICA HYBRID PHEV | D95: 1 | E95: 50565.2464 | F95: 45313.4472 | G95: 5251.7992 | H95: 0.1038618335 | I95: 0.602 | J95: 0.5394 | K95: 0.0626
A96: 2C4RDGBG9KR701002 | B96: 2024 CHRYSLER PACIFICA GAS | C96: 2024 CHRYSLER PACIFICA HYBRID PHEV | D96: 1 | E96: 50565.2464 | F96: 45313.4472 | G96: 5251.7992 | H96: 0.1038618335 | I96: 0.602 | J96: 0.5394 | K96: 0.0626
A97: 2C4RDGBG9KR701003 | B97: 2024 CHRYSLER PACIFICA GAS | C97: 2024 CHRYSLER PACIFICA HYBRID PHEV | D97: 1 | E97: 50565.2464 | F97: 45313.4472 | G97: 5251.7992 | H97: 0.1038618335 | I97: 0.602 | J97: 0.5394 | K97: 0.0626
A98: 2C4RDGBG9KR701004 | B98: 2024 CHRYSLER PACIFICA GAS | C98: 2024 CHRYSLER PACIFICA HYBRID PHEV | D98: 1 | E98: 50565.2464 | F98: 45313.4472 | G98: 5251.7992 | H98: 0.1038618335 | I98: 0.602 | J98: 0.5394 | K98: 0.0626
A99: 2C4RDGBG9KR701005 | B99: 2024 CHRYSLER PACIFICA GAS | C99: 2024 CHRYSLER PACIFICA HYBRID PHEV | D99: 1 | E99: 50565.2464 | F99: 45313.4472 | G99: 5251.7992 | H99: 0.1038618335 | I99: 0.602 | J99: 0.5394 | K99: 0.0626
A100: 2C4RDGBG9KR701006 | B100: 2024 CHRYSLER PACIFICA GAS | C100: 2024 CHRYSLER PACIFICA HYBRID PHEV | D100: 1 | E100: 50565.2464 | F100: 45313.4472 | G100: 5251.7992 | H100: 0.1038618335 | I100: 0.602 | J100: 0.5394 | K100: 0.0626
A101: 2C4RDGBG9KR701007 | B101: 2024 CHRYSLER PACIFICA GAS | C101: 2024 CHRYSLER PACIFICA HYBRID PHEV | D101: 1 | E101: 50565.2464 | F101: 45313.4472 | G101: 5251.7992 | H101: 0.1038618335 | I101: 0.602 | J101: 0.5394 | K101: 0.0626
A102: 2C4RDGBG9KR701008 | B102: 2024 CHRYSLER PACIFICA GAS | C102: 2024 CHRYSLER PACIFICA HYBRID PHEV | D102: 1 | E102: 50565.2464 | F102: 45313.4472 | G102: 5251.7992 | H102: 0.1038618335 | I102: 0.602 | J102: 0.5394 | K102: 0.0626
A103: 2C4RDGBG9KR701009 | B103: 2024 CHRYSLER PACIFICA GAS | C103: 2024 CHRYSLER PACIFICA HYBRID PHEV | D103: 1 | E103: 50565.2464 | F103: 45313.4472 | G103: 5251.7992 | H103: 0.1038618335 | I103: 0.602 | J103: 0.5394 | K103: 0.0626
A104: 2C4RDGBG9KR701010 | B104: 2024 CHRYSLER PACIFICA GAS | C104: 2024 CHRYSLER PACIFICA HYBRID PHEV | D104: 1 | E104: 50565.2464 | F104: 45313.4472 | G104: 5251.7992 | H104: 0.1038618335 | I104: 0.602 | J104: 0.5394 | K104: 0.0626
A105: 2C4RDGBG9KR701011 | B105: 2024 CHRYSLER PACIFICA GAS | C105: 2024 CHRYSLER PACIFICA HYBRID PHEV | D105: 1 | E105: 50565.2464 | F105: 45313.4472 | G105: 5251.7992 | H105: 0.1038618335 | I105: 0.602 | J105: 0.5394 | K105: 0.0626
A106: 2C4RDGBG9KR701012 | B106: 2024 CHRYSLER PACIFICA GAS | C106: 2024 CHRYSLER PACIFICA HYBRID PHEV | D106: 1 | E106: 50565.2464 | F106: 45313.4472 | G106: 5251.7992 | H106: 0.1038618335 | I106: 0.602 | J106: 0.5394 | K106: 0.0626
A107: SUV/MPV
A108: FORD EXPLORER
A109: 1FM5K8FW5LGB60000 | B109: 2023 FORD EXPLORER RWD GAS | C109: 2024 KIA EV9 STANDARD RANGE RWD BEV | D109: 1 | E109: 61355.7176 | F109: 60535.793 | G109: 819.9246 | H109: 0.01336345873 | I109: 0.5113 | J109: 0.5045 | K109: 0.0068
A110: 1FM5K8FW5LGB60001 | B110: 2023 FORD EXPLORER RWD GAS | C110: 2024 KIA EV9 STANDARD RANGE RWD BEV | D110: 1 | E110: 61355.7176 | F110: 60535.793 | G110: 819.9246 | H110: 0.01336345873 | I110: 0.5113 | J110: 0.5045 | K110: 0.0068
A111: 1FM5K8FW5LGB60002 | B111: 2023 FORD EXPLORER RWD GAS | C111: 2024 KIA EV9 STANDARD RANGE RWD BEV | D111: 1 | E111: 61355.7176 | F111: 60535.793 | G111: 819.9246 | H111: 0.01336345873 | I111: 0.5113 | J111: 0.5045 | K111: 0.0068
A112: 1FM5K8FW5LGB60003 | B112: 2023 FORD EXPLORER RWD GAS | C112: 2024 KIA EV9 STANDARD RANGE RWD BEV | D112: 1 | E112: 61355.7176 | F112: 60535.793 | G112: 819.9246 | H112: 0.01336345873 | I112: 0.5113 | J112: 0.5045 | K112: 0.0068
A113: 1FM5K8FW5LGB60004 | B113: 2023 FORD EXPLORER RWD GAS | C113: 2024 KIA EV9 STANDARD RANGE RWD BEV | D113: 1 | E113: 61355.7176 | F113: 60535.793 | G113: 819.9246 | H113: 0.01336345873 | I113: 0.5113 | J113: 0.5045 | K113: 0.0068
A114: 1FM5K8FW5LGB60005 | B114: 2023 FORD EXPLORER RWD GAS | C114: 2024 KIA EV9 STANDARD RANGE RWD BEV | D114: 1 | E114: 61355.7176 | F114: 60535.793 | G114: 819.9246 | H114: 0.01336345873 | I114: 0.5113 | J114: 0.5045 | K114: 0.0068
A115: 1FM5K8FW5LGB60006 | B115: 2023 FORD EXPLORER RWD GAS | C115: 2024 KIA EV9 STANDARD RANGE RWD BEV | D115: 1 | E115: 61355.7176 | F115: 60535.793 | G115: 819.9246 | H115: 0.01336345873 | I115: 0.5113 | J115: 0.5045 | K115: 0.0068
A116: 1FM5K8FW5LGB60007 | B116: 2023 FORD EXPLORER RWD GAS | C116: 2024 KIA EV9 STANDARD RANGE RWD BEV | D116: 1 | E116: 61355.7176 | F116: 60535.793 | G116: 819.9246 | H116: 0.01336345873 | I116: 0.5113 | J116: 0.5045 | K116: 0.0068
A117: 1FM5K8FW5LGB60008 | B117: 2023 FORD EXPLORER RWD GAS | C117: 2024 KIA EV9 STANDARD RANGE RWD BEV | D117: 1 | E117: 61355.7176 | F117: 60535.793 | G117: 819.9246 | H117: 0.01336345873 | I117: 0.5113 | J117: 0.5045 | K117: 0.0068
A118: 1FM5K8FW5LGB60009 | B118: 2023 FORD EXPLORER RWD GAS | C118: 2024 KIA EV9 STANDARD RANGE RWD BEV | D118: 1 | E118: 61355.7176 | F118: 60535.793 | G118: 819.9246 | H118: 0.01336345873 | I118: 0.5113 | J118: 0.5045 | K118: 0.0068
A119: 1FM5K8FW5LGB60010 | B119: 2023 FORD EXPLORER RWD GAS | C119: 2024 KIA EV9 STANDARD RANGE RWD BEV | D119: 1 | E119: 61355.7176 | F119: 60535.793 | G119: 819.9246 | H119: 0.01336345873 | I119: 0.5113 | J119: 0.5045 | K119: 0.0068
A120: 1FM5K8FW5LGB60011 | B120: 2023 FORD EXPLORER RWD GAS | C120: 2024 KIA EV9 STANDARD RANGE RWD BEV | D120: 1 | E120: 61355.7176 | F120: 60535.793 | G120: 819.9246 | H120: 0.01336345873 | I120: 0.5113 | J120: 0.5045 | K120: 0.0068
A121: 1FM5K8FW5LGB60012 | B121: 2023 FORD EXPLORER RWD GAS | C121: 2024 KIA EV9 STANDARD RANGE RWD BEV | D121: 1 | E121: 61355.7176 | F121: 60535.793 | G121: 819.9246 | H121: 0.01336345873 | I121: 0.5113 | J121: 0.5045 | K121: 0.0068
A122: 1FM5K8FW5LGB60013 | B122: 2023 FORD EXPLORER RWD GAS | C122: 2024 KIA EV9 STANDARD RANGE RWD BEV | D122: 1 | E122: 61355.7176 | F122: 60535.793 | G122: 819.9246 | H122: 0.01336345873 | I122: 0.5113 | J122: 0.5045 | K122: 0.0068
A123: 1FM5K8FW5LGB60014 | B123: 2023 FORD EXPLORER RWD GAS | C123: 2024 KIA EV9 STANDARD RANGE RWD BEV | D123: 1 | E123: 61355.7176 | F123: 60535.793 | G123: 819.9246 | H123: 0.01336345873 | I123: 0.5113 | J123: 0.5045 | K123: 0.0068
A124: 1FM5K8FW5LGB60015 | B124: 2023 FORD EXPLORER RWD GAS | C124: 2024 KIA EV9 STANDARD RANGE RWD BEV | D124: 1 | E124: 61355.7176 | F124: 60535.793 | G124: 819.9246 | H124: 0.01336345873 | I124: 0.5113 | J124: 0.5045 | K124: 0.0068
A125: 1FM5K8FW5LGB60016 | B125: 2023 FORD EXPLORER RWD GAS | C125: 2024 KIA EV9 STANDARD RANGE RWD BEV | D125: 1 | E125: 61355.7176 | F125: 60535.793 | G125: 819.9246 | H125: 0.01336345873 | I125: 0.5113 | J125: 0.5045 | K125: 0.0068
A126: 1FM5K8FW5LGB60017 | B126: 2023 FORD EXPLORER RWD GAS | C126: 2024 KIA EV9 STANDARD RANGE RWD BEV | D126: 1 | E126: 61355.7176 | F126: 60535.793 | G126: 819.9246 | H126: 0.01336345873 | I126: 0.5113 | J126: 0.5045 | K126: 0.0068
A127: 1FM5K8FW5LGB60018 | B127: 2023 FORD EXPLORER RWD GAS | C127: 2024 KIA EV9 STANDARD RANGE RWD BEV | D127: 1 | E127: 61355.7176 | F127: 60535.793 | G127: 819.9246 | H127: 0.01336345873 | I127: 0.5113 | J127: 0.5045 | K127: 0.0068
A128: 1FM5K8FW5LGB60019 | B128: 2023 FORD EXPLORER RWD GAS | C128: 2024 KIA EV9 STANDARD RANGE RWD BEV | D128: 1 | E128: 61355.7176 | F128: 60535.793 | G128: 819.9246 | H128: 0.01336345873 | I128: 0.5113 | J128: 0.5045 | K128: 0.0068
A129: 1FM5K8FW5LGB60020 | B129: 2023 FORD EXPLORER RWD GAS | C129: 2024 KIA EV9 STANDARD RANGE RWD BEV | D129: 1 | E129: 61355.7176 | F129: 60535.793 | G129: 819.9246 | H129: 0.01336345873 | I129: 0.5113 | J129: 0.5045 | K129: 0.0068

Sheet Cost Breakdown (hidden)
A7: Original Fleet Vehicle | B7: Count | C7: Average Annual Vehicle Miles Traveled | D7: Average Expected Years of Use | E7: Replacement Vehicle | F7: Price/MSRP ($/Vehicle) | G7: Federal Tax Incentive | H7: State Incentive | I7: Depreciation Cost ($/Mile) | J7: Financing Cost ($/Mile) | K7: Fuel Cost ($/Mile) | L7: Maintenance Cost ($/Mile) | M7: Charging Infrastructure Cost ($/Mile) | N7: Taxes and Fees Cost ($/Mile) | O7: Carbon Cost ($/Mile) | P7: Total Cost ($/Mile)
A8: Heavy-Duty Vehicles (Class 7-8)
A9: Transit Bus
A10: GILLIG LOW FLOOR BUS
A11: Conventional | B11: 2 | C11: 15000 | D11: 7 | E11: 2024 NEW FLYER XCELSIOR 40' DIESEL | F11: 507000 | G11: 0 | H11: 0 | I11: 3.4263 | J11: 0 | K11: 1.1952 | L11: 0.2304 | M11: 0 | N11: 0.14 | P11: 5.7
A12: EV Alternative | B12: 2 | C12: 15000 | D12: 7 | E12: 2023 NEW FLYER XCELSIOR 40' BEV | F12: 1028000 | G12: 40000 | H12: 0 | I12: 6.5663 | J12: 0 | K12: 0.382 | L12: 0.1945 | M12: 0 | N12: 0.2839 | P12: 8.1347
A13: Medium Duty Vehicles (Class 3-6)
A14: Medium-Duty Pickup
A15: FORD F-250
A16: Conventional | B16: 16 | C16: 12000 | D16: 7 | E16: 2024 FORD F250 XL GAS | F16: 45000 | G16: 0 | H16: 0 | I16: 0.3801 | J16: 0 | K16: 0.3034 | L16: 0.2327 | M16: 0 | N16: 0.0155 | P16: 1.2858
A17: EV Alternative | B17: 16 | C17: 12000 | D17: 7 | E17: 2023 LIGHTNING SYSTEMS ZEV4 BEV | F17: 153000 | G17: 34500 | H17: 0 | I17: 0.8818 | J17: 0 | K17: 0.1819 | L17: 0.1644 | M17: 0 | N17: 0.0528 | P17: 1.6349
A18: Medium-Duty Straight Truck
A19: FORD E-450
A20: Conventional | B20: 2 | C20: 15000 | D20: 7 | E20: 2025 FORD E450 GAS | F20: 40000 | G20: 0 | H20: 0 | I20: 0.2703 | J20: 0 | K20: 0.9527 | L20: 0.2327 | M20: 0 | N20: 0.011 | P20: 1.75
A21: EV Alternative | B21: 2 | C21: 15000 | D21: 7 | E21: 2023 PHOENIX MOTORCARS FORD E-450 BEV | F21: 190000 | G21: 34500 | H21: 0 | I21: 0.9555 | J21: 0 | K21: 0.1895 | L21: 0.1644 | M21: 0 | N21: 0.0525 | P21: 1.645
A22: FORD F-650
A23: Conventional | B23: 1 | C23: 15000 | D23: 7 | E23: 2025 FORD F650 DIESEL | F23: 79000 | G23: 0 | H23: 0 | I23: 0.5339 | J23: 0 | K23: 0.9151 | L23: 0.2327 | M23: 0 | N23: 0.0218 | P23: 1.9867
A24: EV Alternative | B24: 1 | C24: 15000 | D24: 7 | E24: 2023 ROUSH FORD F-650 BEV | F24: 266000 | G24: 34500 | H24: 0 | I24: 1.4691 | J24: 0 | K24: 0.272 | L24: 0.1644 | M24: 0 | N24: 0.0735 | P24: 2.2621
A25: INTERNATIONAL 4700
A26: Conventional | B26: 10 | C26: 15000 | D26: 8 | E26: 2025 FORD E450 GAS | F26: 40000 | G26: 0 | H26: 0 | I26: 0.2511 | J26: 0 | K26: 0.9594 | L26: 0.2411 | M26: 0 | N26: 0.0097 | P26: 1.7473
A27: EV Alternative | B27: 10 | C27: 15000 | D27: 8 | E27: 2023 PHOENIX MOTORCARS FORD E-450 BEV | F27: 190000 | G27: 34500 | H27: 0 | I27: 0.905 | J27: 0 | K27: 0.1893 | L27: 0.1703 | M27: 0 | N27: 0.0459 | P27: 1.5967
A28: Passenger Vehicles (Light-Duty)
A29: Car
A30: FORD TAURUS
A31: Conventional | B31: 11 | C31: 12000 | D31: 8 | E31: 2023 CHEVROLET MALIBU GAS | F31: 24700 | G31: 0 | H31: 0 | I31: 0.1803 | J31: 0 | K31: 0.132 | L31: 0.096 | M31: 0 | N31: 0.0075 | P31: 0.5224
A32: EV Alternative | B32: 11 | C32: 12000 | D32: 8 | E32: 2023 FORD MUSTANG MACH-E RWD LFP BEV | F32: 39895 | G32: 7500 | H32: 0 | I32: 0.2201 | J32: 0 | K32: 0.0655 | L32: 0.048 | M32: 0 | N32: 0.0121 | P32: 0.4524
A33: TOYOTA COROLLA
A34: Conventional | B34: 5 | C34: 15000 | D34: 7 | E34: 2024 TOYOTA COROLLA GAS | F34: 21900 | G34: 0 | H34: 0 | I34: 0.1476 | J34: 0 | K34: 0.1111 | L34: 0.0926 | M34: 0 | N34: 0.006 | P34: 0.4418
A35: EV Alternative | B35: 5 | C35: 15000 | D35: 7 | E35: 2023 TESLA MODEL 3 RWD BEV | F35: 42990 | G35: 7500 | H35: 0 | I35: 0.216 | J35: 0 | K35: 0.0502 | L35: 0.0463 | M35: 0 | N35: 0.0119 | P35: 0.4089
A36: Light Pickup
A37: CHEVROLET COLORADO
A38: Conventional | B38: 1 | C38: 15000 | D38: 7 | E38: 2023 CHEVROLET SILVERADO 2WD GAS | F38: 36300 | G38: 0 | H38: 0 | I38: 0.1673 | J38: 0 | K38: 0.2121 | L38: 0.0926 | M38: 0 | N38: 0.01 | P38: 0.5666
A39: EV Alternative | B39: 1 | C39: 15000 | D39: 7 | E39: 2023 FORD F-150 LIGHTNING 4WD BEV | F39: 49995 | G39: 7500 | H39: 0 | I39: 0.2671 | J39: 0 | K39: 0.0971 | L39: 0.0463 | M39: 0 | N39: 0.0138 | P39: 0.5088
A40: CHEVROLET S-10 PICKUP
A41: Conventional | B41: 1 | C41: 15000 | D41: 7 | E41: 2023 CHEVROLET SILVERADO 2WD GAS | F41: 36300 | G41: 0 | H41: 0 | I41: 0.1673 | J41: 0 | K41: 0.2121 | L41: 0.0926 | M41: 0 | N41: 0.01 | P41: 0.5666
A42: EV Alternative | B42: 1 | C42: 15000 | D42: 7 | E42: 2023 FORD F-150 LIGHTNING 4WD BEV | F42: 49995 | G42: 7500 | H42: 0 | I42: 0.2671 | J42: 0 | K42: 0.0971 | L42: 0.0463 | M42: 0 | N42: 0.0138 | P42: 0.5088
A43: CHEVROLET SILVERADO
A44: Conventional | B44: 15 | C44: 13400 | D44: 8.4 | E44: 2023 CHEVROLET SILVERADO 2WD GAS | F44: 36300 | G44: 0 | H44: 0 | I44: 0.1809666667 | J44: 0 | K44: 0.21448 | L44: 0.09670666667 | M44: 0 | N44: 0.009933333333 | P44: 0.5991533333
A45: EV Alternative | B45: 15 | C45: 13400 | D45: 8.4 | E45: 2023 FORD F-150 LIGHTNING 4WD BEV | F45: 49995 | G45: 7500 | H45: 0 | I45: 0.2721866667 | J45: 0 | K45: 0.09700666667 | L45: 0.04835333333 | M45: 0 | N45: 0.01375333333 | P45: 0.5282666667
A46: FORD RANGER
A47: Conventional | B47: 2 | C47: 15000 | D47: 7 | E47: 2024 FORD RANGER 2WD GAS | F47: 32565 | G47: 0 | H47: 0 | I47: 0.1629 | J47: 0 | K47: 0.1743 | L47: 0.0926 | M47: 0 | N47: 0.009 | P47: 0.5234
A48: EV Alternative | B48: 2 | C48: 15000 | D48: 7 | E48: 2023 FORD F-150 LIGHTNING 4WD BEV | F48: 49995 | G48: 7500 | H48: 0 | I48: 0.2671 | J48: 0 | K48: 0.0971 | L48: 0.0463 | M48: 0 | N48: 0.0138 | P48: 0.5088
A49: Minivan
A50: DODGE GRAND CARAVAN
A51: Conventional | B51: 13 | C51: 12000 | D51: 7 | E51: 2024 CHRYSLER PACIFICA GAS | F51: 38425 | G51: 0 | H51: 0 | I51: 0.21 | J51: 0 | K51: 0.1776 | L51: 0.0926 | M51: 0 | N51: 0.0133 | P51: 0.5991
A52: EV Alternative | B52: 13 | C52: 12000 | D52: 7 | E52: 2024 CHRYSLER PACIFICA HYBRID PHEV | F52: 52495 | G52: 7500 | H52: 0 | I52: 0.2342 | J52: 0 | K52: 0.0822 | L52: 0.081 | M52: 0 | N52: 0.0181 | P52: 0.5212
A53: SUV/MPV
A54: FORD EXPLORER
A55: Conventional | B55: 21 | C55: 15000 | D55: 8 | E55: 2023 FORD EXPLORER RWD GAS | F55: 36760 | G55: 0 | H55: 0 | I55: 0.1626 | J55: 0 | K55: 0.1679 | L55: 0.096 | M55: 0 | N55: 0.0089 | P55: 0.5207
A56: EV Alternative | B56: 21 | C56: 15000 | D56: 8 | E56: 2024 KIA EV9 STANDARD RANGE RWD BEV | F56: 54900 | G56: 7500 | H56: 0 | I56: 0.284 | J56: 0 | K56: 0.0756 | L56: 0.048 | M56: 0 | N56: 0.0133 | P56: 0.5063

Sheet Charging Needs (hidden)
A33: Include Cost of Charging Infrastructure? | B33: Yes
A35: Location, Charging Level | B35: EV Savings | C35: Cost Parity | D35: EV Costs | E35: Total Ports | F35: Average of Charging Equipment Cost ($/Station) | G35: Total Upfront Infrastructure Costs | H35: Average of Maintenance Cost ($/Station/Year) | I35: Total Annual Operating Costs
A36: Location 1
A37: 30A L2 | C37: 8 | D37: 7 | E37: 15 | F37: 3286 | G37: 49290 | H37: 99 | I37: 1485
A38: 50kW DCFC | D38: 2 | E38: 2 | F38: 69374 | G38: 138748 | H38: 2081 | I38: 4162
A39: 80A L2 | D39: 3 | E39: 3 | F39: 23769 | G39: 71307 | H39: 713 | I39: 2139
A40: Location 2
A41: 30A L2 | B41: 7 | C41: 5 | D41: 7 | E41: 19 | F41: 3286 | G41: 62434 | H41: 99 | I41: 1881
A42: Location 3
A43: 30A L2 | C43: 1 | D43: 22 | E43: 23 | F43: 3286 | G43: 75578 | H43: 99 | I43: 2277
A44: 48A L2 | D44: 16 | E44: 16 | F44: 6107 | G44: 97712 | H44: 183 | I44: 2928
A45: 80A L2 | D45: 10 | E45: 10 | F45: 23769 | G45: 237690 | H45: 713 | I45: 7130
A46: Location 4
A47: 30A L2 | C47: 12 | E47: 12 | F47: 3286 | G47: 39432 | H47: 99 | I47: 1188
A48: Grand Total | B48: 7 | C48: 26 | D48: 67 | E48: 100 | F48: 7721.91 | G48: 772191 | H48: 231.9 | I48: 23190

Sheet Emissions (hidden)
A8: Vehicle GVWR and Use Case | B8: EV Average CO2 Emissions (Tons/Vehicle/Year) | C8: ICE Average CO2 Emissions (Tons/Vehicle/Year) | D8: EV Average CO2 Emissions Reductions (Tons/Vehicle/Year) | E8: EV Average NOX Emissions (Tons/Vehicle/Year) | F8: ICE Average NOX Emissions (Tons/Vehicle/Year) | G8: EV Average NOX Emissions Reductions (Tons/Vehicle/Year) | H8: EV Average PM2.5 Emissions (Tons/Vehicle/Year) | I8: ICE Average PM2.5 Emissions (Tons/Vehicle/Year) | J8: EV Average PM2.5 Emissions Reductions (Tons/Vehicle/Year)
A9: Heavy-Duty Vehicles (Class 7-8)
A10: Transit Bus
A11: GILLIG LOW FLOOR BUS | B11: 10.72639249 | C11: 54.74742597 | D11: 44.02103348 | E11: 0.003625932024 | F11: 0.1304098957 | G11: 0.1267839636 | H11: 0.0007482729421 | I11: 0.002223178221 | J11: 0.001474905279
A12: Medium Duty Vehicles (Class 3-6)
A13: Medium-Duty Pickup
A14: FORD F-250 | B14: 4.087252049 | C14: 11.13307212 | D14: 7.045820074 | E14: 0.001381647941 | F14: 0.00979123229 | G14: 0.008409584349 | H14: 0.0002851266275 | I14: 0.0002925767506 | J14: 7.450123054e-06
A15: Medium-Duty Straight Truck
A16: FORD E-450 | B16: 5.321882036 | C16: 43.69865266 | D16: 38.37677062 | E16: 0.001799000225 | F16: 0.03843176925 | G16: 0.03663276903 | H16: 0.0003712543927 | I16: 0.001148399081 | J16: 0.0007771446886
A17: FORD F-650 | B17: 7.63849162 | C17: 41.97503991 | D17: 34.33654829 | E17: 0.002582103108 | F17: 0.03691589901 | G17: 0.0343337959 | H17: 0.0005328610345 | I17: 0.001103102598 | J17: 0.0005702415633
A18: INTERNATIONAL 4700 | B18: 5.321882036 | C18: 43.69865266 | D18: 38.37677062 | E18: 0.001799000225 | F18: 0.03843176925 | G18: 0.03663276903 | H18: 0.0003712543927 | I18: 0.001148399081 | J18: 0.0007771446886
A19: Passenger Vehicles (Light-Duty)
A20: Car
A21: FORD TAURUS | B21: 1.473905308 | C21: 4.884735582 | D21: 3.410830274 | E21: 0.0004982365193 | F21: 0.003325121692 | G21: 0.002826885173 | H21: 0.0001028196071 | I21: 0.0001792210086 | J21: 7.640140151e-05
A22: TOYOTA COROLLA | B22: 1.40961009 | C22: 5.175279872 | D22: 3.765669782 | E22: 0.0004765022698 | F22: 0.003522900078 | G22: 0.003046397808 | H22: 9.833437389e-05 | I22: 0.0001898810822 | J22: 9.154670831e-05
A23: Light Pickup
A24: CHEVROLET COLORADO | B24: 2.725957863 | C24: 9.882941979 | D24: 7.156984116 | E24: 0.0009214782998 | F24: 0.006727484877 | G24: 0.005806006577 | H24: 0.0001901627702 | I24: 0.0003626052629 | J24: 0.0001724424926
A25: CHEVROLET S-10 PICKUP | B25: 2.725957863 | C25: 9.882941979 | D25: 7.156984116 | E25: 0.0009214782998 | F25: 0.006727484877 | G25: 0.005806006577 | H25: 0.0001901627702 | I25: 0.0003626052629 | J25: 0.0001724424926
A26: CHEVROLET SILVERADO | B26: 2.435189024 | C26: 8.828761501 | D26: 6.393572477 | E26: 0.0008231872811 | F26: 0.00600988649 | G26: 0.005186699209 | H26: 0.0001698787414 | I26: 0.0003239273682 | J26: 0.0001540486267
A27: FORD RANGER | B27: 2.725957863 | C27: 8.120483993 | D27: 5.39452613 | E27: 0.0009214782998 | F27: 0.005527750074 | G27: 0.004606271774 | H27: 0.0001901627702 | I27: 0.0002979406576 | J27: 0.0001077778874
A28: Minivan
A29: DODGE GRAND CARAVAN | B29: 1.900217584 | C29: 6.61815761 | D29: 4.717940026 | E29: 0.0006879750036 | F29: 0.00450509123 | G29: 0.003817116226 | H29: 0.0001281557858 | I29: 0.0002428202842 | J29: 0.0001146644984
A30: SUV/MPV
A31: FORD EXPLORER | B31: 2.126410572 | C31: 7.76608787 | D31: 5.639677298 | E31: 0.0007188083224 | F31: 0.005286506671 | G31: 0.004567698348 | H31: 0.0001483383623 | I31: 0.0002849378595 | J31: 0.0001365994973
A32: Grand Total | B32: 2.984000201 | C32: 13.51153537 | D32: 10.52753517 | E32: 0.001014638222 | F32: 0.0125400907 | G32: 0.01152545248 | H32: 0.0002075913624 | I32: 0.0004225267364 | J32: 0.000214935374

Sheet Report (hidden)
B2: Analysis Results
B5: Fleet Summary
B7: ='Report Parameters & Pivots'!C10 -> Overall, there are 69 light-duty vehicles in the fleet, making up 69 percent of the fleet. Medium-duty vehicles make up 29 percent of the fleet (29 vehicles). Heavy-duty vehicles make up 2 percent of the fleet (2 vehicles).
B29: Methodology
B31: This analysis was conducted using a total cost of ownership (TCO) approach to project the cost of all vehicles over their expected useful lives. TCO includes vehicle purchase price, fuel, maintenance cost over the life of the vehicle, as well as charging infrastructure cost, if it was included in the analysis. To project the value of each vehicle, the analysis uses the depreciated value of the vehicle at the end of its useful life. Annual depreciation is calculated using the purchase price, range, and annual mileage for each vehicle and relies on a formula developed using real world used vehicle sales data. More information and documentation can be found at https://atlaspolicy.com/dashboard-for-rapid-vehicle-electrification-drve/ or by contacting DRVE@atlaspolicy.com.
B33: Total Cost of Ownership
B35: The charts below show the average total cost of ownership on a cost-per-mile basis across each vehicles useful life. Note that these charts present average costs, and that the total cost of ownership for individual vehicles will vary significantly depending on the modeled replacement vehicles, annual vehicle miles traveled, and expected years of use. Figure 2 shows the average across each vehicle category, while figures 3 and 4 show the average across use cases for passenger vehicles and medium/heavy-duty vehicles.
B91: Figure 5 shows the comparative average total cost of ownership per mile for each use case.
B93: Figure 5: Average Cost-Per-Mile by Use Case
C94: Average Conventional Cost per Mile | D94: Electric Average Cost per Mile | E94: Average EV Savings per Mile
B95: Car | C95: 0.480375 | D95: 0.43813125 | E95: 0.04224375
B96: Light Pickup | C96: 0.5751947368 | D96: 0.5214736842 | E96: 0.05372105263
B97: Medium-Duty Pickup | C97: 1.2367 | D97: 1.6493 | E97: -0.4126
B98: Medium-Duty Straight Truck | C98: 1.654592308 | D98: 1.6622 | E98: -0.007607692308
B99: Minivan | C99: 0.602 | D99: 0.5394 | E99: 0.0626
B100: SUV/MPV | C100: 0.5113 | D100: 0.5045 | E100: 0.0068
B101: Transit Bus | C101: 5.7168 | D101: 8.404 | E101: -2.6872
B102: Average | C102: 0.899085 | D102: 0.993302 | E102: -0.094217
B105: Top 10 EV Models to Procure
B107: Figure 6 shows the top five most cost-effective light-duty EVs for the fleet to procure and Figure 7 shows the top five most cost-effective medium- and heavy-duty EVs.
B110: Fleet Vehicle GVWR Category | C110: Passenger Vehicles (Light-Duty)
B111: Figure 6: Top 5 Passenger Vehicles to Procure
B112: ICE Replacement | C112: Avg Percent Savings from EVs | D112: EV Alternative | E112: Vehicles
B113: CHEVROLET SILVERADO | C113: 0.1159570666 | D113: 2023 FORD F-150 LIGHTNING 4WD BEV | E113: 15
B114: FORD TAURUS | C114: 0.1067985675 | D114: 2023 FORD MUSTANG MACH-E RWD LFP BEV | E114: 11
B115: DODGE GRAND CARAVAN | C115: 0.1038618335 | D115: 2024 CHRYSLER PACIFICA HYBRID PHEV | E115: 13
B116: CHEVROLET S-10 PICKUP | C116: 0.09002420127 | D116: 2023 FORD F-150 LIGHTNING 4WD BEV | E116: 1
B117: CHEVROLET COLORADO | C117: 0.09002420127 | D117: 2023 FORD F-150 LIGHTNING 4WD BEV | E117: 1
B119: Fleet Vehicle GVWR Category | C119: (Multiple Items)
B120: Figure 7: Top 5 Medium and Heavy-Duty Vehicles to Procure
B121: ICE Replacement | C121: Avg Percent Savings from EVs | D121: EV Alternative | E121: Vehicles
B122: INTERNATIONAL 4700 | C122: 0.01992423843 | D122: 2023 PHOENIX MOTORCARS FORD E-450 BEV | E122: 10
B123: FORD E-450 | C123: -0.007981793609 | D123: 2023 PHOENIX MOTORCARS FORD E-450 BEV | E123: 2
B124: FORD F-650 | C124: -0.2088418957 | D124: 2023 ROUSH FORD F-650 BEV | E124: 1
B125: FORD F-250 | C125: -0.3336479788 | D125: 2023 LIGHTNING SYSTEMS ZEV4 BEV | E125: 16
B126: GILLIG LOW FLOOR BUS | C126: -0.4700642598 | D126: 2023 NEW FLYER XCELSIOR 40' BEV | E126: 2
B133: Top 100 Vehicles to Electrify
B135: Figure 8 shows the top 100 vehicles recommended for an EV replacement, based on the estimated percent savings for that vehicle compared to its conventional alternative. Please note that the DRVE tool does not take into account the required range, duty cycle, or other operational needs of individual vehicles. In addition to total cost of ownership, fleet managers should consider the vehicle's operational needs when selecting a replacement.
B137: Figure 8: Top 100 Fleet Vehicles to Electrify
B138: VIN | C138: EV Alternative | D138: Avg Percent Savings from EVs | E138: Rank
B139: 1GCNKNEHXHZ250102 | C139: 2023 FORD F-150 LIGHTNING 4WD BEV | D139: 0.1534055803 | E139: 1
B140: 1GCNKNEHXHZ250104 | C140: 2023 FORD F-150 LIGHTNING 4WD BEV | D140: 0.1534055803 | E140: 2
B141: 1GCNKNEHXHZ250103 | C141: 2023 FORD F-150 LIGHTNING 4WD BEV | D141: 0.1534055803 | E141: 3
B142: 1GCNKNEHXHZ250100 | C142: 2023 FORD F-150 LIGHTNING 4WD BEV | D142: 0.1534055803 | E142: 4
B143: 1GCNKNEHXHZ250105 | C143: 2023 FORD F-150 LIGHTNING 4WD BEV | D143: 0.1534055803 | E143: 5
B144: 1GCNKNEHXHZ250101 | C144: 2023 FORD F-150 LIGHTNING 4WD BEV | D144: 0.1534055803 | E144: 6
B145: 1GCNKNEHXHZ250106 | C145: 2023 FORD F-150 LIGHTNING 4WD BEV | D145: 0.1534055803 | E145: 7
B146: 1FAFP53U05A267102 | C146: 2023 FORD MUSTANG MACH-E RWD LFP BEV | D146: 0.1067985675 | E146: 8
B147: 1FAFP53U05A267100 | C147: 2023 FORD MUSTANG MACH-E RWD LFP BEV | D147: 0.1067985675 | E147: 9
B148: 1FAFP53U05A267104 | C148: 2023 FORD MUSTANG MACH-E RWD LFP BEV | D148: 0.1067985675 | E148: 10
B149: 1FAFP53U05A267107 | C149: 2023 FORD MUSTANG MACH-E RWD LFP BEV | D149: 0.1067985675 | E149: 11
B150: 1FAFP53U05A267101 | C150: 2023 FORD MUSTANG MACH-E RWD LFP BEV | D150: 0.1067985675 | E150: 12
B151: 1FAFP53U05A267108 | C151: 2023 FORD MUSTANG MACH-E RWD LFP BEV | D151: 0.1067985675 | E151: 13
B152: 1FAFP53U05A267103 | C152: 2023 FORD MUSTANG MACH-E RWD LFP BEV | D152: 0.1067985675 | E152: 14
B153: 1FAFP53U05A267109 | C153: 2023 FORD MUSTANG MACH-E RWD LFP BEV | D153: 0.1067985675 | E153: 15
B154: 1FAFP53U05A267105 | C154: 2023 FORD MUSTANG MACH-E RWD LFP BEV | D154: 0.1067985675 | E154: 16
B155: 1FAFP53U05A267110 | C155: 2023 FORD MUSTANG MACH-E RWD LFP BEV | D155: 0.1067985675 | E155: 17
B156: 1FAFP53U05A267106 | C156: 2023 FORD MUSTANG MACH-E RWD LFP BEV | D156: 0.1067985675 | E156: 18
B157: 2C4RDGBG9KR701005 | C157: 2024 CHRYSLER PACIFICA HYBRID PHEV | D157: 0.1038618335 | E157: 19
B158: 2C4RDGBG9KR701009 | C158: 2024 CHRYSLER PACIFICA HYBRID PHEV | D158: 0.1038618335 | E158: 20
B159: 2C4RDGBG9KR701007 | C159: 2024 CHRYSLER PACIFICA HYBRID PHEV | D159: 0.1038618335 | E159: 21
B160: 2C4RDGBG9KR701011 | C160: 2024 CHRYSLER PACIFICA HYBRID PHEV | D160: 0.1038618335 | E160: 22
B161: 2C4RDGBG9KR701004 | C161: 2024 CHRYSLER PACIFICA HYBRID PHEV | D161: 0.1038618335 | E161: 23
B162: 2C4RDGBG9KR701012 | C162: 2024 CHRYSLER PACIFICA HYBRID PHEV | D162: 0.1038618335 | E162: 24
B163: 2C4RDGBG9KR701006 | C163: 2024 CHRYSLER PACIFICA HYBRID PHEV | D163: 0.1038618335 | E163: 25
B164: 2C4RDGBG9KR701001 | C164: 2024 CHRYSLER PACIFICA HYBRID PHEV | D164: 0.1038618335 | E164: 26
B165: 2C4RDGBG9KR701008 | C165: 2024 CHRYSLER PACIFICA HYBRID PHEV | D165: 0.1038618335 | E165: 27
B166: 2C4RDGBG9KR701002 | C166: 2024 CHRYSLER PACIFICA HYBRID PHEV | D166: 0.1038618335 | E166: 28
B167: 2C4RDGBG9KR701010 | C167: 2024 CHRYSLER PACIFICA HYBRID PHEV | D167: 0.1038618335 | E167: 29
B168: 2C4RDGBG9KR701003 | C168: 2024 CHRYSLER PACIFICA HYBRID PHEV | D168: 0.1038618335 | E168: 30
B169: 2C4RDGBG9KR701000 | C169: 2024 CHRYSLER PACIFICA HYBRID PHEV | D169: 0.1038618335 | E169: 31
B170: 1GCGTBEN1L1185102 | C170: 2023 FORD F-150 LIGHTNING 4WD BEV | D170: 0.09002420127 | E170: 32
B171: 1GCCS145728164101 | C171: 2023 FORD F-150 LIGHTNING 4WD BEV | D171: 0.09002420127 | E171: 33
B172: 1GCNKNEHXHZ250114 | C172: 2023 FORD F-150 LIGHTNING 4WD BEV | D172: 0.06584185275 | E172: 34
B173: 1GCNKNEHXHZ250111 | C173: 2023 FORD F-150 LIGHTNING 4WD BEV | D173: 0.06584185275 | E173: 35
B174: 1GCNKNEHXHZ250108 | C174: 2023 FORD F-150 LIGHTNING 4WD BEV | D174: 0.06584185275 | E174: 36
B175: 1GCNKNEHXHZ250112 | C175: 2023 FORD F-150 LIGHTNING 4WD BEV | D175: 0.06584185275 | E175: 37
B176: 1GCNKNEHXHZ250107 | C176: 2023 FORD F-150 LIGHTNING 4WD BEV | D176: 0.06584185275 | E176: 38
B177: 1GCNKNEHXHZ250113 | C177: 2023 FORD F-150 LIGHTNING 4WD BEV | D177: 0.06584185275 | E177: 39
B178: 1GCNKNEHXHZ250110 | C178: 2023 FORD F-150 LIGHTNING 4WD BEV | D178: 0.06584185275 | E178: 40
B179: 1GCNKNEHXHZ250109 | C179: 2023 FORD F-150 LIGHTNING 4WD BEV | D179: 0.06584185275 | E179: 41
B180: 5YFEPRAE2LP021100 | C180: 2023 TESLA MODEL 3 RWD BEV | D180: 0.03879554511 | E180: 42
B181: 5YFEPRAE2LP023101 | C181: 2023 TESLA MODEL 3 RWD BEV | D181: 0.03879554511 | E181: 43
B182: 5YFEPRAE2LP025102 | C182: 2023 TESLA MODEL 3 RWD BEV | D182: 0.03879554511 | E182: 44
B183: 5YFEPRAE6LP021104 | C183: 2023 TESLA MODEL 3 RWD BEV | D183: 0.03879554511 | E183: 45
B184: 5YFEPRAE4LP022103 | C184: 2023 TESLA MODEL 3 RWD BEV | D184: 0.03879554511 | E184: 46
B185: 1HTSCAAM9WH538107 | C185: 2023 PHOENIX MOTORCARS FORD E-450 BEV | D185: 0.01992423843 | E185: 47
B186: 1HTSCAAM9WH538105 | C186: 2023 PHOENIX MOTORCARS FORD E-450 BEV | D186: 0.01992423843 | E186: 48
B187: 1HTSCAAM9WH538109 | C187: 2023 PHOENIX MOTORCARS FORD E-450 BEV | D187: 0.01992423843 | E187: 49
B188: 1HTSCAAM9WH538101 | C188: 2023 PHOENIX MOTORCARS FORD E-450 BEV | D188: 0.01992423843 | E188: 50
B189: 1HTSCAAM9WH538106 | C189: 2023 PHOENIX MOTORCARS FORD E-450 BEV | D189: 0.01992423843 | E189: 51
B190: 1HTSCAAM9WH538102 | C190: 2023 PHOENIX MOTORCARS FORD E-450 BEV | D190: 0.01992423843 | E190: 52
B191: 1HTSCAAM9WH538108 | C191: 2023 PHOENIX MOTORCARS FORD E-450 BEV | D191: 0.01992423843 | E191: 53
B192: 1HTSCAAM9WH538103 | C192: 2023 PHOENIX MOTORCARS FORD E-450 BEV | D192: 0.01992423843 | E192: 54
B193: 1HTSCAAM9WH538104 | C193: 2023 PHOENIX MOTORCARS FORD E-450 BEV | D193: 0.01992423843 | E193: 55
B194: 1HTSCAAM9WH538100 | C194: 2023 PHOENIX MOTORCARS FORD E-450 BEV | D194: 0.01992423843 | E194: 56
B195: 1FM5K8FW5LGB60000 | C195: 2024 KIA EV9 STANDARD RANGE RWD BEV | D195: 0.01336345873 | E195: 57
B196: 1FM5K8FW5LGB60013 | C196: 2024 KIA EV9 STANDARD RANGE RWD BEV | D196: 0.01336345873 | E196: 58
B197: 1FM5K8FW5LGB60018 | C197: 2024 KIA EV9 STANDARD RANGE RWD BEV | D197: 0.01336345873 | E197: 59
B198: 1FM5K8FW5LGB60003 | C198: 2024 KIA EV9 STANDARD RANGE RWD BEV | D198: 0.01336345873 | E198: 60
B199: 1FM5K8FW5LGB60015 | C199: 2024 KIA EV9 STANDARD RANGE RWD BEV | D199: 0.01336345873 | E199: 61
B200: 1FM5K8FW5LGB60004 | C200: 2024 KIA EV9 STANDARD RANGE RWD BEV | D200: 0.01336345873 | E200: 62
B201: 1FM5K8FW5LGB60016 | C201: 2024 KIA EV9 STANDARD RANGE RWD BEV | D201: 0.01336345873 | E201: 63
B202: 1FM5K8FW5LGB60005 | C202: 2024 KIA EV9 STANDARD RANGE RWD BEV | D202: 0.01336345873 | E202: 64
B203: 1FM5K8FW5LGB60020 | C203: 2024 KIA EV9 STANDARD RANGE RWD BEV | D203: 0.01336345873 | E203: 65
B204: 1FM5K8FW5LGB60006 | C204: 2024 KIA EV9 STANDARD RANGE RWD BEV | D204: 0.01336345873 | E204: 66
B205: 1FM5K8FW5LGB60014 | C205: 2024 KIA EV9 STANDARD RANGE RWD BEV | D205: 0.01336345873 | E205: 67
B206: 1FM5K8FW5LGB60007 | C206: 2024 KIA EV9 STANDARD RANGE RWD BEV | D206: 0.01336345873 | E206: 68
B207: 1FM5K8FW5LGB60002 | C207: 2024 KIA EV9 STANDARD RANGE RWD BEV | D207: 0.01336345873 | E207: 69
B208: 1FM5K8FW5LGB60008 | C208: 2024 KIA EV9 STANDARD RANGE RWD BEV | D208: 0.01336345873 | E208: 70
B209: 1FM5K8FW5LGB60001 | C209: 2024 KIA EV9 STANDARD RANGE RWD BEV | D209: 0.01336345873 | E209: 71
B210: 1FM5K8FW5LGB60009 | C210: 2024 KIA EV9 STANDARD RANGE RWD BEV | D210: 0.01336345873 | E210: 72
B211: 1FM5K8FW5LGB60017 | C211: 2024 KIA EV9 STANDARD RANGE RWD BEV | D211: 0.01336345873 | E211: 73
B212: 1FM5K8FW5LGB60010 | C212: 2024 KIA EV9 STANDARD RANGE RWD BEV | D212: 0.01336345873 | E212: 74
B213: 1FM5K8FW5LGB60019 | C213: 2024 KIA EV9 STANDARD RANGE RWD BEV | D213: 0.01336345873 | E213: 75
B214: 1FM5K8FW5LGB60011 | C214: 2024 KIA EV9 STANDARD RANGE RWD BEV | D214: 0.01336345873 | E214: 76
B215: 1FM5K8FW5LGB60012 | C215: 2024 KIA EV9 STANDARD RANGE RWD BEV | D215: 0.01336345873 | E215: 77
B216: 1FTYR14V43TA39100 | C216: 2023 FORD F-150 LIGHTNING 4WD BEV | D216: 0.01161198165 | E216: 78
B217: 1FTYR10V5XTA93103 | C217: 2023 FORD F-150 LIGHTNING 4WD BEV | D217: 0.01161198165 | E217: 79
B218: 1FDXE4FS2DDA07102 | C218: 2023 PHOENIX MOTORCARS FORD E-450 BEV | D218: -0.007981793609 | E218: 80
B219: 1FDXE4FS0DDA07101 | C219: 2023 PHOENIX MOTORCARS FORD E-450 BEV | D219: -0.007981793609 | E219: 81
B220: 1FDNF6AY5HDB03100 | C220: 2023 ROUSH FORD F-650 BEV | D220: -0.2088418957 | E220: 82
B221: 1FTNX21L94EC69105 | C221: 2023 LIGHTNING SYSTEMS ZEV4 BEV | D221: -0.3336479788 | E221: 83
B222: 1FTNX21L94EC69103 | C222: 2023 LIGHTNING SYSTEMS ZEV4 BEV | D222: -0.3336479788 | E222: 84
B223: 1FTNX21L94EC69109 | C223: 2023 LIGHTNING SYSTEMS ZEV4 BEV | D223: -0.3336479788 | E223: 85
B224: 1FTNX21L94EC69102 | C224: 2023 LIGHTNING SYSTEMS ZEV4 BEV | D224: -0.3336479788 | E224: 86
B225: 1FTNX21L94EC69115 | C225: 2023 LIGHTNING SYSTEMS ZEV4 BEV | D225: -0.3336479788 | E225: 87
B226: 1FTNX21L94EC69104 | C226: 2023 LIGHTNING SYSTEMS ZEV4 BEV | D226: -0.3336479788 | E226: 88
B227: 1FTNX21L94EC69106 | C227: 2023 LIGHTNING SYSTEMS ZEV4 BEV | D227: -0.3336479788 | E227: 89
B228: 1FTNX21L94EC69110 | C228: 2023 LIGHTNING SYSTEMS ZEV4 BEV | D228: -0.3336479788 | E228: 90
B229: 1FTNX21L94EC69107 | C229: 2023 LIGHTNING SYSTEMS ZEV4 BEV | D229: -0.3336479788 | E229: 91
B230: 1FTNX21L94EC69108 | C230: 2023 LIGHTNING SYSTEMS ZEV4 BEV | D230: -0.3336479788 | E230: 92
B231: 1FTNX21L94EC69100 | C231: 2023 LIGHTNING SYSTEMS ZEV4 BEV | D231: -0.3336479788 | E231: 93
B232: 1FTNX21L94EC69114 | C232: 2023 LIGHTNING SYSTEMS ZEV4 BEV | D232: -0.3336479788 | E232: 94
B233: 1FTNX21L94EC69101 | C233: 2023 LIGHTNING SYSTEMS ZEV4 BEV | D233: -0.3336479788 | E233: 95
B234: 1FTNX21L94EC69111 | C234: 2023 LIGHTNING SYSTEMS ZEV4 BEV | D234: -0.3336479788 | E234: 96
B235: 1FTNX21L94EC69113 | C235: 2023 LIGHTNING SYSTEMS ZEV4 BEV | D235: -0.3336479788 | E235: 97
B236: 1FTNX21L94EC69112 | C236: 2023 LIGHTNING SYSTEMS ZEV4 BEV | D236: -0.3336479788 | E236: 98
B237: 15GGD3013C1181123 | C237: 2023 NEW FLYER XCELSIOR 40' BEV | D237: -0.4700642598 | E237: 99
B238: 15GGD3015C1181155 | C238: 2023 NEW FLYER XCELSIOR 40' BEV | D238: -0.4700642598 | E238: 100

Sheet Environmental Model (hidden)
A1: Environmental Models - Dashboard for Rapid Vehicle Electrification
C3: =Base_V1_Type_Ex&" (Baseline)" -> 2024 CHRYSLER PACIFICA HYBRID PHEV (Baseline)
B4: ="Annual V" & LEFT(Constant_Distance_Metric,1) & "T" -> Annual VMT | C4: =Base_V1_VMT_Modeled -> 12000
B5: =IF(_Market="U.S.", DB_Vehicles[[#Headers],[Fuel Economy Gas/Diesel City (MPG)]], REMOVE___DB_Vehicles__Canada[[#Headers],[Fuel Consumption Gas/Diesel City (L/100 km)]]) -> Fuel Economy Gas/Diesel City (MPG) | C5: =IF(_Base_V1_Vehicle_Drivetrain <>"BEV", Base_V1_Fuel_Economy_Gas_City_Modeled, 0) -> 29
B6: =IF(_Market="U.S.", DB_Vehicles[[#Headers],[Fuel Economy Gas/Diesel Hwy (MPG)]], REMOVE___DB_Vehicles__Canada[[#Headers],[Fuel Consumption Gas/Diesel Hwy (L/100 km)]]) -> Fuel Economy Gas/Diesel Hwy (MPG) | C6: =IF(_Base_V1_Vehicle_Drivetrain<>"BEV",Base_V1_Fuel_Economy_Gas_Hwy_Modeled,0) -> 30
B7: =IF(_Market="U.S.", DB_Vehicles[[#Headers],[Fuel Economy Electric City (MPGe)]], REMOVE___DB_Vehicles__Canada[[#Headers],[Fuel Consumption Electric City (Le/100 km)]]) -> Fuel Economy Electric City (MPGe) | C7: =IF(_Base_V1_Vehicle_Drivetrain <> "ICE", Base_V1_Fuel_Economy_Electric_City_Modeled, 0) -> 87
B8: =IF(_Market="U.S.", DB_Vehicles[[#Headers],[Fuel Economy Electric Hwy (MPGe)]], REMOVE___DB_Vehicles__Canada[[#Headers],[Fuel Consumption Electric Hwy (Le/100 km)]]) -> Fuel Economy Electric Hwy (MPGe) | C8: =IF(_Base_V1_Vehicle_Drivetrain<>"ICE",Base_V1_Fuel_Economy_Electric_Hwy_Modeled,0) -> 77
B9: ="% of Annual " & Constant_Distance_Metric & "s on Gasoline/Diesel*" -> % of Annual Miles on Gasoline/Diesel* | C9: =Base_V1_Miles_Gas -> 0.02666666667
B10: ="% of Annual " & Constant_Distance_Metric & "s City Driving" -> % of Annual Miles City Driving | C10: =Base_V1_Miles_City_Modeled -> 0.55
B11: =Constant_Volume_Metric & "s of Gasoline/Diesel per Year" -> Gallons of Gasoline/Diesel per Year | C11: =IF(C5=0,0,(C4*C10*C9)/IF(_Market="U.S.", C5, 100/C5))+IF(C6=0,0,(C4*C9*(1-C10))/IF(_Market="U.S.", C6, 100/C6)) -> 10.86896552
B12: ="Well-to-Wheel Carbon Intensity of " & Constant_Volume_Metric & " of Gasoline/Diesel (" & Constant_Weight_Metric_Abbreviation & ")" -> Well-to-Wheel Carbon Intensity of Gallon of Gasoline/Diesel (lb) | C12: =(SUMIFS(DB_Gasoline_Diesel_Emissions[Emissions],DB_Gasoline_Diesel_Emissions[Key], "CO2 (g/MJ)"&_Market&"Well-to-Wheel"&_Base_V1_Vehicle_Vehicle_Class)*IF(Base_V1_Fuel_Type_Ex="Gasoline", Constant_Megajoule_Per_Gasoline_Volume, Constant_Megajoule_Per_Diesel_Volume))/Constant_Grams_Per_Weight -> 27.00820473
B13: kWh Electricity / Year | C13: =IF(C7=0,0,((C4*(1-C9)*C10)/IF(_Market="U.S.", C7, 100/C7)*Constant_kWh_Per_Gasoline_Volume))+IF(C8=0,0,((C4*(1-C9)*(1-C10))/IF(_Market="U.S.", C8, 100/C8)*Constant_kWh_Per_Gasoline_Volume)) -> 4788.730258
B14: =IF(_Market="U.S.", "eGrid Region", "Province") -> eGrid Region | C14: =IF(_Market="U.S.", eGrid_Region_Ex, Province_Ex) -> RFCE
B15: ="Well-to-Wheel Carbon Intensity of kWh (" & Constant_Weight_Metric_Abbreviation & ")**" -> Well-to-Wheel Carbon Intensity of kWh (lb)** | C15: =Constant_CO2_Intensity_Electricity -> 0.77202624
B16: =IF(_Market="U.S.", "Electrical Transmission Line Loss", "") -> Electrical Transmission Line Loss | C16: =IF(_Market="U.S.", VLOOKUP(eGrid_Region_Ex,DB_Electricity_Emissions[],COLUMN(DB_Electricity_Emissions[[#Headers],[Grid gross loss '[Estimated losses/(Total disposition - Direct use)']]])-COLUMN(DB_Electricity_Emissions[[#Headers],[eGRID subregion acronym]])+1,FALSE), "") -> 0.051
B17: ="Total Annual CO2 (" & Constant_Weight_Metric_Abbreviation & ")" -> Total Annual CO2 (lb) | C17: =(C11*C12)+(C13*(C15/(1-IF(_Market="U.S.", C16, 0)))) -> 4189.25769
B18: ="Well-to-Wheel CO2 (" & Constant_Weight_Metric_Abbreviation & "/" & Constant_Distance_Metric_Abbreviation & ")" -> Well-to-Wheel CO2 (lb/mi) | C18: =C17/C4 -> 0.3491048075
B19: Other Well-to-Wheel Emissions**
B20: ="NOx (mg/" & Constant_Distance_Metric_Abbreviation & ")" -> NOx (mg/mi) | C20: =((Constant_NOX_Intensity_Electricity*Base_V1_Electricity_Usage_Ex)+(SUMIFS(DB_Gasoline_Diesel_Emissions[Emissions],DB_Gasoline_Diesel_Emissions[Key],"NOx (mg/MJ)" &_Market&"Well-to-Wheel"&_Base_V1_Vehicle_Vehicle_Class)*Base_V1_Gas_Diesel_Usage_Ex*IF(Base_V1_Fuel_Type_Ex="Gasoline", Constant_Megajoule_Per_Gasoline_Volume, Constant_Megajoule_Per_Diesel_Volume)))/Base_V1_VMT_Modeled -> 57.3312503
B21: ="SOx (mg/" & Constant_Distance_Metric_Abbreviation & ")" -> SOx (mg/mi) | C21: =((Constant_SOX_Intensity_Electricity*Base_V1_Electricity_Usage_Ex)+(SUMIFS(DB_Gasoline_Diesel_Emissions[Emissions],DB_Gasoline_Diesel_Emissions[Key],"SOx (mg/MJ)"&_Market&"Well-to-Wheel"&_Base_V1_Vehicle_Vehicle_Class)*Base_V1_Gas_Diesel_Usage_Ex*IF(Base_V1_Fuel_Type_Ex="Gasoline", Constant_Megajoule_Per_Gasoline_Volume, Constant_Megajoule_Per_Diesel_Volume)))/Base_V1_VMT_Modeled -> 57.2861433
B22: ="VOC (mg/" & Constant_Distance_Metric_Abbreviation & ")" -> VOC (mg/mi) | C22: =IF(AND(Constant_VOC_Intensity_Electricity=0, Base_V1_Gas_Diesel_Usage_Ex=0),"Unknown",((Constant_VOC_Intensity_Electricity*Base_V1_Electricity_Usage_Ex)+(SUMIFS(DB_Gasoline_Diesel_Emissions[Emissions],DB_Gasoline_Diesel_Emissions[Key],"VOC (mg/MJ)"&_Market&"Well-to-Wheel"&_Base_V1_Vehicle_Vehicle_Class)*Base_V1_Gas_Diesel_Usage_Ex*IF(Base_V1_Fuel_Type_Ex="Gasoline", Constant_Megajoule_Per_Gasoline_Volume, Constant_Megajoule_Per_Diesel_Volume)))/Base_V1_VMT_Modeled) -> 10.21682114
B23: ="PM10 (mg/" & Constant_Distance_Metric_Abbreviation & ")" -> PM10 (mg/mi) | C23: =((Constant_PM10_Intensity_Electricity*Base_V1_Electricity_Usage_Ex)+(SUMIFS(DB_Gasoline_Diesel_Emissions[Emissions],DB_Gasoline_Diesel_Emissions[Key],"PM10 (mg/MJ)"&_Market&"Well-to-Wheel"&_Base_V1_Vehicle_Vehicle_Class)*Base_V1_Gas_Diesel_Usage_Ex*IF(Base_V1_Fuel_Type_Ex="Gasoline", Constant_Megajoule_Per_Gasoline_Volume, Constant_Megajoule_Per_Diesel_Volume)))/Base_V1_VMT_Modeled -> 13.18865287
B24: ="PM2.5 (mg/" & Constant_Distance_Metric_Abbreviation & ")" -> PM2.5 (mg/mi) | C24: =((Constant_PM25_Intensity_Electricity*Base_V1_Electricity_Usage_Ex)+(SUMIFS(DB_Gasoline_Diesel_Emissions[Emissions],DB_Gasoline_Diesel_Emissions[Key],"PM2.5 (mg/MJ)"&_Market&"Well-to-Wheel"&_Base_V1_Vehicle_Vehicle_Class)*Base_V1_Gas_Diesel_Usage_Ex*IF(Base_V1_Fuel_Type_Ex="Gasoline", Constant_Megajoule_Per_Gasoline_Volume, Constant_Megajoule_Per_Diesel_Volume)))/Base_V1_VMT_Modeled -> 10.67964882
B27: *For PHEV calculations, assumes an equal number of miles driven on a daily basis, 260 days per year. No charging during the day.
B28: ** Emissions are well-to-wheel from Argonne National Laboratory's GREET model and U.S. EPA's eGRID.

Sheet Report Parameters & Pivots (hidden)
A1: Pivots | D1: Total Count
A2: Row Labels | B2: Distinct Count of VIN | D2: =SUM(B3:B5) -> 100
A3: Heavy-Duty Vehicles (Class 7-8) | B3: 2
A4: Medium Duty Vehicles (Class 3-6) | B4: 29
A5: Passenger Vehicles (Light-Duty) | B5: 69
A9: Text
B10: Summary | C10: =_xlfn.CONCAT(IFERROR(_xlfn.CONCAT("Overall, there are ",GETPIVOTDATA("[Measures].[Distinct Count of VIN]",$A$2,"[Original Fleet Vehicles].[Fleet Vehicle GVWR Category]","[Original Fleet Vehicles].[Fleet Vehicle GVWR Category].&[Passenger Vehicles (Light-Duty)]")," light-duty vehicles in the fleet, making up ",ROUND(GETPIVOTDATA("[Measures].[Distinct Count of VIN]",$A$2,"[Original Fleet Vehicles].[Fleet Vehicle GVWR Category]","[Original Fleet Vehicles].[Fleet Vehicle GVWR Category].&[Passenger Vehicles (Light-Duty)]")/$D$2*100,2)," percent of the fleet. "),""),IFERROR(_xlfn.CONCAT("Medium-duty vehicles make up ",ROUND(GETPIVOTDATA("[Measures].[Distinct Count of VIN]",$A$2,"[Original Fleet Vehicles].[Fleet Vehicle GVWR Category]","[Original Fleet Vehicles].[Fleet Vehicle GVWR Category].&[Medium Duty Vehicles (Class 3-6)]")/$D$2*100,2)," percent of the fleet (",GETPIVOTDATA("[Measures].[Distinct Count of VIN]",$A$2,"[Original Fleet Vehicles].[Fleet Vehicle GVWR Category]","[Original Fleet Vehicles].[Fleet Vehicle GVWR Category].&[Medium Duty Vehicles (Class 3-6)]")," vehicles). "),""),IFERROR(_xlfn.CONCAT("Heavy-duty vehicles make up ",ROUND(GETPIVOTDATA("[Measures].[Distinct Count of VIN]",$A$2,"[Original Fleet Vehicles].[Fleet Vehicle GVWR Category]","[Original Fleet Vehicles].[Fleet Vehicle GVWR Category].&[Heavy-Duty Vehicles (Class 7-8)]")/$D$2*100,2)," percent of the fleet (",GETPIVOTDATA("[Measures].[Distinct Count of VIN]",$A$2,"[Original Fleet Vehicles].[Fleet Vehicle GVWR Category]","[Original Fleet Vehicles].[Fleet Vehicle GVWR Category].&[Heavy-Duty Vehicles (Class 7-8)]")," vehicles)."),"")) -> Overall, there are 69 light-duty vehicles in the fleet, making up 69 percent of the fleet. Medium-duty vehicles make up 29 percent of the fleet (29 vehicles). Heavy-duty vehicles make up 2 percent of the fleet (2 vehicles).

Sheet Inputs (hidden)
A1: Inputs - Dashboard for Rapid Vehicle Electrification | F1: *HIDDEN* | G1: *HIDDEN* | H1: *HIDDEN*
F2: Autofill Values | G2: Sensitivity Values (to model) | H2: Validation Calcs
B3: Market Inputs
B5: Market | C5: U.S. | E5: =IF(_Forecast_Start_Year<>"", SUMIFS(DB_Fuel_Prices_Future[Price],DB_Fuel_Prices_Future[Year],_Forecast_Start_Year,DB_Fuel_Prices_Future[Category],"Gasoline", DB_Fuel_Prices_Future[State],State_Ex)/SUMIFS(DB_Fuel_Prices_Future[Price],DB_Fuel_Prices_Future[Year],_Baseline_Year,DB_Fuel_Prices_Future[Category],"Gasoline", DB_Fuel_Prices_Future[State],State_Ex)-1, 0) -> 0 | F5: =IF(_Market="U.S.",IF(_Forecast_Load_Year<>"", SUMIFS(DB_Fuel_Prices_Future[Price],DB_Fuel_Prices_Future[Year],_Forecast_Load_Year,DB_Fuel_Prices_Future[Category],"Gasoline", DB_Fuel_Prices_Future[State],State_Ex), VLOOKUP(State_Ex,DB_Fuel_Prices[],3,FALSE)),VLOOKUP(Province_Ex,REMOVE___DB_Fuel_Prices__Canada[],2,FALSE)) -> 3.6079 | G5: =IF(_Forecast_Start_Year<>"", _Forecast_Gasoline_Price_Change+1, 1) * Gasoline_Price -> 3.6667 | J5: Gasoline Price ($/Gallon) | K5: 3.6667
B6: ZIP Code | C6: 20002 | E6: =IF(_Forecast_Start_Year<>"", SUMIFS(DB_Fuel_Prices_Future[Price],DB_Fuel_Prices_Future[Year],_Forecast_Start_Year,DB_Fuel_Prices_Future[Category],"Diesel", DB_Fuel_Prices_Future[State],State_Ex)/SUMIFS(DB_Fuel_Prices_Future[Price],DB_Fuel_Prices_Future[Year],_Baseline_Year,DB_Fuel_Prices_Future[Category],"Diesel", DB_Fuel_Prices_Future[State],State_Ex)-1, 0) -> 0 | F6: =IF(_Market="U.S.",IF(_Forecast_Load_Year<>"", SUMIFS(DB_Fuel_Prices_Future[Price],DB_Fuel_Prices_Future[Year], _Forecast_Load_Year, DB_Fuel_Prices_Future[Category],"Diesel", DB_Fuel_Prices_Future[State],State_Ex),VLOOKUP(State_Ex,DB_Fuel_Prices[],4,FALSE)),VLOOKUP(Province_Ex,REMOVE___DB_Fuel_Prices__Canada[],2,FALSE)) -> 4.4324 | G6: =IF(_Forecast_Start_Year<>"", _Forecast_Diesel_Price_Change+1, 1) * Diesel_Price -> 4.54 | J6: Diesel Price ($/Gallon) | K6: 4.54
B7: U.S. State | C7: =VLOOKUP(_Zip_Code,ZipCodeLookup[],3,FALSE) -> DC | E7: =IF(_Forecast_Start_Year<>"", SUMIFS(DB_Fuel_Prices_Future[Price],DB_Fuel_Prices_Future[Year],_Forecast_Start_Year,DB_Fuel_Prices_Future[Category],"Electricity (Commercial)", DB_Fuel_Prices_Future[State],State_Ex)/SUMIFS(DB_Fuel_Prices_Future[Price],DB_Fuel_Prices_Future[Year],_Baseline_Year,DB_Fuel_Prices_Future[Category],"Electricity (Commercial)", DB_Fuel_Prices_Future[State],State_Ex)-1, 0) -> 0 | F7: =IF(_Market="U.S.",IF(_Forecast_Load_Year<>"", SUMIFS(DB_Fuel_Prices_Future[Price],DB_Fuel_Prices_Future[Year],_Forecast_Load_Year,DB_Fuel_Prices_Future[Category],"Electricity (Commercial)", DB_Fuel_Prices_Future[State],State_Ex), VLOOKUP(State_Ex,DB_Fuel_Prices[],6,FALSE)),VLOOKUP(Province_Ex,DB_Electricity_Prices_Canada[],2,FALSE)) -> 0.1052 | G7: =IF(_Forecast_Start_Year<>"", _Forecast_Electricity_Cost_Change+1, 1) * Electricity_Price -> 0.196 | J7: Electricity Cost ($/kWh) | K7: 0.196
B8: PADD Region | C8: =VLOOKUP(_Zip_Code,ZipCodeLookup[],5,FALSE) -> 1b | F8: =IF(_Market="U.S.",FV(Inflation_Rate_General, IF(_Forecast_Load_Year="", 0, _Forecast_Load_Year-_Baseline_Year), 0,-0.5), 0.5) -> 0.5 | G8: =FV(Inflation_Rate_General, IF(_Forecast_Start_Year="", 0, _Forecast_Start_Year-_Baseline_Year), 0,-Public_Charging_Price) -> 0.5 | J8: Public Charging Price ($/kWh) | K8: 0.5
B9: eGRID Region | C9: =VLOOKUP(_Zip_Code,ZipCodeLookup[],6,FALSE) -> RFCE | E9: =IF(_Forecast_Start_Year<>"", SUMIFS(DB_Fuel_Prices_Future[Price],DB_Fuel_Prices_Future[Year],_Forecast_Start_Year,DB_Fuel_Prices_Future[Category],"Electricity (Commercial)", DB_Fuel_Prices_Future[State],State_Ex)/SUMIFS(DB_Fuel_Prices_Future[Price],DB_Fuel_Prices_Future[Year],_Baseline_Year,DB_Fuel_Prices_Future[Category],"Electricity (Commercial)", DB_Fuel_Prices_Future[State],State_Ex)-1, 0) -> 0 | F9: =IF(_Market="U.S.",IF(_Forecast_Load_Year<>"", SUMIFS(DB_Fuel_Prices_Future[Price],DB_Fuel_Prices_Future[Year],_Forecast_Load_Year,DB_Fuel_Prices_Future[Category],"Electricity (Commercial)", DB_Fuel_Prices_Future[State],State_Ex), VLOOKUP(State_Ex,DB_Fuel_Prices[],6,FALSE)),VLOOKUP(Province_Ex,DB_Electricity_Prices_Canada[],2,FALSE)) -> 0.1052 | G9: =IF(_Forecast_Start_Year<>"", _Forecast_En_Route_Charging_Price_Change+1, 1) * En_Route_Charging_Price -> 0.25 | J9: En Route Charging Price ($/kWh) | K9: 0.25
B10: Canadian Province | C10: British Columbia | F10: =IF(_Market="U.S.", DB_General_Inflation[Inflation (U.S.)], DB_General_Inflation[Inflation (Canada)]) -> 0.02 | G10: =Inflation_Rate_General -> 0.02 | J10: Inflation Rate (Excluding Fuel) (%/Year) | K10: 0.02
B11: Forecast Start Year | C11: 2023 | F11: =IF(_Market="U.S.",FV(Inflation_Rate_General, IF(_Forecast_Load_Year="", 0, _Forecast_Load_Year-_Baseline_Year), 0,-35), 35) -> 35 | G11: =FV(Inflation_Rate_General, IF(_Forecast_Start_Year="", 0, _Forecast_Start_Year-_Baseline_Year), 0,-Cost_of_Downtime_from_Charging) -> 43 | J11: Cost of Downtime from Public Charging ($/Hour) | K11: 43
B12: Baseline Year | C12: 2023
B13: Forecast Load Year | C13: 2023 | J13: Include Cost of Carbon? | K13: Yes
B14: Forecast Scenario | C14: Low Technology Progress | F14: =IF(_Market="U.S.", FV(Inflation_Rate_General, IF(_Forecast_Load_Year="", 0, _Forecast_Load_Year-_Baseline_Year), 0,-DB_Carbon_Price_US), DB_Carbon_Price_Canada) -> 51 | G14: =FV(Inflation_Rate_General, IF(_Forecast_Start_Year="", 0, _Forecast_Start_Year-_Baseline_Year), 0,-Carbon_Price) -> 0 | J14: Cost of Carbon ($/Ton) | K14: 0
B17: Vehicle Inputs
B19: Vehicle Drivetrain Type | E19: PHEV
B20: Vehicle Class | E20: Passenger Vehicles (Light-Duty)
B21: Vehicle Year | E21: 2024
B22: Vehicle Make | E22: CHRYSLER
B23: Vehicle Model | E23: PACIFICA HYBRID | H23: =_Base_V1_Vehicle_Year&" "&_Base_V1_Vehicle_Make&" "&_Base_V1_Vehicle_Model&" "&_Base_V1_Vehicle_Drivetrain -> 2024 CHRYSLER PACIFICA HYBRID PHEV
B24: Fuel Economy Gasoline/Diesel City (MPG) | E24: 29 | F24: =IF(_Market="U.S.", VLOOKUP(Base_V1_Type_Ex,DB_Vehicles[], COLUMN(DB_Vehicles[[#Headers],[Fuel Economy Gas/Diesel City (MPG)]]),FALSE)*(1+_Forecast_Load_Vehicle_Fuel_Economy_Change), VLOOKUP(Base_V1_Type_Ex,REMOVE___DB_Vehicles__Canada[],COLUMN(REMOVE___DB_Vehicles__Canada[[#Headers],[Fuel Consumption Gas/Diesel City (L/100 km)]])-COLUMN(REMOVE___DB_Vehicles__Canada[[#Headers],[Selection Name]])+1,FALSE)) -> 29 | G24: =Base_V1_Fuel_Economy_Gas_City*(_Forecast_Vehicle_Fuel_Economy_Change+1) -> 29 | H24: =IF(_Forecast_Load_Year<>"", SUMIFS(DB_Vehicle_Fuel_Economy_Future[Fuel Economy (mpg)],DB_Vehicle_Fuel_Economy_Future[Drivetrain Type], _Base_V1_Vehicle_Drivetrain,DB_Vehicle_Fuel_Economy_Future[Vehicle Class], _Base_V1_Vehicle_Vehicle_Class, DB_Vehicle_Fuel_Economy_Future[Year], _Forecast_Load_Year)/SUMIFS(DB_Vehicle_Fuel_Economy_Future[Fuel Economy (mpg)],DB_Vehicle_Fuel_Economy_Future[Drivetrain Type], _Base_V1_Vehicle_Drivetrain,DB_Vehicle_Fuel_Economy_Future[Vehicle Class], _Base_V1_Vehicle_Vehicle_Class, DB_Vehicle_Fuel_Economy_Future[Year], _Baseline_Year)-1, 0) -> 0
B25: Fuel Economy Gasoline/Diesel Highway (MPG) | E25: 30 | F25: =IF(_Market="U.S.", VLOOKUP(Base_V1_Type_Ex,DB_Vehicles[], COLUMN(DB_Vehicles[[#Headers],[Fuel Economy Gas/Diesel Hwy (MPG)]]),FALSE)*(1+_Forecast_Load_Vehicle_Fuel_Economy_Change), VLOOKUP(Base_V1_Type_Ex,REMOVE___DB_Vehicles__Canada[],COLUMN(REMOVE___DB_Vehicles__Canada[[#Headers],[Fuel Consumption Gas/Diesel Hwy (L/100 km)]])-COLUMN(REMOVE___DB_Vehicles__Canada[[#Headers],[Selection Name]])+1,FALSE)) -> 30 | G25: =Base_V1_Fuel_Economy_Gas_Hwy*(_Forecast_Vehicle_Fuel_Economy_Change+1) -> 30 | H25: =IF(_Forecast_Start_Year<>"", SUMIFS(DB_Vehicle_Fuel_Economy_Future[Fuel Economy (mpg)],DB_Vehicle_Fuel_Economy_Future[Drivetrain Type], _Base_V1_Vehicle_Drivetrain,DB_Vehicle_Fuel_Economy_Future[Vehicle Class], _Base_V1_Vehicle_Vehicle_Class, DB_Vehicle_Fuel_Economy_Future[Year], _Forecast_Start_Year)/SUMIFS(DB_Vehicle_Fuel_Economy_Future[Fuel Economy (mpg)],DB_Vehicle_Fuel_Economy_Future[Drivetrain Type], _Base_V1_Vehicle_Drivetrain,DB_Vehicle_Fuel_Economy_Future[Vehicle Class], _Base_V1_Vehicle_Vehicle_Class, DB_Vehicle_Fuel_Economy_Future[Year], _Baseline_Year)-1, 0) -> 0
B26: Fuel Economy Electric City (MPGe) | E26: 87 | F26: =IF(_Market="U.S.", VLOOKUP(Base_V1_Type_Ex,DB_Vehicles[], COLUMN(DB_Vehicles[[#Headers],[Fuel Economy Electric City (MPGe)]]),FALSE)*(1+_Forecast_Load_Vehicle_Fuel_Economy_Change), VLOOKUP(Base_V1_Type_Ex,REMOVE___DB_Vehicles__Canada[],COLUMN(REMOVE___DB_Vehicles__Canada[[#Headers],[Fuel Consumption Electric City (Le/100 km)]])-COLUMN(REMOVE___DB_Vehicles__Canada[[#Headers],[Selection Name]])+1,FALSE)) -> 87 | G26: =Base_V1_Fuel_Economy_Electric_City*(_Forecast_Vehicle_Fuel_Economy_Change+1) -> 87
B27: Fuel Economy Electric Hwy (MPGe) | E27: 77 | F27: =IF(_Market="U.S.", VLOOKUP(Base_V1_Type_Ex,DB_Vehicles[], COLUMN(DB_Vehicles[[#Headers],[Fuel Economy Electric Hwy (MPGe)]]),FALSE)*(1+_Forecast_Load_Vehicle_Fuel_Economy_Change), VLOOKUP(Base_V1_Type_Ex,REMOVE___DB_Vehicles__Canada[],COLUMN(REMOVE___DB_Vehicles__Canada[[#Headers],[Fuel Consumption Electric Hwy (Le/100 km)]])-COLUMN(REMOVE___DB_Vehicles__Canada[[#Headers],[Selection Name]])+1,FALSE)) -> 77 | G27: =Base_V1_Fuel_Economy_Electric_Hwy*(_Forecast_Vehicle_Fuel_Economy_Change+1) -> 77
B28: Expected Years of Use/Ownership (Years) | E28: 7 | F28: =DB_Expected_Years_Of_Use_Ownership -> 7 | G28: =Base_V1_Years_Usage -> 7
B29: Annual Vehicle Mileage (VMT/Year) | E29: 12000 | F29: =IF(_Market="U.S.", DB_Annual_Mileage_US, DB_Annual_Mileage_Canada) -> 12000 | G29: =Base_V1_VMT -> 12000
B30: % of Annual Miles on Gasoline/Diesel | E30: 0.02666666667 | F30: =IF(_Base_V1_Vehicle_Drivetrain<>"BEV", MAX((Base_V1_VMT/365)-IF(_Market="U.S.", VLOOKUP(Base_V1_Type_Ex,DB_Vehicles[], COLUMN(DB_Vehicles[[#Headers],[Electric Range]]),FALSE), VLOOKUP(Base_V1_Type_Ex,REMOVE___DB_Vehicles__Canada[], COLUMN(REMOVE___DB_Vehicles__Canada[[#Headers],[Electric Range]])-COLUMN(REMOVE___DB_Vehicles__Canada[[#Headers],[Selection Name]])+1,FALSE)),0)/(Base_V1_VMT/365), 0) -> 0.02666666667 | G30: =Base_V1_Miles_Gas -> 0.02666666667
B31: % of Annual Miles City Driving | E31: 0.55 | F31: =DB_Percent_Annual_Miles_City_Driving -> 0.55 | G31: =Base_V1_Miles_City -> 0.55
B32: Scale Insurance Cost to Vehicle Value? | E32: Yes | G32: =Base_V1_Insurance_Cost_Scaled_to_Vehicle_Value -> Yes
B33: Fixed Cost to Insure ($/Year) | E33: 1194 | F33: =FV(Inflation_Rate_General, IF(_Forecast_Load_Year="", 0, _Forecast_Load_Year-_Baseline_Year), 0,-SUMIFS(DB_Vehicle_Insurance_Table[Cost], DB_Vehicle_Insurance_Table[Vehicle Class], _Base_V1_Vehicle_Vehicle_Class, DB_Vehicle_Insurance_Table[Market], _Market)) -> 600 | G33: =Base_V1_Insurance_Cost -> 1194
B34: Insurance Cost (% of Vehicle Value) | E34: 0 | G34: =Base_V1_Insurance_Cost_Scaled_Percent -> 0
B35: Use Drivetrain Default Maintenance and Repair Costs? | E35: No
B36: Maintenance and Repair Cost - Years 1 - 5 ($/Mile) | E36: 0.07 | F36: =FV(Inflation_Rate_General, IF(_Forecast_Load_Year="", 0, _Forecast_Load_Year-_Baseline_Year), 0,-SUMIFS(DB_Maint_Repair_Costs[[Year 1 ]], DB_Maint_Repair_Costs[Market], _Market, DB_Maint_Repair_Costs[Vehicle Type], _Base_V1_Vehicle_Drivetrain, DB_Maint_Repair_Costs[Vehicle Class], _Base_V1_Vehicle_Vehicle_Class)) -> 0.09 | G36: =FV(Inflation_Rate_General, IF(_Forecast_Start_Year="", 0, _Forecast_Start_Year-_Baseline_Year), 0,-Base_V1_Maint_Repair_Cost_Year_1) -> 0.07
B37: Maintenance and Repair Cost - Years 5+ ($/Mile) | E37: 0.091 | F37: =FV(Inflation_Rate_General, IF(_Forecast_Load_Year="", 0, _Forecast_Load_Year-_Baseline_Year), 0,-SUMIFS(DB_Maint_Repair_Costs[Year 6], DB_Maint_Repair_Costs[Market], _Market, DB_Maint_Repair_Costs[Vehicle Type], _Base_V1_Vehicle_Drivetrain, DB_Maint_Repair_Costs[Vehicle Class], _Base_V1_Vehicle_Vehicle_Class)) -> 0.117 | G37: =FV(Inflation_Rate_General, IF(_Forecast_Start_Year="", 0, _Forecast_Start_Year-_Baseline_Year), 0,-Base_V1_Maint_Repair_Cost_Year_5) -> 0.091
B38: Recurring Taxes and Fees ($/Year) | E38: 0 | G38: =Base_V1_Taxes_Fees -> 0
C39: Vehicle details from fueleconomy.gov
B41: Vehicle Procurement Inputs
B44: Discount Rate for NPV Calculations (%) | E44: 0.02 | G44: =Base_Discount_Rate -> 0.02
B46: Number of Vehicles to Procure (#) | E46: 1 | G46: =Base_V1_Num_Vehicles -> 1
B47: Pricing Approach (select one) | E47: MSRP Less Discounts | H47: =IF(IFERROR(FIND("MSRP",_Base_V1_Pricing_Approach,1),0)>0,TRUE,FALSE) -> TRUE
B48: MSRP ($/Vehicle) | E48: 52495 | F48: =IF(_Market="U.S.", VLOOKUP(Base_V1_Type_Ex,DB_Vehicles[],COLUMN(DB_Vehicles[[#Headers],[Estimated Price]]),FALSE)*(1+_Forecast_Load_Vehicle_Price_Change), VLOOKUP(Base_V1_Type_Ex, REMOVE___DB_Vehicles__Canada[], COLUMN(REMOVE___DB_Vehicles__Canada[[#Headers],[MSRP]])-COLUMN(REMOVE___DB_Vehicles__Canada[[#Headers],[Selection Name]])+1,FALSE)) -> 52495 | G48: =Base_V1_MSRP*(1+_Forecast_Start_Vehicle_Price_Change) -> 52495 | H48: =SUMIFS(DB_Vehicle_Prices_Future[% Change],DB_Vehicle_Prices_Future[Scenario],_Forecast_Scenario,DB_Vehicle_Prices_Future[Year],_Forecast_Start_Year, DB_Vehicle_Prices_Future[Drivetrain Type], _Base_V1_Vehicle_Drivetrain,DB_Vehicle_Prices_Future[Use Case], VLOOKUP(Base_V1_Type_Ex,DB_Vehicles[],COLUMN(DB_Vehicles[[#Headers],[Use Case]]),FALSE)) -> 0
B49: Value of Negotiated Discounts off MSRP ($/Vehicle) | E49: 0 | G49: =Base_V1_Discounts -> 0 | H49: =SUMIFS(DB_Vehicle_Prices_Future[% Change],DB_Vehicle_Prices_Future[Scenario],_Forecast_Scenario,DB_Vehicle_Prices_Future[Year],_Forecast_Start_Year, DB_Vehicle_Prices_Future[Drivetrain Type], _Base_V1_Vehicle_Drivetrain,DB_Vehicle_Prices_Future[Use Case], VLOOKUP(Base_V1_Type_Ex,DB_Vehicles[],COLUMN(DB_Vehicles[[#Headers],[Vehicle Type]]),FALSE)) -> 0
B50: Dealer Triple Net Price ($/Vehicle) | E50: =Base_V1_MSRP -> 52495 | G50: =Base_V1_List_Price -> 52495
B51: Dealer Markup ($/Vehicle) | E51: 0 | G51: =Base_V1_List_Price_Markup -> 0
B52: Total Base Price | E52: =IF(IFERROR(FIND("MSRP",_Base_V1_Pricing_Approach,1),0)>0,Base_V1_MSRP_Modeled-Base_V1_Discounts_Modeled,Base_V1_List_Price_Modeled+Base_V1_List_Price_Markup_Modeled) -> 52495
B53: Value of Federal Tax Incentives ($/Vehicle) | E53: 7500 | F53: =IFERROR(IF(_Market="U.S.", VLOOKUP(Base_V1_Type_Ex, DB_Vehicle_Incentives[], MATCH("Federal Tax Credit", DB_Vehicle_Incentives[#Headers],0),FALSE), 0), 0) -> 0 | G53: =Base_V1_Federal_Tax_Incentives -> 7500
B54: Value of State Tax Incentives ($/Vehicle) | E54: 0 | F54: =IFERROR(IF(_Market="U.S.", IF(VLOOKUP("Incentive Type", DB_Vehicle_Incentives[], MATCH(State_Ex, DB_Vehicle_Incentives[#Headers], 0), FALSE)="Tax", VLOOKUP(Base_V1_Type_Ex, DB_Vehicle_Incentives[], MATCH(State_Ex, DB_Vehicle_Incentives[#Headers], 0),FALSE),0), IF(VLOOKUP("Incentive Type", REMOVE___DB_Vehicle_Incentives__Canada[], MATCH(Province_Ex, REMOVE___DB_Vehicle_Incentives__Canada[#Headers], 0), FALSE)="Tax", VLOOKUP(Base_V1_Type_Ex, REMOVE___DB_Vehicle_Incentives__Canada[], MATCH(Province_Ex, REMOVE___DB_Vehicle_Incentives__Canada[#Headers], 0),FALSE),0)), 0) -> 0 | G54: =Base_V1_State_Tax_Incentives -> 0
B55: State Tax Incentive Cap ($) | E55: 0 | G55: =Base_V1_State_Tax_Incentive_Cap -> 0
B56: Value of Non-tax Incentives ($/Vehicle) | E56: 0 | F56: =IFERROR(IF(_Market="U.S.", IF(VLOOKUP("Incentive Type", DB_Vehicle_Incentives[], MATCH(State_Ex, DB_Vehicle_Incentives[#Headers], 0), FALSE)<>"Tax", VLOOKUP(Base_V1_Type_Ex, DB_Vehicle_Incentives[], MATCH(State_Ex, DB_Vehicle_Incentives[#Headers], 0),FALSE),0), IF(VLOOKUP("Incentive Type", REMOVE___DB_Vehicle_Incentives__Canada[], MATCH(Province_Ex, REMOVE___DB_Vehicle_Incentives__Canada[#Headers], 0), FALSE)<>"Tax", VLOOKUP(Base_V1_Type_Ex, REMOVE___DB_Vehicle_Incentives__Canada[], MATCH(Province_Ex, REMOVE___DB_Vehicle_Incentives__Canada[#Headers], 0),FALSE),0)), 0) -> 0 | G56: =Base_V1_Other_Incentives -> 0
B57: Initial Tax, Title, and Registration Cost ($/Vehicle) | E57: 1522.355 | G57: =FV(Inflation_Rate_General, IF(_Forecast_Start_Year="", 0, _Forecast_Start_Year-_Baseline_Year), 0,-Base_V1_Initial_Taxes_Fees) -> 1522.355
B58: Initial Fee as Percent of Vehicle Base Price (%)
B59: Ownership Structure | E59: Purchase (Cash) | H59: =IF(IFERROR(FIND("Cash",_Base_V1_Ownership_Structure,1),0)>0,TRUE,FALSE) -> TRUE
B60: Tax Credits Can Be Monetized? (Y/N) | E60: Yes | H60: =IF(IFERROR(FIND("Loan",_Base_V1_Ownership_Structure,1),0)>0,TRUE,FALSE) -> FALSE
H61: =IF(IFERROR(FIND("Lease",_Base_V1_Ownership_Structure,1),0)>0,TRUE,FALSE) -> FALSE
B62: Down Payment ($/Vehicle) | E62: 0 | G62: =Base_V1_Down_Payment -> 0
B63: Lease
B64: Lease Term (Years) | E64: 8 | G64: =Base_V1_Lease_Term -> 8 | H64: Data validation handled in VBA
B65: Lease Interest Rate (APR - %) | E65: 1 | G65: =Base_V1_Lease_APR -> 1
B66: OR
B67: Money Factor (#) | E67: 1 | G67: =Base_V1_Lease_Money_Factor -> 1
B68: Acquisition Fee ($/Vehicle) | E68: 1 | G68: =Base_V1_Lease_Acquisition_Fee -> 1
B69: Disposition Charge ($/Vehicle) | E69: 1 | G69: =Base_V1_Lease_Disposition_Fee -> 1
B70: Negotiated Residual Value ($/Vehicle) | E70: 1 | G70: =Base_V1_Lease_Residual_Price -> 1 | H70: =IF(IFERROR(FIND("Tax-Exempt",_Base_V1_Ownership_Structure,1),0)>0,IF(Base_V1_Lease_Residual_Price=1,TRUE,FALSE),TRUE) -> TRUE
B71: Mileage Included (Closed-End Only) | E71: 1 | G71: =Base_V1_Lease_Mileage_Inc -> 1
B72: Excess Mileage Cost ($/Mile) | E72: 1 | G72: =Base_V1_Lease_Mileage_Cost -> 1
B73: Loan
B74: Loan Term (Years) | E74: 7 | G74: =Base_V1_Loan_Term -> 7 | H74: Data validation handled in VBA
B75: Loan Interest Rate (APR - %) | E75: 0.07 | G75: =Base_V1_Loan_APR -> 0.07
B78: EV Charging Infrastructure Use and Installation Inputs
B79: Procurement 1 (Baseline)
B80: % Depot/Home Charging | E80: 1 | G80: =Base_Percent_Home_Charging -> 1
B81: % Public Charging | E81: 0 | G81: =Base_Percent_Public_Charging -> 0
B82: % En Route Charging | E82: 0 | G82: =Base_Percent_En_Route_Charging_Ex -> 0
B83: Charging Level | E83: 30A L2
B84: Maximum Power for Public Charging Only (kW) | E84: 150 | F84: =IF(_Base_Charging_Level="Level 2", 7.2, 50) -> 50 | G84: =Base_Station_Max_Power -> 150
B86: Annual % Change in Charging Equipment Cost (Between 2020 and 2030) | E86: 0
B87: Annual % Change in Construction & Equipment Installation Cost (Between 2020 and 2030) | E87: 0
B88: Annual % Change in Electric Utility Upgrades & Grid Interconnection Cost Cost (Between 2020 and 2030) | E88: 0
B90: Procurement Includes EV Charging? | E90: No
B91: Number of EV Charging Stations Needed (#) | E91: 1 | G91: =Base_Num_Stations -> 1
B92: Charging Equipment Cost ($/Station) | E92: 3286 | F92: =FV(_Forecast_EVSE_Cost_Change, IF(OR(_Forecast_Load_Year="", _Forecast_Load_Year>=2030), 0, _Forecast_Load_Year-2020), 0,-SUMIFS(DB_Charging_Infrastructure[Cost],DB_Charging_Infrastructure[Charging Level], _Base_Charging_Level, DB_Charging_Infrastructure[Market], _Market, DB_Charging_Infrastructure[Description],B92)) -> 0 | G92: =FV(Inflation_Rate_General, IF(_Forecast_Start_Year="", 0, _Forecast_Start_Year-_Baseline_Year), 0,-Base_Station_Cost) -> 3286 | H92: =SUM(G92:G94) -> 5466
B93: Construction & Equipment Installation Cost ($/Station) | E93: 2180 | F93: =FV(_Forecast_Construction_Cost_Change, IF(OR(_Forecast_Load_Year="", _Forecast_Load_Year>=2030), 0, _Forecast_Start_Year-2020), 0,-SUMIFS(DB_Charging_Infrastructure[Cost],DB_Charging_Infrastructure[Charging Level], _Base_Charging_Level, DB_Charging_Infrastructure[Market], _Market, DB_Charging_Infrastructure[Description],B93)) -> 0 | G93: =FV(Inflation_Rate_General, IF(_Forecast_Start_Year="", 0, _Forecast_Start_Year-_Baseline_Year), 0,-Base_Station_Construction_Cost) -> 2180
B94: Electric Utility Upgrades and Grid Interconnection Cost ($/Site) | E94: 0 | F94: =FV(_Forecast_Utility_Cost_Change, IF(OR(_Forecast_Load_Year="", _Forecast_Load_Year>=2030), 0, _Forecast_Load_Year-2020), 0,-SUMIFS(DB_Charging_Infrastructure[Cost],DB_Charging_Infrastructure[Charging Level], _Base_Charging_Level, DB_Charging_Infrastructure[Market], _Market, DB_Charging_Infrastructure[Description],B94)) -> 0 | G94: =FV(Inflation_Rate_General, IF(_Forecast_Start_Year="", 0, _Forecast_Start_Year-_Baseline_Year), 0,-Base_Station_Utility_Cost) -> 0
B95: Maintenance Cost ($/Station/Year) | E95: 99 | F95: =FV(Inflation_Rate_General, IF(_Forecast_Load_Year="", 0, _Forecast_Load_Year-_Baseline_Year), 0,-SUMIFS(DB_Charging_Infrastructure[Cost],DB_Charging_Infrastructure[Charging Level], _Base_Charging_Level, DB_Charging_Infrastructure[Market], _Market, DB_Charging_Infrastructure[Description],B95)) -> 0 | G95: =Base_Station_Maint_Cost -> 99
B96: Ownership Structure | E96: Purchase (Cash) | H96: =IF(IFERROR(FIND("Cash",_Base_Inf_Ownership_Structure,1),0)>0,TRUE,FALSE) -> TRUE
B97: Loan
B98: Cash Upfront / Down Payment ($) | E98: 1000 | G98: =Base_Inf_Down_Payment -> 1000
B99: Loan Term (Years) | E99: 3 | G99: =Base_Inf_Loan_Term -> 3
B100: Interest Rate (APR - %) | E100: 0.1 | G100: =Base_Inf_Loan_APR -> 0.1

Sheet Invalid VINs (hidden)
A1: ID | B1: VIN | C1: Decoded Use Case | D1: Decoded Full Vehicle Name

Sheet VIN Counts (hidden)
A1: Invalid VIN Count | C1: Valid VIN Count
A2: 0 | C2: 100

Sheet Financial Model (hidden)
A1: Financial Models - Dashboard for Rapid Vehicle Electrification
D2: Year 0 | E2: Year 1 | F2: Year 2 | G2: Year 3 | H2: Year 4 | I2: Year 5 | J2: Year 6 | K2: Year 7 | L2: Year 8 | M2: Year 9 | N2: Year 10 | O2: Year 11 | P2: Year 12 | Q2: Year 13 | R2: Year 14 | S2: Year 15 | T2: Year 16 | U2: Year 17 | V2: Year 18 | W2: Year 19 | X2: Year 20 | Y2: Year 21 | Z2: Year 22 | AA2: Year 23 | AB2: Year 24 | AC2: Year 25
B3: Baseline Vehicle 1
D4: Year 0 | E4: Year 1 | F4: Year 2 | G4: Year 3 | H4: Year 4 | I4: Year 5 | J4: Year 6 | K4: Year 7 | L4: Year 8 | M4: Year 9 | N4: Year 10 | O4: Year 11 | P4: Year 12 | Q4: Year 13 | R4: Year 14 | S4: Year 15 | T4: Year 16 | U4: Year 17 | V4: Year 18 | W4: Year 19 | X4: Year 20 | Y4: Year 21 | Z4: Year 22 | AA4: Year 23 | AB4: Year 24 | AC4: Year 25
B5: Depreciation Calculations
B6: Fair Market Value - BEV | D6: =IF(_Base_V1_Vehicle_Drivetrain="BEV",Base_V1_Base_Price_Ex,0) -> 0 | E6: =IF(_Base_V1_Vehicle_Vehicle_Class=Const_Passenger_Light_Duty, IF(_Base_V1_Vehicle_Drivetrain="BEV",MAX(IF(_Base_V1_Vehicle_Drivetrain="BEV",(Reg_BEV_Const_Ex+Reg_BEV_Age_Coef_Ex*(COLUMN(E5)-COLUMN($D5))+Reg_BEV_Agesq_Coef_Ex*((COLUMN(E5)-COLUMN($D5))^2)+Reg_BEV_Range_Coef_Ex*Constant_Baseline_Electric_Range+Reg_BEV_Mileage_Coef_Ex*Base_V1_VMT_Modeled*(COLUMN(E5)-COLUMN($D5)))*Base_V1_MSRP_Modeled,0),300),0), IF(COLUMN(E5)-COLUMN($D5)=1, 'Financial Model'!D6*0.77, 'Financial Model'!D6*0.85)) -> 0 | F6: =IF(_Base_V1_Vehicle_Vehicle_Class=Const_Passenger_Light_Duty, IF(_Base_V1_Vehicle_Drivetrain="BEV",MAX(IF(_Base_V1_Vehicle_Drivetrain="BEV",(Reg_BEV_Const_Ex+Reg_BEV_Age_Coef_Ex*(COLUMN(F5)-COLUMN($D5))+Reg_BEV_Agesq_Coef_Ex*((COLUMN(F5)-COLUMN($D5))^2)+Reg_BEV_Range_Coef_Ex*Constant_Baseline_Electric_Range+Reg_BEV_Mileage_Coef_Ex*Base_V1_VMT_Modeled*(COLUMN(F5)-COLUMN($D5)))*Base_V1_MSRP_Modeled,0),300),0), IF(COLUMN(F5)-COLUMN($D5)=1, 'Financial Model'!E6*0.77, 'Financial Model'!E6*0.85)) -> 0 | G6: =IF(_Base_V1_Vehicle_Vehicle_Class=Const_Passenger_Light_Duty, IF(_Base_V1_Vehicle_Drivetrain="BEV",MAX(IF(_Base_V1_Vehicle_Drivetrain="BEV",(Reg_BEV_Const_Ex+Reg_BEV_Age_Coef_Ex*(COLUMN(G5)-COLUMN($D5))+Reg_BEV_Agesq_Coef_Ex*((COLUMN(G5)-COLUMN($D5))^2)+Reg_BEV_Range_Coef_Ex*Constant_Baseline_Electric_Range+Reg_BEV_Mileage_Coef_Ex*Base_V1_VMT_Modeled*(COLUMN(G5)-COLUMN($D5)))*Base_V1_MSRP_Modeled,0),300),0), IF(COLUMN(G5)-COLUMN($D5)=1, 'Financial Model'!F6*0.77, 'Financial Model'!F6*0.85)) -> 0 | H6: =IF(_Base_V1_Vehicle_Vehicle_Class=Const_Passenger_Light_Duty, IF(_Base_V1_Vehicle_Drivetrain="BEV",MAX(IF(_Base_V1_Vehicle_Drivetrain="BEV",(Reg_BEV_Const_Ex+Reg_BEV_Age_Coef_Ex*(COLUMN(H5)-COLUMN($D5))+Reg_BEV_Agesq_Coef_Ex*((COLUMN(H5)-COLUMN($D5))^2)+Reg_BEV_Range_Coef_Ex*Constant_Baseline_Electric_Range+Reg_BEV_Mileage_Coef_Ex*Base_V1_VMT_Modeled*(COLUMN(H5)-COLUMN($D5)))*Base_V1_MSRP_Modeled,0),300),0), IF(COLUMN(H5)-COLUMN($D5)=1, 'Financial Model'!G6*0.77, 'Financial Model'!G6*0.85)) -> 0 | I6: =IF(_Base_V1_Vehicle_Vehicle_Class=Const_Passenger_Light_Duty, IF(_Base_V1_Vehicle_Drivetrain="BEV",MAX(IF(_Base_V1_Vehicle_Drivetrain="BEV",(Reg_BEV_Const_Ex+Reg_BEV_Age_Coef_Ex*(COLUMN(I5)-COLUMN($D5))+Reg_BEV_Agesq_Coef_Ex*((COLUMN(I5)-COLUMN($D5))^2)+Reg_BEV_Range_Coef_Ex*Constant_Baseline_Electric_Range+Reg_BEV_Mileage_Coef_Ex*Base_V1_VMT_Modeled*(COLUMN(I5)-COLUMN($D5)))*Base_V1_MSRP_Modeled,0),300),0), IF(COLUMN(I5)-COLUMN($D5)=1, 'Financial Model'!H6*0.77, 'Financial Model'!H6*0.85)) -> 0 | J6: =IF($H6-$I6=0,0,MAX((1-($H6-$I6)/$H6)*I6,300)) -> 0 | K6: =IF($H6-$I6=0,0,MAX((1-($H6-$I6)/$H6)*J6,300)) -> 0 | L6: 0 | M6: 0 | N6: 0 | O6: 0 | P6: 0 | Q6: 0 | R6: 0 | S6: 0 | T6: 0 | U6: 0 | V6: 0 | W6: 0 | X6: 0 | Y6: 0 | Z6: 0 | AA6: 0 | AB6: 0 | AC6: 0
B7: Fair Market Value - PHEV | D7: =IF(_Base_V1_Vehicle_Drivetrain="PHEV",Base_V1_Base_Price_Ex,0) -> 52495 | E7: =IF(_Base_V1_Vehicle_Vehicle_Class=Const_Passenger_Light_Duty,IF(_Base_V1_Vehicle_Drivetrain="PHEV",MAX(IF(_Base_V1_Vehicle_Drivetrain="PHEV",Reg_PHEV_Const_Ex+Reg_PHEV_Age_Coef_Ex*(COLUMN(E4)-COLUMN($D4))+Reg_PHEV_Agesq_Coef_Ex*((COLUMN(E4)-COLUMN($D4))^2)+Reg_PHEV_MSRP_Coef_Ex*Base_V1_Base_Price_Ex+Reg_PHEV_Range_Coef_Ex*Constant_Baseline_Electric_Range+Reg_PHEV_Mileage_Coef_Ex*Base_V1_VMT_Modeled*(COLUMN(E4)-COLUMN($D4)),0),300),0),IF(COLUMN(E4)-COLUMN($D4)=1, 'Financial Model'!D7*0.77, 'Financial Model'!D7*0.85)) -> 35128.25 | F7: =IF(_Base_V1_Vehicle_Vehicle_Class=Const_Passenger_Light_Duty,IF(_Base_V1_Vehicle_Drivetrain="PHEV",MAX(IF(_Base_V1_Vehicle_Drivetrain="PHEV",Reg_PHEV_Const_Ex+Reg_PHEV_Age_Coef_Ex*(COLUMN(F4)-COLUMN($D4))+Reg_PHEV_Agesq_Coef_Ex*((COLUMN(F4)-COLUMN($D4))^2)+Reg_PHEV_MSRP_Coef_Ex*Base_V1_Base_Price_Ex+Reg_PHEV_Range_Coef_Ex*Constant_Baseline_Electric_Range+Reg_PHEV_Mileage_Coef_Ex*Base_V1_VMT_Modeled*(COLUMN(F4)-COLUMN($D4)),0),300),0),IF(COLUMN(F4)-COLUMN($D4)=1, 'Financial Model'!E7*0.77, 'Financial Model'!E7*0.85)) -> 31751.25 | G7: =IF(_Base_V1_Vehicle_Vehicle_Class=Const_Passenger_Light_Duty,IF(_Base_V1_Vehicle_Drivetrain="PHEV",MAX(IF(_Base_V1_Vehicle_Drivetrain="PHEV",Reg_PHEV_Const_Ex+Reg_PHEV_Age_Coef_Ex*(COLUMN(G4)-COLUMN($D4))+Reg_PHEV_Agesq_Coef_Ex*((COLUMN(G4)-COLUMN($D4))^2)+Reg_PHEV_MSRP_Coef_Ex*Base_V1_Base_Price_Ex+Reg_PHEV_Range_Coef_Ex*Constant_Baseline_Electric_Range+Reg_PHEV_Mileage_Coef_Ex*Base_V1_VMT_Modeled*(COLUMN(G4)-COLUMN($D4)),0),300),0),IF(COLUMN(G4)-COLUMN($D4)=1, 'Financial Model'!F7*0.77, 'Financial Model'!F7*0.85)) -> 29240.25 | H7: =IF(_Base_V1_Vehicle_Vehicle_Class=Const_Passenger_Light_Duty,IF(_Base_V1_Vehicle_Drivetrain="PHEV",MAX(IF(_Base_V1_Vehicle_Drivetrain="PHEV",Reg_PHEV_Const_Ex+Reg_PHEV_Age_Coef_Ex*(COLUMN(H4)-COLUMN($D4))+Reg_PHEV_Agesq_Coef_Ex*((COLUMN(H4)-COLUMN($D4))^2)+Reg_PHEV_MSRP_Coef_Ex*Base_V1_Base_Price_Ex+Reg_PHEV_Range_Coef_Ex*Constant_Baseline_Electric_Range+Reg_PHEV_Mileage_Coef_Ex*Base_V1_VMT_Modeled*(COLUMN(H4)-COLUMN($D4)),0),300),0),IF(COLUMN(H4)-COLUMN($D4)=1, 'Financial Model'!G7*0.77, 'Financial Model'!G7*0.85)) -> 27595.25 | I7: =IF(_Base_V1_Vehicle_Vehicle_Class=Const_Passenger_Light_Duty,IF(_Base_V1_Vehicle_Drivetrain="PHEV",MAX(IF(_Base_V1_Vehicle_Drivetrain="PHEV",Reg_PHEV_Const_Ex+Reg_PHEV_Age_Coef_Ex*(COLUMN(I4)-COLUMN($D4))+Reg_PHEV_Agesq_Coef_Ex*((COLUMN(I4)-COLUMN($D4))^2)+Reg_PHEV_MSRP_Coef_Ex*Base_V1_Base_Price_Ex+Reg_PHEV_Range_Coef_Ex*Constant_Baseline_Electric_Range+Reg_PHEV_Mileage_Coef_Ex*Base_V1_VMT_Modeled*(COLUMN(I4)-COLUMN($D4)),0),300),0),IF(COLUMN(I4)-COLUMN($D4)=1, 'Financial Model'!H7*0.77, 'Financial Model'!H7*0.85)) -> 26816.25 | J7: =IF($H7-$I7=0,0,MAX((1-($H7-$I7)/$H7)*I7,300)) -> 26059.24078 | K7: 25323.60154 | L7: 24608.72903 | M7: 23914.03702 | N7: 23238.9558 | O7: 22582.93179 | P7: 21945.42701 | Q7: 21325.91867 | R7: 20723.89873 | S7: 20138.87351 | T7: 19570.36326 | U7: 19017.90177 | V7: 18481.03599 | W7: 17959.32566 | X7: 17452.34295 | Y7: 16959.6721 | Z7: =IF($H7-$I7=0,0,MAX((1-($H7-$I7)/$H7)*Y7,300)) -> 16480.9091 | AA7: 16015.66135 | AB7: 15563.5473 | AC7: 15124.1962
B8: Fair Market Value - ICE | D8: =IF(_Base_V1_Vehicle_Drivetrain="ICE",Base_V1_Base_Price_Ex,0) -> 0 | E8: =IF(_Base_V1_Vehicle_Vehicle_Class=Const_Passenger_Light_Duty, IF(_Base_V1_Vehicle_Drivetrain="ICE",MAX(IF(_Base_V1_Vehicle_Drivetrain="ICE",Reg_ICE_Const_Ex+Reg_ICE_Age_Coef_Ex*(COLUMN(E4)-COLUMN($D4))+Reg_ICE_Agesq_Coef_Ex*(COLUMN(E4)-COLUMN($D4))^2+Reg_ICE_MSRP_Coef_Ex*Base_V1_Base_Price_Ex+Reg_ICE_MPG_Coef_Ex*Constant_Baseline_Fuel_Economy_Gas_City+Reg_ICE_Mileage_Coef_Ex*Base_V1_VMT_Modeled*(COLUMN(E4)-COLUMN($D4)),0),300),0), IF(COLUMN(E4)-COLUMN($D4)=1, 'Financial Model'!D8*0.77, 'Financial Model'!D8*0.85)) -> 0 | F8: =IF(_Base_V1_Vehicle_Vehicle_Class=Const_Passenger_Light_Duty, IF(_Base_V1_Vehicle_Drivetrain="ICE",MAX(IF(_Base_V1_Vehicle_Drivetrain="ICE",Reg_ICE_Const_Ex+Reg_ICE_Age_Coef_Ex*(COLUMN(F4)-COLUMN($D4))+Reg_ICE_Agesq_Coef_Ex*(COLUMN(F4)-COLUMN($D4))^2+Reg_ICE_MSRP_Coef_Ex*Base_V1_Base_Price_Ex+Reg_ICE_MPG_Coef_Ex*Constant_Baseline_Fuel_Economy_Gas_City+Reg_ICE_Mileage_Coef_Ex*Base_V1_VMT_Modeled*(COLUMN(F4)-COLUMN($D4)),0),300),0), IF(COLUMN(F4)-COLUMN($D4)=1, 'Financial Model'!E8*0.77, 'Financial Model'!E8*0.85)) -> 0 | G8: =IF(_Base_V1_Vehicle_Vehicle_Class=Const_Passenger_Light_Duty, IF(_Base_V1_Vehicle_Drivetrain="ICE",MAX(IF(_Base_V1_Vehicle_Drivetrain="ICE",Reg_ICE_Const_Ex+Reg_ICE_Age_Coef_Ex*(COLUMN(G4)-COLUMN($D4))+Reg_ICE_Agesq_Coef_Ex*(COLUMN(G4)-COLUMN($D4))^2+Reg_ICE_MSRP_Coef_Ex*Base_V1_Base_Price_Ex+Reg_ICE_MPG_Coef_Ex*Constant_Baseline_Fuel_Economy_Gas_City+Reg_ICE_Mileage_Coef_Ex*Base_V1_VMT_Modeled*(COLUMN(G4)-COLUMN($D4)),0),300),0), IF(COLUMN(G4)-COLUMN($D4)=1, 'Financial Model'!F8*0.77, 'Financial Model'!F8*0.85)) -> 0 | H8: =IF(_Base_V1_Vehicle_Vehicle_Class=Const_Passenger_Light_Duty, IF(_Base_V1_Vehicle_Drivetrain="ICE",MAX(IF(_Base_V1_Vehicle_Drivetrain="ICE",Reg_ICE_Const_Ex+Reg_ICE_Age_Coef_Ex*(COLUMN(H4)-COLUMN($D4))+Reg_ICE_Agesq_Coef_Ex*(COLUMN(H4)-COLUMN($D4))^2+Reg_ICE_MSRP_Coef_Ex*Base_V1_Base_Price_Ex+Reg_ICE_MPG_Coef_Ex*Constant_Baseline_Fuel_Economy_Gas_City+Reg_ICE_Mileage_Coef_Ex*Base_V1_VMT_Modeled*(COLUMN(H4)-COLUMN($D4)),0),300),0), IF(COLUMN(H4)-COLUMN($D4)=1, 'Financial Model'!G8*0.77, 'Financial Model'!G8*0.85)) -> 0 | I8: =IF(_Base_V1_Vehicle_Vehicle_Class=Const_Passenger_Light_Duty, IF(_Base_V1_Vehicle_Drivetrain="ICE",MAX(IF(_Base_V1_Vehicle_Drivetrain="ICE",Reg_ICE_Const_Ex+Reg_ICE_Age_Coef_Ex*(COLUMN(I4)-COLUMN($D4))+Reg_ICE_Agesq_Coef_Ex*(COLUMN(I4)-COLUMN($D4))^2+Reg_ICE_MSRP_Coef_Ex*Base_V1_Base_Price_Ex+Reg_ICE_MPG_Coef_Ex*Constant_Baseline_Fuel_Economy_Gas_City+Reg_ICE_Mileage_Coef_Ex*Base_V1_VMT_Modeled*(COLUMN(I4)-COLUMN($D4)),0),300),0), IF(COLUMN(I4)-COLUMN($D4)=1, 'Financial Model'!H8*0.77, 'Financial Model'!H8*0.85)) -> 0 | J8: 0 | K8: 0 | L8: 0 | M8: 0 | N8: 0 | O8: 0 | P8: 0 | Q8: 0 | R8: 0 | S8: 0 | T8: 0 | U8: 0 | V8: 0 | W8: 0 | X8: 0 | Y8: 0 | Z8: 0 | AA8: 0 | AB8: 0 | AC8: 0
B10: Capital and Financing Costs
B11: Cash
B12: Cash Payment | D12: =IF(AND(Base_V1_Has_Cash_Purchase_Ex=TRUE,Base_V1_Has_Loan_Ex=FALSE,Base_V1_Has_Lease_Ex=FALSE,COLUMN(D4)-COLUMN($D4)=0),-(Base_V1_Base_Price_Ex-IF(Base_V1_Tax_Incentives_Monetized="Yes",Base_V1_Federal_Tax_Incentives_Modeled+IF(Base_V1_State_Tax_Incentive_Cap_Modeled=0,Base_V1_State_Tax_Incentives_Modeled,MIN(Base_V1_State_Tax_Incentive_Cap_Modeled,Base_V1_State_Tax_Incentives_Modeled*Base_V1_Num_Vehicles_Modeled)/Base_V1_Num_Vehicles_Modeled),0)-Base_V1_Other_Incentives_Modeled),IF(AND(Base_V1_Has_Cash_Purchase_Ex=TRUE,OR(Base_V1_Has_Loan_Ex=TRUE,Base_V1_Has_Lease_Ex=TRUE),COLUMN(D4)-COLUMN($D4)=Base_V1_Lease_Term_Modeled),IF(ISERROR(FIND("Tax",_Base_V1_Ownership_Structure,1)),-SUM(D6:D8),-Base_V1_Lease_Residual_Price_Modeled),0)) -> -44995 | E12: 0 | F12: 0 | G12: 0 | H12: 0 | I12: 0 | J12: 0 | K12: 0 | L12: 0 | M12: 0 | N12: 0 | O12: 0 | P12: 0 | Q12: 0 | R12: 0 | S12: 0 | T12: 0 | U12: 0 | V12: 0 | W12: 0 | X12: 0 | Y12: 0 | Z12: 0 | AA12: 0 | AB12: 0 | AC12: 0
B13: Lease
B14: Down Payment | D14: =IF(Base_V1_Has_Lease_Ex=TRUE,-Base_V1_Down_Payment_Modeled,0) -> 0
B15: Acquisition Fee | D15: =IF(Base_V1_Has_Lease_Ex=TRUE,-Base_V1_Lease_Acquisition_Fee_Modeled,0) -> 0
B16: Disposition Charge | D16: =IF(AND(Base_V1_Has_Lease_Ex=TRUE,((COLUMN(D4)-COLUMN($D4))=Base_V1_Lease_Term_Modeled)),-Base_V1_Lease_Disposition_Fee_Modeled,0) -> 0 | E16: 0 | F16: 0 | G16: 0 | H16: 0 | I16: 0 | J16: 0 | K16: 0 | L16: 0 | M16: 0 | N16: 0 | O16: 0 | P16: 0 | Q16: 0 | R16: 0 | S16: 0 | T16: 0 | U16: 0 | V16: 0 | W16: 0 | X16: 0 | Y16: 0 | Z16: 0 | AA16: 0 | AB16: 0 | AC16: 0
B17: Lease Payments | E17: =IF(Base_V1_Has_Lease_Ex=TRUE,IF((COLUMN(E4)-COLUMN($E4))<Base_V1_Lease_Term_Modeled,-PMT(Base_V1_Lease_APR_Modeled/12,Base_V1_Lease_Term_Modeled*12,-(Base_V1_Base_Price_Ex-IF(Base_V1_Tax_Incentives_Monetized="Yes",Base_V1_Federal_Tax_Incentives_Modeled+IF(Base_V1_State_Tax_Incentive_Cap_Modeled=0,Base_V1_State_Tax_Incentives_Modeled,MIN(Base_V1_State_Tax_Incentive_Cap_Modeled,Base_V1_State_Tax_Incentives_Modeled*Base_V1_Num_Vehicles_Modeled)/Base_V1_Num_Vehicles_Modeled),0)-Base_V1_Other_Incentives_Modeled-Base_V1_Down_Payment_Modeled)+Base_V1_Lease_Residual_Price_Modeled,0)*12,0),0) -> 0 | F17: 0 | G17: 0 | H17: 0 | I17: 0 | J17: 0 | K17: 0 | L17: 0 | M17: 0 | N17: 0 | O17: 0 | P17: 0 | Q17: 0 | R17: 0 | S17: 0 | T17: 0 | U17: 0 | V17: 0 | W17: 0 | X17: 0 | Y17: 0 | Z17: 0 | AA17: 0 | AB17: 0 | AC17: 0
B18: Principal Payments | E18: =IF(Base_V1_Has_Lease_Ex=TRUE,IF((COLUMN(E4)-COLUMN($E4))<Base_V1_Lease_Term_Modeled,-PPMT(Base_V1_Lease_APR_Modeled/12,(COLUMN(E4)-COLUMN($D4))*12,Base_V1_Lease_Term_Modeled*12,-(Base_V1_Base_Price_Ex-IF(Base_V1_Tax_Incentives_Monetized="Yes",Base_V1_Federal_Tax_Incentives_Modeled+IF(Base_V1_State_Tax_Incentive_Cap_Modeled=0,Base_V1_State_Tax_Incentives_Modeled,MIN(Base_V1_State_Tax_Incentive_Cap_Modeled,Base_V1_State_Tax_Incentives_Modeled*Base_V1_Num_Vehicles_Modeled)/Base_V1_Num_Vehicles_Modeled),0)-Base_V1_Other_Incentives_Modeled-Base_V1_Down_Payment_Modeled)+Base_V1_Lease_Residual_Price_Modeled,0)*12,0),0) -> 0 | F18: 0 | G18: 0 | H18: 0 | I18: 0 | J18: 0 | K18: 0 | L18: 0 | M18: 0 | N18: 0 | O18: 0 | P18: 0 | Q18: 0 | R18: 0 | S18: 0 | T18: 0 | U18: 0 | V18: 0 | W18: 0 | X18: 0 | Y18: 0 | Z18: 0 | AA18: 0 | AB18: 0 | AC18: 0
B19: Interest Payments | E19: =IF(Base_V1_Has_Lease_Ex=TRUE,IF((COLUMN(E4)-COLUMN($E4))<Base_V1_Lease_Term_Modeled,-IPMT(Base_V1_Lease_APR_Modeled/12,(COLUMN(E4)-COLUMN($D4))*12,Base_V1_Lease_Term_Modeled*12,-(Base_V1_Base_Price_Ex-IF(Base_V1_Tax_Incentives_Monetized="Yes",Base_V1_Federal_Tax_Incentives_Modeled+IF(Base_V1_State_Tax_Incentive_Cap_Modeled=0,Base_V1_State_Tax_Incentives_Modeled,MIN(Base_V1_State_Tax_Incentive_Cap_Modeled,Base_V1_State_Tax_Incentives_Modeled*Base_V1_Num_Vehicles_Modeled)/Base_V1_Num_Vehicles_Modeled),0)-Base_V1_Other_Incentives_Modeled-Base_V1_Down_Payment_Modeled)+Base_V1_Lease_Residual_Price_Modeled,0)*12,0),0) -> 0 | F19: 0 | G19: 0 | H19: 0 | I19: 0 | J19: 0 | K19: 0 | L19: 0 | M19: 0 | N19: 0 | O19: 0 | P19: 0 | Q19: 0 | R19: 0 | S19: 0 | T19: 0 | U19: 0 | V19: 0 | W19: 0 | X19: 0 | Y19: 0 | Z19: 0 | AA19: 0 | AB19: 0 | AC19: 0
B20: TRAC Value Adjustment | E20: =IF(ISERROR(FIND("TRAC",_Base_V1_Ownership_Structure,1)),0,IF(Base_V1_Has_Loan_Ex=TRUE,0,IF((COLUMN(E4)-COLUMN($D4))=Base_V1_Lease_Term_Modeled,SUM(E6:E8)-Base_V1_Lease_Residual_Price_Modeled,0))) -> 0 | F20: 0 | G20: 0 | H20: 0 | I20: 0 | J20: 0 | K20: 0 | L20: 0 | M20: 0 | N20: 0 | O20: 0 | P20: 0 | Q20: 0 | R20: 0 | S20: 0 | T20: 0 | U20: 0 | V20: 0 | W20: 0 | X20: 0 | Y20: 0 | Z20: 0 | AA20: 0 | AB20: 0 | AC20: 0
B21: FMV Mileage Adjustment | E21: =MIN(0,MAX(-Base_V1_Lease_Residual_Price_Modeled+SUM(E6:E8),IF(IFERROR(IF(FIND("FMV",_Base_V1_Ownership_Structure,1)>0,TRUE,FALSE),FALSE),IF((COLUMN(E4)-COLUMN($D4))=Base_V1_Lease_Term_Modeled,(Base_V1_Lease_Mileage_Inc_Modeled-Base_V1_VMT_Modeled)*(COLUMN(E4)-COLUMN($D4))*Base_V1_Lease_Mileage_Cost_Modeled,0),0))) -> 0 | F21: 0 | G21: 0 | H21: 0 | I21: 0 | J21: 0 | K21: 0 | L21: 0 | M21: 0 | N21: 0 | O21: 0 | P21: 0 | Q21: 0 | R21: 0 | S21: 0 | T21: 0 | U21: 0 | V21: 0 | W21: 0 | X21: 0 | Y21: 0 | Z21: 0 | AA21: 0 | AB21: 0 | AC21: 0
B22: Subtotal Lease Cash Flows | D22: =SUM(D14:D17)+SUM(D20:D21) -> 0 | E22: =SUM(E14:E17)+SUM(E20:E21) -> 0 | F22: 0 | G22: 0 | H22: 0 | I22: 0 | J22: 0 | K22: 0 | L22: 0 | M22: 0 | N22: 0 | O22: 0 | P22: 0 | Q22: 0 | R22: 0 | S22: 0 | T22: 0 | U22: 0 | V22: 0 | W22: 0 | X22: 0 | Y22: 0 | Z22: 0 | AA22: 0 | AB22: 0 | AC22: 0
B23: Loan
B24: Down Payment | D24: =IF(AND(Base_V1_Has_Loan_Ex=TRUE,Base_V1_Has_Lease_Ex=FALSE),-Base_V1_Down_Payment_Modeled,0) -> 0
B25: Loan Payments | E25: =IF(Base_V1_Has_Loan_Ex=TRUE,IF(AND((COLUMN(E4)-COLUMN($E4))<Base_V1_Loan_Term_Modeled+Base_V1_Lease_Term_Modeled,(COLUMN(E4)-COLUMN($E4))>=Base_V1_Lease_Term_Modeled),PMT(Base_V1_Loan_APR_Modeled,Base_V1_Loan_Term_Modeled,IF(Base_V1_Has_Lease_Ex=TRUE,SUM(OFFSET($D4,0,Comp_V1_Lease_Term_Modeled,3,1)),Base_V1_Base_Price_Ex-IF(Base_V1_Tax_Incentives_Monetized="Yes",Base_V1_Federal_Tax_Incentives_Modeled+IF(Base_V1_State_Tax_Incentive_Cap_Modeled=0,Base_V1_State_Tax_Incentives_Modeled,MIN(Base_V1_State_Tax_Incentive_Cap_Modeled,Base_V1_State_Tax_Incentives_Modeled*Base_V1_Num_Vehicles_Modeled)/Base_V1_Num_Vehicles_Modeled),0)-Base_V1_Other_Incentives_Modeled-Base_V1_Down_Payment_Modeled),0),0),0) -> 0 | F25: 0 | G25: 0 | H25: 0 | I25: 0 | J25: 0 | K25: 0 | L25: 0 | M25: 0 | N25: 0 | O25: 0 | P25: 0 | Q25: 0 | R25: 0 | S25: 0 | T25: 0 | U25: 0 | V25: 0 | W25: 0 | X25: 0 | Y25: 0 | Z25: 0 | AA25: 0 | AB25: 0 | AC25: 0
B26: Principal Payments | E26: =IF(Base_V1_Has_Loan_Ex=TRUE,IF(AND((COLUMN(E4)-COLUMN($E4))<Base_V1_Loan_Term_Modeled+Base_V1_Lease_Term_Modeled,(COLUMN(E4)-COLUMN($E4))>=Base_V1_Lease_Term_Modeled),PPMT(Base_V1_Loan_APR_Modeled,IF(Base_V1_Has_Lease_Ex=TRUE,(COLUMN(E4)-COLUMN($D4)-Base_V1_Lease_Term_Modeled),(COLUMN(E4)-COLUMN($D4))),Base_V1_Loan_Term_Modeled,IF(Base_V1_Has_Lease_Ex=TRUE,SUM(OFFSET($D4,0,Comp_V1_Lease_Term_Modeled,3,1)),Base_V1_Base_Price_Ex-IF(Base_V1_Tax_Incentives_Monetized="Yes",Base_V1_Federal_Tax_Incentives_Modeled+IF(Base_V1_State_Tax_Incentive_Cap_Modeled=0,Base_V1_State_Tax_Incentives_Modeled,MIN(Base_V1_State_Tax_Incentive_Cap_Modeled,Base_V1_State_Tax_Incentives_Modeled*Base_V1_Num_Vehicles_Modeled)/Base_V1_Num_Vehicles_Modeled),0)-Base_V1_Other_Incentives_Modeled-Base_V1_Down_Payment_Modeled),0),0),0) -> 0 | F26: 0 | G26: 0 | H26: 0 | I26: 0 | J26: 0 | K26: 0 | L26: 0 | M26: 0 | N26: 0 | O26: 0 | P26: 0 | Q26: 0 | R26: 0 | S26: 0 | T26: 0 | U26: 0 | V26: 0 | W26: 0 | X26: 0 | Y26: 0 | Z26: 0 | AA26: 0 | AB26: 0 | AC26: 0
B27: Interest Payments | E27: =IF(Base_V1_Has_Loan_Ex=TRUE,IF(AND((COLUMN(E4)-COLUMN($E4))<Base_V1_Loan_Term_Modeled+Base_V1_Lease_Term_Modeled,(COLUMN(E4)-COLUMN($E4))>=Base_V1_Lease_Term_Modeled),IPMT(Base_V1_Loan_APR_Modeled,IF(Base_V1_Has_Lease_Ex=TRUE,(COLUMN(E4)-COLUMN($D4)-Base_V1_Lease_Term),(COLUMN(E4)-COLUMN($D4))),Base_V1_Loan_Term_Modeled,IF(Base_V1_Has_Lease_Ex=TRUE,SUM(OFFSET($D4,0,Comp_V1_Lease_Term_Modeled,3,1)),Base_V1_Base_Price_Ex-IF(Base_V1_Tax_Incentives_Monetized="Yes",Base_V1_Federal_Tax_Incentives_Modeled+IF(Base_V1_State_Tax_Incentive_Cap_Modeled=0,Base_V1_State_Tax_Incentives_Modeled,MIN(Base_V1_State_Tax_Incentive_Cap_Modeled,Base_V1_State_Tax_Incentives_Modeled*Base_V1_Num_Vehicles_Modeled)/Base_V1_Num_Vehicles_Modeled),0)-Base_V1_Other_Incentives_Modeled-Base_V1_Down_Payment_Modeled),0),0),0) -> 0 | F27: 0 | G27: 0 | H27: 0 | I27: 0 | J27: 0 | K27: 0 | L27: 0 | M27: 0 | N27: 0 | O27: 0 | P27: 0 | Q27: 0 | R27: 0 | S27: 0 | T27: 0 | U27: 0 | V27: 0 | W27: 0 | X27: 0 | Y27: 0 | Z27: 0 | AA27: 0 | AB27: 0 | AC27: 0
B28: Subtotal Loan Cash Flows | D28: =SUM(D24:D25) -> 0 | E28: =SUM(E24:E25) -> 0 | F28: 0 | G28: 0 | H28: 0 | I28: 0 | J28: 0 | K28: 0 | L28: 0 | M28: 0 | N28: 0 | O28: 0 | P28: 0 | Q28: 0 | R28: 0 | S28: 0 | T28: 0 | U28: 0 | V28: 0 | W28: 0 | X28: 0 | Y28: 0 | Z28: 0 | AA28: 0 | AB28: 0 | AC28: 0
B29: Terminal Value | E29: =IF(OR(Base_V1_Has_Loan_Ex=TRUE,Base_V1_Has_Cash_Purchase_Ex=TRUE),IF((COLUMN(E4)-COLUMN($D4))=Base_V1_Years_Usage_Modeled,SUM(E6:E8),0),0) -> 0 | F29: 0 | G29: 0 | H29: 0 | I29: 0 | J29: 0 | K29: 25323.60154 | L29: 0 | M29: 0 | N29: 0 | O29: 0 | P29: 0 | Q29: 0 | R29: 0 | S29: 0 | T29: 0 | U29: 0 | V29: 0 | W29: 0 | X29: 0 | Y29: 0 | Z29: 0 | AA29: 0 | AB29: 0 | AC29: 0
B31: Total Capital and Financing Costs | D31: =D12+D22+D28+D29 -> -44995 | E31: =E12+E22+E28+E29 -> 0 | F31: =F12+F22+F28+F29 -> 0 | G31: 0 | H31: 0 | I31: 0 | J31: 0 | K31: 25323.60154 | L31: 0 | M31: 0 | N31: 0 | O31: 0 | P31: 0 | Q31: 0 | R31: 0 | S31: 0 | T31: 0 | U31: 0 | V31: 0 | W31: 0 | X31: 0 | Y31: 0 | Z31: 0 | AA31: 0 | AB31: 0 | AC31: 0
B33: Fuel and Operating Costs
B34: Fuel Cost | E34: =IF(COLUMN(E4)-COLUMN($E4)<Base_V1_Years_Usage_Modeled,-((Base_V1_Gas_Diesel_Usage_Ex*IF(Base_V1_Fuel_Type_Ex="Diesel", Diesel_Price_Modeled, Gasoline_Price_Modeled)*IF(_Market="U.S.", 'Data - Energy Inflation'!D$4, 'Data - Energy Inflation'!D$7))+(Base_V1_Electricity_Usage_Ex*IF(_Market="U.S.", 'Data - Energy Inflation'!D$6, 'Data - Energy Inflation'!D$8))*(Base_Percent_Home_Charging_Modeled*Electricity_Price_Modeled+Base_Percent_Public_Charging_Modeled*Public_Charging_Price_Modeled+Base_Percent_En_Route_Charging_Modeled*En_Route_Charging_Price_Modeled)),0) -> -978.4443665 | F34: =IF(COLUMN(F4)-COLUMN($E4)<Base_V1_Years_Usage_Modeled,-((Base_V1_Gas_Diesel_Usage_Ex*IF(Base_V1_Fuel_Type_Ex="Diesel", Diesel_Price_Modeled, Gasoline_Price_Modeled)*IF(_Market="U.S.", 'Data - Energy Inflation'!E$4, 'Data - Energy Inflation'!E$7))+(Base_V1_Electricity_Usage_Ex*IF(_Market="U.S.", 'Data - Energy Inflation'!E$6, 'Data - Energy Inflation'!E$8))*(Base_Percent_Home_Charging_Modeled*Electricity_Price_Modeled+Base_Percent_Public_Charging_Modeled*Public_Charging_Price_Modeled+Base_Percent_En_Route_Charging_Modeled*En_Route_Charging_Price_Modeled)),0) -> -1021.918052 | G34: =IF(COLUMN(G4)-COLUMN($E4)<Base_V1_Years_Usage_Modeled,-((Base_V1_Gas_Diesel_Usage_Ex*IF(Base_V1_Fuel_Type_Ex="Diesel", Diesel_Price_Modeled, Gasoline_Price_Modeled)*IF(_Market="U.S.", 'Data - Energy Inflation'!F$4, 'Data - Energy Inflation'!F$7))+(Base_V1_Electricity_Usage_Ex*IF(_Market="U.S.", 'Data - Energy Inflation'!F$6, 'Data - Energy Inflation'!F$8))*(Base_Percent_Home_Charging_Modeled*Electricity_Price_Modeled+Base_Percent_Public_Charging_Modeled*Public_Charging_Price_Modeled+Base_Percent_En_Route_Charging_Modeled*En_Route_Charging_Price_Modeled)),0) -> -1001.896977 | H34: =IF(COLUMN(H4)-COLUMN($E4)<Base_V1_Years_Usage_Modeled,-((Base_V1_Gas_Diesel_Usage_Ex*IF(Base_V1_Fuel_Type_Ex="Diesel", Diesel_Price_Modeled, Gasoline_Price_Modeled)*IF(_Market="U.S.", 'Data - Energy Inflation'!G$4, 'Data - Energy Inflation'!G$7))+(Base_V1_Electricity_Usage_Ex*IF(_Market="U.S.", 'Data - Energy Inflation'!G$6, 'Data - Energy Inflation'!G$8))*(Base_Percent_Home_Charging_Modeled*Electricity_Price_Modeled+Base_Percent_Public_Charging_Modeled*Public_Charging_Price_Modeled+Base_Percent_En_Route_Charging_Modeled*En_Route_Charging_Price_Modeled)),0) -> -984.8536531 | I34: =IF(COLUMN(I4)-COLUMN($E4)<Base_V1_Years_Usage_Modeled,-((Base_V1_Gas_Diesel_Usage_Ex*IF(Base_V1_Fuel_Type_Ex="Diesel", Diesel_Price_Modeled, Gasoline_Price_Modeled)*IF(_Market="U.S.", 'Data - Energy Inflation'!H$4, 'Data - Energy Inflation'!H$7))+(Base_V1_Electricity_Usage_Ex*IF(_Market="U.S.", 'Data - Energy Inflation'!H$6, 'Data - Energy Inflation'!H$8))*(Base_Percent_Home_Charging_Modeled*Electricity_Price_Modeled+Base_Percent_Public_Charging_Modeled*Public_Charging_Price_Modeled+Base_Percent_En_Route_Charging_Modeled*En_Route_Charging_Price_Modeled)),0) -> -971.0802554 | J34: =IF(COLUMN(J4)-COLUMN($E4)<Base_V1_Years_Usage_Modeled,-((Base_V1_Gas_Diesel_Usage_Ex*IF(Base_V1_Fuel_Type_Ex="Diesel", Diesel_Price_Modeled, Gasoline_Price_Modeled)*IF(_Market="U.S.", 'Data - Energy Inflation'!I$4, 'Data - Energy Inflation'!I$7))+(Base_V1_Electricity_Usage_Ex*IF(_Market="U.S.", 'Data - Energy Inflation'!I$6, 'Data - Energy Inflation'!I$8))*(Base_Percent_Home_Charging_Modeled*Electricity_Price_Modeled+Base_Percent_Public_Charging_Modeled*Public_Charging_Price_Modeled+Base_Percent_En_Route_Charging_Modeled*En_Route_Charging_Price_Modeled)),0) -> -971.4386142 | K34: =IF(COLUMN(K4)-COLUMN($E4)<Base_V1_Years_Usage_Modeled,-((Base_V1_Gas_Diesel_Usage_Ex*IF(Base_V1_Fuel_Type_Ex="Diesel", Diesel_Price_Modeled, Gasoline_Price_Modeled)*IF(_Market="U.S.", 'Data - Energy Inflation'!J$4, 'Data - Energy Inflation'!J$7))+(Base_V1_Electricity_Usage_Ex*IF(_Market="U.S.", 'Data - Energy Inflation'!J$6, 'Data - Energy Inflation'!J$8))*(Base_Percent_Home_Charging_Modeled*Electricity_Price_Modeled+Base_Percent_Public_Charging_Modeled*Public_Charging_Price_Modeled+Base_Percent_En_Route_Charging_Modeled*En_Route_Charging_Price_Modeled)),0) -> -977.836731 | L34: =IF(COLUMN(L4)-COLUMN($E4)<Base_V1_Years_Usage_Modeled,-((Base_V1_Gas_Diesel_Usage_Ex*IF(Base_V1_Fuel_Type_Ex="Diesel", Diesel_Price_Modeled, Gasoline_Price_Modeled)*IF(_Market="U.S.", 'Data - Energy Inflation'!K$4, 'Data - Energy Inflation'!K$7))+(Base_V1_Electricity_Usage_Ex*IF(_Market="U.S.", 'Data - Energy Inflation'!K$6, 'Data - Energy Inflation'!K$8))*(Base_Percent_Home_Charging_Modeled*Electricity_Price_Modeled+Base_Percent_Public_Charging_Modeled*Public_Charging_Price_Modeled+Base_Percent_En_Route_Charging_Modeled*En_Route_Charging_Price_Modeled)),0) -> 0 | M34: =IF(COLUMN(M4)-COLUMN($E4)<Base_V1_Years_Usage_Modeled,-((Base_V1_Gas_Diesel_Usage_Ex*IF(Base_V1_Fuel_Type_Ex="Diesel", Diesel_Price_Modeled, Gasoline_Price_Modeled)*IF(_Market="U.S.", 'Data - Energy Inflation'!L$4, 'Data - Energy Inflation'!L$7))+(Base_V1_Electricity_Usage_Ex*IF(_Market="U.S.", 'Data - Energy Inflation'!L$6, 'Data - Energy Inflation'!L$8))*(Base_Percent_Home_Charging_Modeled*Electricity_Price_Modeled+Base_Percent_Public_Charging_Modeled*Public_Charging_Price_Modeled+Base_Percent_En_Route_Charging_Modeled*En_Route_Charging_Price_Modeled)),0) -> 0 | N34: =IF(COLUMN(N4)-COLUMN($E4)<Base_V1_Years_Usage_Modeled,-((Base_V1_Gas_Diesel_Usage_Ex*IF(Base_V1_Fuel_Type_Ex="Diesel", Diesel_Price_Modeled, Gasoline_Price_Modeled)*IF(_Market="U.S.", 'Data - Energy Inflation'!M$4, 'Data - Energy Inflation'!M$7))+(Base_V1_Electricity_Usage_Ex*IF(_Market="U.S.", 'Data - Energy Inflation'!M$6, 'Data - Energy Inflation'!M$8))*(Base_Percent_Home_Charging_Modeled*Electricity_Price_Modeled+Base_Percent_Public_Charging_Modeled*Public_Charging_Price_Modeled+Base_Percent_En_Route_Charging_Modeled*En_Route_Charging_Price_Modeled)),0) -> 0 | O34: =IF(COLUMN(O4)-COLUMN($E4)<Base_V1_Years_Usage_Modeled,-((Base_V1_Gas_Diesel_Usage_Ex*IF(Base_V1_Fuel_Type_Ex="Diesel", Diesel_Price_Modeled, Gasoline_Price_Modeled)*IF(_Market="U.S.", 'Data - Energy Inflation'!N$4, 'Data - Energy Inflation'!N$7))+(Base_V1_Electricity_Usage_Ex*IF(_Market="U.S.", 'Data - Energy Inflation'!N$6, 'Data - Energy Inflation'!N$8))*(Base_Percent_Home_Charging_Modeled*Electricity_Price_Modeled+Base_Percent_Public_Charging_Modeled*Public_Charging_Price_Modeled+Base_Percent_En_Route_Charging_Modeled*En_Route_Charging_Price_Modeled)),0) -> 0 | P34: =IF(COLUMN(P4)-COLUMN($E4)<Base_V1_Years_Usage_Modeled,-((Base_V1_Gas_Diesel_Usage_Ex*IF(Base_V1_Fuel_Type_Ex="Diesel", Diesel_Price_Modeled, Gasoline_Price_Modeled)*IF(_Market="U.S.", 'Data - Energy Inflation'!O$4, 'Data - Energy Inflation'!O$7))+(Base_V1_Electricity_Usage_Ex*IF(_Market="U.S.", 'Data - Energy Inflation'!O$6, 'Data - Energy Inflation'!O$8))*(Base_Percent_Home_Charging_Modeled*Electricity_Price_Modeled+Base_Percent_Public_Charging_Modeled*Public_Charging_Price_Modeled+Base_Percent_En_Route_Charging_Modeled*En_Route_Charging_Price_Modeled)),0) -> 0 | Q34: =IF(COLUMN(Q4)-COLUMN($E4)<Base_V1_Years_Usage_Modeled,-((Base_V1_Gas_Diesel_Usage_Ex*IF(Base_V1_Fuel_Type_Ex="Diesel", Diesel_Price_Modeled, Gasoline_Price_Modeled)*IF(_Market="U.S.", 'Data - Energy Inflation'!P$4, 'Data - Energy Inflation'!P$7))+(Base_V1_Electricity_Usage_Ex*IF(_Market="U.S.", 'Data - Energy Inflation'!P$6, 'Data - Energy Inflation'!P$8))*(Base_Percent_Home_Charging_Modeled*Electricity_Price_Modeled+Base_Percent_Public_Charging_Modeled*Public_Charging_Price_Modeled+Base_Percent_En_Route_Charging_Modeled*En_Route_Charging_Price_Modeled)),0) -> 0 | R34: =IF(COLUMN(R4)-COLUMN($E4)<Base_V1_Years_Usage_Modeled,-((Base_V1_Gas_Diesel_Usage_Ex*IF(Base_V1_Fuel_Type_Ex="Diesel", Diesel_Price_Modeled, Gasoline_Price_Modeled)*IF(_Market="U.S.", 'Data - Energy Inflation'!Q$4, 'Data - Energy Inflation'!Q$7))+(Base_V1_Electricity_Usage_Ex*IF(_Market="U.S.", 'Data - Energy Inflation'!Q$6, 'Data - Energy Inflation'!Q$8))*(Base_Percent_Home_Charging_Modeled*Electricity_Price_Modeled+Base_Percent_Public_Charging_Modeled*Public_Charging_Price_Modeled+Base_Percent_En_Route_Charging_Modeled*En_Route_Charging_Price_Modeled)),0) -> 0 | S34: =IF(COLUMN(S4)-COLUMN($E4)<Base_V1_Years_Usage_Modeled,-((Base_V1_Gas_Diesel_Usage_Ex*IF(Base_V1_Fuel_Type_Ex="Diesel", Diesel_Price_Modeled, Gasoline_Price_Modeled)*IF(_Market="U.S.", 'Data - Energy Inflation'!R$4, 'Data - Energy Inflation'!R$7))+(Base_V1_Electricity_Usage_Ex*IF(_Market="U.S.", 'Data - Energy Inflation'!R$6, 'Data - Energy Inflation'!R$8))*(Base_Percent_Home_Charging_Modeled*Electricity_Price_Modeled+Base_Percent_Public_Charging_Modeled*Public_Charging_Price_Modeled+Base_Percent_En_Route_Charging_Modeled*En_Route_Charging_Price_Modeled)),0) -> 0 | T34: =IF(COLUMN(T4)-COLUMN($E4)<Base_V1_Years_Usage_Modeled,-((Base_V1_Gas_Diesel_Usage_Ex*IF(Base_V1_Fuel_Type_Ex="Diesel", Diesel_Price_Modeled, Gasoline_Price_Modeled)*IF(_Market="U.S.", 'Data - Energy Inflation'!S$4, 'Data - Energy Inflation'!S$7))+(Base_V1_Electricity_Usage_Ex*IF(_Market="U.S.", 'Data - Energy Inflation'!S$6, 'Data - Energy Inflation'!S$8))*(Base_Percent_Home_Charging_Modeled*Electricity_Price_Modeled+Base_Percent_Public_Charging_Modeled*Public_Charging_Price_Modeled+Base_Percent_En_Route_Charging_Modeled*En_Route_Charging_Price_Modeled)),0) -> 0 | U34: =IF(COLUMN(U4)-COLUMN($E4)<Base_V1_Years_Usage_Modeled,-((Base_V1_Gas_Diesel_Usage_Ex*IF(Base_V1_Fuel_Type_Ex="Diesel", Diesel_Price_Modeled, Gasoline_Price_Modeled)*IF(_Market="U.S.", 'Data - Energy Inflation'!T$4, 'Data - Energy Inflation'!T$7))+(Base_V1_Electricity_Usage_Ex*IF(_Market="U.S.", 'Data - Energy Inflation'!T$6, 'Data - Energy Inflation'!T$8))*(Base_Percent_Home_Charging_Modeled*Electricity_Price_Modeled+Base_Percent_Public_Charging_Modeled*Public_Charging_Price_Modeled+Base_Percent_En_Route_Charging_Modeled*En_Route_Charging_Price_Modeled)),0) -> 0 | V34: =IF(COLUMN(V4)-COLUMN($E4)<Base_V1_Years_Usage_Modeled,-((Base_V1_Gas_Diesel_Usage_Ex*IF(Base_V1_Fuel_Type_Ex="Diesel", Diesel_Price_Modeled, Gasoline_Price_Modeled)*IF(_Market="U.S.", 'Data - Energy Inflation'!U$4, 'Data - Energy Inflation'!U$7))+(Base_V1_Electricity_Usage_Ex*IF(_Market="U.S.", 'Data - Energy Inflation'!U$6, 'Data - Energy Inflation'!U$8))*(Base_Percent_Home_Charging_Modeled*Electricity_Price_Modeled+Base_Percent_Public_Charging_Modeled*Public_Charging_Price_Modeled+Base_Percent_En_Route_Charging_Modeled*En_Route_Charging_Price_Modeled)),0) -> 0 | W34: =IF(COLUMN(W4)-COLUMN($E4)<Base_V1_Years_Usage_Modeled,-((Base_V1_Gas_Diesel_Usage_Ex*IF(Base_V1_Fuel_Type_Ex="Diesel", Diesel_Price_Modeled, Gasoline_Price_Modeled)*IF(_Market="U.S.", 'Data - Energy Inflation'!V$4, 'Data - Energy Inflation'!V$7))+(Base_V1_Electricity_Usage_Ex*IF(_Market="U.S.", 'Data - Energy Inflation'!V$6, 'Data - Energy Inflation'!V$8))*(Base_Percent_Home_Charging_Modeled*Electricity_Price_Modeled+Base_Percent_Public_Charging_Modeled*Public_Charging_Price_Modeled+Base_Percent_En_Route_Charging_Modeled*En_Route_Charging_Price_Modeled)),0) -> 0 | X34: =IF(COLUMN(X4)-COLUMN($E4)<Base_V1_Years_Usage_Modeled,-((Base_V1_Gas_Diesel_Usage_Ex*IF(Base_V1_Fuel_Type_Ex="Diesel", Diesel_Price_Modeled, Gasoline_Price_Modeled)*IF(_Market="U.S.", 'Data - Energy Inflation'!W$4, 'Data - Energy Inflation'!W$7))+(Base_V1_Electricity_Usage_Ex*IF(_Market="U.S.", 'Data - Energy Inflation'!W$6, 'Data - Energy Inflation'!W$8))*(Base_Percent_Home_Charging_Modeled*Electricity_Price_Modeled+Base_Percent_Public_Charging_Modeled*Public_Charging_Price_Modeled+Base_Percent_En_Route_Charging_Modeled*En_Route_Charging_Price_Modeled)),0) -> 0 | Y34: =IF(COLUMN(Y4)-COLUMN($E4)<Base_V1_Years_Usage_Modeled,-((Base_V1_Gas_Diesel_Usage_Ex*IF(Base_V1_Fuel_Type_Ex="Diesel", Diesel_Price_Modeled, Gasoline_Price_Modeled)*IF(_Market="U.S.", 'Data - Energy Inflation'!X$4, 'Data - Energy Inflation'!X$7))+(Base_V1_Electricity_Usage_Ex*IF(_Market="U.S.", 'Data - Energy Inflation'!X$6, 'Data - Energy Inflation'!X$8))*(Base_Percent_Home_Charging_Modeled*Electricity_Price_Modeled+Base_Percent_Public_Charging_Modeled*Public_Charging_Price_Modeled+Base_Percent_En_Route_Charging_Modeled*En_Route_Charging_Price_Modeled)),0) -> 0 | Z34: =IF(COLUMN(Z4)-COLUMN($E4)<Base_V1_Years_Usage_Modeled,-((Base_V1_Gas_Diesel_Usage_Ex*IF(Base_V1_Fuel_Type_Ex="Diesel", Diesel_Price_Modeled, Gasoline_Price_Modeled)*IF(_Market="U.S.", 'Data - Energy Inflation'!Y$4, 'Data - Energy Inflation'!Y$7))+(Base_V1_Electricity_Usage_Ex*IF(_Market="U.S.", 'Data - Energy Inflation'!Y$6, 'Data - Energy Inflation'!Y$8))*(Base_Percent_Home_Charging_Modeled*Electricity_Price_Modeled+Base_Percent_Public_Charging_Modeled*Public_Charging_Price_Modeled+Base_Percent_En_Route_Charging_Modeled*En_Route_Charging_Price_Modeled)),0) -> 0 | AA34: =IF(COLUMN(AA4)-COLUMN($E4)<Base_V1_Years_Usage_Modeled,-((Base_V1_Gas_Diesel_Usage_Ex*IF(Base_V1_Fuel_Type_Ex="Diesel", Diesel_Price_Modeled, Gasoline_Price_Modeled)*IF(_Market="U.S.", 'Data - Energy Inflation'!Z$4, 'Data - Energy Inflation'!Z$7))+(Base_V1_Electricity_Usage_Ex*IF(_Market="U.S.", 'Data - Energy Inflation'!Z$6, 'Data - Energy Inflation'!Z$8))*(Base_Percent_Home_Charging_Modeled*Electricity_Price_Modeled+Base_Percent_Public_Charging_Modeled*Public_Charging_Price_Modeled+Base_Percent_En_Route_Charging_Modeled*En_Route_Charging_Price_Modeled)),0) -> 0 | AB34: =IF(COLUMN(AB4)-COLUMN($E4)<Base_V1_Years_Usage_Modeled,-((Base_V1_Gas_Diesel_Usage_Ex*IF(Base_V1_Fuel_Type_Ex="Diesel", Diesel_Price_Modeled, Gasoline_Price_Modeled)*IF(_Market="U.S.", 'Data - Energy Inflation'!AA$4, 'Data - Energy Inflation'!AA$7))+(Base_V1_Electricity_Usage_Ex*IF(_Market="U.S.", 'Data - Energy Inflation'!AA$6, 'Data - Energy Inflation'!AA$8))*(Base_Percent_Home_Charging_Modeled*Electricity_Price_Modeled+Base_Percent_Public_Charging_Modeled*Public_Charging_Price_Modeled+Base_Percent_En_Route_Charging_Modeled*En_Route_Charging_Price_Modeled)),0) -> 0 | AC34: =IF(COLUMN(AC4)-COLUMN($E4)<Base_V1_Years_Usage_Modeled,-((Base_V1_Gas_Diesel_Usage_Ex*IF(Base_V1_Fuel_Type_Ex="Diesel", Diesel_Price_Modeled, Gasoline_Price_Modeled)*IF(_Market="U.S.", 'Data - Energy Inflation'!AB$4, 'Data - Energy Inflation'!AB$7))+(Base_V1_Electricity_Usage_Ex*IF(_Market="U.S.", 'Data - Energy Inflation'!AB$6, 'Data - Energy Inflation'!AB$8))*(Base_Percent_Home_Charging_Modeled*Electricity_Price_Modeled+Base_Percent_Public_Charging_Modeled*Public_Charging_Price_Modeled+Base_Percent_En_Route_Charging_Modeled*En_Route_Charging_Price_Modeled)),0) -> 0
B35: Maintenance and Repair Cost | E35: =-IF(_Base_V1_Maint_Repair_Cost_Use_Default="Yes",IF(COLUMN(E4)-COLUMN($E4)<Base_V1_Years_Usage_Modeled,VLOOKUP(_Base_V1_Vehicle_Vehicle_Class & _Base_V1_Vehicle_Drivetrain & _Market,DB_Maint_Repair_Costs[],COLUMN(E4)-COLUMN($E4)+COLUMN(DB_Maint_Repair_Costs[[#Headers],[Year 1 ]]),FALSE)*Base_V1_VMT_Modeled,0),IF(AND(COLUMN(E4)-COLUMN($E4)<Base_V1_Years_Usage_Modeled,COLUMN(E4)-COLUMN($E4)<5),Base_V1_Maint_Repair_Cost_Year_1_Modeled*Base_V1_VMT_Modeled,IF(AND(COLUMN(E4)-COLUMN($E4)<Base_V1_Years_Usage_Modeled,COLUMN(E4)-COLUMN($E4)>=5),Base_V1_Maint_Repair_Cost_Year_5_Modeled*Base_V1_VMT_Modeled,0)))*'Data General Inflation'!D$3 -> -840 | F35: =-IF(_Base_V1_Maint_Repair_Cost_Use_Default="Yes",IF(COLUMN(F4)-COLUMN($E4)<Base_V1_Years_Usage_Modeled,VLOOKUP(_Base_V1_Vehicle_Vehicle_Class & _Base_V1_Vehicle_Drivetrain & _Market,DB_Maint_Repair_Costs[],COLUMN(F4)-COLUMN($E4)+COLUMN(DB_Maint_Repair_Costs[[#Headers],[Year 1 ]]),FALSE)*Base_V1_VMT_Modeled,0),IF(AND(COLUMN(F4)-COLUMN($E4)<Base_V1_Years_Usage_Modeled,COLUMN(F4)-COLUMN($E4)<5),Base_V1_Maint_Repair_Cost_Year_1_Modeled*Base_V1_VMT_Modeled,IF(AND(COLUMN(F4)-COLUMN($E4)<Base_V1_Years_Usage_Modeled,COLUMN(F4)-COLUMN($E4)>=5),Base_V1_Maint_Repair_Cost_Year_5_Modeled*Base_V1_VMT_Modeled,0)))*'Data General Inflation'!E$3 -> -856.8 | G35: =-IF(_Base_V1_Maint_Repair_Cost_Use_Default="Yes",IF(COLUMN(G4)-COLUMN($E4)<Base_V1_Years_Usage_Modeled,VLOOKUP(_Base_V1_Vehicle_Vehicle_Class & _Base_V1_Vehicle_Drivetrain & _Market,DB_Maint_Repair_Costs[],COLUMN(G4)-COLUMN($E4)+COLUMN(DB_Maint_Repair_Costs[[#Headers],[Year 1 ]]),FALSE)*Base_V1_VMT_Modeled,0),IF(AND(COLUMN(G4)-COLUMN($E4)<Base_V1_Years_Usage_Modeled,COLUMN(G4)-COLUMN($E4)<5),Base_V1_Maint_Repair_Cost_Year_1_Modeled*Base_V1_VMT_Modeled,IF(AND(COLUMN(G4)-COLUMN($E4)<Base_V1_Years_Usage_Modeled,COLUMN(G4)-COLUMN($E4)>=5),Base_V1_Maint_Repair_Cost_Year_5_Modeled*Base_V1_VMT_Modeled,0)))*'Data General Inflation'!F$3 -> -873.936 | H35: =-IF(_Base_V1_Maint_Repair_Cost_Use_Default="Yes",IF(COLUMN(H4)-COLUMN($E4)<Base_V1_Years_Usage_Modeled,VLOOKUP(_Base_V1_Vehicle_Vehicle_Class & _Base_V1_Vehicle_Drivetrain & _Market,DB_Maint_Repair_Costs[],COLUMN(H4)-COLUMN($E4)+COLUMN(DB_Maint_Repair_Costs[[#Headers],[Year 1 ]]),FALSE)*Base_V1_VMT_Modeled,0),IF(AND(COLUMN(H4)-COLUMN($E4)<Base_V1_Years_Usage_Modeled,COLUMN(H4)-COLUMN($E4)<5),Base_V1_Maint_Repair_Cost_Year_1_Modeled*Base_V1_VMT_Modeled,IF(AND(COLUMN(H4)-COLUMN($E4)<Base_V1_Years_Usage_Modeled,COLUMN(H4)-COLUMN($E4)>=5),Base_V1_Maint_Repair_Cost_Year_5_Modeled*Base_V1_VMT_Modeled,0)))*'Data General Inflation'!G$3 -> -891.41472 | I35: =-IF(_Base_V1_Maint_Repair_Cost_Use_Default="Yes",IF(COLUMN(I4)-COLUMN($E4)<Base_V1_Years_Usage_Modeled,VLOOKUP(_Base_V1_Vehicle_Vehicle_Class & _Base_V1_Vehicle_Drivetrain & _Market,DB_Maint_Repair_Costs[],COLUMN(I4)-COLUMN($E4)+COLUMN(DB_Maint_Repair_Costs[[#Headers],[Year 1 ]]),FALSE)*Base_V1_VMT_Modeled,0),IF(AND(COLUMN(I4)-COLUMN($E4)<Base_V1_Years_Usage_Modeled,COLUMN(I4)-COLUMN($E4)<5),Base_V1_Maint_Repair_Cost_Year_1_Modeled*Base_V1_VMT_Modeled,IF(AND(COLUMN(I4)-COLUMN($E4)<Base_V1_Years_Usage_Modeled,COLUMN(I4)-COLUMN($E4)>=5),Base_V1_Maint_Repair_Cost_Year_5_Modeled*Base_V1_VMT_Modeled,0)))*'Data General Inflation'!H$3 -> -909.2430144 | J35: =-IF(_Base_V1_Maint_Repair_Cost_Use_Default="Yes",IF(COLUMN(J4)-COLUMN($E4)<Base_V1_Years_Usage_Modeled,VLOOKUP(_Base_V1_Vehicle_Vehicle_Class & _Base_V1_Vehicle_Drivetrain & _Market,DB_Maint_Repair_Costs[],COLUMN(J4)-COLUMN($E4)+COLUMN(DB_Maint_Repair_Costs[[#Headers],[Year 1 ]]),FALSE)*Base_V1_VMT_Modeled,0),IF(AND(COLUMN(J4)-COLUMN($E4)<Base_V1_Years_Usage_Modeled,COLUMN(J4)-COLUMN($E4)<5),Base_V1_Maint_Repair_Cost_Year_1_Modeled*Base_V1_VMT_Modeled,IF(AND(COLUMN(J4)-COLUMN($E4)<Base_V1_Years_Usage_Modeled,COLUMN(J4)-COLUMN($E4)>=5),Base_V1_Maint_Repair_Cost_Year_5_Modeled*Base_V1_VMT_Modeled,0)))*'Data General Inflation'!I$3 -> -1205.656237 | K35: =-IF(_Base_V1_Maint_Repair_Cost_Use_Default="Yes",IF(COLUMN(K4)-COLUMN($E4)<Base_V1_Years_Usage_Modeled,VLOOKUP(_Base_V1_Vehicle_Vehicle_Class & _Base_V1_Vehicle_Drivetrain & _Market,DB_Maint_Repair_Costs[],COLUMN(K4)-COLUMN($E4)+COLUMN(DB_Maint_Repair_Costs[[#Headers],[Year 1 ]]),FALSE)*Base_V1_VMT_Modeled,0),IF(AND(COLUMN(K4)-COLUMN($E4)<Base_V1_Years_Usage_Modeled,COLUMN(K4)-COLUMN($E4)<5),Base_V1_Maint_Repair_Cost_Year_1_Modeled*Base_V1_VMT_Modeled,IF(AND(COLUMN(K4)-COLUMN($E4)<Base_V1_Years_Usage_Modeled,COLUMN(K4)-COLUMN($E4)>=5),Base_V1_Maint_Repair_Cost_Year_5_Modeled*Base_V1_VMT_Modeled,0)))*'Data General Inflation'!J$3 -> -1229.769362 | L35: =-IF(_Base_V1_Maint_Repair_Cost_Use_Default="Yes",IF(COLUMN(L4)-COLUMN($E4)<Base_V1_Years_Usage_Modeled,VLOOKUP(_Base_V1_Vehicle_Vehicle_Class & _Base_V1_Vehicle_Drivetrain & _Market,DB_Maint_Repair_Costs[],COLUMN(L4)-COLUMN($E4)+COLUMN(DB_Maint_Repair_Costs[[#Headers],[Year 1 ]]),FALSE)*Base_V1_VMT_Modeled,0),IF(AND(COLUMN(L4)-COLUMN($E4)<Base_V1_Years_Usage_Modeled,COLUMN(L4)-COLUMN($E4)<5),Base_V1_Maint_Repair_Cost_Year_1_Modeled*Base_V1_VMT_Modeled,IF(AND(COLUMN(L4)-COLUMN($E4)<Base_V1_Years_Usage_Modeled,COLUMN(L4)-COLUMN($E4)>=5),Base_V1_Maint_Repair_Cost_Year_5_Modeled*Base_V1_VMT_Modeled,0)))*'Data General Inflation'!K$3 -> 0 | M35: =-IF(_Base_V1_Maint_Repair_Cost_Use_Default="Yes",IF(COLUMN(M4)-COLUMN($E4)<Base_V1_Years_Usage_Modeled,VLOOKUP(_Base_V1_Vehicle_Vehicle_Class & _Base_V1_Vehicle_Drivetrain & _Market,DB_Maint_Repair_Costs[],COLUMN(M4)-COLUMN($E4)+COLUMN(DB_Maint_Repair_Costs[[#Headers],[Year 1 ]]),FALSE)*Base_V1_VMT_Modeled,0),IF(AND(COLUMN(M4)-COLUMN($E4)<Base_V1_Years_Usage_Modeled,COLUMN(M4)-COLUMN($E4)<5),Base_V1_Maint_Repair_Cost_Year_1_Modeled*Base_V1_VMT_Modeled,IF(AND(COLUMN(M4)-COLUMN($E4)<Base_V1_Years_Usage_Modeled,COLUMN(M4)-COLUMN($E4)>=5),Base_V1_Maint_Repair_Cost_Year_5_Modeled*Base_V1_VMT_Modeled,0)))*'Data General Inflation'!L$3 -> 0 | N35: =-IF(_Base_V1_Maint_Repair_Cost_Use_Default="Yes",IF(COLUMN(N4)-COLUMN($E4)<Base_V1_Years_Usage_Modeled,VLOOKUP(_Base_V1_Vehicle_Vehicle_Class & _Base_V1_Vehicle_Drivetrain & _Market,DB_Maint_Repair_Costs[],COLUMN(N4)-COLUMN($E4)+COLUMN(DB_Maint_Repair_Costs[[#Headers],[Year 1 ]]),FALSE)*Base_V1_VMT_Modeled,0),IF(AND(COLUMN(N4)-COLUMN($E4)<Base_V1_Years_Usage_Modeled,COLUMN(N4)-COLUMN($E4)<5),Base_V1_Maint_Repair_Cost_Year_1_Modeled*Base_V1_VMT_Modeled,IF(AND(COLUMN(N4)-COLUMN($E4)<Base_V1_Years_Usage_Modeled,COLUMN(N4)-COLUMN($E4)>=5),Base_V1_Maint_Repair_Cost_Year_5_Modeled*Base_V1_VMT_Modeled,0)))*'Data General Inflation'!M$3 -> 0 | O35: =-IF(_Base_V1_Maint_Repair_Cost_Use_Default="Yes",IF(COLUMN(O4)-COLUMN($E4)<Base_V1_Years_Usage_Modeled,VLOOKUP(_Base_V1_Vehicle_Vehicle_Class & _Base_V1_Vehicle_Drivetrain & _Market,DB_Maint_Repair_Costs[],COLUMN(O4)-COLUMN($E4)+COLUMN(DB_Maint_Repair_Costs[[#Headers],[Year 1 ]]),FALSE)*Base_V1_VMT_Modeled,0),IF(AND(COLUMN(O4)-COLUMN($E4)<Base_V1_Years_Usage_Modeled,COLUMN(O4)-COLUMN($E4)<5),Base_V1_Maint_Repair_Cost_Year_1_Modeled*Base_V1_VMT_Modeled,IF(AND(COLUMN(O4)-COLUMN($E4)<Base_V1_Years_Usage_Modeled,COLUMN(O4)-COLUMN($E4)>=5),Base_V1_Maint_Repair_Cost_Year_5_Modeled*Base_V1_VMT_Modeled,0)))*'Data General Inflation'!N$3 -> 0 | P35: =-IF(_Base_V1_Maint_Repair_Cost_Use_Default="Yes",IF(COLUMN(P4)-COLUMN($E4)<Base_V1_Years_Usage_Modeled,VLOOKUP(_Base_V1_Vehicle_Vehicle_Class & _Base_V1_Vehicle_Drivetrain & _Market,DB_Maint_Repair_Costs[],COLUMN(P4)-COLUMN($E4)+COLUMN(DB_Maint_Repair_Costs[[#Headers],[Year 1 ]]),FALSE)*Base_V1_VMT_Modeled,0),IF(AND(COLUMN(P4)-COLUMN($E4)<Base_V1_Years_Usage_Modeled,COLUMN(P4)-COLUMN($E4)<5),Base_V1_Maint_Repair_Cost_Year_1_Modeled*Base_V1_VMT_Modeled,IF(AND(COLUMN(P4)-COLUMN($E4)<Base_V1_Years_Usage_Modeled,COLUMN(P4)-COLUMN($E4)>=5),Base_V1_Maint_Repair_Cost_Year_5_Modeled*Base_V1_VMT_Modeled,0)))*'Data General Inflation'!O$3 -> 0 | Q35: =-IF(_Base_V1_Maint_Repair_Cost_Use_Default="Yes",IF(COLUMN(Q4)-COLUMN($E4)<Base_V1_Years_Usage_Modeled,VLOOKUP(_Base_V1_Vehicle_Vehicle_Class & _Base_V1_Vehicle_Drivetrain & _Market,DB_Maint_Repair_Costs[],COLUMN(Q4)-COLUMN($E4)+COLUMN(DB_Maint_Repair_Costs[[#Headers],[Year 1 ]]),FALSE)*Base_V1_VMT_Modeled,0),IF(AND(COLUMN(Q4)-COLUMN($E4)<Base_V1_Years_Usage_Modeled,COLUMN(Q4)-COLUMN($E4)<5),Base_V1_Maint_Repair_Cost_Year_1_Modeled*Base_V1_VMT_Modeled,IF(AND(COLUMN(Q4)-COLUMN($E4)<Base_V1_Years_Usage_Modeled,COLUMN(Q4)-COLUMN($E4)>=5),Base_V1_Maint_Repair_Cost_Year_5_Modeled*Base_V1_VMT_Modeled,0)))*'Data General Inflation'!P$3 -> 0 | R35: =-IF(_Base_V1_Maint_Repair_Cost_Use_Default="Yes",IF(COLUMN(R4)-COLUMN($E4)<Base_V1_Years_Usage_Modeled,VLOOKUP(_Base_V1_Vehicle_Vehicle_Class & _Base_V1_Vehicle_Drivetrain & _Market,DB_Maint_Repair_Costs[],COLUMN(R4)-COLUMN($E4)+COLUMN(DB_Maint_Repair_Costs[[#Headers],[Year 1 ]]),FALSE)*Base_V1_VMT_Modeled,0),IF(AND(COLUMN(R4)-COLUMN($E4)<Base_V1_Years_Usage_Modeled,COLUMN(R4)-COLUMN($E4)<5),Base_V1_Maint_Repair_Cost_Year_1_Modeled*Base_V1_VMT_Modeled,IF(AND(COLUMN(R4)-COLUMN($E4)<Base_V1_Years_Usage_Modeled,COLUMN(R4)-COLUMN($E4)>=5),Base_V1_Maint_Repair_Cost_Year_5_Modeled*Base_V1_VMT_Modeled,0)))*'Data General Inflation'!Q$3 -> 0 | S35: =-IF(_Base_V1_Maint_Repair_Cost_Use_Default="Yes",IF(COLUMN(S4)-COLUMN($E4)<Base_V1_Years_Usage_Modeled,VLOOKUP(_Base_V1_Vehicle_Vehicle_Class & _Base_V1_Vehicle_Drivetrain & _Market,DB_Maint_Repair_Costs[],COLUMN(S4)-COLUMN($E4)+COLUMN(DB_Maint_Repair_Costs[[#Headers],[Year 1 ]]),FALSE)*Base_V1_VMT_Modeled,0),IF(AND(COLUMN(S4)-COLUMN($E4)<Base_V1_Years_Usage_Modeled,COLUMN(S4)-COLUMN($E4)<5),Base_V1_Maint_Repair_Cost_Year_1_Modeled*Base_V1_VMT_Modeled,IF(AND(COLUMN(S4)-COLUMN($E4)<Base_V1_Years_Usage_Modeled,COLUMN(S4)-COLUMN($E4)>=5),Base_V1_Maint_Repair_Cost_Year_5_Modeled*Base_V1_VMT_Modeled,0)))*'Data General Inflation'!R$3 -> 0 | T35: =-IF(_Base_V1_Maint_Repair_Cost_Use_Default="Yes",IF(COLUMN(T4)-COLUMN($E4)<Base_V1_Years_Usage_Modeled,VLOOKUP(_Base_V1_Vehicle_Vehicle_Class & _Base_V1_Vehicle_Drivetrain & _Market,DB_Maint_Repair_Costs[],COLUMN(T4)-COLUMN($E4)+COLUMN(DB_Maint_Repair_Costs[[#Headers],[Year 1 ]]),FALSE)*Base_V1_VMT_Modeled,0),IF(AND(COLUMN(T4)-COLUMN($E4)<Base_V1_Years_Usage_Modeled,COLUMN(T4)-COLUMN($E4)<5),Base_V1_Maint_Repair_Cost_Year_1_Modeled*Base_V1_VMT_Modeled,IF(AND(COLUMN(T4)-COLUMN($E4)<Base_V1_Years_Usage_Modeled,COLUMN(T4)-COLUMN($E4)>=5),Base_V1_Maint_Repair_Cost_Year_5_Modeled*Base_V1_VMT_Modeled,0)))*'Data General Inflation'!S$3 -> 0 | U35: =-IF(_Base_V1_Maint_Repair_Cost_Use_Default="Yes",IF(COLUMN(U4)-COLUMN($E4)<Base_V1_Years_Usage_Modeled,VLOOKUP(_Base_V1_Vehicle_Vehicle_Class & _Base_V1_Vehicle_Drivetrain & _Market,DB_Maint_Repair_Costs[],COLUMN(U4)-COLUMN($E4)+COLUMN(DB_Maint_Repair_Costs[[#Headers],[Year 1 ]]),FALSE)*Base_V1_VMT_Modeled,0),IF(AND(COLUMN(U4)-COLUMN($E4)<Base_V1_Years_Usage_Modeled,COLUMN(U4)-COLUMN($E4)<5),Base_V1_Maint_Repair_Cost_Year_1_Modeled*Base_V1_VMT_Modeled,IF(AND(COLUMN(U4)-COLUMN($E4)<Base_V1_Years_Usage_Modeled,COLUMN(U4)-COLUMN($E4)>=5),Base_V1_Maint_Repair_Cost_Year_5_Modeled*Base_V1_VMT_Modeled,0)))*'Data General Inflation'!T$3 -> 0 | V35: =-IF(_Base_V1_Maint_Repair_Cost_Use_Default="Yes",IF(COLUMN(V4)-COLUMN($E4)<Base_V1_Years_Usage_Modeled,VLOOKUP(_Base_V1_Vehicle_Vehicle_Class & _Base_V1_Vehicle_Drivetrain & _Market,DB_Maint_Repair_Costs[],COLUMN(V4)-COLUMN($E4)+COLUMN(DB_Maint_Repair_Costs[[#Headers],[Year 1 ]]),FALSE)*Base_V1_VMT_Modeled,0),IF(AND(COLUMN(V4)-COLUMN($E4)<Base_V1_Years_Usage_Modeled,COLUMN(V4)-COLUMN($E4)<5),Base_V1_Maint_Repair_Cost_Year_1_Modeled*Base_V1_VMT_Modeled,IF(AND(COLUMN(V4)-COLUMN($E4)<Base_V1_Years_Usage_Modeled,COLUMN(V4)-COLUMN($E4)>=5),Base_V1_Maint_Repair_Cost_Year_5_Modeled*Base_V1_VMT_Modeled,0)))*'Data General Inflation'!U$3 -> 0 | W35: =-IF(_Base_V1_Maint_Repair_Cost_Use_Default="Yes",IF(COLUMN(W4)-COLUMN($E4)<Base_V1_Years_Usage_Modeled,VLOOKUP(_Base_V1_Vehicle_Vehicle_Class & _Base_V1_Vehicle_Drivetrain & _Market,DB_Maint_Repair_Costs[],COLUMN(W4)-COLUMN($E4)+COLUMN(DB_Maint_Repair_Costs[[#Headers],[Year 1 ]]),FALSE)*Base_V1_VMT_Modeled,0),IF(AND(COLUMN(W4)-COLUMN($E4)<Base_V1_Years_Usage_Modeled,COLUMN(W4)-COLUMN($E4)<5),Base_V1_Maint_Repair_Cost_Year_1_Modeled*Base_V1_VMT_Modeled,IF(AND(COLUMN(W4)-COLUMN($E4)<Base_V1_Years_Usage_Modeled,COLUMN(W4)-COLUMN($E4)>=5),Base_V1_Maint_Repair_Cost_Year_5_Modeled*Base_V1_VMT_Modeled,0)))*'Data General Inflation'!V$3 -> 0 | X35: =-IF(_Base_V1_Maint_Repair_Cost_Use_Default="Yes",IF(COLUMN(X4)-COLUMN($E4)<Base_V1_Years_Usage_Modeled,VLOOKUP(_Base_V1_Vehicle_Vehicle_Class & _Base_V1_Vehicle_Drivetrain & _Market,DB_Maint_Repair_Costs[],COLUMN(X4)-COLUMN($E4)+COLUMN(DB_Maint_Repair_Costs[[#Headers],[Year 1 ]]),FALSE)*Base_V1_VMT_Modeled,0),IF(AND(COLUMN(X4)-COLUMN($E4)<Base_V1_Years_Usage_Modeled,COLUMN(X4)-COLUMN($E4)<5),Base_V1_Maint_Repair_Cost_Year_1_Modeled*Base_V1_VMT_Modeled,IF(AND(COLUMN(X4)-COLUMN($E4)<Base_V1_Years_Usage_Modeled,COLUMN(X4)-COLUMN($E4)>=5),Base_V1_Maint_Repair_Cost_Year_5_Modeled*Base_V1_VMT_Modeled,0)))*'Data General Inflation'!W$3 -> 0 | Y35: =-IF(_Base_V1_Maint_Repair_Cost_Use_Default="Yes",IF(COLUMN(Y4)-COLUMN($E4)<Base_V1_Years_Usage_Modeled,VLOOKUP(_Base_V1_Vehicle_Vehicle_Class & _Base_V1_Vehicle_Drivetrain & _Market,DB_Maint_Repair_Costs[],COLUMN(Y4)-COLUMN($E4)+COLUMN(DB_Maint_Repair_Costs[[#Headers],[Year 1 ]]),FALSE)*Base_V1_VMT_Modeled,0),IF(AND(COLUMN(Y4)-COLUMN($E4)<Base_V1_Years_Usage_Modeled,COLUMN(Y4)-COLUMN($E4)<5),Base_V1_Maint_Repair_Cost_Year_1_Modeled*Base_V1_VMT_Modeled,IF(AND(COLUMN(Y4)-COLUMN($E4)<Base_V1_Years_Usage_Modeled,COLUMN(Y4)-COLUMN($E4)>=5),Base_V1_Maint_Repair_Cost_Year_5_Modeled*Base_V1_VMT_Modeled,0)))*'Data General Inflation'!X$3 -> 0 | Z35: =-IF(_Base_V1_Maint_Repair_Cost_Use_Default="Yes",IF(COLUMN(Z4)-COLUMN($E4)<Base_V1_Years_Usage_Modeled,VLOOKUP(_Base_V1_Vehicle_Vehicle_Class & _Base_V1_Vehicle_Drivetrain & _Market,DB_Maint_Repair_Costs[],COLUMN(Z4)-COLUMN($E4)+COLUMN(DB_Maint_Repair_Costs[[#Headers],[Year 1 ]]),FALSE)*Base_V1_VMT_Modeled,0),IF(AND(COLUMN(Z4)-COLUMN($E4)<Base_V1_Years_Usage_Modeled,COLUMN(Z4)-COLUMN($E4)<5),Base_V1_Maint_Repair_Cost_Year_1_Modeled*Base_V1_VMT_Modeled,IF(AND(COLUMN(Z4)-COLUMN($E4)<Base_V1_Years_Usage_Modeled,COLUMN(Z4)-COLUMN($E4)>=5),Base_V1_Maint_Repair_Cost_Year_5_Modeled*Base_V1_VMT_Modeled,0)))*'Data General Inflation'!Y$3 -> 0 | AA35: =-IF(_Base_V1_Maint_Repair_Cost_Use_Default="Yes",IF(COLUMN(AA4)-COLUMN($E4)<Base_V1_Years_Usage_Modeled,VLOOKUP(_Base_V1_Vehicle_Vehicle_Class & _Base_V1_Vehicle_Drivetrain & _Market,DB_Maint_Repair_Costs[],COLUMN(AA4)-COLUMN($E4)+COLUMN(DB_Maint_Repair_Costs[[#Headers],[Year 1 ]]),FALSE)*Base_V1_VMT_Modeled,0),IF(AND(COLUMN(AA4)-COLUMN($E4)<Base_V1_Years_Usage_Modeled,COLUMN(AA4)-COLUMN($E4)<5),Base_V1_Maint_Repair_Cost_Year_1_Modeled*Base_V1_VMT_Modeled,IF(AND(COLUMN(AA4)-COLUMN($E4)<Base_V1_Years_Usage_Modeled,COLUMN(AA4)-COLUMN($E4)>=5),Base_V1_Maint_Repair_Cost_Year_5_Modeled*Base_V1_VMT_Modeled,0)))*'Data General Inflation'!Z$3 -> 0 | AB35: =-IF(_Base_V1_Maint_Repair_Cost_Use_Default="Yes",IF(COLUMN(AB4)-COLUMN($E4)<Base_V1_Years_Usage_Modeled,VLOOKUP(_Base_V1_Vehicle_Vehicle_Class & _Base_V1_Vehicle_Drivetrain & _Market,DB_Maint_Repair_Costs[],COLUMN(AB4)-COLUMN($E4)+COLUMN(DB_Maint_Repair_Costs[[#Headers],[Year 1 ]]),FALSE)*Base_V1_VMT_Modeled,0),IF(AND(COLUMN(AB4)-COLUMN($E4)<Base_V1_Years_Usage_Modeled,COLUMN(AB4)-COLUMN($E4)<5),Base_V1_Maint_Repair_Cost_Year_1_Modeled*Base_V1_VMT_Modeled,IF(AND(COLUMN(AB4)-COLUMN($E4)<Base_V1_Years_Usage_Modeled,COLUMN(AB4)-COLUMN($E4)>=5),Base_V1_Maint_Repair_Cost_Year_5_Modeled*Base_V1_VMT_Modeled,0)))*'Data General Inflation'!AA$3 -> 0 | AC35: =-IF(_Base_V1_Maint_Repair_Cost_Use_Default="Yes",IF(COLUMN(AC4)-COLUMN($E4)<Base_V1_Years_Usage_Modeled,VLOOKUP(_Base_V1_Vehicle_Vehicle_Class & _Base_V1_Vehicle_Drivetrain & _Market,DB_Maint_Repair_Costs[],COLUMN(AC4)-COLUMN($E4)+COLUMN(DB_Maint_Repair_Costs[[#Headers],[Year 1 ]]),FALSE)*Base_V1_VMT_Modeled,0),IF(AND(COLUMN(AC4)-COLUMN($E4)<Base_V1_Years_Usage_Modeled,COLUMN(AC4)-COLUMN($E4)<5),Base_V1_Maint_Repair_Cost_Year_1_Modeled*Base_V1_VMT_Modeled,IF(AND(COLUMN(AC4)-COLUMN($E4)<Base_V1_Years_Usage_Modeled,COLUMN(AC4)-COLUMN($E4)>=5),Base_V1_Maint_Repair_Cost_Year_5_Modeled*Base_V1_VMT_Modeled,0)))*'Data General Inflation'!AB$3 -> 0
B36: Taxes and Fees | D36: =-Base_V1_Initial_Taxes_Fees_Modeled-(Base_V1_Initial_Percent_Base_Price_Modeled*Base_V1_Base_Price_Ex) -> -1522.355 | E36: =-IF(COLUMN(E4)-COLUMN($E4)<Base_V1_Years_Usage_Modeled,Base_V1_Taxes_Fees_Modeled,0)*'Data General Inflation'!D$3 -> 0 | F36: =-IF(COLUMN(F4)-COLUMN($E4)<Base_V1_Years_Usage_Modeled,Base_V1_Taxes_Fees_Modeled,0)*'Data General Inflation'!E$3 -> 0 | G36: =-IF(COLUMN(G4)-COLUMN($E4)<Base_V1_Years_Usage_Modeled,Base_V1_Taxes_Fees_Modeled,0)*'Data General Inflation'!F$3 -> 0 | H36: =-IF(COLUMN(H4)-COLUMN($E4)<Base_V1_Years_Usage_Modeled,Base_V1_Taxes_Fees_Modeled,0)*'Data General Inflation'!G$3 -> 0 | I36: =-IF(COLUMN(I4)-COLUMN($E4)<Base_V1_Years_Usage_Modeled,Base_V1_Taxes_Fees_Modeled,0)*'Data General Inflation'!H$3 -> 0 | J36: =-IF(COLUMN(J4)-COLUMN($E4)<Base_V1_Years_Usage_Modeled,Base_V1_Taxes_Fees_Modeled,0)*'Data General Inflation'!I$3 -> 0 | K36: =-IF(COLUMN(K4)-COLUMN($E4)<Base_V1_Years_Usage_Modeled,Base_V1_Taxes_Fees_Modeled,0)*'Data General Inflation'!J$3 -> 0 | L36: =-IF(COLUMN(L4)-COLUMN($E4)<Base_V1_Years_Usage_Modeled,Base_V1_Taxes_Fees_Modeled,0)*'Data General Inflation'!K$3 -> 0 | M36: =-IF(COLUMN(M4)-COLUMN($E4)<Base_V1_Years_Usage_Modeled,Base_V1_Taxes_Fees_Modeled,0)*'Data General Inflation'!L$3 -> 0 | N36: =-IF(COLUMN(N4)-COLUMN($E4)<Base_V1_Years_Usage_Modeled,Base_V1_Taxes_Fees_Modeled,0)*'Data General Inflation'!M$3 -> 0 | O36: =-IF(COLUMN(O4)-COLUMN($E4)<Base_V1_Years_Usage_Modeled,Base_V1_Taxes_Fees_Modeled,0)*'Data General Inflation'!N$3 -> 0 | P36: =-IF(COLUMN(P4)-COLUMN($E4)<Base_V1_Years_Usage_Modeled,Base_V1_Taxes_Fees_Modeled,0)*'Data General Inflation'!O$3 -> 0 | Q36: =-IF(COLUMN(Q4)-COLUMN($E4)<Base_V1_Years_Usage_Modeled,Base_V1_Taxes_Fees_Modeled,0)*'Data General Inflation'!P$3 -> 0 | R36: =-IF(COLUMN(R4)-COLUMN($E4)<Base_V1_Years_Usage_Modeled,Base_V1_Taxes_Fees_Modeled,0)*'Data General Inflation'!Q$3 -> 0 | S36: =-IF(COLUMN(S4)-COLUMN($E4)<Base_V1_Years_Usage_Modeled,Base_V1_Taxes_Fees_Modeled,0)*'Data General Inflation'!R$3 -> 0 | T36: =-IF(COLUMN(T4)-COLUMN($E4)<Base_V1_Years_Usage_Modeled,Base_V1_Taxes_Fees_Modeled,0)*'Data General Inflation'!S$3 -> 0 | U36: =-IF(COLUMN(U4)-COLUMN($E4)<Base_V1_Years_Usage_Modeled,Base_V1_Taxes_Fees_Modeled,0)*'Data General Inflation'!T$3 -> 0 | V36: =-IF(COLUMN(V4)-COLUMN($E4)<Base_V1_Years_Usage_Modeled,Base_V1_Taxes_Fees_Modeled,0)*'Data General Inflation'!U$3 -> 0 | W36: =-IF(COLUMN(W4)-COLUMN($E4)<Base_V1_Years_Usage_Modeled,Base_V1_Taxes_Fees_Modeled,0)*'Data General Inflation'!V$3 -> 0 | X36: =-IF(COLUMN(X4)-COLUMN($E4)<Base_V1_Years_Usage_Modeled,Base_V1_Taxes_Fees_Modeled,0)*'Data General Inflation'!W$3 -> 0 | Y36: =-IF(COLUMN(Y4)-COLUMN($E4)<Base_V1_Years_Usage_Modeled,Base_V1_Taxes_Fees_Modeled,0)*'Data General Inflation'!X$3 -> 0 | Z36: =-IF(COLUMN(Z4)-COLUMN($E4)<Base_V1_Years_Usage_Modeled,Base_V1_Taxes_Fees_Modeled,0)*'Data General Inflation'!Y$3 -> 0 | AA36: =-IF(COLUMN(AA4)-COLUMN($E4)<Base_V1_Years_Usage_Modeled,Base_V1_Taxes_Fees_Modeled,0)*'Data General Inflation'!Z$3 -> 0 | AB36: =-IF(COLUMN(AB4)-COLUMN($E4)<Base_V1_Years_Usage_Modeled,Base_V1_Taxes_Fees_Modeled,0)*'Data General Inflation'!AA$3 -> 0 | AC36: =-IF(COLUMN(AC4)-COLUMN($E4)<Base_V1_Years_Usage_Modeled,Base_V1_Taxes_Fees_Modeled,0)*'Data General Inflation'!AB$3 -> 0
B37: Insurance Cost | E37: =-IF(COLUMN(E4)-COLUMN($E4)<Base_V1_Years_Usage_Modeled,Base_V1_Insurance_Cost_Modeled,0)*'Data General Inflation'!D$3 -> -1194 | F37: =-IF(COLUMN(F4)-COLUMN($E4)<Base_V1_Years_Usage_Modeled,Base_V1_Insurance_Cost_Modeled,0)*'Data General Inflation'!E$3 -> -1217.88 | G37: =-IF(COLUMN(G4)-COLUMN($E4)<Base_V1_Years_Usage_Modeled,Base_V1_Insurance_Cost_Modeled,0)*'Data General Inflation'!F$3 -> -1242.2376 | H37: =-IF(COLUMN(H4)-COLUMN($E4)<Base_V1_Years_Usage_Modeled,Base_V1_Insurance_Cost_Modeled,0)*'Data General Inflation'!G$3 -> -1267.082352 | I37: =-IF(COLUMN(I4)-COLUMN($E4)<Base_V1_Years_Usage_Modeled,Base_V1_Insurance_Cost_Modeled,0)*'Data General Inflation'!H$3 -> -1292.423999 | J37: =-IF(COLUMN(J4)-COLUMN($E4)<Base_V1_Years_Usage_Modeled,Base_V1_Insurance_Cost_Modeled,0)*'Data General Inflation'!I$3 -> -1318.272479 | K37: =-IF(COLUMN(K4)-COLUMN($E4)<Base_V1_Years_Usage_Modeled,Base_V1_Insurance_Cost_Modeled,0)*'Data General Inflation'!J$3 -> -1344.637929 | L37: =-IF(COLUMN(L4)-COLUMN($E4)<Base_V1_Years_Usage_Modeled,Base_V1_Insurance_Cost_Modeled,0)*'Data General Inflation'!K$3 -> 0 | M37: =-IF(COLUMN(M4)-COLUMN($E4)<Base_V1_Years_Usage_Modeled,Base_V1_Insurance_Cost_Modeled,0)*'Data General Inflation'!L$3 -> 0 | N37: =-IF(COLUMN(N4)-COLUMN($E4)<Base_V1_Years_Usage_Modeled,Base_V1_Insurance_Cost_Modeled,0)*'Data General Inflation'!M$3 -> 0 | O37: =-IF(COLUMN(O4)-COLUMN($E4)<Base_V1_Years_Usage_Modeled,Base_V1_Insurance_Cost_Modeled,0)*'Data General Inflation'!N$3 -> 0 | P37: =-IF(COLUMN(P4)-COLUMN($E4)<Base_V1_Years_Usage_Modeled,Base_V1_Insurance_Cost_Modeled,0)*'Data General Inflation'!O$3 -> 0 | Q37: =-IF(COLUMN(Q4)-COLUMN($E4)<Base_V1_Years_Usage_Modeled,Base_V1_Insurance_Cost_Modeled,0)*'Data General Inflation'!P$3 -> 0 | R37: =-IF(COLUMN(R4)-COLUMN($E4)<Base_V1_Years_Usage_Modeled,Base_V1_Insurance_Cost_Modeled,0)*'Data General Inflation'!Q$3 -> 0 | S37: =-IF(COLUMN(S4)-COLUMN($E4)<Base_V1_Years_Usage_Modeled,Base_V1_Insurance_Cost_Modeled,0)*'Data General Inflation'!R$3 -> 0 | T37: =-IF(COLUMN(T4)-COLUMN($E4)<Base_V1_Years_Usage_Modeled,Base_V1_Insurance_Cost_Modeled,0)*'Data General Inflation'!S$3 -> 0 | U37: =-IF(COLUMN(U4)-COLUMN($E4)<Base_V1_Years_Usage_Modeled,Base_V1_Insurance_Cost_Modeled,0)*'Data General Inflation'!T$3 -> 0 | V37: =-IF(COLUMN(V4)-COLUMN($E4)<Base_V1_Years_Usage_Modeled,Base_V1_Insurance_Cost_Modeled,0)*'Data General Inflation'!U$3 -> 0 | W37: =-IF(COLUMN(W4)-COLUMN($E4)<Base_V1_Years_Usage_Modeled,Base_V1_Insurance_Cost_Modeled,0)*'Data General Inflation'!V$3 -> 0 | X37: =-IF(COLUMN(X4)-COLUMN($E4)<Base_V1_Years_Usage_Modeled,Base_V1_Insurance_Cost_Modeled,0)*'Data General Inflation'!W$3 -> 0 | Y37: =-IF(COLUMN(Y4)-COLUMN($E4)<Base_V1_Years_Usage_Modeled,Base_V1_Insurance_Cost_Modeled,0)*'Data General Inflation'!X$3 -> 0 | Z37: =-IF(COLUMN(Z4)-COLUMN($E4)<Base_V1_Years_Usage_Modeled,Base_V1_Insurance_Cost_Modeled,0)*'Data General Inflation'!Y$3 -> 0 | AA37: =-IF(COLUMN(AA4)-COLUMN($E4)<Base_V1_Years_Usage_Modeled,Base_V1_Insurance_Cost_Modeled,0)*'Data General Inflation'!Z$3 -> 0 | AB37: =-IF(COLUMN(AB4)-COLUMN($E4)<Base_V1_Years_Usage_Modeled,Base_V1_Insurance_Cost_Modeled,0)*'Data General Inflation'!AA$3 -> 0 | AC37: =-IF(COLUMN(AC4)-COLUMN($E4)<Base_V1_Years_Usage_Modeled,Base_V1_Insurance_Cost_Modeled,0)*'Data General Inflation'!AB$3 -> 0
B38: Subtotal Fuel and Operating Costs | D38: =SUM(D34:D37) -> -1522.355 | E38: -3012.444366 | F38: -3096.598052 | G38: -3118.070577 | H38: -3143.350725 | I38: -3172.747269 | J38: -3495.36733 | K38: -3552.244021 | L38: 0 | M38: 0 | N38: 0 | O38: 0 | P38: 0 | Q38: 0 | R38: 0 | S38: 0 | T38: 0 | U38: 0 | V38: 0 | W38: 0 | X38: 0 | Y38: 0 | Z38: 0 | AA38: 0 | AB38: 0 | AC38: 0
B40: Other Costs
B41: Cost of Carbon | E41: =-IF(COLUMN(E4)-COLUMN($E4)<Base_V1_Years_Usage_Modeled,Base_V1_CO2_Ex/2204.62*Carbon_Price_Modeled,0) -> 0 | F41: 0 | G41: 0 | H41: 0 | I41: 0 | J41: 0 | K41: 0 | L41: 0 | M41: 0 | N41: 0 | O41: 0 | P41: 0 | Q41: 0 | R41: 0 | S41: 0 | T41: 0 | U41: 0 | V41: 0 | W41: 0 | X41: 0 | Y41: 0 | Z41: 0 | AA41: 0 | AB41: 0 | AC41: 0
B42: Cost of Downtime from Public Charging | E42: =-IF(AND(COLUMN(E5)-COLUMN($E5)<Base_V1_Years_Usage_Modeled, Cost_of_Downtime_from_Charging_Modeled<>0, Base_Station_Max_Power_Modeled<>0),(Base_V1_Electricity_Usage_Ex*Base_Percent_Public_Charging_Modeled)/Base_Station_Max_Power_Modeled*Cost_of_Downtime_from_Charging_Modeled, 0) -> 0 | F42: 0 | G42: 0 | H42: 0 | I42: 0 | J42: 0 | K42: 0 | L42: 0 | M42: 0 | N42: 0 | O42: 0 | P42: 0 | Q42: 0 | R42: 0 | S42: 0 | T42: 0 | U42: 0 | V42: 0 | W42: 0 | X42: 0 | Y42: 0 | Z42: 0 | AA42: 0 | AB42: 0 | AC42: 0
B43: Subtotal Other Costs | D43: =SUM(D41:D42) -> 0 | E43: =SUM(E41:E42) -> 0 | F43: =SUM(F41:F42) -> 0 | G43: 0 | H43: 0 | I43: 0 | J43: 0 | K43: 0 | L43: 0 | M43: 0 | N43: 0 | O43: 0 | P43: 0 | Q43: 0 | R43: 0 | S43: 0 | T43: 0 | U43: 0 | V43: 0 | W43: 0 | X43: 0 | Y43: 0 | Z43: 0 | AA43: 0 | AB43: 0 | AC43: 0
B45: Total Discounted Costs
B46: Total Annual Costs | D46: =D31+D38+D43 -> -46517.355 | E46: -3012.444366 | F46: -3096.598052 | G46: -3118.070577 | H46: -3143.350725 | I46: -3172.747269 | J46: -3495.36733 | K46: 21771.35752 | L46: 0 | M46: 0 | N46: 0 | O46: 0 | P46: 0 | Q46: 0 | R46: 0 | S46: 0 | T46: 0 | U46: 0 | V46: 0 | W46: 0 | X46: 0 | Y46: 0 | Z46: 0 | AA46: 0 | AB46: 0 | AC46: 0
B47: Discount Factor | C47: =Base_Discount_Rate_Modeled -> 0.02 | D47: =(1/(1+$C47))^(COLUMN(D4)-COLUMN($D4)) -> 1 | E47: 0.9803921569 | F47: 0.9611687812 | G47: 0.9423223345 | H47: 0.923845426 | I47: 0.9057308098 | J47: 0.8879713822 | K47: 0.8705601786 | L47: 0.8534903712 | M47: 0.8367552659 | N47: 0.8203482999 | O47: 0.8042630391 | P47: 0.7884931756 | Q47: 0.7730325251 | R47: 0.7578750246 | S47: 0.74301473 | T47: 0.7284458137 | U47: 0.7141625625 | V47: 0.700159375 | W47: 0.6864307598 | X47: 0.6729713331 | Y47: 0.6597758168 | Z47: 0.6468390361 | AA47: 0.6341559177 | AB47: 0.6217214879 | AC47: 0.6095308705
B48: Discounted Total | D48: =D46*D47 -> -46517.355 | E48: =E46*E47 -> -2953.37683 | F48: =F46*F47 -> -2976.353376 | G48: -2938.227546 | H48: -2903.97019 | I48: -2873.654953 | J48: -3103.78616 | K48: 18953.27689 | L48: 0 | M48: 0 | N48: 0 | O48: 0 | P48: 0 | Q48: 0 | R48: 0 | S48: 0 | T48: 0 | U48: 0 | V48: 0 | W48: 0 | X48: 0 | Y48: 0 | Z48: 0 | AA48: 0 | AB48: 0 | AC48: 0
B49: Cumulative Discounted Total | D49: =IF((COLUMN(D4)-COLUMN($D4))<=Base_V1_Years_Usage_Modeled,C49+D48,0) -> -46517.355 | E49: -49470.73183 | F49: -52447.08521 | G49: -55385.31275 | H49: -58289.28294 | I49: -61162.93789 | J49: -64266.72405 | K49: -45313.44716 | L49: 0 | M49: 0 | N49: 0 | O49: 0 | P49: 0 | Q49: 0 | R49: 0 | S49: 0 | T49: 0 | U49: 0 | V49: 0 | W49: 0 | X49: 0 | Y49: 0 | Z49: 0 | AA49: 0 | AB49: 0 | AC49: 0
B50: Annualized NPV Total Cost of Ownership | D50: =OFFSET($D49,0,Base_V1_Years_Usage_Modeled)/Base_V1_Years_Usage_Modeled -> -6473.349594
B52: Baseline EV Infrastructure
D53: Year 0 | E53: Year 1 | F53: Year 2 | G53: Year 3 | H53: Year 4 | I53: Year 5 | J53: Year 6 | K53: Year 7 | L53: Year 8 | M53: Year 9 | N53: Year 10 | O53: Year 11 | P53: Year 12 | Q53: Year 13 | R53: Year 14 | S53: Year 15 | T53: Year 16 | U53: Year 17 | V53: Year 18 | W53: Year 19 | X53: Year 20 | Y53: Year 21 | Z53: Year 22 | AA53: Year 23 | AB53: Year 24 | AC53: Year 25
B54: Capital and Financing Costs
B55: Cash
B56: Cash Payment | D56: =IF(AND(Base_Inf_Has_Cash_Purchase_Ex=TRUE,_Base_Include_Charging="Yes"),-Base_Num_Stations_Modeled*Base_Station_Cost_Modeled,0) -> 0
B57: Loan
B58: Down Payment | D58: =IF(AND(Base_Inf_Has_Cash_Purchase_Ex=FALSE,_Base_Include_Charging="Yes"),-Base_Inf_Down_Payment_Modeled,0) -> 0
B59: Loan Payments | E59: =IF(AND(Base_Inf_Has_Cash_Purchase_Ex=FALSE,_Base_Include_Charging="Yes",(COLUMN(E53)-COLUMN($E53))<Base_Inf_Loan_Term_Modeled),PMT(Base_Inf_Loan_APR_Modeled,Base_Inf_Loan_Term_Modeled,(Base_Num_Stations_Modeled*Base_Station_Cost_Modeled)-Base_Inf_Down_Payment_Modeled,0),0) -> 0 | F59: 0 | G59: 0 | H59: 0 | I59: 0 | J59: 0 | K59: 0 | L59: 0 | M59: 0 | N59: 0 | O59: 0 | P59: 0 | Q59: 0 | R59: 0 | S59: 0 | T59: 0 | U59: 0 | V59: 0 | W59: 0 | X59: 0 | Y59: 0 | Z59: 0 | AA59: 0 | AB59: 0 | AC59: 0
B60: Subtotal Loan Cash Flows | D60: =SUM(D58:D59) -> 0 | E60: =SUM(E58:E59) -> 0 | F60: 0 | G60: 0 | H60: 0 | I60: 0 | J60: 0 | K60: 0 | L60: 0 | M60: 0 | N60: 0 | O60: 0 | P60: 0 | Q60: 0 | R60: 0 | S60: 0 | T60: 0 | U60: 0 | V60: 0 | W60: 0 | X60: 0 | Y60: 0 | Z60: 0 | AA60: 0 | AB60: 0 | AC60: 0
B62: Total Capital and Financing Costs | D62: =D56+D60 -> 0 | E62: =E56+E60 -> 0 | F62: 0 | G62: 0 | H62: 0 | I62: 0 | J62: 0 | K62: 0 | L62: 0 | M62: 0 | N62: 0 | O62: 0 | P62: 0 | Q62: 0 | R62: 0 | S62: 0 | T62: 0 | U62: 0 | V62: 0 | W62: 0 | X62: 0 | Y62: 0 | Z62: 0 | AA62: 0 | AB62: 0 | AC62: 0
B64: Operating Costs
B65: Maintenance Cost | E65: =-IF(AND(COLUMN(E53)-COLUMN($E53)<Base_V1_Years_Usage_Modeled,_Base_Include_Charging="Yes"),Base_Station_Maint_Cost_Modeled*Base_Num_Stations_Modeled,0)*'Data General Inflation'!D$3 -> 0 | F65: =-IF(AND(COLUMN(F53)-COLUMN($E53)<Base_V1_Years_Usage_Modeled,_Base_Include_Charging="Yes"),Base_Station_Maint_Cost_Modeled*Base_Num_Stations_Modeled,0)*'Data General Inflation'!E$3 -> 0 | G65: =-IF(AND(COLUMN(G53)-COLUMN($E53)<Base_V1_Years_Usage_Modeled,_Base_Include_Charging="Yes"),Base_Station_Maint_Cost_Modeled*Base_Num_Stations_Modeled,0)*'Data General Inflation'!F$3 -> 0 | H65: =-IF(AND(COLUMN(H53)-COLUMN($E53)<Base_V1_Years_Usage_Modeled,_Base_Include_Charging="Yes"),Base_Station_Maint_Cost_Modeled*Base_Num_Stations_Modeled,0)*'Data General Inflation'!G$3 -> 0 | I65: =-IF(AND(COLUMN(I53)-COLUMN($E53)<Base_V1_Years_Usage_Modeled,_Base_Include_Charging="Yes"),Base_Station_Maint_Cost_Modeled*Base_Num_Stations_Modeled,0)*'Data General Inflation'!H$3 -> 0 | J65: =-IF(AND(COLUMN(J53)-COLUMN($E53)<Base_V1_Years_Usage_Modeled,_Base_Include_Charging="Yes"),Base_Station_Maint_Cost_Modeled*Base_Num_Stations_Modeled,0)*'Data General Inflation'!I$3 -> 0 | K65: =-IF(AND(COLUMN(K53)-COLUMN($E53)<Base_V1_Years_Usage_Modeled,_Base_Include_Charging="Yes"),Base_Station_Maint_Cost_Modeled*Base_Num_Stations_Modeled,0)*'Data General Inflation'!J$3 -> 0 | L65: =-IF(AND(COLUMN(L53)-COLUMN($E53)<Base_V1_Years_Usage_Modeled,_Base_Include_Charging="Yes"),Base_Station_Maint_Cost_Modeled*Base_Num_Stations_Modeled,0)*'Data General Inflation'!K$3 -> 0 | M65: =-IF(AND(COLUMN(M53)-COLUMN($E53)<Base_V1_Years_Usage_Modeled,_Base_Include_Charging="Yes"),Base_Station_Maint_Cost_Modeled*Base_Num_Stations_Modeled,0)*'Data General Inflation'!L$3 -> 0 | N65: =-IF(AND(COLUMN(N53)-COLUMN($E53)<Base_V1_Years_Usage_Modeled,_Base_Include_Charging="Yes"),Base_Station_Maint_Cost_Modeled*Base_Num_Stations_Modeled,0)*'Data General Inflation'!M$3 -> 0 | O65: =-IF(AND(COLUMN(O53)-COLUMN($E53)<Base_V1_Years_Usage_Modeled,_Base_Include_Charging="Yes"),Base_Station_Maint_Cost_Modeled*Base_Num_Stations_Modeled,0)*'Data General Inflation'!N$3 -> 0 | P65: =-IF(AND(COLUMN(P53)-COLUMN($E53)<Base_V1_Years_Usage_Modeled,_Base_Include_Charging="Yes"),Base_Station_Maint_Cost_Modeled*Base_Num_Stations_Modeled,0)*'Data General Inflation'!O$3 -> 0 | Q65: =-IF(AND(COLUMN(Q53)-COLUMN($E53)<Base_V1_Years_Usage_Modeled,_Base_Include_Charging="Yes"),Base_Station_Maint_Cost_Modeled*Base_Num_Stations_Modeled,0)*'Data General Inflation'!P$3 -> 0 | R65: =-IF(AND(COLUMN(R53)-COLUMN($E53)<Base_V1_Years_Usage_Modeled,_Base_Include_Charging="Yes"),Base_Station_Maint_Cost_Modeled*Base_Num_Stations_Modeled,0)*'Data General Inflation'!Q$3 -> 0 | S65: =-IF(AND(COLUMN(S53)-COLUMN($E53)<Base_V1_Years_Usage_Modeled,_Base_Include_Charging="Yes"),Base_Station_Maint_Cost_Modeled*Base_Num_Stations_Modeled,0)*'Data General Inflation'!R$3 -> 0 | T65: =-IF(AND(COLUMN(T53)-COLUMN($E53)<Base_V1_Years_Usage_Modeled,_Base_Include_Charging="Yes"),Base_Station_Maint_Cost_Modeled*Base_Num_Stations_Modeled,0)*'Data General Inflation'!S$3 -> 0 | U65: =-IF(AND(COLUMN(U53)-COLUMN($E53)<Base_V1_Years_Usage_Modeled,_Base_Include_Charging="Yes"),Base_Station_Maint_Cost_Modeled*Base_Num_Stations_Modeled,0)*'Data General Inflation'!T$3 -> 0 | V65: =-IF(AND(COLUMN(V53)-COLUMN($E53)<Base_V1_Years_Usage_Modeled,_Base_Include_Charging="Yes"),Base_Station_Maint_Cost_Modeled*Base_Num_Stations_Modeled,0)*'Data General Inflation'!U$3 -> 0 | W65: =-IF(AND(COLUMN(W53)-COLUMN($E53)<Base_V1_Years_Usage_Modeled,_Base_Include_Charging="Yes"),Base_Station_Maint_Cost_Modeled*Base_Num_Stations_Modeled,0)*'Data General Inflation'!V$3 -> 0 | X65: =-IF(AND(COLUMN(X53)-COLUMN($E53)<Base_V1_Years_Usage_Modeled,_Base_Include_Charging="Yes"),Base_Station_Maint_Cost_Modeled*Base_Num_Stations_Modeled,0)*'Data General Inflation'!W$3 -> 0 | Y65: =-IF(AND(COLUMN(Y53)-COLUMN($E53)<Base_V1_Years_Usage_Modeled,_Base_Include_Charging="Yes"),Base_Station_Maint_Cost_Modeled*Base_Num_Stations_Modeled,0)*'Data General Inflation'!X$3 -> 0 | Z65: =-IF(AND(COLUMN(Z53)-COLUMN($E53)<Base_V1_Years_Usage_Modeled,_Base_Include_Charging="Yes"),Base_Station_Maint_Cost_Modeled*Base_Num_Stations_Modeled,0)*'Data General Inflation'!Y$3 -> 0 | AA65: =-IF(AND(COLUMN(AA53)-COLUMN($E53)<Base_V1_Years_Usage_Modeled,_Base_Include_Charging="Yes"),Base_Station_Maint_Cost_Modeled*Base_Num_Stations_Modeled,0)*'Data General Inflation'!Z$3 -> 0 | AB65: =-IF(AND(COLUMN(AB53)-COLUMN($E53)<Base_V1_Years_Usage_Modeled,_Base_Include_Charging="Yes"),Base_Station_Maint_Cost_Modeled*Base_Num_Stations_Modeled,0)*'Data General Inflation'!AA$3 -> 0 | AC65: =-IF(AND(COLUMN(AC53)-COLUMN($E53)<Base_V1_Years_Usage_Modeled,_Base_Include_Charging="Yes"),Base_Station_Maint_Cost_Modeled*Base_Num_Stations_Modeled,0)*'Data General Inflation'!AB$3 -> 0
B66: Subtotal Operating Costs | E66: =SUM(E65:E65) -> 0 | F66: 0 | G66: 0 | H66: 0 | I66: 0 | J66: 0 | K66: 0 | L66: 0 | M66: 0 | N66: 0 | O66: 0 | P66: 0 | Q66: 0 | R66: 0 | S66: 0 | T66: 0 | U66: 0 | V66: 0 | W66: 0 | X66: 0 | Y66: 0 | Z66: 0 | AA66: 0 | AB66: 0 | AC66: 0
B67: Total Discounted Costs
B68: Total Annual Costs | D68: =D62+D66 -> 0 | E68: =E62+E66 -> 0 | F68: 0 | G68: 0 | H68: 0 | I68: 0 | J68: 0 | K68: 0 | L68: 0 | M68: 0 | N68: 0 | O68: 0 | P68: 0 | Q68: 0 | R68: 0 | S68: 0 | T68: 0 | U68: 0 | V68: 0 | W68: 0 | X68: 0 | Y68: 0 | Z68: 0 | AA68: 0 | AB68: 0 | AC68: 0
B69: Discount Factor | C69: =Base_Discount_Rate_Modeled -> 0.02 | D69: =(1/(1+$C69))^(COLUMN(D53)-COLUMN($D53)) -> 1 | E69: 0.9803921569 | F69: 0.9611687812 | G69: 0.9423223345 | H69: 0.923845426 | I69: 0.9057308098 | J69: 0.8879713822 | K69: 0.8705601786 | L69: 0.8534903712 | M69: 0.8367552659 | N69: 0.8203482999 | O69: 0.8042630391 | P69: 0.7884931756 | Q69: 0.7730325251 | R69: 0.7578750246 | S69: 0.74301473 | T69: 0.7284458137 | U69: 0.7141625625 | V69: 0.700159375 | W69: 0.6864307598 | X69: 0.6729713331 | Y69: 0.6597758168 | Z69: 0.6468390361 | AA69: 0.6341559177 | AB69: 0.6217214879 | AC69: 0.6095308705
B70: Discounted Total | D70: =D68*D69 -> 0 | E70: =E68*E69 -> 0 | F70: =F68*F69 -> 0 | G70: 0 | H70: 0 | I70: 0 | J70: 0 | K70: 0 | L70: 0 | M70: 0 | N70: 0 | O70: 0 | P70: 0 | Q70: 0 | R70: 0 | S70: 0 | T70: 0 | U70: 0 | V70: 0 | W70: 0 | X70: 0 | Y70: 0 | Z70: 0 | AA70: 0 | AB70: 0 | AC70: 0
B71: Cumulative Discounted Total | D71: =IF((COLUMN(D53)-COLUMN($D53))<=Base_V1_Years_Usage_Modeled,C71+D70,0) -> 0 | E71: 0 | F71: 0 | G71: 0 | H71: 0 | I71: 0 | J71: 0 | K71: 0 | L71: 0 | M71: 0 | N71: 0 | O71: 0 | P71: 0 | Q71: 0 | R71: 0 | S71: 0 | T71: 0 | U71: 0 | V71: 0 | W71: 0 | X71: 0 | Y71: 0 | Z71: 0 | AA71: 0 | AB71: 0 | AC71: 0
B72: Annualized NPV Total Cost of Ownership | D72: =OFFSET($D71,0,Base_V1_Years_Usage_Modeled)/Base_V1_Years_Usage_Modeled -> 0
B74: Comparison Vehicle 1
D75: Year 0 | E75: Year 1 | F75: Year 2 | G75: Year 3 | H75: Year 4 | I75: Year 5 | J75: Year 6 | K75: Year 7 | L75: Year 8 | M75: Year 9 | N75: Year 10 | O75: Year 11 | P75: Year 12 | Q75: Year 13 | R75: Year 14 | S75: Year 15 | T75: Year 16 | U75: Year 17 | V75: Year 18 | W75: Year 19 | X75: Year 20 | Y75: Year 21 | Z75: Year 22 | AA75: Year 23 | AB75: Year 24 | AC75: Year 25
B76: Depreciation Calculations
B77: Fair Market Value - BEV | D77: =IF(_Comp_V1_Vehicle_Drivetrain="BEV",Comp_V1_Base_Price_Ex,0) -> 0 | E77: =IF(_Comp_V1_Vehicle_Vehicle_Class=Const_Passenger_Light_Duty, IF(_Comp_V1_Vehicle_Drivetrain="BEV",MAX(IF(_Comp_V1_Vehicle_Drivetrain="BEV",Reg_BEV_Const_Ex+Reg_BEV_Age_Coef_Ex*(COLUMN(E75)-COLUMN($D75))+Reg_BEV_Agesq_Coef_Ex*((COLUMN(E75)-COLUMN($D75))^2)+Reg_BEV_MSRP_Coef_Ex*Comp_V1_Base_Price_Ex+Reg_BEV_Range_Coef_Ex*Constant_Comparison_Electric_Range+Reg_BEV_Mileage_Coef_Ex*Comp_V1_VMT_Modeled*(COLUMN(E75)-COLUMN($D75)),0),300),0), IF(COLUMN(E75)-COLUMN($D75)=1, 'Financial Model'!D77*0.77, 'Financial Model'!D77*0.85)) -> 0 | F77: =IF(_Comp_V1_Vehicle_Vehicle_Class=Const_Passenger_Light_Duty, IF(_Comp_V1_Vehicle_Drivetrain="BEV",MAX(IF(_Comp_V1_Vehicle_Drivetrain="BEV",Reg_BEV_Const_Ex+Reg_BEV_Age_Coef_Ex*(COLUMN(F75)-COLUMN($D75))+Reg_BEV_Agesq_Coef_Ex*((COLUMN(F75)-COLUMN($D75))^2)+Reg_BEV_MSRP_Coef_Ex*Comp_V1_Base_Price_Ex+Reg_BEV_Range_Coef_Ex*Constant_Comparison_Electric_Range+Reg_BEV_Mileage_Coef_Ex*Comp_V1_VMT_Modeled*(COLUMN(F75)-COLUMN($D75)),0),300),0), IF(COLUMN(F75)-COLUMN($D75)=1, 'Financial Model'!E77*0.77, 'Financial Model'!E77*0.85)) -> 0 | G77: =IF(_Comp_V1_Vehicle_Vehicle_Class=Const_Passenger_Light_Duty, IF(_Comp_V1_Vehicle_Drivetrain="BEV",MAX(IF(_Comp_V1_Vehicle_Drivetrain="BEV",Reg_BEV_Const_Ex+Reg_BEV_Age_Coef_Ex*(COLUMN(G75)-COLUMN($D75))+Reg_BEV_Agesq_Coef_Ex*((COLUMN(G75)-COLUMN($D75))^2)+Reg_BEV_MSRP_Coef_Ex*Comp_V1_Base_Price_Ex+Reg_BEV_Range_Coef_Ex*Constant_Comparison_Electric_Range+Reg_BEV_Mileage_Coef_Ex*Comp_V1_VMT_Modeled*(COLUMN(G75)-COLUMN($D75)),0),300),0), IF(COLUMN(G75)-COLUMN($D75)=1, 'Financial Model'!F77*0.77, 'Financial Model'!F77*0.85)) -> 0 | H77: =IF(_Comp_V1_Vehicle_Vehicle_Class=Const_Passenger_Light_Duty, IF(_Comp_V1_Vehicle_Drivetrain="BEV",MAX(IF(_Comp_V1_Vehicle_Drivetrain="BEV",Reg_BEV_Const_Ex+Reg_BEV_Age_Coef_Ex*(COLUMN(H75)-COLUMN($D75))+Reg_BEV_Agesq_Coef_Ex*((COLUMN(H75)-COLUMN($D75))^2)+Reg_BEV_MSRP_Coef_Ex*Comp_V1_Base_Price_Ex+Reg_BEV_Range_Coef_Ex*Constant_Comparison_Electric_Range+Reg_BEV_Mileage_Coef_Ex*Comp_V1_VMT_Modeled*(COLUMN(H75)-COLUMN($D75)),0),300),0), IF(COLUMN(H75)-COLUMN($D75)=1, 'Financial Model'!G77*0.77, 'Financial Model'!G77*0.85)) -> 0 | I77: =IF(_Comp_V1_Vehicle_Vehicle_Class=Const_Passenger_Light_Duty, IF(_Comp_V1_Vehicle_Drivetrain="BEV",MAX(IF(_Comp_V1_Vehicle_Drivetrain="BEV",Reg_BEV_Const_Ex+Reg_BEV_Age_Coef_Ex*(COLUMN(I75)-COLUMN($D75))+Reg_BEV_Agesq_Coef_Ex*((COLUMN(I75)-COLUMN($D75))^2)+Reg_BEV_MSRP_Coef_Ex*Comp_V1_Base_Price_Ex+Reg_BEV_Range_Coef_Ex*Constant_Comparison_Electric_Range+Reg_BEV_Mileage_Coef_Ex*Comp_V1_VMT_Modeled*(COLUMN(I75)-COLUMN($D75)),0),300),0), IF(COLUMN(I75)-COLUMN($D75)=1, 'Financial Model'!H77*0.77, 'Financial Model'!H77*0.85)) -> 0 | J77: =IF($H77-$I77=0,0,MAX((1-($H77-$I77)/$H77)*I77,300)) -> 0 | K77: 0 | L77: 0 | M77: 0 | N77: 0 | O77: 0 | P77: 0 | Q77: 0 | R77: 0 | S77: 0 | T77: 0 | U77: 0 | V77: 0 | W77: 0 | X77: 0 | Y77: 0 | Z77: =IF($H77-$I77=0,0,MAX((1-($H77-$I77)/$H77)*Y77,300)) -> 0 | AA77: 0 | AB77: 0 | AC77: 0
B78: Fair Market Value - PHEV | D78: =IF(_Comp_V1_Vehicle_Drivetrain="PHEV",Comp_V1_Base_Price_Ex,0) -> 0 | E78: =IF(_Comp_V1_Vehicle_Vehicle_Class=Const_Passenger_Light_Duty, IF(_Comp_V1_Vehicle_Drivetrain="PHEV",MAX(IF(_Comp_V1_Vehicle_Drivetrain="PHEV",Reg_PHEV_Const_Ex+Reg_PHEV_Age_Coef_Ex*(COLUMN(E75)-COLUMN($D75))+Reg_PHEV_Agesq_Coef_Ex*((COLUMN(E75)-COLUMN($D75))^2)+Reg_PHEV_MSRP_Coef_Ex*Comp_V1_Base_Price_Ex+Reg_PHEV_Range_Coef_Ex*Constant_Comparison_Electric_Range+Reg_PHEV_Mileage_Coef_Ex*Comp_V1_VMT_Modeled*(COLUMN(E75)-COLUMN($D75)),0),300),0),IF(COLUMN(E75)-COLUMN($D75)=1, 'Financial Model'!D78*0.77, 'Financial Model'!D78*0.85)) -> 0 | F78: =IF(_Comp_V1_Vehicle_Vehicle_Class=Const_Passenger_Light_Duty, IF(_Comp_V1_Vehicle_Drivetrain="PHEV",MAX(IF(_Comp_V1_Vehicle_Drivetrain="PHEV",Reg_PHEV_Const_Ex+Reg_PHEV_Age_Coef_Ex*(COLUMN(F75)-COLUMN($D75))+Reg_PHEV_Agesq_Coef_Ex*((COLUMN(F75)-COLUMN($D75))^2)+Reg_PHEV_MSRP_Coef_Ex*Comp_V1_Base_Price_Ex+Reg_PHEV_Range_Coef_Ex*Constant_Comparison_Electric_Range+Reg_PHEV_Mileage_Coef_Ex*Comp_V1_VMT_Modeled*(COLUMN(F75)-COLUMN($D75)),0),300),0),IF(COLUMN(F75)-COLUMN($D75)=1, 'Financial Model'!E78*0.77, 'Financial Model'!E78*0.85)) -> 0 | G78: =IF(_Comp_V1_Vehicle_Vehicle_Class=Const_Passenger_Light_Duty, IF(_Comp_V1_Vehicle_Drivetrain="PHEV",MAX(IF(_Comp_V1_Vehicle_Drivetrain="PHEV",Reg_PHEV_Const_Ex+Reg_PHEV_Age_Coef_Ex*(COLUMN(G75)-COLUMN($D75))+Reg_PHEV_Agesq_Coef_Ex*((COLUMN(G75)-COLUMN($D75))^2)+Reg_PHEV_MSRP_Coef_Ex*Comp_V1_Base_Price_Ex+Reg_PHEV_Range_Coef_Ex*Constant_Comparison_Electric_Range+Reg_PHEV_Mileage_Coef_Ex*Comp_V1_VMT_Modeled*(COLUMN(G75)-COLUMN($D75)),0),300),0),IF(COLUMN(G75)-COLUMN($D75)=1, 'Financial Model'!F78*0.77, 'Financial Model'!F78*0.85)) -> 0 | H78: =IF(_Comp_V1_Vehicle_Vehicle_Class=Const_Passenger_Light_Duty, IF(_Comp_V1_Vehicle_Drivetrain="PHEV",MAX(IF(_Comp_V1_Vehicle_Drivetrain="PHEV",Reg_PHEV_Const_Ex+Reg_PHEV_Age_Coef_Ex*(COLUMN(H75)-COLUMN($D75))+Reg_PHEV_Agesq_Coef_Ex*((COLUMN(H75)-COLUMN($D75))^2)+Reg_PHEV_MSRP_Coef_Ex*Comp_V1_Base_Price_Ex+Reg_PHEV_Range_Coef_Ex*Constant_Comparison_Electric_Range+Reg_PHEV_Mileage_Coef_Ex*Comp_V1_VMT_Modeled*(COLUMN(H75)-COLUMN($D75)),0),300),0),IF(COLUMN(H75)-COLUMN($D75)=1, 'Financial Model'!G78*0.77, 'Financial Model'!G78*0.85)) -> 0 | I78: =IF(_Comp_V1_Vehicle_Vehicle_Class=Const_Passenger_Light_Duty, IF(_Comp_V1_Vehicle_Drivetrain="PHEV",MAX(IF(_Comp_V1_Vehicle_Drivetrain="PHEV",Reg_PHEV_Const_Ex+Reg_PHEV_Age_Coef_Ex*(COLUMN(I75)-COLUMN($D75))+Reg_PHEV_Agesq_Coef_Ex*((COLUMN(I75)-COLUMN($D75))^2)+Reg_PHEV_MSRP_Coef_Ex*Comp_V1_Base_Price_Ex+Reg_PHEV_Range_Coef_Ex*Constant_Comparison_Electric_Range+Reg_PHEV_Mileage_Coef_Ex*Comp_V1_VMT_Modeled*(COLUMN(I75)-COLUMN($D75)),0),300),0),IF(COLUMN(I75)-COLUMN($D75)=1, 'Financial Model'!H78*0.77, 'Financial Model'!H78*0.85)) -> 0 | J78: 0 | K78: 0 | L78: 0 | M78: 0 | N78: 0 | O78: 0 | P78: 0 | Q78: 0 | R78: 0 | S78: 0 | T78: 0 | U78: 0 | V78: 0 | W78: 0 | X78: 0 | Y78: 0 | Z78: 0 | AA78: 0 | AB78: 0 | AC78: 0
B79: Fair Market Value - ICE | D79: =IF(_Comp_V1_Vehicle_Drivetrain="ICE",Comp_V1_Base_Price_Ex,0) -> 0 | E79: =IF(_Comp_V1_Vehicle_Vehicle_Class=Const_Passenger_Light_Duty, IF(_Comp_V1_Vehicle_Drivetrain="ICE",MAX(IF(_Comp_V1_Vehicle_Drivetrain="ICE",Reg_ICE_Const_Ex+Reg_ICE_Age_Coef_Ex*(COLUMN(E75)-COLUMN($D75))+Reg_ICE_Agesq_Coef_Ex*(COLUMN(E75)-COLUMN($D75))^2+Reg_ICE_MSRP_Coef_Ex*Comp_V1_Base_Price_Ex+Reg_ICE_MPG_Coef_Ex*Constant_Comparison_Fuel_Economy_Gas_City+Reg_ICE_Mileage_Coef_Ex*Comp_V1_VMT_Modeled*(COLUMN(E75)-COLUMN($D75)),0),300),0), IF(COLUMN(E75)-COLUMN($D75)=1, 'Financial Model'!D79*0.77, 'Financial Model'!D79*0.85)) -> 0 | F79: =IF(_Comp_V1_Vehicle_Vehicle_Class=Const_Passenger_Light_Duty, IF(_Comp_V1_Vehicle_Drivetrain="ICE",MAX(IF(_Comp_V1_Vehicle_Drivetrain="ICE",Reg_ICE_Const_Ex+Reg_ICE_Age_Coef_Ex*(COLUMN(F75)-COLUMN($D75))+Reg_ICE_Agesq_Coef_Ex*(COLUMN(F75)-COLUMN($D75))^2+Reg_ICE_MSRP_Coef_Ex*Comp_V1_Base_Price_Ex+Reg_ICE_MPG_Coef_Ex*Constant_Comparison_Fuel_Economy_Gas_City+Reg_ICE_Mileage_Coef_Ex*Comp_V1_VMT_Modeled*(COLUMN(F75)-COLUMN($D75)),0),300),0), IF(COLUMN(F75)-COLUMN($D75)=1, 'Financial Model'!E79*0.77, 'Financial Model'!E79*0.85)) -> 0 | G79: =IF(_Comp_V1_Vehicle_Vehicle_Class=Const_Passenger_Light_Duty, IF(_Comp_V1_Vehicle_Drivetrain="ICE",MAX(IF(_Comp_V1_Vehicle_Drivetrain="ICE",Reg_ICE_Const_Ex+Reg_ICE_Age_Coef_Ex*(COLUMN(G75)-COLUMN($D75))+Reg_ICE_Agesq_Coef_Ex*(COLUMN(G75)-COLUMN($D75))^2+Reg_ICE_MSRP_Coef_Ex*Comp_V1_Base_Price_Ex+Reg_ICE_MPG_Coef_Ex*Constant_Comparison_Fuel_Economy_Gas_City+Reg_ICE_Mileage_Coef_Ex*Comp_V1_VMT_Modeled*(COLUMN(G75)-COLUMN($D75)),0),300),0), IF(COLUMN(G75)-COLUMN($D75)=1, 'Financial Model'!F79*0.77, 'Financial Model'!F79*0.85)) -> 0 | H79: =IF(_Comp_V1_Vehicle_Vehicle_Class=Const_Passenger_Light_Duty, IF(_Comp_V1_Vehicle_Drivetrain="ICE",MAX(IF(_Comp_V1_Vehicle_Drivetrain="ICE",Reg_ICE_Const_Ex+Reg_ICE_Age_Coef_Ex*(COLUMN(H75)-COLUMN($D75))+Reg_ICE_Agesq_Coef_Ex*(COLUMN(H75)-COLUMN($D75))^2+Reg_ICE_MSRP_Coef_Ex*Comp_V1_Base_Price_Ex+Reg_ICE_MPG_Coef_Ex*Constant_Comparison_Fuel_Economy_Gas_City+Reg_ICE_Mileage_Coef_Ex*Comp_V1_VMT_Modeled*(COLUMN(H75)-COLUMN($D75)),0),300),0), IF(COLUMN(H75)-COLUMN($D75)=1, 'Financial Model'!G79*0.77, 'Financial Model'!G79*0.85)) -> 0 | I79: =IF(_Comp_V1_Vehicle_Vehicle_Class=Const_Passenger_Light_Duty, IF(_Comp_V1_Vehicle_Drivetrain="ICE",MAX(IF(_Comp_V1_Vehicle_Drivetrain="ICE",Reg_ICE_Const_Ex+Reg_ICE_Age_Coef_Ex*(COLUMN(I75)-COLUMN($D75))+Reg_ICE_Agesq_Coef_Ex*(COLUMN(I75)-COLUMN($D75))^2+Reg_ICE_MSRP_Coef_Ex*Comp_V1_Base_Price_Ex+Reg_ICE_MPG_Coef_Ex*Constant_Comparison_Fuel_Economy_Gas_City+Reg_ICE_Mileage_Coef_Ex*Comp_V1_VMT_Modeled*(COLUMN(I75)-COLUMN($D75)),0),300),0), IF(COLUMN(I75)-COLUMN($D75)=1, 'Financial Model'!H79*0.77, 'Financial Model'!H79*0.85)) -> 0 | J79: 0 | K79: 0 | L79: 0 | M79: 0 | N79: 0 | O79: 0 | P79: 0 | Q79: 0 | R79: 0 | S79: 0 | T79: 0 | U79: 0 | V79: 0 | W79: 0 | X79: 0 | Y79: 0 | Z79: 0 | AA79: 0 | AB79: 0 | AC79: 0
B81: Capital and Financing Costs
B82: Cash
B83: Cash Payment | D83: =IF(AND(Comp_V1_Has_Cash_Purchase_Ex=TRUE,Comp_V1_Has_Loan_Ex=FALSE,Comp_V1_Has_Lease_Ex=FALSE,COLUMN(D75)-COLUMN($D75)=0),-(Comp_V1_Base_Price_Ex-IF(Comp_V1_Tax_Incentives_Monetized="Yes",Comp_V1_Federal_Tax_Incentives_Modeled+IF(Comp_V1_State_Tax_Incentive_Cap_Modeled=0,Comp_V1_State_Tax_Incentives_Modeled,MIN(Comp_V1_State_Tax_Incentive_Cap_Modeled,Comp_V1_State_Tax_Incentives_Modeled*Comp_V1_Num_Vehicles_Modeled)/Comp_V1_Num_Vehicles_Modeled),0)-Comp_V1_Other_Incentives_Modeled),IF(AND(Comp_V1_Has_Cash_Purchase_Ex=TRUE,OR(Comp_V1_Has_Loan_Ex=TRUE,Comp_V1_Has_Lease_Ex=TRUE),COLUMN(D75)-COLUMN($D75)=Comp_V1_Lease_Term_Modeled),IF(ISERROR(FIND("Tax",_Comp_V1_Ownership_Structure,1)),-SUM(D77:D79),-Comp_V1_Lease_Residual_Price_Modeled),0)) -> 0 | E83: 0 | F83: 0 | G83: 0 | H83: 0 | I83: 0 | J83: 0 | K83: 0 | L83: 0 | M83: 0 | N83: 0 | O83: 0 | P83: 0 | Q83: 0 | R83: 0 | S83: 0 | T83: 0 | U83: 0 | V83: 0 | W83: 0 | X83: 0 | Y83: 0 | Z83: 0 | AA83: 0 | AB83: 0 | AC83: 0
B84: Lease
B85: Down Payment | D85: =IF(Comp_V1_Has_Lease_Ex=TRUE,-Comp_V1_Down_Payment_Modeled,0) -> 0
B86: Acquisition Fee | D86: =IF(Comp_V1_Has_Lease_Ex=TRUE,-Comp_V1_Lease_Acquisition_Fee_Modeled,0) -> 0
B87: Disposition Charge | D87: =IF(AND(Comp_V1_Has_Lease_Ex=TRUE,((COLUMN(D75)-COLUMN($D75))=Comp_V1_Lease_Term_Modeled)),-Comp_V1_Lease_Disposition_Fee_Modeled,0) -> 0 | E87: 0 | F87: 0 | G87: 0 | H87: 0 | I87: 0 | J87: 0 | K87: 0 | L87: 0 | M87: 0 | N87: 0 | O87: 0 | P87: 0 | Q87: 0 | R87: 0 | S87: 0 | T87: 0 | U87: 0 | V87: 0 | W87: 0 | X87: 0 | Y87: 0 | Z87: 0 | AA87: 0 | AB87: 0 | AC87: 0
B88: Lease Payments | E88: =IF(Comp_V1_Has_Lease_Ex=TRUE,IF((COLUMN(E75)-COLUMN($E75))<Comp_V1_Lease_Term_Modeled,-PMT(Comp_V1_Lease_APR_Modeled/12,Comp_V1_Lease_Term_Modeled*12,-(Comp_V1_Base_Price_Ex-IF(Comp_V1_Tax_Incentives_Monetized="Yes",Comp_V1_Federal_Tax_Incentives_Modeled+IF(Comp_V1_State_Tax_Incentive_Cap_Modeled=0,Comp_V1_State_Tax_Incentives_Modeled,MIN(Comp_V1_State_Tax_Incentive_Cap_Modeled,Comp_V1_State_Tax_Incentives_Modeled*Comp_V1_Num_Vehicles_Modeled)/Comp_V1_Num_Vehicles_Modeled),0)-Comp_V1_Other_Incentives_Modeled-Comp_V1_Down_Payment_Modeled)+Comp_V1_Lease_Residual_Price_Modeled,0)*12,0),0) -> 0 | F88: 0 | G88: 0 | H88: 0 | I88: 0 | J88: 0 | K88: 0 | L88: 0 | M88: 0 | N88: 0 | O88: 0 | P88: 0 | Q88: 0 | R88: 0 | S88: 0 | T88: 0 | U88: 0 | V88: 0 | W88: 0 | X88: 0 | Y88: 0 | Z88: 0 | AA88: 0 | AB88: 0 | AC88: 0
B89: Principal Payments | E89: =IF(Comp_V1_Has_Lease_Ex=TRUE,IF((COLUMN(E75)-COLUMN($E75))<Comp_V1_Lease_Term_Modeled,-PPMT(Comp_V1_Lease_APR_Modeled/12,(COLUMN(E75)-COLUMN($D75))*12,Comp_V1_Lease_Term_Modeled*12,-(Comp_V1_Base_Price_Ex-IF(Comp_V1_Tax_Incentives_Monetized="Yes",Comp_V1_Federal_Tax_Incentives_Modeled+IF(Comp_V1_State_Tax_Incentive_Cap_Modeled=0,Comp_V1_State_Tax_Incentives_Modeled,MIN(Comp_V1_State_Tax_Incentive_Cap_Modeled,Comp_V1_State_Tax_Incentives_Modeled*Comp_V1_Num_Vehicles_Modeled)/Comp_V1_Num_Vehicles_Modeled),0)-Comp_V1_Other_Incentives_Modeled-Comp_V1_Down_Payment_Modeled)+Comp_V1_Lease_Residual_Price_Modeled,0)*12,0),0) -> 0 | F89: 0 | G89: 0 | H89: 0 | I89: 0 | J89: 0 | K89: 0 | L89: 0 | M89: 0 | N89: 0 | O89: 0 | P89: 0 | Q89: 0 | R89: 0 | S89: 0 | T89: 0 | U89: 0 | V89: 0 | W89: 0 | X89: 0 | Y89: 0 | Z89: 0 | AA89: 0 | AB89: 0 | AC89: 0
B90: Interest Payments | E90: =IF(Comp_V1_Has_Lease_Ex=TRUE,IF((COLUMN(E75)-COLUMN($E75))<Comp_V1_Lease_Term_Modeled,-IPMT(Comp_V1_Lease_APR_Modeled/12,(COLUMN(E75)-COLUMN($D75))*12,Comp_V1_Lease_Term_Modeled*12,-(Comp_V1_Base_Price_Ex-IF(Comp_V1_Tax_Incentives_Monetized="Yes",Comp_V1_Federal_Tax_Incentives_Modeled+IF(Comp_V1_State_Tax_Incentive_Cap_Modeled=0,Comp_V1_State_Tax_Incentives_Modeled,MIN(Comp_V1_State_Tax_Incentive_Cap_Modeled,Comp_V1_State_Tax_Incentives_Modeled*Comp_V1_Num_Vehicles_Modeled)/Comp_V1_Num_Vehicles_Modeled),0)-Comp_V1_Other_Incentives_Modeled-Comp_V1_Down_Payment_Modeled)+Comp_V1_Lease_Residual_Price_Modeled,0)*12,0),0) -> 0 | F90: 0 | G90: 0 | H90: 0 | I90: 0 | J90: 0 | K90: 0 | L90: 0 | M90: 0 | N90: 0 | O90: 0 | P90: 0 | Q90: 0 | R90: 0 | S90: 0 | T90: 0 | U90: 0 | V90: 0 | W90: 0 | X90: 0 | Y90: 0 | Z90: 0 | AA90: 0 | AB90: 0 | AC90: 0
B91: TRAC Value Adjustment | E91: =IF(ISERROR(FIND("TRAC",_Comp_V1_Ownership_Structure,1)),0,IF(Comp_V1_Has_Loan_Ex=TRUE,0,IF((COLUMN(E75)-COLUMN($D75))=Comp_V1_Lease_Term_Modeled,SUM(E77:E79)-Comp_V1_Lease_Residual_Price_Modeled,0))) -> 0 | F91: 0 | G91: 0 | H91: 0 | I91: 0 | J91: 0 | K91: 0 | L91: 0 | M91: 0 | N91: 0 | O91: 0 | P91: 0 | Q91: 0 | R91: 0 | S91: 0 | T91: 0 | U91: 0 | V91: 0 | W91: 0 | X91: 0 | Y91: 0 | Z91: 0 | AA91: 0 | AB91: 0 | AC91: 0
B92: FMV Mileage Adjustment | E92: =MIN(0,MAX(-Comp_V1_Lease_Residual_Price_Modeled+SUM(E77:E79),IF(IFERROR(IF(FIND("FMV",_Comp_V1_Ownership_Structure,1)>0,TRUE,FALSE),FALSE),IF((COLUMN(E75)-COLUMN($D75))=Comp_V1_Lease_Term_Modeled,(Comp_V1_Lease_Mileage_Inc_Modeled-Comp_V1_VMT_Modeled)*(COLUMN(E75)-COLUMN($D75))*Comp_V1_Lease_Mileage_Cost_Modeled,0),0))) -> 0 | F92: 0 | G92: 0 | H92: 0 | I92: 0 | J92: 0 | K92: 0 | L92: 0 | M92: 0 | N92: 0 | O92: 0 | P92: 0 | Q92: 0 | R92: 0 | S92: 0 | T92: 0 | U92: 0 | V92: 0 | W92: 0 | X92: 0 | Y92: 0 | Z92: 0 | AA92: 0 | AB92: 0 | AC92: 0
B93: Subtotal Lease Cash Flows | D93: =SUM(D85:D88)+SUM(D91:D92) -> 0 | E93: =SUM(E85:E88)+SUM(E91:E92) -> 0 | F93: 0 | G93: 0 | H93: 0 | I93: 0 | J93: 0 | K93: 0 | L93: 0 | M93: 0 | N93: 0 | O93: 0 | P93: 0 | Q93: 0 | R93: 0 | S93: 0 | T93: 0 | U93: 0 | V93: 0 | W93: 0 | X93: 0 | Y93: 0 | Z93: 0 | AA93: 0 | AB93: 0 | AC93: 0
B94: Loan
B95: Down Payment | D95: =IF(AND(Comp_V1_Has_Loan_Ex=TRUE,Comp_V1_Has_Lease_Ex=FALSE),-Comp_V1_Down_Payment_Modeled,0) -> 0
B96: Loan Payments | E96: =IF(Comp_V1_Has_Loan_Ex=TRUE,IF(AND((COLUMN(E75)-COLUMN($E75))<Comp_V1_Loan_Term_Modeled+Comp_V1_Lease_Term_Modeled,(COLUMN(E75)-COLUMN($E75))>=Comp_V1_Lease_Term_Modeled),PMT(Comp_V1_Loan_APR_Modeled,Comp_V1_Loan_Term_Modeled,IF(Comp_V1_Has_Lease_Ex=TRUE,SUM(OFFSET($D77,0,Comp_V1_Lease_Term_Modeled,3,1)),Comp_V1_Base_Price_Ex-IF(Comp_V1_Tax_Incentives_Monetized="Yes",Comp_V1_Federal_Tax_Incentives_Modeled+IF(Comp_V1_State_Tax_Incentive_Cap_Modeled=0,Comp_V1_State_Tax_Incentives_Modeled,MIN(Comp_V1_State_Tax_Incentive_Cap_Modeled,Comp_V1_State_Tax_Incentives_Modeled*Comp_V1_Num_Vehicles_Modeled)/Comp_V1_Num_Vehicles_Modeled),0)-Comp_V1_Other_Incentives_Modeled-Comp_V1_Down_Payment_Modeled),0),0),0) -> 0 | F96: 0 | G96: 0 | H96: 0 | I96: 0 | J96: 0 | K96: 0 | L96: 0 | M96: 0 | N96: 0 | O96: 0 | P96: 0 | Q96: 0 | R96: 0 | S96: 0 | T96: 0 | U96: 0 | V96: 0 | W96: 0 | X96: 0 | Y96: 0 | Z96: 0 | AA96: 0 | AB96: 0 | AC96: 0
B97: Principal Payments | E97: =IF(Comp_V1_Has_Loan_Ex=TRUE,IF(AND((COLUMN(E75)-COLUMN($E75))<Comp_V1_Loan_Term_Modeled+Comp_V1_Lease_Term_Modeled,(COLUMN(E75)-COLUMN($E75))>=Comp_V1_Lease_Term_Modeled),PPMT(Comp_V1_Loan_APR_Modeled,IF(Comp_V1_Has_Lease_Ex=TRUE,(COLUMN(E75)-COLUMN($D75)-Comp_V1_Lease_Term_Modeled),(COLUMN(E75)-COLUMN($D75))),Comp_V1_Loan_Term_Modeled,IF(Comp_V1_Has_Lease_Ex=TRUE,SUM(OFFSET($D77,0,Comp_V1_Lease_Term_Modeled,3,1)),Comp_V1_Base_Price_Ex-IF(Comp_V1_Tax_Incentives_Monetized="Yes",Comp_V1_Federal_Tax_Incentives_Modeled+IF(Comp_V1_State_Tax_Incentive_Cap_Modeled=0,Comp_V1_State_Tax_Incentives_Modeled,MIN(Comp_V1_State_Tax_Incentive_Cap_Modeled,Comp_V1_State_Tax_Incentives_Modeled*Comp_V1_Num_Vehicles_Modeled)/Comp_V1_Num_Vehicles_Modeled),0)-Comp_V1_Other_Incentives_Modeled-Comp_V1_Down_Payment_Modeled),0),0),0) -> 0 | F97: 0 | G97: 0 | H97: 0 | I97: 0 | J97: 0 | K97: 0 | L97: 0 | M97: 0 | N97: 0 | O97: 0 | P97: 0 | Q97: 0 | R97: 0 | S97: 0 | T97: 0 | U97: 0 | V97: 0 | W97: 0 | X97: 0 | Y97: 0 | Z97: 0 | AA97: 0 | AB97: 0 | AC97: 0
B98: Interest Payments | E98: =IF(Comp_V1_Has_Loan_Ex=TRUE,IF(AND((COLUMN(E75)-COLUMN($E75))<Comp_V1_Loan_Term_Modeled+Comp_V1_Lease_Term_Modeled,(COLUMN(E75)-COLUMN($E75))>=Comp_V1_Lease_Term_Modeled),IPMT(Comp_V1_Loan_APR_Modeled,IF(Comp_V1_Has_Lease_Ex=TRUE,(COLUMN(E75)-COLUMN($D75)-Comp_V1_Lease_Term),(COLUMN(E75)-COLUMN($D75))),Comp_V1_Loan_Term_Modeled,IF(Comp_V1_Has_Lease_Ex=TRUE,SUM(OFFSET($D77,0,Comp_V1_Lease_Term_Modeled,3,1)),Comp_V1_Base_Price_Ex-IF(Comp_V1_Tax_Incentives_Monetized="Yes",Comp_V1_Federal_Tax_Incentives_Modeled+IF(Comp_V1_State_Tax_Incentive_Cap_Modeled=0,Comp_V1_State_Tax_Incentives_Modeled,MIN(Comp_V1_State_Tax_Incentive_Cap_Modeled,Comp_V1_State_Tax_Incentives_Modeled*Comp_V1_Num_Vehicles_Modeled)/Comp_V1_Num_Vehicles_Modeled),0)-Comp_V1_Other_Incentives_Modeled-Comp_V1_Down_Payment_Modeled),0),0),0) -> 0 | F98: 0 | G98: 0 | H98: 0 | I98: 0 | J98: 0 | K98: 0 | L98: 0 | M98: 0 | N98: 0 | O98: 0 | P98: 0 | Q98: 0 | R98: 0 | S98: 0 | T98: 0 | U98: 0 | V98: 0 | W98: 0 | X98: 0 | Y98: 0 | Z98: 0 | AA98: 0 | AB98: 0 | AC98: 0
B99: Subtotal Loan Cash Flows | D99: =SUM(D95:D96) -> 0 | E99: =SUM(E95:E96) -> 0 | F99: 0 | G99: 0 | H99: 0 | I99: 0 | J99: 0 | K99: 0 | L99: 0 | M99: 0 | N99: 0 | O99: 0 | P99: 0 | Q99: 0 | R99: 0 | S99: 0 | T99: 0 | U99: 0 | V99: 0 | W99: 0 | X99: 0 | Y99: 0 | Z99: 0 | AA99: 0 | AB99: 0 | AC99: 0
B100: Terminal Value | E100: =IF(OR(Comp_V1_Has_Loan_Ex=TRUE,Comp_V1_Has_Cash_Purchase_Ex=TRUE),IF((COLUMN(E75)-COLUMN($D75))=Comp_V1_Years_Usage_Modeled,SUM(E77:E79),0),0) -> 0 | F100: 0 | G100: 0 | H100: 0 | I100: 0 | J100: 0 | K100: 0 | L100: 0 | M100: 0 | N100: 0 | O100: 0 | P100: 0 | Q100: 0 | R100: 0 | S100: 0 | T100: 0 | U100: 0 | V100: 0 | W100: 0 | X100: 0 | Y100: 0 | Z100: 0 | AA100: 0 | AB100: 0 | AC100: 0
B102: Total Capital and Financing Costs | D102: =D83+D93+D99+D100 -> 0 | E102: 0 | F102: 0 | G102: 0 | H102: 0 | I102: 0 | J102: 0 | K102: 0 | L102: 0 | M102: 0 | N102: 0 | O102: 0 | P102: 0 | Q102: 0 | R102: 0 | S102: 0 | T102: 0 | U102: 0 | V102: 0 | W102: 0 | X102: 0 | Y102: 0 | Z102: 0 | AA102: 0 | AB102: 0 | AC102: 0
B104: Fuel and Operating Costs
B105: Fuel Cost | E105: =IF(COLUMN(E75)-COLUMN($E75)<Comp_V1_Years_Usage_Modeled,-((Comp_V1_Gas_Usage_Ex*IF(Comp_V1_Fuel_Type_Ex="Diesel", Diesel_Price_Modeled, Gasoline_Price_Modeled)*IF(_Market="U.S.", 'Data - Energy Inflation'!D$4, 'Data - Energy Inflation'!D$7))+(Comp_V1_Electricity_Usage_Ex*IF(_Market="U.S.", 'Data - Energy Inflation'!D$6, 'Data - Energy Inflation'!D$8))*(Comp_Percent_Home_Charging_Modeled*Electricity_Price_Modeled+Comp_Percent_Public_Charging_Modeled*Public_Charging_Price_Modeled+Comp_Percent_En_Route_Charging_Modeled*En_Route_Charging_Price_Modeled)),0) -> 0 | F105: =IF(COLUMN(F75)-COLUMN($E75)<Comp_V1_Years_Usage_Modeled,-((Comp_V1_Gas_Usage_Ex*IF(Comp_V1_Fuel_Type_Ex="Diesel", Diesel_Price_Modeled, Gasoline_Price_Modeled)*IF(_Market="U.S.", 'Data - Energy Inflation'!E$4, 'Data - Energy Inflation'!E$7))+(Comp_V1_Electricity_Usage_Ex*IF(_Market="U.S.", 'Data - Energy Inflation'!E$6, 'Data - Energy Inflation'!E$8))*(Comp_Percent_Home_Charging_Modeled*Electricity_Price_Modeled+Comp_Percent_Public_Charging_Modeled*Public_Charging_Price_Modeled+Comp_Percent_En_Route_Charging_Modeled*En_Route_Charging_Price_Modeled)),0) -> 0 | G105: =IF(COLUMN(G75)-COLUMN($E75)<Comp_V1_Years_Usage_Modeled,-((Comp_V1_Gas_Usage_Ex*IF(Comp_V1_Fuel_Type_Ex="Diesel", Diesel_Price_Modeled, Gasoline_Price_Modeled)*IF(_Market="U.S.", 'Data - Energy Inflation'!F$4, 'Data - Energy Inflation'!F$7))+(Comp_V1_Electricity_Usage_Ex*IF(_Market="U.S.", 'Data - Energy Inflation'!F$6, 'Data - Energy Inflation'!F$8))*(Comp_Percent_Home_Charging_Modeled*Electricity_Price_Modeled+Comp_Percent_Public_Charging_Modeled*Public_Charging_Price_Modeled+Comp_Percent_En_Route_Charging_Modeled*En_Route_Charging_Price_Modeled)),0) -> 0 | H105: =IF(COLUMN(H75)-COLUMN($E75)<Comp_V1_Years_Usage_Modeled,-((Comp_V1_Gas_Usage_Ex*IF(Comp_V1_Fuel_Type_Ex="Diesel", Diesel_Price_Modeled, Gasoline_Price_Modeled)*IF(_Market="U.S.", 'Data - Energy Inflation'!G$4, 'Data - Energy Inflation'!G$7))+(Comp_V1_Electricity_Usage_Ex*IF(_Market="U.S.", 'Data - Energy Inflation'!G$6, 'Data - Energy Inflation'!G$8))*(Comp_Percent_Home_Charging_Modeled*Electricity_Price_Modeled+Comp_Percent_Public_Charging_Modeled*Public_Charging_Price_Modeled+Comp_Percent_En_Route_Charging_Modeled*En_Route_Charging_Price_Modeled)),0) -> 0 | I105: =IF(COLUMN(I75)-COLUMN($E75)<Comp_V1_Years_Usage_Modeled,-((Comp_V1_Gas_Usage_Ex*IF(Comp_V1_Fuel_Type_Ex="Diesel", Diesel_Price_Modeled, Gasoline_Price_Modeled)*IF(_Market="U.S.", 'Data - Energy Inflation'!H$4, 'Data - Energy Inflation'!H$7))+(Comp_V1_Electricity_Usage_Ex*IF(_Market="U.S.", 'Data - Energy Inflation'!H$6, 'Data - Energy Inflation'!H$8))*(Comp_Percent_Home_Charging_Modeled*Electricity_Price_Modeled+Comp_Percent_Public_Charging_Modeled*Public_Charging_Price_Modeled+Comp_Percent_En_Route_Charging_Modeled*En_Route_Charging_Price_Modeled)),0) -> 0 | J105: =IF(COLUMN(J75)-COLUMN($E75)<Comp_V1_Years_Usage_Modeled,-((Comp_V1_Gas_Usage_Ex*IF(Comp_V1_Fuel_Type_Ex="Diesel", Diesel_Price_Modeled, Gasoline_Price_Modeled)*IF(_Market="U.S.", 'Data - Energy Inflation'!I$4, 'Data - Energy Inflation'!I$7))+(Comp_V1_Electricity_Usage_Ex*IF(_Market="U.S.", 'Data - Energy Inflation'!I$6, 'Data - Energy Inflation'!I$8))*(Comp_Percent_Home_Charging_Modeled*Electricity_Price_Modeled+Comp_Percent_Public_Charging_Modeled*Public_Charging_Price_Modeled+Comp_Percent_En_Route_Charging_Modeled*En_Route_Charging_Price_Modeled)),0) -> 0 | K105: =IF(COLUMN(K75)-COLUMN($E75)<Comp_V1_Years_Usage_Modeled,-((Comp_V1_Gas_Usage_Ex*IF(Comp_V1_Fuel_Type_Ex="Diesel", Diesel_Price_Modeled, Gasoline_Price_Modeled)*IF(_Market="U.S.", 'Data - Energy Inflation'!J$4, 'Data - Energy Inflation'!J$7))+(Comp_V1_Electricity_Usage_Ex*IF(_Market="U.S.", 'Data - Energy Inflation'!J$6, 'Data - Energy Inflation'!J$8))*(Comp_Percent_Home_Charging_Modeled*Electricity_Price_Modeled+Comp_Percent_Public_Charging_Modeled*Public_Charging_Price_Modeled+Comp_Percent_En_Route_Charging_Modeled*En_Route_Charging_Price_Modeled)),0) -> 0 | L105: =IF(COLUMN(L75)-COLUMN($E75)<Comp_V1_Years_Usage_Modeled,-((Comp_V1_Gas_Usage_Ex*IF(Comp_V1_Fuel_Type_Ex="Diesel", Diesel_Price_Modeled, Gasoline_Price_Modeled)*IF(_Market="U.S.", 'Data - Energy Inflation'!K$4, 'Data - Energy Inflation'!K$7))+(Comp_V1_Electricity_Usage_Ex*IF(_Market="U.S.", 'Data - Energy Inflation'!K$6, 'Data - Energy Inflation'!K$8))*(Comp_Percent_Home_Charging_Modeled*Electricity_Price_Modeled+Comp_Percent_Public_Charging_Modeled*Public_Charging_Price_Modeled+Comp_Percent_En_Route_Charging_Modeled*En_Route_Charging_Price_Modeled)),0) -> 0 | M105: =IF(COLUMN(M75)-COLUMN($E75)<Comp_V1_Years_Usage_Modeled,-((Comp_V1_Gas_Usage_Ex*IF(Comp_V1_Fuel_Type_Ex="Diesel", Diesel_Price_Modeled, Gasoline_Price_Modeled)*IF(_Market="U.S.", 'Data - Energy Inflation'!L$4, 'Data - Energy Inflation'!L$7))+(Comp_V1_Electricity_Usage_Ex*IF(_Market="U.S.", 'Data - Energy Inflation'!L$6, 'Data - Energy Inflation'!L$8))*(Comp_Percent_Home_Charging_Modeled*Electricity_Price_Modeled+Comp_Percent_Public_Charging_Modeled*Public_Charging_Price_Modeled+Comp_Percent_En_Route_Charging_Modeled*En_Route_Charging_Price_Modeled)),0) -> 0 | N105: =IF(COLUMN(N75)-COLUMN($E75)<Comp_V1_Years_Usage_Modeled,-((Comp_V1_Gas_Usage_Ex*IF(Comp_V1_Fuel_Type_Ex="Diesel", Diesel_Price_Modeled, Gasoline_Price_Modeled)*IF(_Market="U.S.", 'Data - Energy Inflation'!M$4, 'Data - Energy Inflation'!M$7))+(Comp_V1_Electricity_Usage_Ex*IF(_Market="U.S.", 'Data - Energy Inflation'!M$6, 'Data - Energy Inflation'!M$8))*(Comp_Percent_Home_Charging_Modeled*Electricity_Price_Modeled+Comp_Percent_Public_Charging_Modeled*Public_Charging_Price_Modeled+Comp_Percent_En_Route_Charging_Modeled*En_Route_Charging_Price_Modeled)),0) -> 0 | O105: =IF(COLUMN(O75)-COLUMN($E75)<Comp_V1_Years_Usage_Modeled,-((Comp_V1_Gas_Usage_Ex*IF(Comp_V1_Fuel_Type_Ex="Diesel", Diesel_Price_Modeled, Gasoline_Price_Modeled)*IF(_Market="U.S.", 'Data - Energy Inflation'!N$4, 'Data - Energy Inflation'!N$7))+(Comp_V1_Electricity_Usage_Ex*IF(_Market="U.S.", 'Data - Energy Inflation'!N$6, 'Data - Energy Inflation'!N$8))*(Comp_Percent_Home_Charging_Modeled*Electricity_Price_Modeled+Comp_Percent_Public_Charging_Modeled*Public_Charging_Price_Modeled+Comp_Percent_En_Route_Charging_Modeled*En_Route_Charging_Price_Modeled)),0) -> 0 | P105: =IF(COLUMN(P75)-COLUMN($E75)<Comp_V1_Years_Usage_Modeled,-((Comp_V1_Gas_Usage_Ex*IF(Comp_V1_Fuel_Type_Ex="Diesel", Diesel_Price_Modeled, Gasoline_Price_Modeled)*IF(_Market="U.S.", 'Data - Energy Inflation'!O$4, 'Data - Energy Inflation'!O$7))+(Comp_V1_Electricity_Usage_Ex*IF(_Market="U.S.", 'Data - Energy Inflation'!O$6, 'Data - Energy Inflation'!O$8))*(Comp_Percent_Home_Charging_Modeled*Electricity_Price_Modeled+Comp_Percent_Public_Charging_Modeled*Public_Charging_Price_Modeled+Comp_Percent_En_Route_Charging_Modeled*En_Route_Charging_Price_Modeled)),0) -> 0 | Q105: =IF(COLUMN(Q75)-COLUMN($E75)<Comp_V1_Years_Usage_Modeled,-((Comp_V1_Gas_Usage_Ex*IF(Comp_V1_Fuel_Type_Ex="Diesel", Diesel_Price_Modeled, Gasoline_Price_Modeled)*IF(_Market="U.S.", 'Data - Energy Inflation'!P$4, 'Data - Energy Inflation'!P$7))+(Comp_V1_Electricity_Usage_Ex*IF(_Market="U.S.", 'Data - Energy Inflation'!P$6, 'Data - Energy Inflation'!P$8))*(Comp_Percent_Home_Charging_Modeled*Electricity_Price_Modeled+Comp_Percent_Public_Charging_Modeled*Public_Charging_Price_Modeled+Comp_Percent_En_Route_Charging_Modeled*En_Route_Charging_Price_Modeled)),0) -> 0 | R105: =IF(COLUMN(R75)-COLUMN($E75)<Comp_V1_Years_Usage_Modeled,-((Comp_V1_Gas_Usage_Ex*IF(Comp_V1_Fuel_Type_Ex="Diesel", Diesel_Price_Modeled, Gasoline_Price_Modeled)*IF(_Market="U.S.", 'Data - Energy Inflation'!Q$4, 'Data - Energy Inflation'!Q$7))+(Comp_V1_Electricity_Usage_Ex*IF(_Market="U.S.", 'Data - Energy Inflation'!Q$6, 'Data - Energy Inflation'!Q$8))*(Comp_Percent_Home_Charging_Modeled*Electricity_Price_Modeled+Comp_Percent_Public_Charging_Modeled*Public_Charging_Price_Modeled+Comp_Percent_En_Route_Charging_Modeled*En_Route_Charging_Price_Modeled)),0) -> 0 | S105: =IF(COLUMN(S75)-COLUMN($E75)<Comp_V1_Years_Usage_Modeled,-((Comp_V1_Gas_Usage_Ex*IF(Comp_V1_Fuel_Type_Ex="Diesel", Diesel_Price_Modeled, Gasoline_Price_Modeled)*IF(_Market="U.S.", 'Data - Energy Inflation'!R$4, 'Data - Energy Inflation'!R$7))+(Comp_V1_Electricity_Usage_Ex*IF(_Market="U.S.", 'Data - Energy Inflation'!R$6, 'Data - Energy Inflation'!R$8))*(Comp_Percent_Home_Charging_Modeled*Electricity_Price_Modeled+Comp_Percent_Public_Charging_Modeled*Public_Charging_Price_Modeled+Comp_Percent_En_Route_Charging_Modeled*En_Route_Charging_Price_Modeled)),0) -> 0 | T105: =IF(COLUMN(T75)-COLUMN($E75)<Comp_V1_Years_Usage_Modeled,-((Comp_V1_Gas_Usage_Ex*IF(Comp_V1_Fuel_Type_Ex="Diesel", Diesel_Price_Modeled, Gasoline_Price_Modeled)*IF(_Market="U.S.", 'Data - Energy Inflation'!S$4, 'Data - Energy Inflation'!S$7))+(Comp_V1_Electricity_Usage_Ex*IF(_Market="U.S.", 'Data - Energy Inflation'!S$6, 'Data - Energy Inflation'!S$8))*(Comp_Percent_Home_Charging_Modeled*Electricity_Price_Modeled+Comp_Percent_Public_Charging_Modeled*Public_Charging_Price_Modeled+Comp_Percent_En_Route_Charging_Modeled*En_Route_Charging_Price_Modeled)),0) -> 0 | U105: =IF(COLUMN(U75)-COLUMN($E75)<Comp_V1_Years_Usage_Modeled,-((Comp_V1_Gas_Usage_Ex*IF(Comp_V1_Fuel_Type_Ex="Diesel", Diesel_Price_Modeled, Gasoline_Price_Modeled)*IF(_Market="U.S.", 'Data - Energy Inflation'!T$4, 'Data - Energy Inflation'!T$7))+(Comp_V1_Electricity_Usage_Ex*IF(_Market="U.S.", 'Data - Energy Inflation'!T$6, 'Data - Energy Inflation'!T$8))*(Comp_Percent_Home_Charging_Modeled*Electricity_Price_Modeled+Comp_Percent_Public_Charging_Modeled*Public_Charging_Price_Modeled+Comp_Percent_En_Route_Charging_Modeled*En_Route_Charging_Price_Modeled)),0) -> 0 | V105: =IF(COLUMN(V75)-COLUMN($E75)<Comp_V1_Years_Usage_Modeled,-((Comp_V1_Gas_Usage_Ex*IF(Comp_V1_Fuel_Type_Ex="Diesel", Diesel_Price_Modeled, Gasoline_Price_Modeled)*IF(_Market="U.S.", 'Data - Energy Inflation'!U$4, 'Data - Energy Inflation'!U$7))+(Comp_V1_Electricity_Usage_Ex*IF(_Market="U.S.", 'Data - Energy Inflation'!U$6, 'Data - Energy Inflation'!U$8))*(Comp_Percent_Home_Charging_Modeled*Electricity_Price_Modeled+Comp_Percent_Public_Charging_Modeled*Public_Charging_Price_Modeled+Comp_Percent_En_Route_Charging_Modeled*En_Route_Charging_Price_Modeled)),0) -> 0 | W105: =IF(COLUMN(W75)-COLUMN($E75)<Comp_V1_Years_Usage_Modeled,-((Comp_V1_Gas_Usage_Ex*IF(Comp_V1_Fuel_Type_Ex="Diesel", Diesel_Price_Modeled, Gasoline_Price_Modeled)*IF(_Market="U.S.", 'Data - Energy Inflation'!V$4, 'Data - Energy Inflation'!V$7))+(Comp_V1_Electricity_Usage_Ex*IF(_Market="U.S.", 'Data - Energy Inflation'!V$6, 'Data - Energy Inflation'!V$8))*(Comp_Percent_Home_Charging_Modeled*Electricity_Price_Modeled+Comp_Percent_Public_Charging_Modeled*Public_Charging_Price_Modeled+Comp_Percent_En_Route_Charging_Modeled*En_Route_Charging_Price_Modeled)),0) -> 0 | X105: =IF(COLUMN(X75)-COLUMN($E75)<Comp_V1_Years_Usage_Modeled,-((Comp_V1_Gas_Usage_Ex*IF(Comp_V1_Fuel_Type_Ex="Diesel", Diesel_Price_Modeled, Gasoline_Price_Modeled)*IF(_Market="U.S.", 'Data - Energy Inflation'!W$4, 'Data - Energy Inflation'!W$7))+(Comp_V1_Electricity_Usage_Ex*IF(_Market="U.S.", 'Data - Energy Inflation'!W$6, 'Data - Energy Inflation'!W$8))*(Comp_Percent_Home_Charging_Modeled*Electricity_Price_Modeled+Comp_Percent_Public_Charging_Modeled*Public_Charging_Price_Modeled+Comp_Percent_En_Route_Charging_Modeled*En_Route_Charging_Price_Modeled)),0) -> 0 | Y105: =IF(COLUMN(Y75)-COLUMN($E75)<Comp_V1_Years_Usage_Modeled,-((Comp_V1_Gas_Usage_Ex*IF(Comp_V1_Fuel_Type_Ex="Diesel", Diesel_Price_Modeled, Gasoline_Price_Modeled)*IF(_Market="U.S.", 'Data - Energy Inflation'!X$4, 'Data - Energy Inflation'!X$7))+(Comp_V1_Electricity_Usage_Ex*IF(_Market="U.S.", 'Data - Energy Inflation'!X$6, 'Data - Energy Inflation'!X$8))*(Comp_Percent_Home_Charging_Modeled*Electricity_Price_Modeled+Comp_Percent_Public_Charging_Modeled*Public_Charging_Price_Modeled+Comp_Percent_En_Route_Charging_Modeled*En_Route_Charging_Price_Modeled)),0) -> 0 | Z105: =IF(COLUMN(Z75)-COLUMN($E75)<Comp_V1_Years_Usage_Modeled,-((Comp_V1_Gas_Usage_Ex*IF(Comp_V1_Fuel_Type_Ex="Diesel", Diesel_Price_Modeled, Gasoline_Price_Modeled)*IF(_Market="U.S.", 'Data - Energy Inflation'!Y$4, 'Data - Energy Inflation'!Y$7))+(Comp_V1_Electricity_Usage_Ex*IF(_Market="U.S.", 'Data - Energy Inflation'!Y$6, 'Data - Energy Inflation'!Y$8))*(Comp_Percent_Home_Charging_Modeled*Electricity_Price_Modeled+Comp_Percent_Public_Charging_Modeled*Public_Charging_Price_Modeled+Comp_Percent_En_Route_Charging_Modeled*En_Route_Charging_Price_Modeled)),0) -> 0 | AA105: =IF(COLUMN(AA75)-COLUMN($E75)<Comp_V1_Years_Usage_Modeled,-((Comp_V1_Gas_Usage_Ex*IF(Comp_V1_Fuel_Type_Ex="Diesel", Diesel_Price_Modeled, Gasoline_Price_Modeled)*IF(_Market="U.S.", 'Data - Energy Inflation'!Z$4, 'Data - Energy Inflation'!Z$7))+(Comp_V1_Electricity_Usage_Ex*IF(_Market="U.S.", 'Data - Energy Inflation'!Z$6, 'Data - Energy Inflation'!Z$8))*(Comp_Percent_Home_Charging_Modeled*Electricity_Price_Modeled+Comp_Percent_Public_Charging_Modeled*Public_Charging_Price_Modeled+Comp_Percent_En_Route_Charging_Modeled*En_Route_Charging_Price_Modeled)),0) -> 0 | AB105: =IF(COLUMN(AB75)-COLUMN($E75)<Comp_V1_Years_Usage_Modeled,-((Comp_V1_Gas_Usage_Ex*IF(Comp_V1_Fuel_Type_Ex="Diesel", Diesel_Price_Modeled, Gasoline_Price_Modeled)*IF(_Market="U.S.", 'Data - Energy Inflation'!AA$4, 'Data - Energy Inflation'!AA$7))+(Comp_V1_Electricity_Usage_Ex*IF(_Market="U.S.", 'Data - Energy Inflation'!AA$6, 'Data - Energy Inflation'!AA$8))*(Comp_Percent_Home_Charging_Modeled*Electricity_Price_Modeled+Comp_Percent_Public_Charging_Modeled*Public_Charging_Price_Modeled+Comp_Percent_En_Route_Charging_Modeled*En_Route_Charging_Price_Modeled)),0) -> 0 | AC105: =IF(COLUMN(AC75)-COLUMN($E75)<Comp_V1_Years_Usage_Modeled,-((Comp_V1_Gas_Usage_Ex*IF(Comp_V1_Fuel_Type_Ex="Diesel", Diesel_Price_Modeled, Gasoline_Price_Modeled)*IF(_Market="U.S.", 'Data - Energy Inflation'!AB$4, 'Data - Energy Inflation'!AB$7))+(Comp_V1_Electricity_Usage_Ex*IF(_Market="U.S.", 'Data - Energy Inflation'!AB$6, 'Data - Energy Inflation'!AB$8))*(Comp_Percent_Home_Charging_Modeled*Electricity_Price_Modeled+Comp_Percent_Public_Charging_Modeled*Public_Charging_Price_Modeled+Comp_Percent_En_Route_Charging_Modeled*En_Route_Charging_Price_Modeled)),0) -> 0
B106: Maintenance and Repair Cost | E106: =-IF(_Comp_V1_Maint_Repair_Cost_Use_Default="Yes",IF(COLUMN(E75)-COLUMN($E75)<Comp_V1_Years_Usage_Modeled,VLOOKUP(_Comp_V1_Vehicle_Vehicle_Class & _Comp_V1_Vehicle_Drivetrain & _Market,DB_Maint_Repair_Costs[],COLUMN(E75)-COLUMN($E75)+COLUMN(DB_Maint_Repair_Costs[[#Headers],[Year 1 ]]),FALSE)*Comp_V1_VMT_Modeled,0),IF(AND(COLUMN(E75)-COLUMN($E75)<Comp_V1_Years_Usage_Modeled,COLUMN(E75)-COLUMN($E75)<5),Comp_V1_Maint_Repair_Cost_Year_1_Modeled*Comp_V1_VMT_Modeled,IF(AND(COLUMN(E75)-COLUMN($E75)<Comp_V1_Years_Usage_Modeled,COLUMN(E75)-COLUMN($E75)>=5),Comp_V1_Maint_Repair_Cost_Year_5_Modeled*Comp_V1_VMT_Modeled,0)))*'Data General Inflation'!D$3 -> 0 | F106: =-IF(_Comp_V1_Maint_Repair_Cost_Use_Default="Yes",IF(COLUMN(F75)-COLUMN($E75)<Comp_V1_Years_Usage_Modeled,VLOOKUP(_Comp_V1_Vehicle_Vehicle_Class & _Comp_V1_Vehicle_Drivetrain & _Market,DB_Maint_Repair_Costs[],COLUMN(F75)-COLUMN($E75)+COLUMN(DB_Maint_Repair_Costs[[#Headers],[Year 1 ]]),FALSE)*Comp_V1_VMT_Modeled,0),IF(AND(COLUMN(F75)-COLUMN($E75)<Comp_V1_Years_Usage_Modeled,COLUMN(F75)-COLUMN($E75)<5),Comp_V1_Maint_Repair_Cost_Year_1_Modeled*Comp_V1_VMT_Modeled,IF(AND(COLUMN(F75)-COLUMN($E75)<Comp_V1_Years_Usage_Modeled,COLUMN(F75)-COLUMN($E75)>=5),Comp_V1_Maint_Repair_Cost_Year_5_Modeled*Comp_V1_VMT_Modeled,0)))*'Data General Inflation'!E$3 -> 0 | G106: =-IF(_Comp_V1_Maint_Repair_Cost_Use_Default="Yes",IF(COLUMN(G75)-COLUMN($E75)<Comp_V1_Years_Usage_Modeled,VLOOKUP(_Comp_V1_Vehicle_Vehicle_Class & _Comp_V1_Vehicle_Drivetrain & _Market,DB_Maint_Repair_Costs[],COLUMN(G75)-COLUMN($E75)+COLUMN(DB_Maint_Repair_Costs[[#Headers],[Year 1 ]]),FALSE)*Comp_V1_VMT_Modeled,0),IF(AND(COLUMN(G75)-COLUMN($E75)<Comp_V1_Years_Usage_Modeled,COLUMN(G75)-COLUMN($E75)<5),Comp_V1_Maint_Repair_Cost_Year_1_Modeled*Comp_V1_VMT_Modeled,IF(AND(COLUMN(G75)-COLUMN($E75)<Comp_V1_Years_Usage_Modeled,COLUMN(G75)-COLUMN($E75)>=5),Comp_V1_Maint_Repair_Cost_Year_5_Modeled*Comp_V1_VMT_Modeled,0)))*'Data General Inflation'!F$3 -> 0 | H106: =-IF(_Comp_V1_Maint_Repair_Cost_Use_Default="Yes",IF(COLUMN(H75)-COLUMN($E75)<Comp_V1_Years_Usage_Modeled,VLOOKUP(_Comp_V1_Vehicle_Vehicle_Class & _Comp_V1_Vehicle_Drivetrain & _Market,DB_Maint_Repair_Costs[],COLUMN(H75)-COLUMN($E75)+COLUMN(DB_Maint_Repair_Costs[[#Headers],[Year 1 ]]),FALSE)*Comp_V1_VMT_Modeled,0),IF(AND(COLUMN(H75)-COLUMN($E75)<Comp_V1_Years_Usage_Modeled,COLUMN(H75)-COLUMN($E75)<5),Comp_V1_Maint_Repair_Cost_Year_1_Modeled*Comp_V1_VMT_Modeled,IF(AND(COLUMN(H75)-COLUMN($E75)<Comp_V1_Years_Usage_Modeled,COLUMN(H75)-COLUMN($E75)>=5),Comp_V1_Maint_Repair_Cost_Year_5_Modeled*Comp_V1_VMT_Modeled,0)))*'Data General Inflation'!G$3 -> 0 | I106: =-IF(_Comp_V1_Maint_Repair_Cost_Use_Default="Yes",IF(COLUMN(I75)-COLUMN($E75)<Comp_V1_Years_Usage_Modeled,VLOOKUP(_Comp_V1_Vehicle_Vehicle_Class & _Comp_V1_Vehicle_Drivetrain & _Market,DB_Maint_Repair_Costs[],COLUMN(I75)-COLUMN($E75)+COLUMN(DB_Maint_Repair_Costs[[#Headers],[Year 1 ]]),FALSE)*Comp_V1_VMT_Modeled,0),IF(AND(COLUMN(I75)-COLUMN($E75)<Comp_V1_Years_Usage_Modeled,COLUMN(I75)-COLUMN($E75)<5),Comp_V1_Maint_Repair_Cost_Year_1_Modeled*Comp_V1_VMT_Modeled,IF(AND(COLUMN(I75)-COLUMN($E75)<Comp_V1_Years_Usage_Modeled,COLUMN(I75)-COLUMN($E75)>=5),Comp_V1_Maint_Repair_Cost_Year_5_Modeled*Comp_V1_VMT_Modeled,0)))*'Data General Inflation'!H$3 -> 0 | J106: =-IF(_Comp_V1_Maint_Repair_Cost_Use_Default="Yes",IF(COLUMN(J75)-COLUMN($E75)<Comp_V1_Years_Usage_Modeled,VLOOKUP(_Comp_V1_Vehicle_Vehicle_Class & _Comp_V1_Vehicle_Drivetrain & _Market,DB_Maint_Repair_Costs[],COLUMN(J75)-COLUMN($E75)+COLUMN(DB_Maint_Repair_Costs[[#Headers],[Year 1 ]]),FALSE)*Comp_V1_VMT_Modeled,0),IF(AND(COLUMN(J75)-COLUMN($E75)<Comp_V1_Years_Usage_Modeled,COLUMN(J75)-COLUMN($E75)<5),Comp_V1_Maint_Repair_Cost_Year_1_Modeled*Comp_V1_VMT_Modeled,IF(AND(COLUMN(J75)-COLUMN($E75)<Comp_V1_Years_Usage_Modeled,COLUMN(J75)-COLUMN($E75)>=5),Comp_V1_Maint_Repair_Cost_Year_5_Modeled*Comp_V1_VMT_Modeled,0)))*'Data General Inflation'!I$3 -> 0 | K106: =-IF(_Comp_V1_Maint_Repair_Cost_Use_Default="Yes",IF(COLUMN(K75)-COLUMN($E75)<Comp_V1_Years_Usage_Modeled,VLOOKUP(_Comp_V1_Vehicle_Vehicle_Class & _Comp_V1_Vehicle_Drivetrain & _Market,DB_Maint_Repair_Costs[],COLUMN(K75)-COLUMN($E75)+COLUMN(DB_Maint_Repair_Costs[[#Headers],[Year 1 ]]),FALSE)*Comp_V1_VMT_Modeled,0),IF(AND(COLUMN(K75)-COLUMN($E75)<Comp_V1_Years_Usage_Modeled,COLUMN(K75)-COLUMN($E75)<5),Comp_V1_Maint_Repair_Cost_Year_1_Modeled*Comp_V1_VMT_Modeled,IF(AND(COLUMN(K75)-COLUMN($E75)<Comp_V1_Years_Usage_Modeled,COLUMN(K75)-COLUMN($E75)>=5),Comp_V1_Maint_Repair_Cost_Year_5_Modeled*Comp_V1_VMT_Modeled,0)))*'Data General Inflation'!J$3 -> 0 | L106: =-IF(_Comp_V1_Maint_Repair_Cost_Use_Default="Yes",IF(COLUMN(L75)-COLUMN($E75)<Comp_V1_Years_Usage_Modeled,VLOOKUP(_Comp_V1_Vehicle_Vehicle_Class & _Comp_V1_Vehicle_Drivetrain & _Market,DB_Maint_Repair_Costs[],COLUMN(L75)-COLUMN($E75)+COLUMN(DB_Maint_Repair_Costs[[#Headers],[Year 1 ]]),FALSE)*Comp_V1_VMT_Modeled,0),IF(AND(COLUMN(L75)-COLUMN($E75)<Comp_V1_Years_Usage_Modeled,COLUMN(L75)-COLUMN($E75)<5),Comp_V1_Maint_Repair_Cost_Year_1_Modeled*Comp_V1_VMT_Modeled,IF(AND(COLUMN(L75)-COLUMN($E75)<Comp_V1_Years_Usage_Modeled,COLUMN(L75)-COLUMN($E75)>=5),Comp_V1_Maint_Repair_Cost_Year_5_Modeled*Comp_V1_VMT_Modeled,0)))*'Data General Inflation'!K$3 -> 0 | M106: =-IF(_Comp_V1_Maint_Repair_Cost_Use_Default="Yes",IF(COLUMN(M75)-COLUMN($E75)<Comp_V1_Years_Usage_Modeled,VLOOKUP(_Comp_V1_Vehicle_Vehicle_Class & _Comp_V1_Vehicle_Drivetrain & _Market,DB_Maint_Repair_Costs[],COLUMN(M75)-COLUMN($E75)+COLUMN(DB_Maint_Repair_Costs[[#Headers],[Year 1 ]]),FALSE)*Comp_V1_VMT_Modeled,0),IF(AND(COLUMN(M75)-COLUMN($E75)<Comp_V1_Years_Usage_Modeled,COLUMN(M75)-COLUMN($E75)<5),Comp_V1_Maint_Repair_Cost_Year_1_Modeled*Comp_V1_VMT_Modeled,IF(AND(COLUMN(M75)-COLUMN($E75)<Comp_V1_Years_Usage_Modeled,COLUMN(M75)-COLUMN($E75)>=5),Comp_V1_Maint_Repair_Cost_Year_5_Modeled*Comp_V1_VMT_Modeled,0)))*'Data General Inflation'!L$3 -> 0 | N106: =-IF(_Comp_V1_Maint_Repair_Cost_Use_Default="Yes",IF(COLUMN(N75)-COLUMN($E75)<Comp_V1_Years_Usage_Modeled,VLOOKUP(_Comp_V1_Vehicle_Vehicle_Class & _Comp_V1_Vehicle_Drivetrain & _Market,DB_Maint_Repair_Costs[],COLUMN(N75)-COLUMN($E75)+COLUMN(DB_Maint_Repair_Costs[[#Headers],[Year 1 ]]),FALSE)*Comp_V1_VMT_Modeled,0),IF(AND(COLUMN(N75)-COLUMN($E75)<Comp_V1_Years_Usage_Modeled,COLUMN(N75)-COLUMN($E75)<5),Comp_V1_Maint_Repair_Cost_Year_1_Modeled*Comp_V1_VMT_Modeled,IF(AND(COLUMN(N75)-COLUMN($E75)<Comp_V1_Years_Usage_Modeled,COLUMN(N75)-COLUMN($E75)>=5),Comp_V1_Maint_Repair_Cost_Year_5_Modeled*Comp_V1_VMT_Modeled,0)))*'Data General Inflation'!M$3 -> 0 | O106: =-IF(_Comp_V1_Maint_Repair_Cost_Use_Default="Yes",IF(COLUMN(O75)-COLUMN($E75)<Comp_V1_Years_Usage_Modeled,VLOOKUP(_Comp_V1_Vehicle_Vehicle_Class & _Comp_V1_Vehicle_Drivetrain & _Market,DB_Maint_Repair_Costs[],COLUMN(O75)-COLUMN($E75)+COLUMN(DB_Maint_Repair_Costs[[#Headers],[Year 1 ]]),FALSE)*Comp_V1_VMT_Modeled,0),IF(AND(COLUMN(O75)-COLUMN($E75)<Comp_V1_Years_Usage_Modeled,COLUMN(O75)-COLUMN($E75)<5),Comp_V1_Maint_Repair_Cost_Year_1_Modeled*Comp_V1_VMT_Modeled,IF(AND(COLUMN(O75)-COLUMN($E75)<Comp_V1_Years_Usage_Modeled,COLUMN(O75)-COLUMN($E75)>=5),Comp_V1_Maint_Repair_Cost_Year_5_Modeled*Comp_V1_VMT_Modeled,0)))*'Data General Inflation'!N$3 -> 0 | P106: =-IF(_Comp_V1_Maint_Repair_Cost_Use_Default="Yes",IF(COLUMN(P75)-COLUMN($E75)<Comp_V1_Years_Usage_Modeled,VLOOKUP(_Comp_V1_Vehicle_Vehicle_Class & _Comp_V1_Vehicle_Drivetrain & _Market,DB_Maint_Repair_Costs[],COLUMN(P75)-COLUMN($E75)+COLUMN(DB_Maint_Repair_Costs[[#Headers],[Year 1 ]]),FALSE)*Comp_V1_VMT_Modeled,0),IF(AND(COLUMN(P75)-COLUMN($E75)<Comp_V1_Years_Usage_Modeled,COLUMN(P75)-COLUMN($E75)<5),Comp_V1_Maint_Repair_Cost_Year_1_Modeled*Comp_V1_VMT_Modeled,IF(AND(COLUMN(P75)-COLUMN($E75)<Comp_V1_Years_Usage_Modeled,COLUMN(P75)-COLUMN($E75)>=5),Comp_V1_Maint_Repair_Cost_Year_5_Modeled*Comp_V1_VMT_Modeled,0)))*'Data General Inflation'!O$3 -> 0 | Q106: =-IF(_Comp_V1_Maint_Repair_Cost_Use_Default="Yes",IF(COLUMN(Q75)-COLUMN($E75)<Comp_V1_Years_Usage_Modeled,VLOOKUP(_Comp_V1_Vehicle_Vehicle_Class & _Comp_V1_Vehicle_Drivetrain & _Market,DB_Maint_Repair_Costs[],COLUMN(Q75)-COLUMN($E75)+COLUMN(DB_Maint_Repair_Costs[[#Headers],[Year 1 ]]),FALSE)*Comp_V1_VMT_Modeled,0),IF(AND(COLUMN(Q75)-COLUMN($E75)<Comp_V1_Years_Usage_Modeled,COLUMN(Q75)-COLUMN($E75)<5),Comp_V1_Maint_Repair_Cost_Year_1_Modeled*Comp_V1_VMT_Modeled,IF(AND(COLUMN(Q75)-COLUMN($E75)<Comp_V1_Years_Usage_Modeled,COLUMN(Q75)-COLUMN($E75)>=5),Comp_V1_Maint_Repair_Cost_Year_5_Modeled*Comp_V1_VMT_Modeled,0)))*'Data General Inflation'!P$3 -> 0 | R106: =-IF(_Comp_V1_Maint_Repair_Cost_Use_Default="Yes",IF(COLUMN(R75)-COLUMN($E75)<Comp_V1_Years_Usage_Modeled,VLOOKUP(_Comp_V1_Vehicle_Vehicle_Class & _Comp_V1_Vehicle_Drivetrain & _Market,DB_Maint_Repair_Costs[],COLUMN(R75)-COLUMN($E75)+COLUMN(DB_Maint_Repair_Costs[[#Headers],[Year 1 ]]),FALSE)*Comp_V1_VMT_Modeled,0),IF(AND(COLUMN(R75)-COLUMN($E75)<Comp_V1_Years_Usage_Modeled,COLUMN(R75)-COLUMN($E75)<5),Comp_V1_Maint_Repair_Cost_Year_1_Modeled*Comp_V1_VMT_Modeled,IF(AND(COLUMN(R75)-COLUMN($E75)<Comp_V1_Years_Usage_Modeled,COLUMN(R75)-COLUMN($E75)>=5),Comp_V1_Maint_Repair_Cost_Year_5_Modeled*Comp_V1_VMT_Modeled,0)))*'Data General Inflation'!Q$3 -> 0 | S106: =-IF(_Comp_V1_Maint_Repair_Cost_Use_Default="Yes",IF(COLUMN(S75)-COLUMN($E75)<Comp_V1_Years_Usage_Modeled,VLOOKUP(_Comp_V1_Vehicle_Vehicle_Class & _Comp_V1_Vehicle_Drivetrain & _Market,DB_Maint_Repair_Costs[],COLUMN(S75)-COLUMN($E75)+COLUMN(DB_Maint_Repair_Costs[[#Headers],[Year 1 ]]),FALSE)*Comp_V1_VMT_Modeled,0),IF(AND(COLUMN(S75)-COLUMN($E75)<Comp_V1_Years_Usage_Modeled,COLUMN(S75)-COLUMN($E75)<5),Comp_V1_Maint_Repair_Cost_Year_1_Modeled*Comp_V1_VMT_Modeled,IF(AND(COLUMN(S75)-COLUMN($E75)<Comp_V1_Years_Usage_Modeled,COLUMN(S75)-COLUMN($E75)>=5),Comp_V1_Maint_Repair_Cost_Year_5_Modeled*Comp_V1_VMT_Modeled,0)))*'Data General Inflation'!R$3 -> 0 | T106: =-IF(_Comp_V1_Maint_Repair_Cost_Use_Default="Yes",IF(COLUMN(T75)-COLUMN($E75)<Comp_V1_Years_Usage_Modeled,VLOOKUP(_Comp_V1_Vehicle_Vehicle_Class & _Comp_V1_Vehicle_Drivetrain & _Market,DB_Maint_Repair_Costs[],COLUMN(T75)-COLUMN($E75)+COLUMN(DB_Maint_Repair_Costs[[#Headers],[Year 1 ]]),FALSE)*Comp_V1_VMT_Modeled,0),IF(AND(COLUMN(T75)-COLUMN($E75)<Comp_V1_Years_Usage_Modeled,COLUMN(T75)-COLUMN($E75)<5),Comp_V1_Maint_Repair_Cost_Year_1_Modeled*Comp_V1_VMT_Modeled,IF(AND(COLUMN(T75)-COLUMN($E75)<Comp_V1_Years_Usage_Modeled,COLUMN(T75)-COLUMN($E75)>=5),Comp_V1_Maint_Repair_Cost_Year_5_Modeled*Comp_V1_VMT_Modeled,0)))*'Data General Inflation'!S$3 -> 0 | U106: =-IF(_Comp_V1_Maint_Repair_Cost_Use_Default="Yes",IF(COLUMN(U75)-COLUMN($E75)<Comp_V1_Years_Usage_Modeled,VLOOKUP(_Comp_V1_Vehicle_Vehicle_Class & _Comp_V1_Vehicle_Drivetrain & _Market,DB_Maint_Repair_Costs[],COLUMN(U75)-COLUMN($E75)+COLUMN(DB_Maint_Repair_Costs[[#Headers],[Year 1 ]]),FALSE)*Comp_V1_VMT_Modeled,0),IF(AND(COLUMN(U75)-COLUMN($E75)<Comp_V1_Years_Usage_Modeled,COLUMN(U75)-COLUMN($E75)<5),Comp_V1_Maint_Repair_Cost_Year_1_Modeled*Comp_V1_VMT_Modeled,IF(AND(COLUMN(U75)-COLUMN($E75)<Comp_V1_Years_Usage_Modeled,COLUMN(U75)-COLUMN($E75)>=5),Comp_V1_Maint_Repair_Cost_Year_5_Modeled*Comp_V1_VMT_Modeled,0)))*'Data General Inflation'!T$3 -> 0 | V106: =-IF(_Comp_V1_Maint_Repair_Cost_Use_Default="Yes",IF(COLUMN(V75)-COLUMN($E75)<Comp_V1_Years_Usage_Modeled,VLOOKUP(_Comp_V1_Vehicle_Vehicle_Class & _Comp_V1_Vehicle_Drivetrain & _Market,DB_Maint_Repair_Costs[],COLUMN(V75)-COLUMN($E75)+COLUMN(DB_Maint_Repair_Costs[[#Headers],[Year 1 ]]),FALSE)*Comp_V1_VMT_Modeled,0),IF(AND(COLUMN(V75)-COLUMN($E75)<Comp_V1_Years_Usage_Modeled,COLUMN(V75)-COLUMN($E75)<5),Comp_V1_Maint_Repair_Cost_Year_1_Modeled*Comp_V1_VMT_Modeled,IF(AND(COLUMN(V75)-COLUMN($E75)<Comp_V1_Years_Usage_Modeled,COLUMN(V75)-COLUMN($E75)>=5),Comp_V1_Maint_Repair_Cost_Year_5_Modeled*Comp_V1_VMT_Modeled,0)))*'Data General Inflation'!U$3 -> 0 | W106: =-IF(_Comp_V1_Maint_Repair_Cost_Use_Default="Yes",IF(COLUMN(W75)-COLUMN($E75)<Comp_V1_Years_Usage_Modeled,VLOOKUP(_Comp_V1_Vehicle_Vehicle_Class & _Comp_V1_Vehicle_Drivetrain & _Market,DB_Maint_Repair_Costs[],COLUMN(W75)-COLUMN($E75)+COLUMN(DB_Maint_Repair_Costs[[#Headers],[Year 1 ]]),FALSE)*Comp_V1_VMT_Modeled,0),IF(AND(COLUMN(W75)-COLUMN($E75)<Comp_V1_Years_Usage_Modeled,COLUMN(W75)-COLUMN($E75)<5),Comp_V1_Maint_Repair_Cost_Year_1_Modeled*Comp_V1_VMT_Modeled,IF(AND(COLUMN(W75)-COLUMN($E75)<Comp_V1_Years_Usage_Modeled,COLUMN(W75)-COLUMN($E75)>=5),Comp_V1_Maint_Repair_Cost_Year_5_Modeled*Comp_V1_VMT_Modeled,0)))*'Data General Inflation'!V$3 -> 0 | X106: =-IF(_Comp_V1_Maint_Repair_Cost_Use_Default="Yes",IF(COLUMN(X75)-COLUMN($E75)<Comp_V1_Years_Usage_Modeled,VLOOKUP(_Comp_V1_Vehicle_Vehicle_Class & _Comp_V1_Vehicle_Drivetrain & _Market,DB_Maint_Repair_Costs[],COLUMN(X75)-COLUMN($E75)+COLUMN(DB_Maint_Repair_Costs[[#Headers],[Year 1 ]]),FALSE)*Comp_V1_VMT_Modeled,0),IF(AND(COLUMN(X75)-COLUMN($E75)<Comp_V1_Years_Usage_Modeled,COLUMN(X75)-COLUMN($E75)<5),Comp_V1_Maint_Repair_Cost_Year_1_Modeled*Comp_V1_VMT_Modeled,IF(AND(COLUMN(X75)-COLUMN($E75)<Comp_V1_Years_Usage_Modeled,COLUMN(X75)-COLUMN($E75)>=5),Comp_V1_Maint_Repair_Cost_Year_5_Modeled*Comp_V1_VMT_Modeled,0)))*'Data General Inflation'!W$3 -> 0 | Y106: =-IF(_Comp_V1_Maint_Repair_Cost_Use_Default="Yes",IF(COLUMN(Y75)-COLUMN($E75)<Comp_V1_Years_Usage_Modeled,VLOOKUP(_Comp_V1_Vehicle_Vehicle_Class & _Comp_V1_Vehicle_Drivetrain & _Market,DB_Maint_Repair_Costs[],COLUMN(Y75)-COLUMN($E75)+COLUMN(DB_Maint_Repair_Costs[[#Headers],[Year 1 ]]),FALSE)*Comp_V1_VMT_Modeled,0),IF(AND(COLUMN(Y75)-COLUMN($E75)<Comp_V1_Years_Usage_Modeled,COLUMN(Y75)-COLUMN($E75)<5),Comp_V1_Maint_Repair_Cost_Year_1_Modeled*Comp_V1_VMT_Modeled,IF(AND(COLUMN(Y75)-COLUMN($E75)<Comp_V1_Years_Usage_Modeled,COLUMN(Y75)-COLUMN($E75)>=5),Comp_V1_Maint_Repair_Cost_Year_5_Modeled*Comp_V1_VMT_Modeled,0)))*'Data General Inflation'!X$3 -> 0 | Z106: =-IF(_Comp_V1_Maint_Repair_Cost_Use_Default="Yes",IF(COLUMN(Z75)-COLUMN($E75)<Comp_V1_Years_Usage_Modeled,VLOOKUP(_Comp_V1_Vehicle_Vehicle_Class & _Comp_V1_Vehicle_Drivetrain & _Market,DB_Maint_Repair_Costs[],COLUMN(Z75)-COLUMN($E75)+COLUMN(DB_Maint_Repair_Costs[[#Headers],[Year 1 ]]),FALSE)*Comp_V1_VMT_Modeled,0),IF(AND(COLUMN(Z75)-COLUMN($E75)<Comp_V1_Years_Usage_Modeled,COLUMN(Z75)-COLUMN($E75)<5),Comp_V1_Maint_Repair_Cost_Year_1_Modeled*Comp_V1_VMT_Modeled,IF(AND(COLUMN(Z75)-COLUMN($E75)<Comp_V1_Years_Usage_Modeled,COLUMN(Z75)-COLUMN($E75)>=5),Comp_V1_Maint_Repair_Cost_Year_5_Modeled*Comp_V1_VMT_Modeled,0)))*'Data General Inflation'!Y$3 -> 0 | AA106: =-IF(_Comp_V1_Maint_Repair_Cost_Use_Default="Yes",IF(COLUMN(AA75)-COLUMN($E75)<Comp_V1_Years_Usage_Modeled,VLOOKUP(_Comp_V1_Vehicle_Vehicle_Class & _Comp_V1_Vehicle_Drivetrain & _Market,DB_Maint_Repair_Costs[],COLUMN(AA75)-COLUMN($E75)+COLUMN(DB_Maint_Repair_Costs[[#Headers],[Year 1 ]]),FALSE)*Comp_V1_VMT_Modeled,0),IF(AND(COLUMN(AA75)-COLUMN($E75)<Comp_V1_Years_Usage_Modeled,COLUMN(AA75)-COLUMN($E75)<5),Comp_V1_Maint_Repair_Cost_Year_1_Modeled*Comp_V1_VMT_Modeled,IF(AND(COLUMN(AA75)-COLUMN($E75)<Comp_V1_Years_Usage_Modeled,COLUMN(AA75)-COLUMN($E75)>=5),Comp_V1_Maint_Repair_Cost_Year_5_Modeled*Comp_V1_VMT_Modeled,0)))*'Data General Inflation'!Z$3 -> 0 | AB106: =-IF(_Comp_V1_Maint_Repair_Cost_Use_Default="Yes",IF(COLUMN(AB75)-COLUMN($E75)<Comp_V1_Years_Usage_Modeled,VLOOKUP(_Comp_V1_Vehicle_Vehicle_Class & _Comp_V1_Vehicle_Drivetrain & _Market,DB_Maint_Repair_Costs[],COLUMN(AB75)-COLUMN($E75)+COLUMN(DB_Maint_Repair_Costs[[#Headers],[Year 1 ]]),FALSE)*Comp_V1_VMT_Modeled,0),IF(AND(COLUMN(AB75)-COLUMN($E75)<Comp_V1_Years_Usage_Modeled,COLUMN(AB75)-COLUMN($E75)<5),Comp_V1_Maint_Repair_Cost_Year_1_Modeled*Comp_V1_VMT_Modeled,IF(AND(COLUMN(AB75)-COLUMN($E75)<Comp_V1_Years_Usage_Modeled,COLUMN(AB75)-COLUMN($E75)>=5),Comp_V1_Maint_Repair_Cost_Year_5_Modeled*Comp_V1_VMT_Modeled,0)))*'Data General Inflation'!AA$3 -> 0 | AC106: =-IF(_Comp_V1_Maint_Repair_Cost_Use_Default="Yes",IF(COLUMN(AC75)-COLUMN($E75)<Comp_V1_Years_Usage_Modeled,VLOOKUP(_Comp_V1_Vehicle_Vehicle_Class & _Comp_V1_Vehicle_Drivetrain & _Market,DB_Maint_Repair_Costs[],COLUMN(AC75)-COLUMN($E75)+COLUMN(DB_Maint_Repair_Costs[[#Headers],[Year 1 ]]),FALSE)*Comp_V1_VMT_Modeled,0),IF(AND(COLUMN(AC75)-COLUMN($E75)<Comp_V1_Years_Usage_Modeled,COLUMN(AC75)-COLUMN($E75)<5),Comp_V1_Maint_Repair_Cost_Year_1_Modeled*Comp_V1_VMT_Modeled,IF(AND(COLUMN(AC75)-COLUMN($E75)<Comp_V1_Years_Usage_Modeled,COLUMN(AC75)-COLUMN($E75)>=5),Comp_V1_Maint_Repair_Cost_Year_5_Modeled*Comp_V1_VMT_Modeled,0)))*'Data General Inflation'!AB$3 -> 0
B107: Taxes and Fees | D107: =-Comp_V1_Initial_Taxes_Fees_Modeled-(Comp_V1_Initial_Percent_Base_Price_Modeled*Comp_V1_Base_Price_Ex) -> 0 | E107: =-IF(COLUMN(E75)-COLUMN($E75)<Comp_V1_Years_Usage_Modeled,Comp_V1_Taxes_Fees_Modeled,0)*'Data General Inflation'!D$3 -> 0 | F107: =-IF(COLUMN(F75)-COLUMN($E75)<Comp_V1_Years_Usage_Modeled,Comp_V1_Taxes_Fees_Modeled,0)*'Data General Inflation'!E$3 -> 0 | G107: =-IF(COLUMN(G75)-COLUMN($E75)<Comp_V1_Years_Usage_Modeled,Comp_V1_Taxes_Fees_Modeled,0)*'Data General Inflation'!F$3 -> 0 | H107: =-IF(COLUMN(H75)-COLUMN($E75)<Comp_V1_Years_Usage_Modeled,Comp_V1_Taxes_Fees_Modeled,0)*'Data General Inflation'!G$3 -> 0 | I107: =-IF(COLUMN(I75)-COLUMN($E75)<Comp_V1_Years_Usage_Modeled,Comp_V1_Taxes_Fees_Modeled,0)*'Data General Inflation'!H$3 -> 0 | J107: =-IF(COLUMN(J75)-COLUMN($E75)<Comp_V1_Years_Usage_Modeled,Comp_V1_Taxes_Fees_Modeled,0)*'Data General Inflation'!I$3 -> 0 | K107: =-IF(COLUMN(K75)-COLUMN($E75)<Comp_V1_Years_Usage_Modeled,Comp_V1_Taxes_Fees_Modeled,0)*'Data General Inflation'!J$3 -> 0 | L107: =-IF(COLUMN(L75)-COLUMN($E75)<Comp_V1_Years_Usage_Modeled,Comp_V1_Taxes_Fees_Modeled,0)*'Data General Inflation'!K$3 -> 0 | M107: =-IF(COLUMN(M75)-COLUMN($E75)<Comp_V1_Years_Usage_Modeled,Comp_V1_Taxes_Fees_Modeled,0)*'Data General Inflation'!L$3 -> 0 | N107: =-IF(COLUMN(N75)-COLUMN($E75)<Comp_V1_Years_Usage_Modeled,Comp_V1_Taxes_Fees_Modeled,0)*'Data General Inflation'!M$3 -> 0 | O107: =-IF(COLUMN(O75)-COLUMN($E75)<Comp_V1_Years_Usage_Modeled,Comp_V1_Taxes_Fees_Modeled,0)*'Data General Inflation'!N$3 -> 0 | P107: =-IF(COLUMN(P75)-COLUMN($E75)<Comp_V1_Years_Usage_Modeled,Comp_V1_Taxes_Fees_Modeled,0)*'Data General Inflation'!O$3 -> 0 | Q107: =-IF(COLUMN(Q75)-COLUMN($E75)<Comp_V1_Years_Usage_Modeled,Comp_V1_Taxes_Fees_Modeled,0)*'Data General Inflation'!P$3 -> 0 | R107: =-IF(COLUMN(R75)-COLUMN($E75)<Comp_V1_Years_Usage_Modeled,Comp_V1_Taxes_Fees_Modeled,0)*'Data General Inflation'!Q$3 -> 0 | S107: =-IF(COLUMN(S75)-COLUMN($E75)<Comp_V1_Years_Usage_Modeled,Comp_V1_Taxes_Fees_Modeled,0)*'Data General Inflation'!R$3 -> 0 | T107: =-IF(COLUMN(T75)-COLUMN($E75)<Comp_V1_Years_Usage_Modeled,Comp_V1_Taxes_Fees_Modeled,0)*'Data General Inflation'!S$3 -> 0 | U107: =-IF(COLUMN(U75)-COLUMN($E75)<Comp_V1_Years_Usage_Modeled,Comp_V1_Taxes_Fees_Modeled,0)*'Data General Inflation'!T$3 -> 0 | V107: =-IF(COLUMN(V75)-COLUMN($E75)<Comp_V1_Years_Usage_Modeled,Comp_V1_Taxes_Fees_Modeled,0)*'Data General Inflation'!U$3 -> 0 | W107: =-IF(COLUMN(W75)-COLUMN($E75)<Comp_V1_Years_Usage_Modeled,Comp_V1_Taxes_Fees_Modeled,0)*'Data General Inflation'!V$3 -> 0 | X107: =-IF(COLUMN(X75)-COLUMN($E75)<Comp_V1_Years_Usage_Modeled,Comp_V1_Taxes_Fees_Modeled,0)*'Data General Inflation'!W$3 -> 0 | Y107: =-IF(COLUMN(Y75)-COLUMN($E75)<Comp_V1_Years_Usage_Modeled,Comp_V1_Taxes_Fees_Modeled,0)*'Data General Inflation'!X$3 -> 0 | Z107: =-IF(COLUMN(Z75)-COLUMN($E75)<Comp_V1_Years_Usage_Modeled,Comp_V1_Taxes_Fees_Modeled,0)*'Data General Inflation'!Y$3 -> 0 | AA107: =-IF(COLUMN(AA75)-COLUMN($E75)<Comp_V1_Years_Usage_Modeled,Comp_V1_Taxes_Fees_Modeled,0)*'Data General Inflation'!Z$3 -> 0 | AB107: =-IF(COLUMN(AB75)-COLUMN($E75)<Comp_V1_Years_Usage_Modeled,Comp_V1_Taxes_Fees_Modeled,0)*'Data General Inflation'!AA$3 -> 0 | AC107: =-IF(COLUMN(AC75)-COLUMN($E75)<Comp_V1_Years_Usage_Modeled,Comp_V1_Taxes_Fees_Modeled,0)*'Data General Inflation'!AB$3 -> 0
B108: Insurance Cost | E108: =-IF(COLUMN(E75)-COLUMN($E75)<Comp_V1_Years_Usage_Modeled,Comp_V1_Insurance_Cost_Modeled,0)*'Data General Inflation'!D$3 -> 0 | F108: =-IF(COLUMN(F75)-COLUMN($E75)<Comp_V1_Years_Usage_Modeled,Comp_V1_Insurance_Cost_Modeled,0)*'Data General Inflation'!E$3 -> 0 | G108: =-IF(COLUMN(G75)-COLUMN($E75)<Comp_V1_Years_Usage_Modeled,Comp_V1_Insurance_Cost_Modeled,0)*'Data General Inflation'!F$3 -> 0 | H108: =-IF(COLUMN(H75)-COLUMN($E75)<Comp_V1_Years_Usage_Modeled,Comp_V1_Insurance_Cost_Modeled,0)*'Data General Inflation'!G$3 -> 0 | I108: =-IF(COLUMN(I75)-COLUMN($E75)<Comp_V1_Years_Usage_Modeled,Comp_V1_Insurance_Cost_Modeled,0)*'Data General Inflation'!H$3 -> 0 | J108: =-IF(COLUMN(J75)-COLUMN($E75)<Comp_V1_Years_Usage_Modeled,Comp_V1_Insurance_Cost_Modeled,0)*'Data General Inflation'!I$3 -> 0 | K108: =-IF(COLUMN(K75)-COLUMN($E75)<Comp_V1_Years_Usage_Modeled,Comp_V1_Insurance_Cost_Modeled,0)*'Data General Inflation'!J$3 -> 0 | L108: =-IF(COLUMN(L75)-COLUMN($E75)<Comp_V1_Years_Usage_Modeled,Comp_V1_Insurance_Cost_Modeled,0)*'Data General Inflation'!K$3 -> 0 | M108: =-IF(COLUMN(M75)-COLUMN($E75)<Comp_V1_Years_Usage_Modeled,Comp_V1_Insurance_Cost_Modeled,0)*'Data General Inflation'!L$3 -> 0 | N108: =-IF(COLUMN(N75)-COLUMN($E75)<Comp_V1_Years_Usage_Modeled,Comp_V1_Insurance_Cost_Modeled,0)*'Data General Inflation'!M$3 -> 0 | O108: =-IF(COLUMN(O75)-COLUMN($E75)<Comp_V1_Years_Usage_Modeled,Comp_V1_Insurance_Cost_Modeled,0)*'Data General Inflation'!N$3 -> 0 | P108: =-IF(COLUMN(P75)-COLUMN($E75)<Comp_V1_Years_Usage_Modeled,Comp_V1_Insurance_Cost_Modeled,0)*'Data General Inflation'!O$3 -> 0 | Q108: =-IF(COLUMN(Q75)-COLUMN($E75)<Comp_V1_Years_Usage_Modeled,Comp_V1_Insurance_Cost_Modeled,0)*'Data General Inflation'!P$3 -> 0 | R108: =-IF(COLUMN(R75)-COLUMN($E75)<Comp_V1_Years_Usage_Modeled,Comp_V1_Insurance_Cost_Modeled,0)*'Data General Inflation'!Q$3 -> 0 | S108: =-IF(COLUMN(S75)-COLUMN($E75)<Comp_V1_Years_Usage_Modeled,Comp_V1_Insurance_Cost_Modeled,0)*'Data General Inflation'!R$3 -> 0 | T108: =-IF(COLUMN(T75)-COLUMN($E75)<Comp_V1_Years_Usage_Modeled,Comp_V1_Insurance_Cost_Modeled,0)*'Data General Inflation'!S$3 -> 0 | U108: =-IF(COLUMN(U75)-COLUMN($E75)<Comp_V1_Years_Usage_Modeled,Comp_V1_Insurance_Cost_Modeled,0)*'Data General Inflation'!T$3 -> 0 | V108: =-IF(COLUMN(V75)-COLUMN($E75)<Comp_V1_Years_Usage_Modeled,Comp_V1_Insurance_Cost_Modeled,0)*'Data General Inflation'!U$3 -> 0 | W108: =-IF(COLUMN(W75)-COLUMN($E75)<Comp_V1_Years_Usage_Modeled,Comp_V1_Insurance_Cost_Modeled,0)*'Data General Inflation'!V$3 -> 0 | X108: =-IF(COLUMN(X75)-COLUMN($E75)<Comp_V1_Years_Usage_Modeled,Comp_V1_Insurance_Cost_Modeled,0)*'Data General Inflation'!W$3 -> 0 | Y108: =-IF(COLUMN(Y75)-COLUMN($E75)<Comp_V1_Years_Usage_Modeled,Comp_V1_Insurance_Cost_Modeled,0)*'Data General Inflation'!X$3 -> 0 | Z108: =-IF(COLUMN(Z75)-COLUMN($E75)<Comp_V1_Years_Usage_Modeled,Comp_V1_Insurance_Cost_Modeled,0)*'Data General Inflation'!Y$3 -> 0 | AA108: =-IF(COLUMN(AA75)-COLUMN($E75)<Comp_V1_Years_Usage_Modeled,Comp_V1_Insurance_Cost_Modeled,0)*'Data General Inflation'!Z$3 -> 0 | AB108: =-IF(COLUMN(AB75)-COLUMN($E75)<Comp_V1_Years_Usage_Modeled,Comp_V1_Insurance_Cost_Modeled,0)*'Data General Inflation'!AA$3 -> 0 | AC108: =-IF(COLUMN(AC75)-COLUMN($E75)<Comp_V1_Years_Usage_Modeled,Comp_V1_Insurance_Cost_Modeled,0)*'Data General Inflation'!AB$3 -> 0
B109: Subtotal Fuel and Operating Costs | D109: =SUM(D105:D108) -> 0 | E109: 0 | F109: 0 | G109: 0 | H109: 0 | I109: 0 | J109: 0 | K109: 0 | L109: 0 | M109: 0 | N109: 0 | O109: 0 | P109: 0 | Q109: 0 | R109: 0 | S109: 0 | T109: 0 | U109: 0 | V109: 0 | W109: 0 | X109: 0 | Y109: 0 | Z109: 0 | AA109: 0 | AB109: 0 | AC109: 0
B111: Other Costs
B112: Cost of Carbon | E112: =-IF(COLUMN(E75)-COLUMN($E75)<Comp_V1_Years_Usage_Modeled,Comp_V1_CO2_Ex/2204.62*Carbon_Price_Modeled,0) -> 0 | F112: 0 | G112: 0 | H112: 0 | I112: 0 | J112: 0 | K112: 0 | L112: 0 | M112: 0 | N112: 0 | O112: 0 | P112: 0 | Q112: 0 | R112: 0 | S112: 0 | T112: 0 | U112: 0 | V112: 0 | W112: 0 | X112: 0 | Y112: 0 | Z112: 0 | AA112: 0 | AB112: 0 | AC112: 0
B113: Cost of Downtime from Public Charging | E113: =-IF(AND(COLUMN(E76)-COLUMN($E76)<Comp_V1_Years_Usage_Modeled, Cost_of_Downtime_from_Charging_Modeled<>0, Comp_Station_Max_Power_Modeled<>0),(Comp_V1_Electricity_Usage_Ex*Comp_Percent_Public_Charging_Modeled)/Comp_Station_Max_Power_Modeled*Cost_of_Downtime_from_Charging, 0) -> 0 | F113: 0 | G113: 0 | H113: 0 | I113: 0 | J113: 0 | K113: 0 | L113: 0 | M113: 0 | N113: 0 | O113: 0 | P113: 0 | Q113: 0 | R113: 0 | S113: 0 | T113: 0 | U113: 0 | V113: 0 | W113: 0 | X113: 0 | Y113: 0 | Z113: 0 | AA113: 0 | AB113: 0 | AC113: 0
B114: Subtotal Other Costs | D114: =SUM(D112:D113) -> 0 | E114: =SUM(E112:E113) -> 0 | F114: =SUM(F112:F113) -> 0 | G114: 0 | H114: 0 | I114: 0 | J114: 0 | K114: 0 | L114: 0 | M114: 0 | N114: 0 | O114: 0 | P114: 0 | Q114: 0 | R114: 0 | S114: 0 | T114: 0 | U114: 0 | V114: 0 | W114: 0 | X114: 0 | Y114: 0 | Z114: 0 | AA114: 0 | AB114: 0 | AC114: 0
B116: Total Discounted Costs
B117: Total Annual Costs | D117: =D102+D109+D114 -> 0 | E117: 0 | F117: 0 | G117: 0 | H117: 0 | I117: 0 | J117: 0 | K117: 0 | L117: 0 | M117: 0 | N117: 0 | O117: 0 | P117: 0 | Q117: 0 | R117: 0 | S117: 0 | T117: 0 | U117: 0 | V117: 0 | W117: 0 | X117: 0 | Y117: 0 | Z117: 0 | AA117: 0 | AB117: 0 | AC117: 0
B118: Discount Factor | C118: =Comp_Discount_Rate_Modeled -> 0 | D118: =(1/(1+$C118))^(COLUMN(D75)-COLUMN($D75)) -> 1 | E118: 1 | F118: 1 | G118: 1 | H118: 1 | I118: 1 | J118: 1 | K118: 1 | L118: 1 | M118: 1 | N118: 1 | O118: 1 | P118: 1 | Q118: 1 | R118: 1 | S118: 1 | T118: 1 | U118: 1 | V118: 1 | W118: 1 | X118: 1 | Y118: 1 | Z118: 1 | AA118: 1 | AB118: 1 | AC118: 1
B119: Discounted Total | D119: =D117*D118 -> 0 | E119: =E117*E118 -> 0 | F119: =F117*F118 -> 0 | G119: 0 | H119: 0 | I119: 0 | J119: 0 | K119: 0 | L119: 0 | M119: 0 | N119: 0 | O119: 0 | P119: 0 | Q119: 0 | R119: 0 | S119: 0 | T119: 0 | U119: 0 | V119: 0 | W119: 0 | X119: 0 | Y119: 0 | Z119: 0 | AA119: 0 | AB119: 0 | AC119: 0
B120: Cumulative Discounted Total | D120: =IF((COLUMN(D75)-COLUMN($D75))<=Comp_V1_Years_Usage_Modeled,C120+D119,0) -> 0 | E120: 0 | F120: 0 | G120: 0 | H120: 0 | I120: 0 | J120: 0 | K120: 0 | L120: 0 | M120: 0 | N120: 0 | O120: 0 | P120: 0 | Q120: 0 | R120: 0 | S120: 0 | T120: 0 | U120: 0 | V120: 0 | W120: 0 | X120: 0 | Y120: 0 | Z120: 0 | AA120: 0 | AB120: 0 | AC120: 0
B121: Annualized NPV Total Cost of Ownership | D121: =OFFSET($D120,0,Comp_V1_Years_Usage_Modeled)/Comp_V1_Years_Usage_Modeled -> 
B123: Comparison EV Infrastructure
D124: Year 0 | E124: Year 1 | F124: Year 2 | G124: Year 3 | H124: Year 4 | I124: Year 5 | J124: Year 6 | K124: Year 7 | L124: Year 8 | M124: Year 9 | N124: Year 10 | O124: Year 11 | P124: Year 12 | Q124: Year 13 | R124: Year 14 | S124: Year 15 | T124: Year 16 | U124: Year 17 | V124: Year 18 | W124: Year 19 | X124: Year 20 | Y124: Year 21 | Z124: Year 22 | AA124: Year 23 | AB124: Year 24 | AC124: Year 25
B125: Capital and Financing Costs
B126: Cash
B127: Cash Payment | D127: =IF(AND(Comp_Inf_Has_Cash_Purchase_Ex=TRUE,_Comp_Include_Charging="Yes"),-Comp_Num_Stations_Modeled*Comp_Station_Cost_Modeled,0) -> 0
B128: Loan
B129: Down Payment | D129: =IF(AND(Comp_Inf_Has_Cash_Purchase_Ex=FALSE,_Comp_Include_Charging="Yes"),-Comp_Inf_Down_Payment_Modeled,0) -> 0
B130: Loan Payments | E130: =IF(AND(Comp_Inf_Has_Cash_Purchase_Ex=FALSE,_Comp_Include_Charging="Yes",(COLUMN(E124)-COLUMN($E124))<Comp_Inf_Loan_Term_Modeled),PMT(Comp_Inf_Loan_APR_Modeled,Comp_Inf_Loan_Term_Modeled,(Comp_Num_Stations_Modeled*Comp_Station_Cost_Modeled)-Comp_Inf_Down_Payment_Modeled,0),0) -> 0 | F130: 0 | G130: 0 | H130: 0 | I130: 0 | J130: 0 | K130: 0 | L130: 0 | M130: 0 | N130: 0 | O130: 0 | P130: 0 | Q130: 0 | R130: 0 | S130: 0 | T130: 0 | U130: 0 | V130: 0 | W130: 0 | X130: 0 | Y130: 0 | Z130: 0 | AA130: 0 | AB130: 0 | AC130: 0
